Workbook

Sheet Лист1
A1: Внимание: для работы программы должны быть включены макросы в настройках Excel
C2: ver 4.1 от 16/06/2023
A9: Расчет пропускной способности и подбор регуляторов давления РЕД
A11: Название организации | C11: Поля, обязательные для заполнения и получения КП
A12: ФИО
A13: E-mail
A14: Контакный телефон | C14: введите Ваш телефон
A16: Параметр | B16: Значение | C16: Примечание
A17: Выберите регулятор давления из списка | B17: РЕД-6-50-С4 DN50 Qmax=5900 нм3/час | C17: выберите регулятор из списка
A18: Допустимое максимальное давление на входе, МПа | B18: =IF(OR(B17=F57,B17=F58,B17=F59,B17=F60,B17=F61,B17=F62,B17=F63,B17=F64,B17=F65,B17=F67,B17=F71,B17=F74,B17=F77,B17=F80,B17=F83),0.6,1.6) -> 1.6 | C18: зависит от выбора регулятора* | D18: =B18 -> 1.6
A19: Допустимое максимальное давление газа на выходе, кПа | B19: =IF(B17=F57,L57,IF(B17=F58,L58,IF(B17=F59,L59,IF(B17=F63,L63,IF(B17=F67,L67,IF(B17=F70,L70,IF(B17=F71,L71,IF(B17=F74,L74,IF(B17=F77,L77,IF(B17=F80,L80,IF(B17=F83,L83,IF(B17=F72,L72,IF(B17=F75,L75,IF(B17=F78,L78,IF(B17=F81,L81,IF(B17=F73,L73,IF(B17=F76,L76,IF(B17=F79,L79,IF(B17=F82,L82,IF(B17=F59,L80,IF(B17=F60,L60,IF(B17=F61,L61,IF(B17=F62,L62,IF(B17=F64,L64,IF(B17=F65,L65,IF(B17=F66,L66,IF(B17=F67,L67,IF(B17=F68,L68,IF(B17=F69,L69,IF(B17=F84,L84,IF(B17=F85,L85,IF(B17=F86,L86,IF(B17=F87,L87,IF(B17=F88,L88,IF(B17=F89,L89,IF(B17=F90,L90,IF(B17=F91,L91,))))))))))))))))))))))))))))))))))))) -> 300 | C19: зависит от выбора регулятора** | D19: =B19 -> 300
A20: Допустимое минимальное давление газа на выходе, кПа | B20: =IF(B17=F57,K57,IF(B17=F58,K58,IF(B17=F59,K59,IF(B17=F63,K63,IF(B17=F67,K67,IF(B17=F70,K70,IF(B17=F71,K71,IF(B17=F74,K74,IF(B17=F77,K77,IF(B17=F80,K80,IF(B17=F83,K83,IF(B17=F72,K72,IF(B17=F75,K75,IF(B17=F78,K78,IF(B17=F81,K81,IF(B17=F73,K73,IF(B17=F76,K76,IF(B17=F79,K79,IF(B17=F82,K82,IF(B17=F59,K80,IF(B17=F60,K60,IF(B17=F61,K61,IF(B17=F62,K62,IF(B17=F64,K64,IF(B17=F65,K65,IF(B17=F66,K66,IF(B17=F67,K67,IF(B17=F68,K68,IF(B17=F69,K69,IF(B17=F84,K84,IF(B17=F85,K85,IF(B17=F86,K86,IF(B17=F87,K87,IF(B17=F88,K88,IF(B17=F89,K89,IF(B17=F90,K90,IF(B17=F91,K91))))))))))))))))))))))))))))))))))))) -> 100 | C20: зависит от выбора регулятора** | D20: =B20 -> 100
A21: Расчетное минимальное давление на входе, МПа | B21: 0.373 | C21: значение от 0,003 до 1,6, но не более чем максимальное допустимое давление на входе | D21: =B21+0.1 -> 0.473 | F21: =(B21+0.1)*1000/2 -> 236.5
A22: Требуемое давление газа на выходе, кПа | B22: 300 | C22: не более допустимого максимального и не менее минимального давления газа на выходе | D22: =B22/1000+0.1 -> 0.4 | E22: =B22/1000 -> 0.3
A23: Требуемый максимальный расход газа, нм3/час | B23: 229.2 | C23: значение от 0,1 до 59750
A24: Относительная плотность газа (по воздуху), d | B24: 0.6 | C24: Для природного газа плотностью 0,73 кг/нм3 d=0,6
A25: Максимальный расход газа с запасом 15%, нм3/час | B25: =B23*1.15 -> 263.58 | C25: рекомендуемый запас не менее 15%
A26: Пропускная способность регулятора, нм3/час | B26: =F26*SQRT(0.6/B24) -> 1825 | F26: =IF(B32=1,P57,IF(B32=2,P58,IF(B32=3,P59,IF(B32=4,P60,IF(B32=5,P61,IF(B32=6,P62,IF(B32=7,P63,IF(B32=8,P64,IF(B32=9,P65,IF(B32=10,P66,IF(B32=11,P67,IF(B32=12,P68,IF(B32=13,P69,IF(B32=14,P70,IF(B32=15,P71,IF(B32=16,P72,IF(B32=17,P73,IF(B32=18,P74,IF(B32=19,P75,IF(B32=20,P76,IF(B32=21,P77,IF(B32=22,P78,IF(B32=23,P79,IF(B32=24,P80,IF(B32=25,P81,IF(B32=26,P82,IF(B32=27,P83,IF(B32=28,P84,IF(B32=29,P85,IF(B32=30,P86,IF(B32=31,P87,IF(B32=32,P88,IF(B32=33,P89,IF(B32=34,P90,IF(B32=35,P91))))))))))))))))))))))))))))))))))) -> 1825
A27: Коэффициент загрузки регулятора, % | B27: =B23/B26*100 -> 12.55890411 | C27: рекомендуемая загрузка регуляторов серии РЕД-7 от 10 до 87%
A28: Результат: | B28: =IF(B33<1,A35,IF(B33>1.3,A36,IF(B33<=1.3,A34,IF(B33<0,#REF!)))) -> Этот регулятор Вам подходит, однако можно попробовать подобрать меньший типоразмер | C28: =IFERROR(OR(ISNUMBER(SEARCH("#ЗНАЧ!",B33)),B33="#ЗНАЧ!")*1,"Внимание!!! Этот регулятор не может быть использован для введеных данных") -> 0
A29: Проверка допустимой скорости газа на седле регулятора (только для серии РЕД-7), м/сек | B29: =345.2*(B23/(D29*D29))*(1-0.02*B21)/(1+10*B21) ->  | C29: =IF(B29>120,C36,IF(B29<=120,C35)) ->  | D29: =IF(B17=F84,Q84,IF(B17=F85,Q85,IF(B17=F86,Q86,IF(B17=F87,Q87,IF(B17=F88,Q88,IF(B17=F89,Q89,IF(B17=F90,Q90,IF(B17=F91,Q91)))))))) -> FALSE
A32: Номер регулятора | B32: =IF(B17=F57,I57,IF(B17=F58,I58,IF(B17=F59,I59,IF(B17=F63,I63,IF(B17=F67,I67,IF(B17=F70,I70,IF(B17=F71,I71,IF(B17=F74,I74,IF(B17=F77,I77,IF(B17=F80,I80,IF(B17=F83,I83,IF(B17=F72,I72,IF(B17=F75,I75,IF(B17=F78,I78,IF(B17=F81,I81,IF(B17=F73,I73,IF(B17=F76,I76,IF(B17=F79,I79,IF(B17=F82,I82,IF(B17=F59,I80,IF(B17=F60,I60,IF(B17=F61,I61,IF(B17=F62,I62,IF(B17=F64,I64,IF(B17=F65,I65,IF(B17=F66,I66,IF(B17=F67,I67,IF(B17=F68,I68,IF(B17=F69,I69,IF(B17=F84,I84,IF(B17=F85,I85,IF(B17=F86,I86,IF(B17=F87,I87,IF(B17=F88,I88,IF(B17=F89,I89,IF(B17=F90,I90,IF(B17=F91,I91,))))))))))))))))))))))))))))))))))))) -> 20
A33: Отношение расходов В26 | B33: =B26/B25 -> 6.923894074
A34: Этот регулятор Вам подходит | B34: 1≤ B25 ≤ 1,3
A35: Этот регулятор Вам не подходит, выберите больший типоразмер | B35: B25<1 | C35: Допустимая скорость не превышает 120 м/сек.
A36: Этот регулятор Вам подходит, однако можно попробовать подобрать меньший типоразмер | B36: B25>1,3 | C36: Скорость превышает 120 м/сек, выберите больший типоразмер регулятора серии РЕД-7.
A37: Примечания:
A38: * - регуляторы давления серии РЕД-6 в зависимости от исполнения имеют разное максимальное входное давление. Регуляторы исполнения Н - до 0,6 МПа, регуляторы исполнений С3 и С4 - до 1,6 МПа
A39: ** - регуляторы давления серии РЕД в зависимости от исполнения имеют разные диапазоны выходного давления
B40: Ввод данных пользователем
B41: Результат
B42: Примечания к вводу данных
A44: ССЫЛКА НА СКАЧИВАНИЕ РУКОВОДСТВА ПО ЭКСЛУАТАЦИИ | B44: =F44 -> https://redgas.ru/download/916/ | F44: =IF(B17=F57,N57,IF(B17=F58,N58,IF(B17=F59,N59,IF(B17=F63,N63,IF(B17=F67,N67,IF(B17=F70,N70,IF(B17=F71,N71,IF(B17=F74,N74,IF(B17=F77,N77,IF(B17=F80,N80,IF(B17=F83,N83,IF(B17=F72,N72,IF(B17=F75,N75,IF(B17=F78,N78,IF(B17=F81,N81,IF(B17=F73,N73,IF(B17=F76,N76,IF(B17=F79,N79,IF(B17=F82,N82,IF(B17=F59,N80,IF(B17=F60,N60,IF(B17=F61,N61,IF(B17=F62,N62,IF(B17=F64,N64,IF(B17=F65,N65,IF(B17=F66,N66,IF(B17=F67,N67,IF(B17=F68,N68,IF(B17=F69,N69,IF(B17=F84,N84,IF(B17=F85,N85,IF(B17=F86,N86,IF(B17=F87,N87,IF(B17=F88,N88,IF(B17=F89,N89,IF(B17=F90,N90,IF(B17=F91,N91,))))))))))))))))))))))))))))))))))))) -> https://redgas.ru/download/916/
A45: ССЫЛКА НА СКАЧИВАНИЕ 3D МОДЕЛИ | B45: =F45 -> https://redgas.ru/download/1437/ | F45: =IF(B17=F57,O57,IF(B17=F58,O58,IF(B17=F59,O59,IF(B17=F63,O63,IF(B17=F67,O67,IF(B17=F70,O70,IF(B17=F71,O71,IF(B17=F74,O74,IF(B17=F77,O77,IF(B17=F80,O80,IF(B17=F83,O83,IF(B17=F72,O72,IF(B17=F75,O75,IF(B17=F78,O78,IF(B17=F81,O81,IF(B17=F73,O73,IF(B17=F76,O76,IF(B17=F79,O79,IF(B17=F82,O82,IF(B17=F59,O80,IF(B17=F60,O60,IF(B17=F61,O61,IF(B17=F62,O62,IF(B17=F64,O64,IF(B17=F65,O65,IF(B17=F66,O66,IF(B17=F67,O67,IF(B17=F68,O68,IF(B17=F69,O69,IF(B17=F84,O84,IF(B17=F85,O85,IF(B17=F86,O86,IF(B17=F87,O87,IF(B17=F88,O88,IF(B17=F89,O89,IF(B17=F90,O90,IF(B17=F91,O91,))))))))))))))))))))))))))))))))))))) -> https://redgas.ru/download/1437/
A54: Нажимая на кнопку «ОТПРАВИТЬ ЗАПРОС» Вы выражаете свое согласие с Политикой безопасности хранения и обработки персональной информации ООО «ПЛЕКСОР» в соответствии с ФЗ «О персональных данных» № 152-ФЗ.
A55: Несмотря на то, что программа подбора максимально защищена от ошибок при вводе данных ООО "ПЛЕКСОР" не несет ответственности за не правильный выбор оборудования при использовании программы. Для гарантированного подтверждения необходимо отправить запрос в ООО "ПЛЕКСОР" и получить КП с подтверждением правильности выбора оборудования.
F56: Список моделей фильтров | G56: Исполнение | H56: Номер рег. | J56: Р вх. макс | K56: Рвых. Мин | L56: Рвых. Макс | M56: Q макс | N56: Руководство ссылка | O56: Ссылка на архив 3D | P56: Расход при заданных условиях
E57: 1 | F57: РЕД-1-20x32Р-1У 3/4х1 1/4" Qmax=25 нм3/час | H57: № | I57: =E57 -> 1 | J57: 0.6 | K57: 2 | L57: 3 | M57: 25 | N57: https://redgas.ru/download/1401/ | O57: https://redgas.ru/download/1422/ | P57: ='РЕД-1'!AE7 -> 
E58: =E57+1 -> 2 | F58: РЕД-2-25-Н DN25 Qmax=75 нм3/час | G58: Н | H58: № | I58: =E58 -> 2 | J58: 0.6 | K58: 1.8 | L58: 12.5 | M58: 75 | N58: https://redgas.ru/download/834/ | O58: https://redgas.ru/download/1428/ | P58: ='РЕД-1'!AE99 -> 
E59: =E58+1 -> 3 | F59: РЕД-2-25-С1 DN25 Qmax=100 нм3/час | G59: С1 | H59: № | I59: 3 | J59: 0.6 | K59: 6.4 | L59: 30 | M59: 100 | N59: https://redgas.ru/download/834/ | O59: https://redgas.ru/download/1428/ | P59: ='РЕД-1'!AE99 -> 
E60: 4 | F60: РЕД-3-40-Н DN40 Qmax=250 нм3/час | G60: Н | H60: № | I60: 4 | J60: 0.6 | K60: 1.5 | L60: 5.5 | M60: 300 | N60: https://redgas.ru/download/821/ | O60: https://redgas.ru/download/1431/ | P60: ='РЕД-1'!AM60 -> 
E61: 5 | F61: РЕД-3-40-С1 DN40 Qmax=300 нм3/час | G61: С1 | H61: № | I61: 5 | J61: 0.6 | K61: 5 | L61: 35 | M61: 300 | N61: https://redgas.ru/download/821/ | O61: https://redgas.ru/download/1431/ | P61: ='РЕД-1'!AM60 -> 
E62: 6 | F62: РЕД-3-40-С2 DN40 Qmax=250 нм3/час | G62: С2 | H62: № | I62: 6 | J62: 0.6 | K62: 30 | L62: 55 | M62: 300 | N62: https://redgas.ru/download/821/ | O62: https://redgas.ru/download/1431/ | P62: ='РЕД-1'!AM60 -> 
E63: 7 | F63: РЕД-3-40-С3 DN40 Qmax=240 нм3/час | G63: С3 | H63: № | I63: 7 | J63: 0.6 | K63: 54 | L63: 100 | M63: 240 | N63: https://redgas.ru/download/821/ | O63: https://redgas.ru/download/1431/ | P63: ='РЕД-1'!AM60 -> 
E64: 8 | F64: РЕД-4-50-Н DN50 Qmax=900 нм3/час | G64: Н | H64: № | I64: 8 | J64: 0.6 | K64: 1 | L64: 10 | M64: 900 | N64: https://redgas.ru/download/700/ | O64: https://redgas.ru/download/473/ | P64: ='РЕД-1'!AM21 -> 
E65: 9 | F65: РЕД-4-50-С1 DN50 Qmax=900 нм3/час | G65: С1 | H65: № | I65: 9 | J65: 0.6 | K65: 8 | L65: 30 | M65: 900 | N65: https://redgas.ru/download/700/ | O65: https://redgas.ru/download/473/ | P65: ='РЕД-1'!AM21 -> 
E66: 10 | F66: РЕД-4-50-С2 DN50 Qmax=720 нм3/час | G66: С2 | H66: № | I66: =E66 -> 10 | J66: 0.6 | K66: 30 | L66: 60 | M66: 720 | N66: https://redgas.ru/download/700/ | O66: https://redgas.ru/download/473/ | P66: ='РЕД-1'!AM21 -> 
E67: 11 | F67: РЕД-4-50-С3 DN50 Qmax=670 нм3/час | G67: С3 | H67: № | I67: 11 | J67: 0.6 | K67: 59 | L67: 100 | M67: 670 | N67: https://redgas.ru/download/700/ | O67: https://redgas.ru/download/473/ | P67: ='РЕД-1'!AM21 -> 
E68: 12 | F68: РЕД-5-50-С5.1 DN50 Qmax=1350 м.куб/час | G68: С5.1 | H68: № | I68: 12 | J68: 1.6 | K68: 10 | L68: 100 | M68: 1350 | N68: https://redgas.ru/download/895/ | O68: https://redgas.ru/download/1434/ | P68: ='РЕД-1'!AK134 -> 191.625
E69: 13 | F69: РЕД-5-50-С5.2 DN50 Qmax=1350 м.куб/час | G69: С5.2 | H69: № | I69: 13 | J69: 1.6 | K69: 100 | L69: 200 | M69: 1350 | N69: https://redgas.ru/download/895/ | O69: https://redgas.ru/download/1434/ | P69: ='РЕД-1'!AK134 -> 191.625
E70: 14 | F70: РЕД-5-50-С5.3 DN50 Qmax=1350 м.куб/час | G70: С5.3 | H70: № | I70: 14 | J70: 1.6 | K70: 200 | L70: 400 | M70: 1350 | N70: https://redgas.ru/download/895/ | O70: https://redgas.ru/download/1434/ | P70: ='РЕД-1'!AK134 -> 191.625
E71: 15 | F71: РЕД-6-25х65-Н DN25x65 Qmax=1150 нм3/час | G71: Н | H71: № | I71: 15 | J71: 0.6 | K71: 1.5 | L71: 50 | M71: 2200 | N71: https://redgas.ru/download/916/ | O71: https://redgas.ru/download/1437/ | P71: ='РЕД-1'!AU171 -> 730
E72: 16 | F72: РЕД-6-25х65-С3 DN25x65 Qmax=2000 нм3/час | G72: С3 | H72: № | I72: 16 | J72: 1.6 | K72: 50 | L72: 100 | M72: 2200 | N72: https://redgas.ru/download/916/ | O72: https://redgas.ru/download/1437/ | P72: ='РЕД-1'!AU171 -> 730
E73: 17 | F73: РЕД-6-25х65-С4 DN25x65 Qmax=2200 нм3/час | G73: С4 | H73: № | I73: 17 | J73: 1.6 | K73: 100 | L73: 300 | M73: 2200 | N73: https://redgas.ru/download/916/ | O73: https://redgas.ru/download/1437/ | P73: ='РЕД-1'!AU171 -> 730
E74: 18 | F74: РЕД-6-50-Н DN50 Qmax=3430 нм3/час | G74: Н | H74: № | I74: 18 | J74: 0.6 | K74: 1.5 | L74: 50 | M74: 5900 | N74: https://redgas.ru/download/916/ | O74: https://redgas.ru/download/1437/ | P74: ='РЕД-1'!AU212 -> 1825
E75: 19 | F75: РЕД-6-50-С3 DN50 Qmax=5300 нм3/час | G75: С3 | H75: № | I75: 19 | J75: 1.6 | K75: 50 | L75: 100 | M75: 5900 | N75: https://redgas.ru/download/916/ | O75: https://redgas.ru/download/1437/ | P75: ='РЕД-1'!AU212 -> 1825
E76: 20 | F76: РЕД-6-50-С4 DN50 Qmax=5900 нм3/час | G76: С4 | H76: № | I76: 20 | J76: 1.6 | K76: 100 | L76: 300 | M76: 5900 | N76: https://redgas.ru/download/916/ | O76: https://redgas.ru/download/1437/ | P76: ='РЕД-1'!AU212 -> 1825
E77: 21 | F77: РЕД-6-80х150-Н DN80 Qmax=6800 нм3/час | G77: Н | H77: № | I77: 21 | J77: 0.6 | K77: 1.5 | L77: 50 | M77: 13800 | N77: https://redgas.ru/download/916/ | O77: https://redgas.ru/download/1437/ | P77: ='РЕД-1'!AU253 -> 3796
E78: 22 | F78: РЕД-6-80х150-С3 DN80 Qmax=13800 нм3/час | G78: С3 | H78: № | I78: 22 | J78: 1.6 | K78: 50 | L78: 100 | M78: 13800 | N78: https://redgas.ru/download/916/ | O78: https://redgas.ru/download/1437/ | P78: ='РЕД-1'!AU253 -> 3796
E79: 23 | F79: РЕД-6-80х150-С4 DN80 Qmax=13800 нм3/час | G79: С4 | H79: № | I79: 23 | J79: 1.6 | K79: 100 | L79: 300 | M79: 13800 | N79: https://redgas.ru/download/916/ | O79: https://redgas.ru/download/1437/ | P79: ='РЕД-1'!AU253 -> 3796
E80: 24 | F80: РЕД-6-100-Н DN100 Qmax=10500 нм3/час | G80: Н | H80: № | I80: 24 | J80: 0.6 | K80: 1.5 | L80: 50 | M80: 21000 | N80: https://redgas.ru/download/916/ | O80: https://redgas.ru/download/1437/ | P80: ='РЕД-1'!AU294 -> 6424
E81: 25 | F81: РЕД-6-100-С3 DN100 Qmax=21000 нм3/час | G81: С3 | H81: № | I81: 25 | J81: 1.6 | K81: 50 | L81: 100 | M81: 21000 | N81: https://redgas.ru/download/916/ | O81: https://redgas.ru/download/1437/ | P81: ='РЕД-1'!AU294 -> 6424
E82: 26 | F82: РЕД-6-100-С4 DN100 Qmax=21000 нм3/час | G82: С4 | H82: № | I82: 26 | J82: 1.6 | K82: 100 | L82: 300 | M82: 21000 | N82: https://redgas.ru/download/916/ | O82: https://redgas.ru/download/1437/ | P82: ='РЕД-1'!AU294 -> 6424
E83: 27 | F83: РЕД-6-150-Н DN150 Qmax=21000 нм3/час | G83: Н | H83: № | I83: 27 | J83: 0.6 | K83: 1.5 | L83: 50 | M83: 21000 | N83: https://redgas.ru/download/916/ | O83: https://redgas.ru/download/1437/ | P83: ='РЕД-1'!AU335 ->  | Q83: DN
E84: 28 | F84: РЕД-7-50-Н(В)-Р (регулятор) DN50 Qmax=19635 нм3/час | G84: 2200 | H84: 32.6 | I84: =E84 -> 28 | J84: 1.6 | K84: 1 | L84: 800 | M84: 19635 | N84: https://redgas.ru/download/1553/ | P84: =IF(B22<=F21,5.25*D21*G84,IF(B22>F21,5.25*G84*D21*SIN((3417/H84*SQRT((D21-D22)/D21))*PI()/180))) -> 3596.893013 | Q84: 50
E85: 29 | F85: РЕД-7-50-Н(В)-РП (регулятор+ПЗК) DN50 Qmax=15886 нм3/час | G85: 1780 | H85: 28 | I85: =E85 -> 29 | J85: 1.6 | K85: 1 | L85: 800 | M85: 15886 | N85: https://redgas.ru/download/1553/ | P85: =IF(B22<=F21,5.25*D21*G85,IF(B22>F21,5.25*G85*D21*SIN((3417/H85*SQRT((D21-D22)/D21))*PI()/180))) -> 3281.851362 | Q85: 50
E86: 30 | F86: РЕД-7-50-Н(В)-РМ (регулятор+монитор) DN50 Qmax=15886 нм3/час | G86: 1780 | H86: 28 | I86: =E86 -> 30 | J86: 1.6 | K86: 1 | L86: 800 | M86: 15886 | N86: https://redgas.ru/download/1553/ | P86: =IF(B22<=F21,5.25*D21*G86,IF(B22>F21,5.25*G86*D21*SIN((3417/H86*SQRT((D21-D22)/D21))*PI()/180))) -> 3281.851362 | Q86: 50
E87: 31 | F87: РЕД-7-50-Н(В)-РПМ (регулятор+ПЗК+монитор) DN50 Qmax=14012 нм3/час | G87: 1570 | H87: 28 | I87: =E87 -> 31 | J87: 1.6 | K87: 1 | L87: 800 | M87: 14012 | N87: https://redgas.ru/download/1553/ | P87: =IF(B22<=F21,5.25*D21*G87,IF(B22>F21,5.25*G87*D21*SIN((3417/H87*SQRT((D21-D22)/D21))*PI()/180))) -> 2894.666651 | Q87: 50
E88: 32 | F88: РЕД-7-100-Н(В)-Р (регулятор) DN100 Qmax=68722 нм3/час | G88: 7700 | H88: 32.1 | I88: 32 | J88: 1.6 | K88: 1 | L88: 800 | M88: 68722 | N88: https://redgas.ru/download/1553/ | P88: =IF(B22<=F21,5.25*D21*G88,IF(B22>F21,5.25*G88*D21*SIN((3417/H88*SQRT((D21-D22)/D21))*PI()/180))) -> 12749.44227 | Q88: 100
E89: 33 | F89: РЕД-7-100-Н(В)-РП (регулятор+ПЗК) DN100 Qmax=58905 нм3/час | G89: 6600 | H89: 28 | I89: 33 | J89: 1.6 | K89: 1 | L89: 800 | M89: 58905 | N89: https://redgas.ru/download/1553/ | P89: =IF(B22<=F21,5.25*D21*G89,IF(B22>F21,5.25*G89*D21*SIN((3417/H89*SQRT((D21-D22)/D21))*PI()/180))) -> 12168.66235 | Q89: 100
E90: 34 | F90: РЕД-7-100-Н(В)-РМ (регулятор+монитор) DN100 Qmax=58012 нм3/час | G90: 6500 | H90: 28 | I90: 34 | J90: 1.6 | K90: 1 | L90: 800 | M90: 58012 | N90: https://redgas.ru/download/1553/ | P90: =IF(B22<=F21,5.25*D21*G90,IF(B22>F21,5.25*G90*D21*SIN((3417/H90*SQRT((D21-D22)/D21))*PI()/180))) -> 11984.28868 | Q90: 100
E91: 35 | F91: РЕД-7-100-Н(В)-РПМ (регулятор+ПЗК+монитор) DN100 Qmax=49980нм3/час | G91: 5600 | H91: 28 | I91: =E91 -> 35 | J91: 1.6 | K91: 1 | L91: 800 | M91: 14012 | N91: https://redgas.ru/download/1553/ | P91: =IF(B22<=F21,5.25*D21*G91,IF(B22>F21,5.25*G91*D21*SIN((3417/H91*SQRT((D21-D22)/D21))*PI()/180))) -> 10324.92563 | Q91: 100
G92: Cg | H92: C1
H110: Рвых. Мин | I110: Рвых. Макс
G111: Н (1-5 кПа) | H111: 1 | I111: 5 | J111: от 1 до 5
G112: С1 (10-30 кПа) | H112: 10 | I112: 30 | J112: от 10 до 30
G113: С2 (30-50 кПа) | H113: 30 | I113: 50 | J113: от 30 до 50
G114: С3-(50-100 кПа) | H114: 50 | I114: 100 | J114: от 50 до 100
G115: Н (1-50 кПа) | H115: 1 | I115: 50 | J115: от 1 до 50
G116: С3 (50-100 кПа) | H116: 50 | I116: 100 | J116: от 50 до 100
G117: С4 (100-300 кПа) | H117: 100 | I117: 300 | J117: от 100 до 300
G118: С5.1 (10-100 кПа) | H118: 10 | I118: 100 | J118: от 10 до 100
G119: С5.2 (100-200 кПа) | H119: 100 | I119: 200 | J119: от 100 до 200
G120: С5.3 (200-400 кПа) | H120: 200 | I120: 400 | J120: от 200 до 400

Sheet РЕД-1 (hidden)
A1: Таблицы расходов регуляторов РЕД
B3: Рвх | C3: 0.01 | D3: =IF(AND(AA10>C3,AA10<E3)=TRUE,AA10,0) -> 0 | E3: 0.02 | F3: =IF(AND(AC11>E3,AC11<G3)=TRUE,AC11,0) -> 0 | G3: 0.03 | H3: =IF(AND(AC11>G3,AC11<I3)=TRUE,AC11,0) -> 0 | I3: 0.04 | J3: =IF(AND(AC11>I3,AC11<K3)=TRUE,AC11,0) -> 0 | K3: 0.05 | L3: =IF(AND(AC11>K3,AC11<M3)=TRUE,AC11,0) -> 0 | M3: 0.075 | N3: =IF(AND(AC11>M3,AC11<O3)=TRUE,AC11,0) -> 0 | O3: 0.1 | P3: =IF(AND(AC11>O3,AC11<Q3)=TRUE,AC11,0) -> 0 | Q3: 0.15 | R3: =IF(AND(AC11>Q3,AC11<S3)=TRUE,AC11,0) -> 0 | S3: 0.2 | T3: =IF(AND(AC11>S3,AC11<U3)=TRUE,AC11,0) -> 0 | U3: 0.3 | V3: =IF(AND(AC11>U3,AC11<W3)=TRUE,AC11,0) -> 0 | W3: 0.4 | X3: =IF(AND(AC11>W3,AC11<Y3)=TRUE,AC11,0) -> 0 | Y3: 0.5 | Z3: =IF(AND(AC11>Y3,AC11<AA3)=TRUE,AC11,0) -> 0 | AA3: 0.6 | AB3: 1 | AC3: Рвх | AD3: Q | AE3: Qcрасч | AF3: Рвых | AG3: Рвых
A4: Рвых | B4: МПа | AB4: =AB3+1 -> 2
A5: кПа | AB5: =AB4+1 -> 3 | AC5: МПа | AD5: нм3/час | AE5: нм3/час | AF5: кПа | AG5: кПа
A6: 2 | B6: 1 | C6: 12 | D6: =(E6-C6)/(E3-C3)*(D3-C3)+C6 -> 9 | E6: 15 | F6: =(G6-E6)/(G3-E3)*(F3-E3)+E6 -> 11 | G6: 17 | H6: =(I6-G6)/(I3-G3)*(H3-G3)+G6 -> 8 | I6: 20 | J6: =(K6-I6)/(K3-I3)*(J3-I3)+I6 -> 0 | K6: 25 | L6: =(M6-K6)/(M3-K3)*(L3-K3)+K6 -> 25 | M6: 25 | N6: =(O6-M6)/(O3-M3)*(N3-M3)+M6 -> 25 | O6: 25 | P6: =(Q6-O6)/(Q3-O3)*(P3-O3)+O6 -> 25 | Q6: 25 | R6: =(S6-Q6)/(S3-Q3)*(R3-Q3)+Q6 -> 25 | S6: 25 | T6: =(U6-S6)/(U3-S3)*(T3-S3)+S6 -> 25 | U6: 25 | V6: =(W6-U6)/(W3-U3)*(V3-U3)+U6 -> 25 | W6: 25 | X6: =(Y6-W6)/(Y3-W3)*(X3-W3)+W6 -> 25 | Y6: 25 | Z6: =(AA6-Y6)/(AA3-Y3)*(Z3-Y3)+Y6 -> 25 | AA6: 25 | AB6: 4
A7: =IF(AND(AN10>A6,AN10<A8)=TRUE,AN10,0) -> 0 | C7: =(C8-C6)/(A8-A6)*(A7-A6)+C6 -> 16 | D7: =(E7-C7)/(E3-C3)*(D3-C3)+C7 -> 17 | E7: =(E8-E6)/(A8-A6)*(A7-A6)+E6 -> 15 | F7: =(G7-E7)/(G3-E3)*(F3-E3)+E7 -> 11 | G7: =(G8-G6)/(A8-A6)*(A7-A6)+G6 -> 17 | H7: =(I7-G7)/(I3-G3)*(H3-G3)+G7 -> 8 | I7: =(I8-I6)/(A8-A6)*(A7-A6)+I6 -> 20 | J7: =(K7-I7)/(K3-I3)*(J3-I3)+I7 -> 0 | K7: =(K8-K6)/(A8-A6)*(A7-A6)+K6 -> 25 | L7: =(M7-K7)/(M3-K3)*(L3-K3)+K7 -> 25 | M7: =(M8-M6)/(A8-A6)*(A7-A6)+M6 -> 25 | N7: =(O7-M7)/(O3-M3)*(N3-M3)+M7 -> 25 | O7: =(O8-O6)/(A8-A6)*(A7-A6)+O6 -> 25 | P7: =(Q7-O7)/(Q3-O3)*(P3-O3)+O7 -> 25 | Q7: =(Q8-Q6)/(A8-A6)*(A7-A6)+Q6 -> 25 | R7: =(S7-Q7)/(S3-Q3)*(R3-Q3)+Q7 -> 25 | S7: =(S8-S6)/(A8-A6)*(A7-A6)+S6 -> 25 | T7: =(U7-S7)/(U3-S3)*(T3-S3)+S7 -> 25 | U7: =(U8-U6)/(A8-A6)*(A7-A6)+U6 -> 25 | V7: =(W7-U7)/(W3-U3)*(V3-U3)+U7 -> 25 | W7: 25 | X7: =(Y7-W7)/(Y3-W3)*(X3-W3)+W7 -> 25 | Y7: =(Y8-Y6)/(A8-A6)*(A7-A6)+Y6 -> 25 | Z7: =(AA7-Y7)/(AA3-Y3)*(Z3-Y3)+Y7 -> 25 | AA7: =(AA8-AA6)/(A8-A6)*(A7-A6)+AA6 -> 25 | AB7: 5 | AC7: =Лист1!B21 -> 0.373 | AD7: =Лист1!B23 -> 229.2 | AE7: =VLOOKUP(AF7,A3:AA10,HLOOKUP(AC7,A3:AA10,8,0),0) ->  | AF7: =Лист1!B22 -> 300 | AG7: =IF(AC7<A6,"NO",IF(AC7>A8,"N0",IF(VLOOKUP(AC7,A3:AA8,3,0)>AD7,"NO",IF(VLOOKUP(AC7,A3:AA8,17,0)<AD7,"NO",IF(AND(AE7>=AD7-0.1,AE7<AD7+0.1)=TRUE,AF7,"NO"))))) -> NO
A8: 3 | B8: =B6+1 -> 2 | C8: 10 | D8: =(E8-C8)/(E3-C3)*(D3-C3)+C8 -> 5 | E8: 15 | F8: =(G8-E8)/(G3-E3)*(F3-E3)+E8 -> 11 | G8: 17 | H8: =(I8-G8)/(I3-G3)*(H3-G3)+G8 -> 8 | I8: 20 | J8: =(K8-I8)/(K3-I3)*(J3-I3)+I8 -> 0 | K8: 25 | L8: =(M8-K8)/(M3-K3)*(L3-K3)+K8 -> 25 | M8: 25 | N8: =(O8-M8)/(O3-M3)*(N3-M3)+M8 -> 25 | O8: 25 | P8: =(Q8-O8)/(Q3-O3)*(P3-O3)+O8 -> 25 | Q8: 25 | R8: =(S8-Q8)/(S3-Q3)*(R3-Q3)+Q8 -> 25 | S8: 25 | T8: =(U8-S8)/(U3-S3)*(T3-S3)+S8 -> 25 | U8: 25 | V8: =(W8-U8)/(W3-U3)*(V3-U3)+U8 -> 25 | W8: 25 | X8: =(Y8-W8)/(Y3-W3)*(X3-W3)+W8 -> 25 | Y8: 25 | Z8: =(AA8-Y8)/(AA3-Y3)*(Z3-Y3)+Y8 -> 25 | AA8: 25 | AB8: =AB7+1 -> 6
AB9: =AB8+1 -> 7 | AC9: 0.1 | AD9: =Лист1!B25 -> 263.58
A10: COL | C10: 3 | D10: =C10+1 -> 4 | E10: =D10+1 -> 5 | F10: =E10+1 -> 6 | G10: =F10+1 -> 7 | H10: =G10+1 -> 8 | I10: =H10+1 -> 9 | J10: =I10+1 -> 10 | K10: =J10+1 -> 11 | L10: =K10+1 -> 12 | M10: =L10+1 -> 13 | N10: =M10+1 -> 14 | O10: =N10+1 -> 15 | P10: =O10+1 -> 16 | Q10: =P10+1 -> 17 | R10: =Q10+1 -> 18 | S10: =R10+1 -> 19 | T10: =S10+1 -> 20 | U10: =T10+1 -> 21 | V10: =U10+1 -> 22 | W10: =V10+1 -> 23 | X10: =W10+1 -> 24 | Y10: =X10+1 -> 25 | Z10: =Y10+1 -> 26 | AA10: =Z10+1 -> 27 | AB10: =AB9+1 -> 8
C11: 1 | D11: 2 | F11: 3 | H11: 4 | J11: 5 | L11: 6 | N11: 7 | P11: 8 | R11: 9 | T11: 10 | V11: 11 | X11: 12 | Z11: 13 | AC11: Регулятор давления | AF11: =Лист1!F57 -> РЕД-1-20x32Р-1У 3/4х1 1/4" Qmax=25 нм3/час
B14: Рвх | C14: 0.003 | D14: =IF(AND(AK21>C14,AK21<E14)=TRUE,AK21,0) -> 0 | E14: 0.005 | F14: =IF(AND(AK21>E14,AK21<G14)=TRUE,AK21,0) -> 0 | G14: 0.0075 | H14: =IF(AND(AK21>G14,AK21<I14)=TRUE,AK21,0) -> 0 | I14: 0.01 | J14: =IF(AND(AK21>I14,AK21<K14)=TRUE,AK21,0) -> 0 | K14: 0.015 | L14: =IF(AND(AK21>K14,AK21<M14)=TRUE,AK21,0) -> 0 | M14: 0.02 | N14: =IF(AND(AK21>M14,AK21<O14)=TRUE,AK21,0) -> 0 | O14: 0.03 | P14: =IF(AND(AK21>O14,AK21<Q14)=TRUE,AK21,0) -> 0 | Q14: 0.04 | R14: =IF(AND(AK21>Q14,AK21<S14)=TRUE,AK21,0) -> 0 | S14: 0.05 | T14: =IF(AND(AK21>S14,AK21<U14)=TRUE,AK21,0) -> 0 | U14: 0.075 | V14: =IF(AND(AK21>U14,AK21<W14)=TRUE,AK21,0) -> 0 | W14: 0.1 | X14: =IF(AND(AK21>W14,AK21<Y14)=TRUE,AK21,0) -> 0 | Y14: 0.15 | Z14: =IF(AND(AK21>Y14,AK21<AA14)=TRUE,AK21,0) -> 0 | AA14: 0.2 | AB14: =IF(AND(AK21>AA14,AK21<AC14)=TRUE,AK21,0) -> 0 | AC14: 0.3 | AD14: =IF(AND(AK21>AC14,AK21<AE14)=TRUE,AK21,0) -> 0.373 | AE14: 0.4 | AF14: =IF(AND(AK21>AE14,AK21<AG14)=TRUE,AK21,0) -> 0 | AG14: 0.5 | AH14: =IF(AND(AK21>AG14,AK21<AI14)=TRUE,AK21,0) -> 0 | AI14: 0.6 | AJ14: 1
A15: Рвых | B15: МПа | AJ15: =AJ14+1 -> 2
A16: кПа | AJ16: =AJ15+1 -> 3
A17: 1 | B17: 1 | C17: 50 | D17: =(E17-C17)/(E14-C14)*(D14-C14)+C17 -> 5 | E17: 80 | F17: =(G17-E17)/(G14-E14)*(F14-E14)+E17 -> 40 | G17: 100 | H17: =(I17-G17)/(I14-G14)*(H14-G14)+G17 -> 40 | I17: 120 | J17: =(K17-I17)/(K14-I14)*(J14-I14)+I17 -> 60 | K17: 150 | L17: =(M17-K17)/(M14-K14)*(L14-K14)+K17 -> 90 | M17: 170 | N17: =(O17-M17)/(O14-M14)*(N14-M14)+M17 -> 70 | O17: 220 | P17: =(Q17-O17)/(Q14-O14)*(P14-O14)+O17 -> 130 | Q17: 250 | R17: =(S17-Q17)/(S14-Q14)*(R14-Q14)+Q17 -> 130 | S17: 280 | T17: =(U17-S17)/(U14-S14)*(T14-S14)+S17 -> 160 | U17: 340 | V17: =(W17-U17)/(W14-U14)*(V14-U14)+U17 -> 160 | W17: 400 | X17: =(Y17-W17)/(Y14-W14)*(X14-W14)+W17 -> 200 | Y17: 500 | Z17: =(AA17-Y17)/(AA14-Y14)*(Z14-Y14)+Y17 -> 200 | AA17: 600 | AB17: =(AC17-AA17)/(AC14-AA14)*(AB14-AA14)+AA17 -> 500 | AC17: 650 | AD17: =(AE17-AC17)/(AE14-AC14)*(AD14-AC14)+AC17 -> 723 | AE17: 750 | AF17: =(AG17-AE17)/(AG14-AE14)*(AF14-AE14)+AE17 -> 150 | AG17: 900 | AH17: =(AI17-AG17)/(AI14-AG14)*(AH14-AG14)+AG17 -> 900 | AI17: 900 | AJ17: 4 | AK17: Рвх | AL17: Q | AM17: Qcрасч | AN17: Рвых | AO17: Рвых
A18: =IF(AND(AN21>A17,AN21<A19)=TRUE,AN21,0) -> 0 | C18: =(C19-C17)/(A19-A17)*(A18-A17)+C17 ->  | D18: =(E18-C18)/(E14-C14)*(D14-C14)+C18 ->  | E18: =(E19-E17)/(A19-A17)*(A18-A17)+E17 -> 85 | F18: =(G18-E18)/(G14-E14)*(F14-E14)+E18 -> 55 | G18: =(G19-G17)/(A19-A17)*(A18-A17)+G17 -> 100 | H18: =(I18-G18)/(I14-G14)*(H14-G14)+G18 -> 40 | I18: =(I19-I17)/(A19-A17)*(A18-A17)+I17 -> 120 | J18: =(K18-I18)/(K14-I14)*(J14-I14)+I18 -> 60 | K18: =(K19-K17)/(A19-A17)*(A18-A17)+K17 -> 150 | L18: =(M18-K18)/(M14-K14)*(L14-K14)+K18 -> 90 | M18: =(M19-M17)/(A19-A17)*(A18-A17)+M17 -> 170 | N18: =(O18-M18)/(O14-M14)*(N14-M14)+M18 -> 70 | O18: =(O19-O17)/(A19-A17)*(A18-A17)+O17 -> 220 | P18: =(Q18-O18)/(Q14-O14)*(P14-O14)+O18 -> 130 | Q18: =(Q19-Q17)/(A19-A17)*(A18-A17)+Q17 -> 250 | R18: =(S18-Q18)/(S14-Q14)*(R14-Q14)+Q18 -> 130 | S18: =(S19-S17)/(E19-E17)*(E18-E17)+S17 -> 280 | T18: =(U18-S18)/(U14-S14)*(T14-S14)+S18 -> 160 | U18: =(U19-U17)/(A19-A17)*(A18-A17)+U17 -> 340 | V18: =(W18-U18)/(W14-U14)*(V14-U14)+U18 -> 160 | W18: =(W19-W17)/(A19-A17)*(A18-A17)+W17 -> 400 | X18: =(Y18-W18)/(Y14-W14)*(X14-W14)+W18 -> 200 | Y18: =(Y19-Y17)/(A19-A17)*(A18-A17)+Y17 -> 500 | Z18: =(AA18-Y18)/(AA14-Y14)*(Z14-Y14)+Y18 -> 200 | AA18: =(AA19-AA17)/(E19-E17)*(E18-E17)+AA17 -> 600 | AB18: =(AC18-AA18)/(AC14-AA14)*(AB14-AA14)+AA18 -> 500 | AC18: =(AC19-AC17)/(A19-A17)*(A18-A17)+AC17 -> 650 | AD18: =(AE18-AC18)/(AE14-AC14)*(AD14-AC14)+AC18 -> 723 | AE18: =(AE19-AE17)/(A19-A17)*(A18-A17)+AE17 -> 750 | AF18: =(AG18-AE18)/(AG14-AE14)*(AF14-AE14)+AE18 -> 150 | AG18: =(AG19-AG17)/(A19-A17)*(A18-A17)+AG17 -> 900 | AH18: =(AI18-AG18)/(AI14-AG14)*(AH14-AG14)+AG18 -> 900 | AI18: =(AI19-AI17)/(A19-A17)*(A18-A17)+AI17 -> 900 | AJ18: 5
A19: 2 | B19: =B17+1 -> 2 | C19: - | D19: =(E19-C19)/(E14-C14)*(D14-C14)+C19 ->  | E19: 75 | F19: =(G19-E19)/(G14-E14)*(F14-E14)+E19 -> 25 | G19: 100 | H19: =(I19-G19)/(I14-G14)*(H14-G14)+G19 -> 40 | I19: 120 | J19: =(K19-I19)/(K14-I14)*(J14-I14)+I19 -> 60 | K19: 150 | L19: =(M19-K19)/(M14-K14)*(L14-K14)+K19 -> 90 | M19: 170 | N19: =(O19-M19)/(O14-M14)*(N14-M14)+M19 -> 70 | O19: 220 | P19: =(Q19-O19)/(Q14-O14)*(P14-O14)+O19 -> 130 | Q19: 250 | R19: =(S19-Q19)/(S14-Q14)*(R14-Q14)+Q19 -> 130 | S19: 280 | T19: =(U19-S19)/(U14-S14)*(T14-S14)+S19 -> 160 | U19: 340 | V19: =(W19-U19)/(W14-U14)*(V14-U14)+U19 -> 160 | W19: 400 | X19: =(Y19-W19)/(Y14-W14)*(X14-W14)+W19 -> 200 | Y19: 500 | Z19: =(AA19-Y19)/(AA14-Y14)*(Z14-Y14)+Y19 -> 200 | AA19: 600 | AB19: =(AC19-AA19)/(AC14-AA14)*(AB14-AA14)+AA19 -> 500 | AC19: 650 | AD19: =(AE19-AC19)/(AE14-AC14)*(AD14-AC14)+AC19 -> 723 | AE19: 750 | AF19: =(AG19-AE19)/(AG14-AE14)*(AF14-AE14)+AE19 -> 150 | AG19: 900 | AH19: =(AI19-AG19)/(AI14-AG14)*(AH14-AG14)+AG19 -> 900 | AI19: 900 | AJ19: 6 | AK19: МПа | AL19: нм3/час | AM19: нм3/час | AN19: кПа | AO19: кПа
A20: =IF(AND(AN21>A19,AN21<A21)=TRUE,AN21,0) -> 0 | C20: =(C21-C19)/(A21-A19)*(A20-A19)+C19 ->  | D20: =(E20-C20)/(E14-C14)*(D14-C14)+C20 ->  | E20: =(E21-E19)/(A21-A19)*(A20-A19)+E19 -> 105 | F20: =(G20-E20)/(G14-E14)*(F14-E14)+E20 -> 75 | G20: =(G21-G19)/(A21-A19)*(A20-A19)+G19 -> 120 | H20: =(I20-G20)/(I14-G14)*(H14-G14)+G20 -> 60 | I20: =(I21-I19)/(A21-A19)*(A20-A19)+I19 -> 140 | J20: =(K20-I20)/(K14-I14)*(J14-I14)+I20 -> 120 | K20: =(K21-K19)/(A21-A19)*(A20-A19)+K19 -> 150 | L20: =(M20-K20)/(M14-K14)*(L14-K14)+K20 -> 90 | M20: =(M21-M19)/(A21-A19)*(A20-A19)+M19 -> 170 | N20: =(O20-M20)/(O14-M14)*(N14-M14)+M20 -> 70 | O20: =(O21-O19)/(A21-A19)*(A20-A19)+O19 -> 220 | P20: =(Q20-O20)/(Q14-O14)*(P14-O14)+O20 -> 130 | Q20: =(Q21-Q19)/(A21-A19)*(A20-A19)+Q19 -> 250 | R20: =(S20-Q20)/(S14-Q14)*(R14-Q14)+Q20 -> 130 | S20: =(S21-S19)/(E21-E19)*(E20-E19)+S19 -> 280 | T20: =(U20-S20)/(U14-S14)*(T14-S14)+S20 -> 160 | U20: =(U21-U19)/(G21-G19)*(G20-G19)+U19 -> 340 | V20: =(W20-U20)/(W14-U14)*(V14-U14)+U20 -> 160 | W20: =(W21-W19)/(I21-I19)*(I20-I19)+W19 -> 400 | X20: =(Y20-W20)/(Y14-W14)*(X14-W14)+W20 -> 200 | Y20: =(Y21-Y19)/(A21-A19)*(A20-A19)+Y19 -> 500 | Z20: =(AA20-Y20)/(AA14-Y14)*(Z14-Y14)+Y20 -> 200 | AA20: =(AA21-AA19)/(E21-E19)*(E20-E19)+AA19 -> 600 | AB20: =(AC20-AA20)/(AC14-AA14)*(AB14-AA14)+AA20 -> 500 | AC20: =(AC21-AC19)/(A21-A19)*(A20-A19)+AC19 -> 650 | AD20: =(AE20-AC20)/(AE14-AC14)*(AD14-AC14)+AC20 -> 723 | AE20: =(AE21-AE19)/(A21-A19)*(A20-A19)+AE19 -> 750 | AF20: =(AG20-AE20)/(AG14-AE14)*(AF14-AE14)+AE20 -> 150 | AG20: =(AG21-AG19)/(E21-E19)*(E20-E19)+AG19 -> 900 | AH20: =(AI20-AG20)/(AI14-AG14)*(AH14-AG14)+AG20 -> 900 | AI20: =(AI21-AI19)/(A21-A19)*(A20-A19)+AI19 -> 900 | AJ20: 7
A21: 3 | B21: =B19+1 -> 3 | C21: - | D21: =(E21-C21)/(E14-C14)*(D14-C14)+C21 ->  | E21: 60 | F21: =(G21-E21)/(G14-E14)*(F14-E14)+E21 -> 0 | G21: 90 | H21: =(I21-G21)/(I14-G14)*(H14-G14)+G21 -> 30 | I21: 110 | J21: =(K21-I21)/(K14-I14)*(J14-I14)+I21 -> 30 | K21: 150 | L21: =(M21-K21)/(M14-K14)*(L14-K14)+K21 -> 90 | M21: 170 | N21: =(O21-M21)/(O14-M14)*(N14-M14)+M21 -> 70 | O21: 220 | P21: =(Q21-O21)/(Q14-O14)*(P14-O14)+O21 -> 130 | Q21: 250 | R21: =(S21-Q21)/(S14-Q14)*(R14-Q14)+Q21 -> 130 | S21: 280 | T21: =(U21-S21)/(U14-S14)*(T14-S14)+S21 -> 160 | U21: 340 | V21: =(W21-U21)/(W14-U14)*(V14-U14)+U21 -> 160 | W21: 400 | X21: =(Y21-W21)/(Y14-W14)*(X14-W14)+W21 -> 200 | Y21: 500 | Z21: =(AA21-Y21)/(AA14-Y14)*(Z14-Y14)+Y21 -> 200 | AA21: 600 | AB21: =(AC21-AA21)/(AC14-AA14)*(AB14-AA14)+AA21 -> 500 | AC21: 650 | AD21: =(AE21-AC21)/(AE14-AC14)*(AD14-AC14)+AC21 -> 723 | AE21: 750 | AF21: =(AG21-AE21)/(AG14-AE14)*(AF14-AE14)+AE21 -> 150 | AG21: 900 | AH21: =(AI21-AG21)/(AI14-AG14)*(AH14-AG14)+AG21 -> 900 | AI21: 900 | AJ21: 8 | AK21: =Лист1!B21 -> 0.373 | AL21: =Лист1!B23 -> 229.2 | AM21: =VLOOKUP(AN21,A14:AI49,HLOOKUP(AK21,A14:AI49,36,0),0) ->  | AN21: =Лист1!B22 -> 300 | AO21: =IF(AK21<A17,"NO",IF(AK21>A43,"N0",IF(VLOOKUP(AK21,A17:AI43,3,0)>AL21,"NO",IF(VLOOKUP(AK21,A17:AI43,17,0)<AL21,"NO",IF(AND(AM21>=AL21-0.1,AM21<AL21+0.1)=TRUE,AN21,"NO"))))) -> NO
A22: =IF(AND(AN21>A21,AN21<A23)=TRUE,AN21,0) -> 0 | C22: =(C23-C21)/(A23-A21)*(A22-A21)+C21 ->  | D22: =(E22-C22)/(E14-C14)*(D14-C14)+C22 ->  | E22: =(E23-E21)/(A23-A21)*(A22-A21)+E21 ->  | F22: =(G22-E22)/(G14-E14)*(F14-E14)+E22 ->  | G22: =(G23-G21)/(A23-A21)*(A22-A21)+G21 -> 120 | H22: =(I22-G22)/(I14-G14)*(H14-G14)+G22 -> 60 | I22: =(I23-I21)/(A23-A21)*(A22-A21)+I21 -> 140 | J22: =(K22-I22)/(K14-I14)*(J14-I14)+I22 -> 60 | K22: =(K23-K21)/(A23-A21)*(A22-A21)+K21 -> 180 | L22: =(M22-K22)/(M14-K14)*(L14-K14)+K22 -> 210 | M22: =(M23-M21)/(A23-A21)*(A22-A21)+M21 -> 170 | N22: =(O22-M22)/(O14-M14)*(N14-M14)+M22 -> 10 | O22: =(O23-O21)/(A23-A21)*(A22-A21)+O21 -> 250 | P22: =(Q22-O22)/(Q14-O14)*(P14-O14)+O22 -> 250 | Q22: =(Q23-Q21)/(A23-A21)*(A22-A21)+Q21 -> 250 | R22: =(S22-Q22)/(S14-Q14)*(R14-Q14)+Q22 -> 130 | S22: =(S23-S21)/(A23-A21)*(A22-A21)+S21 -> 280 | T22: =(U22-S22)/(U14-S14)*(T14-S14)+S22 -> 160 | U22: =(U23-U21)/(G23-G21)*(G22-G21)+U21 -> 340 | V22: =(W22-U22)/(W14-U14)*(V14-U14)+U22 -> 160 | W22: =(W23-W21)/(I23-I21)*(I22-I21)+W21 -> 400 | X22: =(Y22-W22)/(Y14-W14)*(X14-W14)+W22 -> 200 | Y22: =(Y23-Y21)/(A23-A21)*(A22-A21)+Y21 -> 500 | Z22: =(AA22-Y22)/(AA14-Y14)*(Z14-Y14)+Y22 -> 200 | AA22: =(AA23-AA21)/(A23-A21)*(A22-A21)+AA21 -> 600 | AB22: =(AC22-AA22)/(AC14-AA14)*(AB14-AA14)+AA22 -> 500 | AC22: =(AC23-AC21)/(A23-A21)*(A22-A21)+AC21 -> 650 | AD22: =(AE22-AC22)/(AE14-AC14)*(AD14-AC14)+AC22 -> 723 | AE22: =(AE23-AE21)/(A23-A21)*(A22-A21)+AE21 -> 750 | AF22: =(AG22-AE22)/(AG14-AE14)*(AF14-AE14)+AE22 -> 150 | AG22: =(AG23-AG21)/(A23-A21)*(A22-A21)+AG21 -> 900 | AH22: =(AI22-AG22)/(AI14-AG14)*(AH14-AG14)+AG22 -> 900 | AI22: =(AI23-AI21)/(A23-A21)*(A22-A21)+AI21 -> 900 | AJ22: 9
A23: 4 | B23: =B21+1 -> 4 | C23: - | D23: =(E23-C23)/(E14-C14)*(D14-C14)+C23 ->  | E23: - | F23: =(G23-E23)/(G14-E14)*(F14-E14)+E23 ->  | G23: 80 | H23: =(I23-G23)/(I14-G14)*(H14-G14)+G23 -> 20 | I23: 100 | J23: =(K23-I23)/(K14-I14)*(J14-I14)+I23 -> 20 | K23: 140 | L23: =(M23-K23)/(M14-K14)*(L14-K14)+K23 -> 50 | M23: 170 | N23: =(O23-M23)/(O14-M14)*(N14-M14)+M23 -> 90 | O23: 210 | P23: =(Q23-O23)/(Q14-O14)*(P14-O14)+O23 -> 90 | Q23: 250 | R23: =(S23-Q23)/(S14-Q14)*(R14-Q14)+Q23 -> 130 | S23: 280 | T23: =(U23-S23)/(U14-S14)*(T14-S14)+S23 -> 160 | U23: 340 | V23: =(W23-U23)/(W14-U14)*(V14-U14)+U23 -> 160 | W23: 400 | X23: =(Y23-W23)/(Y14-W14)*(X14-W14)+W23 -> 200 | Y23: 500 | Z23: =(AA23-Y23)/(AA14-Y14)*(Z14-Y14)+Y23 -> 200 | AA23: 600 | AB23: =(AC23-AA23)/(AC14-AA14)*(AB14-AA14)+AA23 -> 500 | AC23: 650 | AD23: =(AE23-AC23)/(AE14-AC14)*(AD14-AC14)+AC23 -> 723 | AE23: 750 | AF23: =(AG23-AE23)/(AG14-AE14)*(AF14-AE14)+AE23 -> 150 | AG23: 900 | AH23: =(AI23-AG23)/(AI14-AG14)*(AH14-AG14)+AG23 -> 900 | AI23: 900 | AJ23: 10 | AK23: 0.1 | AL23: =Лист1!B25 -> 263.58
A24: =IF(AND(AN21>A23,AN21<A25)=TRUE,AN21,0) -> 0 | C24: =(C25-C23)/(A25-A23)*(A24-A23)+C23 ->  | D24: =(E24-C24)/(E14-C14)*(D14-C14)+C24 ->  | E24: =(E25-E23)/(A25-A23)*(A24-A23)+E23 ->  | F24: =(G24-E24)/(G14-E14)*(F14-E14)+E24 ->  | G24: =(G25-G23)/(A25-A23)*(A24-A23)+G23 -> 120 | H24: =(I24-G24)/(I14-G14)*(H14-G14)+G24 -> 60 | I24: =(I25-I23)/(A25-A23)*(A24-A23)+I23 -> 140 | J24: =(K24-I24)/(K14-I14)*(J14-I14)+I24 -> 140 | K24: =(K25-K23)/(A25-A23)*(A24-A23)+K23 -> 140 | L24: =(M24-K24)/(M14-K14)*(L14-K14)+K24 -> -70 | M24: =(M25-M23)/(A25-A23)*(A24-A23)+M23 -> 210 | N24: =(O24-M24)/(O14-M14)*(N14-M14)+M24 -> 210 | O24: =(O25-O23)/(A25-A23)*(A24-A23)+O23 -> 210 | P24: =(Q24-O24)/(Q14-O14)*(P14-O14)+O24 -> -30 | Q24: =(Q25-Q23)/(A25-A23)*(A24-A23)+Q23 -> 290 | R24: =(S24-Q24)/(S14-Q14)*(R14-Q14)+Q24 -> 170 | S24: =(S25-S23)/(A25-A23)*(A24-A23)+S23 -> 320 | T24: =(U24-S24)/(U14-S14)*(T14-S14)+S24 -> 280 | U24: =(U25-U23)/(G25-G23)*(G24-G23)+U23 -> 340 | V24: =(W24-U24)/(W14-U14)*(V14-U14)+U24 -> 160 | W24: =(W25-W23)/(I25-I23)*(I24-I23)+W23 -> 400 | X24: =(Y24-W24)/(Y14-W14)*(X14-W14)+W24 -> 200 | Y24: =(Y25-Y23)/(A25-A23)*(A24-A23)+Y23 -> 500 | Z24: =(AA24-Y24)/(AA14-Y14)*(Z14-Y14)+Y24 -> 200 | AA24: =(AA25-AA23)/(A25-A23)*(A24-A23)+AA23 -> 600 | AB24: =(AC24-AA24)/(AC14-AA14)*(AB14-AA14)+AA24 -> 500 | AC24: =(AC25-AC23)/(A25-A23)*(A24-A23)+AC23 -> 650 | AD24: =(AE24-AC24)/(AE14-AC14)*(AD14-AC14)+AC24 -> 723 | AE24: =(AE25-AE23)/(A25-A23)*(A24-A23)+AE23 -> 750 | AF24: =(AG24-AE24)/(AG14-AE14)*(AF14-AE14)+AE24 -> 150 | AG24: =(AG25-AG23)/(A25-A23)*(A24-A23)+AG23 -> 900 | AH24: =(AI24-AG24)/(AI14-AG14)*(AH14-AG14)+AG24 -> 900 | AI24: =(AI25-AI23)/(A25-A23)*(A24-A23)+AI23 -> 900 | AJ24: 11
A25: 5 | B25: =B23+1 -> 5 | C25: - | D25: =(E25-C25)/(E14-C14)*(D14-C14)+C25 ->  | E25: - | F25: =(G25-E25)/(G14-E14)*(F14-E14)+E25 ->  | G25: 70 | H25: =(I25-G25)/(I14-G14)*(H14-G14)+G25 -> 10 | I25: 90 | J25: =(K25-I25)/(K14-I14)*(J14-I14)+I25 -> -10 | K25: 140 | L25: =(M25-K25)/(M14-K14)*(L14-K14)+K25 -> 80 | M25: 160 | N25: =(O25-M25)/(O14-M14)*(N14-M14)+M25 -> 60 | O25: 210 | P25: =(Q25-O25)/(Q14-O14)*(P14-O14)+O25 -> 120 | Q25: 240 | R25: =(S25-Q25)/(S14-Q14)*(R14-Q14)+Q25 -> 120 | S25: 270 | T25: =(U25-S25)/(U14-S14)*(T14-S14)+S25 -> 130 | U25: 340 | V25: =(W25-U25)/(W14-U14)*(V14-U14)+U25 -> 160 | W25: 400 | X25: =(Y25-W25)/(Y14-W14)*(X14-W14)+W25 -> 200 | Y25: 500 | Z25: =(AA25-Y25)/(AA14-Y14)*(Z14-Y14)+Y25 -> 200 | AA25: 600 | AB25: =(AC25-AA25)/(AC14-AA14)*(AB14-AA14)+AA25 -> 500 | AC25: 650 | AD25: =(AE25-AC25)/(AE14-AC14)*(AD14-AC14)+AC25 -> 723 | AE25: 750 | AF25: =(AG25-AE25)/(AG14-AE14)*(AF14-AE14)+AE25 -> 150 | AG25: 900 | AH25: =(AI25-AG25)/(AI14-AG14)*(AH14-AG14)+AG25 -> 900 | AI25: 900 | AJ25: 12 | AK25: Регулятор давления | AN25: =Лист1!F67 -> РЕД-4-50-С3 DN50 Qmax=670 нм3/час
A26: =IF(AND(AN21>A25,AN21<A27)=TRUE,AN21,0) -> 0 | C26: =(C27-C25)/(A27-A25)*(A26-A25)+C25 ->  | D26: =(E26-C26)/(E14-C14)*(D14-C14)+C26 ->  | E26: =(E27-E25)/(A27-A25)*(A26-A25)+E25 ->  | F26: =(G26-E26)/(G14-E14)*(F14-E14)+E26 ->  | G26: =(G27-G25)/(A27-A25)*(A26-A25)+G25 ->  | H26: =(I26-G26)/(I14-G14)*(H14-G14)+G26 ->  | I26: =(I27-I25)/(A27-A25)*(A26-A25)+I25 ->  | J26: =(K26-I26)/(K14-I14)*(J14-I14)+I26 ->  | K26: =(K27-K25)/(A27-A25)*(A26-A25)+K25 -> 173.3333333 | L26: =(M26-K26)/(M14-K14)*(L14-K14)+K26 -> 163.3333333 | M26: =(M27-M25)/(A27-A25)*(A26-A25)+M25 -> 176.6666667 | N26: =(O26-M26)/(O14-M14)*(N14-M14)+M26 -> 76.66666667 | O26: =(O27-O25)/(A27-A25)*(A26-A25)+O25 -> 226.6666667 | P26: =(Q26-O26)/(Q14-O14)*(P14-O14)+O26 -> 186.6666667 | Q26: =(Q27-Q25)/(A27-A25)*(A26-A25)+Q25 -> 240 | R26: =(S26-Q26)/(S14-Q14)*(R14-Q14)+Q26 -> 120 | S26: =(S27-S25)/(A27-A25)*(A26-A25)+S25 -> 270 | T26: =(U26-S26)/(U14-S14)*(T14-S14)+S26 -> 130 | U26: =(U27-U25)/(A27-A25)*(A26-A25)+U25 -> 340 | V26: =(W26-U26)/(W14-U14)*(V14-U14)+U26 -> 160 | W26: =(W27-W25)/(A27-A25)*(A26-A25)+W25 -> 400 | X26: =(Y26-W26)/(Y14-W14)*(X14-W14)+W26 -> 200 | Y26: =(Y27-Y25)/(A27-A25)*(A26-A25)+Y25 -> 500 | Z26: =(AA26-Y26)/(AA14-Y14)*(Z14-Y14)+Y26 -> 200 | AA26: =(AA27-AA25)/(A27-A25)*(A26-A25)+AA25 -> 600 | AB26: =(AC26-AA26)/(AC14-AA14)*(AB14-AA14)+AA26 -> 500 | AC26: =(AC27-AC25)/(A27-A25)*(A26-A25)+AC25 -> 650 | AD26: =(AE26-AC26)/(AE14-AC14)*(AD14-AC14)+AC26 -> 723 | AE26: =(AE27-AE25)/(A27-A25)*(A26-A25)+AE25 -> 750 | AF26: =(AG26-AE26)/(AG14-AE14)*(AF14-AE14)+AE26 -> 150 | AG26: =(AG27-AG25)/(A27-A25)*(A26-A25)+AG25 -> 900 | AH26: =(AI26-AG26)/(AI14-AG14)*(AH14-AG14)+AG26 -> 900 | AI26: =(AI27-AI25)/(A27-A25)*(A26-A25)+AI25 -> 900 | AJ26: 13
A27: 8 | B27: =B25+1 -> 6 | C27: - | D27: =(E27-C27)/(E14-C14)*(D14-C14)+C27 ->  | E27: - | F27: =(G27-E27)/(G14-E14)*(F14-E14)+E27 ->  | G27: - | H27: =(I27-G27)/(I14-G14)*(H14-G14)+G27 ->  | I27: - | J27: =(K27-I27)/(K14-I14)*(J14-I14)+I27 ->  | K27: 120 | L27: =(M27-K27)/(M14-K14)*(L14-K14)+K27 -> 30 | M27: 150 | N27: =(O27-M27)/(O14-M14)*(N14-M14)+M27 -> 50 | O27: 200 | P27: =(Q27-O27)/(Q14-O14)*(P14-O14)+O27 -> 80 | Q27: 240 | R27: =(S27-Q27)/(S14-Q14)*(R14-Q14)+Q27 -> 120 | S27: 270 | T27: =(U27-S27)/(U14-S14)*(T14-S14)+S27 -> 130 | U27: 340 | V27: =(W27-U27)/(W14-U14)*(V14-U14)+U27 -> 160 | W27: 400 | X27: =(Y27-W27)/(Y14-W14)*(X14-W14)+W27 -> 200 | Y27: 500 | Z27: =(AA27-Y27)/(AA14-Y14)*(Z14-Y14)+Y27 -> 200 | AA27: 600 | AB27: =(AC27-AA27)/(AC14-AA14)*(AB14-AA14)+AA27 -> 500 | AC27: 650 | AD27: =(AE27-AC27)/(AE14-AC14)*(AD14-AC14)+AC27 -> 723 | AE27: 750 | AF27: =(AG27-AE27)/(AG14-AE14)*(AF14-AE14)+AE27 -> 150 | AG27: 900 | AH27: =(AI27-AG27)/(AI14-AG14)*(AH14-AG14)+AG27 -> 900 | AI27: 900 | AJ27: 14
A28: =IF(AND(AN21>A27,AN21<A29)=TRUE,AN21,0) -> 0 | C28: =(C29-C27)/(A29-A27)*(A28-A27)+C27 ->  | D28: =(E28-C28)/(E14-C14)*(D14-C14)+C28 ->  | E28: =(E29-E27)/(A29-A27)*(A28-A27)+E27 ->  | F28: =(G28-E28)/(G14-E14)*(F14-E14)+E28 ->  | G28: =(G29-G27)/(A29-A27)*(A28-A27)+G27 ->  | H28: =(I28-G28)/(I14-G14)*(H14-G14)+G28 ->  | I28: =(I29-I27)/(A29-A27)*(A28-A27)+I27 ->  | J28: =(K28-I28)/(K14-I14)*(J14-I14)+I28 ->  | K28: =(K29-K27)/(A29-A27)*(A28-A27)+K27 -> 200 | L28: =(M28-K28)/(M14-K14)*(L14-K14)+K28 -> 230 | M28: =(M29-M27)/(A29-A27)*(A28-A27)+M27 -> 190 | N28: =(O28-M28)/(O14-M14)*(N14-M14)+M28 -> 90 | O28: =(O29-O27)/(A29-A27)*(A28-A27)+O27 -> 240 | P28: =(Q28-O28)/(Q14-O14)*(P14-O14)+O28 -> 120 | Q28: =(Q29-Q27)/(A29-A27)*(A28-A27)+Q27 -> 280 | R28: =(S28-Q28)/(S14-Q14)*(R14-Q14)+Q28 -> 0 | S28: =(S29-S27)/(A29-A27)*(A28-A27)+S27 -> 350 | T28: =(U28-S28)/(U14-S14)*(T14-S14)+S28 -> 370 | U28: =(U29-U27)/(A29-A27)*(A28-A27)+U27 -> 340 | V28: =(W28-U28)/(W14-U14)*(V14-U14)+U28 -> 160 | W28: =(W29-W27)/(A29-A27)*(A28-A27)+W27 -> 400 | X28: =(Y28-W28)/(Y14-W14)*(X14-W14)+W28 -> 200 | Y28: =(Y29-Y27)/(A29-A27)*(A28-A27)+Y27 -> 500 | Z28: =(AA28-Y28)/(AA14-Y14)*(Z14-Y14)+Y28 -> 200 | AA28: =(AA29-AA27)/(A29-A27)*(A28-A27)+AA27 -> 600 | AB28: =(AC28-AA28)/(AC14-AA14)*(AB14-AA14)+AA28 -> 500 | AC28: =(AC29-AC27)/(A29-A27)*(A28-A27)+AC27 -> 650 | AD28: =(AE28-AC28)/(AE14-AC14)*(AD14-AC14)+AC28 -> 723 | AE28: =(AE29-AE27)/(A29-A27)*(A28-A27)+AE27 -> 750 | AF28: =(AG28-AE28)/(AG14-AE14)*(AF14-AE14)+AE28 -> 150 | AG28: =(AG29-AG27)/(A29-A27)*(A28-A27)+AG27 -> 900 | AH28: =(AI28-AG28)/(AI14-AG14)*(AH14-AG14)+AG28 -> 900 | AI28: =(AI29-AI27)/(A29-A27)*(A28-A27)+AI27 -> 900 | AJ28: 15
A29: 10 | B29: =B27+1 -> 7 | C29: - | D29: =(E29-C29)/(E14-C14)*(D14-C14)+C29 ->  | E29: - | F29: =(G29-E29)/(G14-E14)*(F14-E14)+E29 ->  | G29: - | H29: =(I29-G29)/(I14-G14)*(H14-G14)+G29 ->  | I29: - | J29: =(K29-I29)/(K14-I14)*(J14-I14)+I29 ->  | K29: 100 | L29: =(M29-K29)/(M14-K14)*(L14-K14)+K29 -> -20 | M29: 140 | N29: =(O29-M29)/(O14-M14)*(N14-M14)+M29 -> 40 | O29: 190 | P29: =(Q29-O29)/(Q14-O14)*(P14-O14)+O29 -> 70 | Q29: 230 | R29: =(S29-Q29)/(S14-Q14)*(R14-Q14)+Q29 -> 150 | S29: 250 | T29: =(U29-S29)/(U14-S14)*(T14-S14)+S29 -> 70 | U29: 340 | V29: =(W29-U29)/(W14-U14)*(V14-U14)+U29 -> 160 | W29: 400 | X29: =(Y29-W29)/(Y14-W14)*(X14-W14)+W29 -> 200 | Y29: 500 | Z29: =(AA29-Y29)/(AA14-Y14)*(Z14-Y14)+Y29 -> 200 | AA29: 600 | AB29: =(AC29-AA29)/(AC14-AA14)*(AB14-AA14)+AA29 -> 500 | AC29: 650 | AD29: =(AE29-AC29)/(AE14-AC14)*(AD14-AC14)+AC29 -> 723 | AE29: 750 | AF29: =(AG29-AE29)/(AG14-AE14)*(AF14-AE14)+AE29 -> 150 | AG29: 900 | AH29: =(AI29-AG29)/(AI14-AG14)*(AH14-AG14)+AG29 -> 900 | AI29: 900 | AJ29: 16
A30: =IF(AND(AN21>A29,AN21<A31)=TRUE,AN21,0) -> 0 | C30: =(C31-C29)/(A31-A29)*(A30-A29)+C29 ->  | D30: =(E30-C30)/(E14-C14)*(D14-C14)+C30 ->  | E30: =(E31-E29)/(A31-A29)*(A30-A29)+E29 ->  | F30: =(G30-E30)/(G14-E14)*(F14-E14)+E30 ->  | G30: =(G31-G29)/(A31-A29)*(A30-A29)+G29 ->  | H30: =(I30-G30)/(I14-G14)*(H14-G14)+G30 ->  | I30: =(I31-I29)/(A31-A29)*(A30-A29)+I29 ->  | J30: =(K30-I30)/(K14-I14)*(J14-I14)+I30 ->  | K30: =(K31-K29)/(A31-A29)*(A30-A29)+K29 ->  | L30: =(M30-K30)/(M14-K14)*(L14-K14)+K30 ->  | M30: =(M31-M29)/(A31-A29)*(A30-A29)+M29 -> 220 | N30: =(O30-M30)/(O14-M14)*(N14-M14)+M30 -> 200 | O30: =(O31-O29)/(A31-A29)*(A30-A29)+O29 -> 230 | P30: =(Q30-O30)/(Q14-O14)*(P14-O14)+O30 -> 170 | Q30: =(Q31-Q29)/(A31-A29)*(A30-A29)+Q29 -> 250 | R30: =(S30-Q30)/(S14-Q14)*(R14-Q14)+Q30 -> 250 | S30: =(S31-S29)/(A31-A29)*(A30-A29)+S29 -> 250 | T30: =(U30-S30)/(U14-S14)*(T14-S14)+S30 -> 30 | U30: =(U31-U29)/(A31-A29)*(A30-A29)+U29 -> 360 | V30: =(W30-U30)/(W14-U14)*(V14-U14)+U30 -> 180 | W30: =(W31-W29)/(A31-A29)*(A30-A29)+W29 -> 420 | X30: =(Y30-W30)/(Y14-W14)*(X14-W14)+W30 -> 260 | Y30: =(Y31-Y29)/(A31-A29)*(A30-A29)+Y29 -> 500 | Z30: =(AA30-Y30)/(AA14-Y14)*(Z14-Y14)+Y30 -> 200 | AA30: =(AA31-AA29)/(A31-A29)*(A30-A29)+AA29 -> 600 | AB30: =(AC30-AA30)/(AC14-AA14)*(AB14-AA14)+AA30 -> 500 | AC30: =(AC31-AC29)/(A31-A29)*(A30-A29)+AC29 -> 650 | AD30: =(AE30-AC30)/(AE14-AC14)*(AD14-AC14)+AC30 -> 723 | AE30: =(AE31-AE29)/(A31-A29)*(A30-A29)+AE29 -> 750 | AF30: =(AG30-AE30)/(AG14-AE14)*(AF14-AE14)+AE30 -> 150 | AG30: =(AG31-AG29)/(A31-A29)*(A30-A29)+AG29 -> 900 | AH30: =(AI30-AG30)/(AI14-AG14)*(AH14-AG14)+AG30 -> 900 | AI30: =(AI31-AI29)/(A31-A29)*(A30-A29)+AI29 -> 900 | AJ30: =AJ29+1 -> 17
A31: 15 | B31: =B29+1 -> 8 | C31: - | D31: =(E31-C31)/(E14-C14)*(D14-C14)+C31 ->  | E31: - | F31: =(G31-E31)/(G14-E14)*(F14-E14)+E31 ->  | G31: - | H31: =(I31-G31)/(I14-G14)*(H14-G14)+G31 ->  | I31: - | J31: =(K31-I31)/(K14-I14)*(J14-I14)+I31 ->  | K31: - | L31: =(M31-K31)/(M14-K14)*(L14-K14)+K31 ->  | M31: 100 | N31: =(O31-M31)/(O14-M14)*(N14-M14)+M31 -> -40 | O31: 170 | P31: =(Q31-O31)/(Q14-O14)*(P14-O14)+O31 -> 20 | Q31: 220 | R31: =(S31-Q31)/(S14-Q14)*(R14-Q14)+Q31 -> 100 | S31: 250 | T31: =(U31-S31)/(U14-S14)*(T14-S14)+S31 -> 90 | U31: 330 | V31: =(W31-U31)/(W14-U14)*(V14-U14)+U31 -> 150 | W31: 390 | X31: =(Y31-W31)/(Y14-W14)*(X14-W14)+W31 -> 170 | Y31: 500 | Z31: =(AA31-Y31)/(AA14-Y14)*(Z14-Y14)+Y31 -> 200 | AA31: 600 | AB31: =(AC31-AA31)/(AC14-AA14)*(AB14-AA14)+AA31 -> 500 | AC31: 650 | AD31: =(AE31-AC31)/(AE14-AC14)*(AD14-AC14)+AC31 -> 723 | AE31: 750 | AF31: =(AG31-AE31)/(AG14-AE14)*(AF14-AE14)+AE31 -> 150 | AG31: 900 | AH31: =(AI31-AG31)/(AI14-AG14)*(AH14-AG14)+AG31 -> 900 | AI31: 900 | AJ31: =AJ30+1 -> 18
A32: =IF(AND(AN21>A31,AN21<A33)=TRUE,AN21,0) -> 0 | C32: =(C33-C31)/(A33-A31)*(A32-A31)+C31 ->  | D32: =(E32-C32)/(E14-C14)*(D14-C14)+C32 ->  | E32: =(E33-E31)/(A33-A31)*(A32-A31)+E31 ->  | F32: =(G32-E32)/(G14-E14)*(F14-E14)+E32 ->  | G32: =(G33-G31)/(A33-A31)*(A32-A31)+G31 ->  | H32: =(I32-G32)/(I14-G14)*(H14-G14)+G32 ->  | I32: =(I33-I31)/(A33-A31)*(A32-A31)+I31 ->  | J32: =(K32-I32)/(K14-I14)*(J14-I14)+I32 ->  | K32: =(K33-K31)/(A33-A31)*(A32-A31)+K31 ->  | L32: =(M32-K32)/(M14-K14)*(L14-K14)+K32 ->  | M32: =(M33-M31)/(A33-A31)*(A32-A31)+M31 ->  | N32: =(O32-M32)/(O14-M14)*(N14-M14)+M32 ->  | O32: =(O33-O31)/(A33-A31)*(A32-A31)+O31 -> 260 | P32: =(Q32-O32)/(Q14-O14)*(P14-O14)+O32 -> 200 | Q32: =(Q33-Q31)/(A33-A31)*(A32-A31)+Q31 -> 280 | R32: =(S32-Q32)/(S14-Q14)*(R14-Q14)+Q32 -> 280 | S32: =(S33-S31)/(A33-A31)*(A32-A31)+S31 -> 280 | T32: =(U32-S32)/(U14-S14)*(T14-S14)+S32 -> 180 | U32: =(U33-U31)/(A33-A31)*(A32-A31)+U31 -> 330 | V32: =(W32-U32)/(W14-U14)*(V14-U14)+U32 -> 150 | W32: =(W33-W31)/(A33-A31)*(A32-A31)+W31 -> 390 | X32: =(Y32-W32)/(Y14-W14)*(X14-W14)+W32 -> 170 | Y32: =(Y33-Y31)/(A33-A31)*(A32-A31)+Y31 -> 500 | Z32: =(AA32-Y32)/(AA14-Y14)*(Z14-Y14)+Y32 -> 200 | AA32: =(AA33-AA31)/(A33-A31)*(A32-A31)+AA31 -> 600 | AB32: =(AC32-AA32)/(AC14-AA14)*(AB14-AA14)+AA32 -> 500 | AC32: =(AC33-AC31)/(A33-A31)*(A32-A31)+AC31 -> 650 | AD32: =(AE32-AC32)/(AE14-AC14)*(AD14-AC14)+AC32 -> 723 | AE32: =(AE33-AE31)/(A33-A31)*(A32-A31)+AE31 -> 750 | AF32: =(AG32-AE32)/(AG14-AE14)*(AF14-AE14)+AE32 -> 150 | AG32: =(AG33-AG31)/(A33-A31)*(A32-A31)+AG31 -> 900 | AH32: =(AI32-AG32)/(AI14-AG14)*(AH14-AG14)+AG32 -> 900 | AI32: =(AI33-AI31)/(A33-A31)*(A32-A31)+AI31 -> 900 | AJ32: 19
A33: 20 | B33: =B31+1 -> 9 | C33: - | D33: =(E33-C33)/(E14-C14)*(D14-C14)+C33 ->  | E33: - | F33: =(G33-E33)/(G14-E14)*(F14-E14)+E33 ->  | G33: - | H33: =(I33-G33)/(I14-G14)*(H14-G14)+G33 ->  | I33: - | J33: =(K33-I33)/(K14-I14)*(J14-I14)+I33 ->  | K33: - | L33: =(M33-K33)/(M14-K14)*(L14-K14)+K33 ->  | M33: - | N33: =(O33-M33)/(O14-M14)*(N14-M14)+M33 ->  | O33: 140 | P33: =(Q33-O33)/(Q14-O14)*(P14-O14)+O33 -> -40 | Q33: 200 | R33: =(S33-Q33)/(S14-Q14)*(R14-Q14)+Q33 -> 40 | S33: 240 | T33: =(U33-S33)/(U14-S14)*(T14-S14)+S33 -> 60 | U33: 330 | V33: =(W33-U33)/(W14-U14)*(V14-U14)+U33 -> 150 | W33: 390 | X33: =(Y33-W33)/(Y14-W14)*(X14-W14)+W33 -> 170 | Y33: 500 | Z33: =(AA33-Y33)/(AA14-Y14)*(Z14-Y14)+Y33 -> 200 | AA33: 600 | AB33: =(AC33-AA33)/(AC14-AA14)*(AB14-AA14)+AA33 -> 500 | AC33: 650 | AD33: =(AE33-AC33)/(AE14-AC14)*(AD14-AC14)+AC33 -> 723 | AE33: 750 | AF33: =(AG33-AE33)/(AG14-AE14)*(AF14-AE14)+AE33 -> 150 | AG33: 900 | AH33: =(AI33-AG33)/(AI14-AG14)*(AH14-AG14)+AG33 -> 900 | AI33: 900 | AJ33: 20
A34: =IF(AND(AN21>A33,AN21<A35)=TRUE,AN21,0) -> 0 | C34: =(C35-C33)/(A35-A33)*(A34-A33)+C33 ->  | D34: =(E34-C34)/(E14-C14)*(D14-C14)+C34 ->  | E34: =(E35-E33)/(A35-A33)*(A34-A33)+E33 ->  | F34: =(G34-E34)/(G14-E14)*(F14-E14)+E34 ->  | G34: =(G35-G33)/(A35-A33)*(A34-A33)+G33 ->  | H34: =(I34-G34)/(I14-G14)*(H14-G14)+G34 ->  | I34: =(I35-I33)/(A35-A33)*(A34-A33)+I33 ->  | J34: =(K34-I34)/(K14-I14)*(J14-I14)+I34 ->  | K34: =(K35-K33)/(A35-A33)*(A34-A33)+K33 ->  | L34: =(M34-K34)/(M14-K14)*(L14-K14)+K34 ->  | M34: =(M35-M33)/(A35-A33)*(A34-A33)+M33 ->  | N34: =(O34-M34)/(O14-M14)*(N14-M14)+M34 ->  | O34: =(O35-O33)/(A35-A33)*(A34-A33)+O33 ->  | P34: =(Q34-O34)/(Q14-O14)*(P14-O14)+O34 ->  | Q34: =(Q35-Q33)/(A35-A33)*(A34-A33)+Q33 -> 300 | R34: =(S34-Q34)/(S14-Q14)*(R14-Q14)+Q34 -> 300 | S34: =(S35-S33)/(A35-A33)*(A34-A33)+S33 -> 300 | T34: =(U34-S34)/(U14-S14)*(T14-S14)+S34 -> 160 | U34: =(U35-U33)/(A35-A33)*(A34-A33)+U33 -> 370 | V34: =(W34-U34)/(W14-U14)*(V14-U14)+U34 -> 250 | W34: =(W35-W33)/(A35-A33)*(A34-A33)+W33 -> 410 | X34: =(Y34-W34)/(Y14-W14)*(X14-W14)+W34 -> 230 | Y34: =(Y35-Y33)/(A35-A33)*(A34-A33)+Y33 -> 500 | Z34: =(AA34-Y34)/(AA14-Y14)*(Z14-Y14)+Y34 -> 200 | AA34: =(AA35-AA33)/(A35-A33)*(A34-A33)+AA33 -> 600 | AB34: =(AC34-AA34)/(AC14-AA14)*(AB14-AA14)+AA34 -> 500 | AC34: =(AC35-AC33)/(A35-A33)*(A34-A33)+AC33 -> 650 | AD34: =(AE34-AC34)/(AE14-AC14)*(AD14-AC14)+AC34 -> 723 | AE34: =(AE35-AE33)/(A35-A33)*(A34-A33)+AE33 -> 750 | AF34: =(AG34-AE34)/(AG14-AE14)*(AF14-AE14)+AE34 -> 150 | AG34: =(AG35-AG33)/(A35-A33)*(A34-A33)+AG33 -> 900 | AH34: =(AI34-AG34)/(AI14-AG14)*(AH14-AG14)+AG34 -> 900 | AI34: =(AI35-AI33)/(A35-A33)*(A34-A33)+AI33 -> 900 | AJ34: 21
A35: 30 | B35: =B33+1 -> 10 | C35: - | D35: =(E35-C35)/(E14-C14)*(D14-C14)+C35 ->  | E35: - | F35: =(G35-E35)/(G14-E14)*(F14-E14)+E35 ->  | G35: - | H35: =(I35-G35)/(I14-G14)*(H14-G14)+G35 ->  | I35: - | J35: =(K35-I35)/(K14-I14)*(J14-I14)+I35 ->  | K35: - | L35: =(M35-K35)/(M14-K14)*(L14-K14)+K35 ->  | M35: - | N35: =(O35-M35)/(O14-M14)*(N14-M14)+M35 ->  | O35: - | P35: =(Q35-O35)/(Q14-O14)*(P14-O14)+O35 ->  | Q35: 150 | R35: =(S35-Q35)/(S14-Q14)*(R14-Q14)+Q35 -> -90 | S35: 210 | T35: =(U35-S35)/(U14-S14)*(T14-S14)+S35 -> 10 | U35: 310 | V35: =(W35-U35)/(W14-U14)*(V14-U14)+U35 -> 100 | W35: 380 | X35: =(Y35-W35)/(Y14-W14)*(X14-W14)+W35 -> 140 | Y35: 500 | Z35: =(AA35-Y35)/(AA14-Y14)*(Z14-Y14)+Y35 -> 200 | AA35: 600 | AB35: =(AC35-AA35)/(AC14-AA14)*(AB14-AA14)+AA35 -> 500 | AC35: 650 | AD35: =(AE35-AC35)/(AE14-AC14)*(AD14-AC14)+AC35 -> 723 | AE35: 750 | AF35: =(AG35-AE35)/(AG14-AE14)*(AF14-AE14)+AE35 -> 150 | AG35: 900 | AH35: =(AI35-AG35)/(AI14-AG14)*(AH14-AG14)+AG35 -> 900 | AI35: 900 | AJ35: 22
A36: =IF(AND(AN21>A35,AN21<A37)=TRUE,AN21,0) -> 0 | C36: =(C37-C35)/(A37-A35)*(A36-A35)+C35 ->  | D36: =(E36-C36)/(E14-C14)*(D14-C14)+C36 ->  | E36: =(E37-E35)/(A37-A35)*(A36-A35)+E35 ->  | F36: =(G36-E36)/(G14-E14)*(F14-E14)+E36 ->  | G36: =(G37-G35)/(A37-A35)*(A36-A35)+G35 ->  | H36: =(I36-G36)/(I14-G14)*(H14-G14)+G36 ->  | I36: =(I37-I35)/(A37-A35)*(A36-A35)+I35 ->  | J36: =(K36-I36)/(K14-I14)*(J14-I14)+I36 ->  | K36: =(K37-K35)/(A37-A35)*(A36-A35)+K35 ->  | L36: =(M36-K36)/(M14-K14)*(L14-K14)+K36 ->  | M36: =(M37-M35)/(A37-A35)*(A36-A35)+M35 ->  | N36: =(O36-M36)/(O14-M14)*(N14-M14)+M36 ->  | O36: =(O37-O35)/(A37-A35)*(A36-A35)+O35 ->  | P36: =(Q36-O36)/(Q14-O14)*(P14-O14)+O36 ->  | Q36: =(Q37-Q35)/(A37-A35)*(A36-A35)+Q35 ->  | R36: =(S36-Q36)/(S14-Q14)*(R14-Q14)+Q36 ->  | S36: =(S37-S35)/(A37-A35)*(A36-A35)+S35 -> 720 | T36: =(U36-S36)/(U14-S14)*(T14-S14)+S36 -> 40 | U36: =(U37-U35)/(A37-A35)*(A36-A35)+U35 -> 1060 | V36: =(W36-U36)/(W14-U14)*(V14-U14)+U36 -> 670 | W36: =(W37-W35)/(A37-A35)*(A36-A35)+W35 -> 1190 | X36: =(Y36-W36)/(Y14-W14)*(X14-W14)+W36 -> 290 | Y36: =(Y37-Y35)/(A37-A35)*(A36-A35)+Y35 -> 1640 | Z36: =(AA36-Y36)/(AA14-Y14)*(Z14-Y14)+Y36 -> 1250 | AA36: =(AA37-AA35)/(A37-A35)*(A36-A35)+AA35 -> 1770 | AB36: =(AC36-AA36)/(AC14-AA14)*(AB14-AA14)+AA36 -> 1790 | AC36: =(AC37-AC35)/(A37-A35)*(A36-A35)+AC35 -> 1760 | AD36: =(AE36-AC36)/(AE14-AC14)*(AD14-AC14)+AC36 -> 2073.9 | AE36: =(AE37-AE35)/(A37-A35)*(A36-A35)+AE35 -> 2190 | AF36: =(AG36-AE36)/(AG14-AE14)*(AF14-AE14)+AE36 -> 2790 | AG36: =(AG37-AG35)/(A37-A35)*(A36-A35)+AG35 -> 2040 | AH36: =(AI36-AG36)/(AI14-AG14)*(AH14-AG14)+AG36 -> 2040 | AI36: =(AI37-AI35)/(A37-A35)*(A36-A35)+AI35 -> 2040 | AJ36: 23
A37: 35 | B37: =B35+1 -> 11 | C37: - | D37: =(E37-C37)/(E14-C14)*(D14-C14)+C37 ->  | E37: - | F37: =(G37-E37)/(G14-E14)*(F14-E14)+E37 ->  | G37: - | H37: =(I37-G37)/(I14-G14)*(H14-G14)+G37 ->  | I37: - | J37: =(K37-I37)/(K14-I14)*(J14-I14)+I37 ->  | K37: - | L37: =(M37-K37)/(M14-K14)*(L14-K14)+K37 ->  | M37: - | N37: =(O37-M37)/(O14-M14)*(N14-M14)+M37 ->  | O37: - | P37: =(Q37-O37)/(Q14-O14)*(P14-O14)+O37 ->  | Q37: - | R37: =(S37-Q37)/(S14-Q14)*(R14-Q14)+Q37 ->  | S37: 125 | T37: =(U37-S37)/(U14-S14)*(T14-S14)+S37 -> 5 | U37: 185 | V37: =(W37-U37)/(W14-U14)*(V14-U14)+U37 -> 5 | W37: 245 | X37: =(Y37-W37)/(Y14-W14)*(X14-W14)+W37 -> 115 | Y37: 310 | Z37: =(AA37-Y37)/(AA14-Y14)*(Z14-Y14)+Y37 -> 25 | AA37: 405 | AB37: =(AC37-AA37)/(AC14-AA14)*(AB14-AA14)+AA37 -> 285 | AC37: 465 | AD37: =(AE37-AC37)/(AE14-AC14)*(AD14-AC14)+AC37 -> 497.85 | AE37: 510 | AF37: =(AG37-AE37)/(AG14-AE14)*(AF14-AE14)+AE37 -> -290 | AG37: 710 | AH37: =(AI37-AG37)/(AI14-AG14)*(AH14-AG14)+AG37 -> 710 | AI37: 710 | AJ37: 24
A38: =IF(AND(AN21>A37,AN21<A39)=TRUE,AN21,0) -> 0 | C38: =(C39-C37)/(A39-A37)*(A38-A37)+C37 ->  | D38: =(E38-C38)/(E14-C14)*(D14-C14)+C38 ->  | E38: =(E39-E37)/(A39-A37)*(A38-A37)+E37 ->  | F38: =(G38-E38)/(G14-E14)*(F14-E14)+E38 ->  | G38: =(G39-G37)/(A39-A37)*(A38-A37)+G37 ->  | H38: =(I38-G38)/(I14-G14)*(H14-G14)+G38 ->  | I38: =(I39-I37)/(A39-A37)*(A38-A37)+I37 ->  | J38: =(K38-I38)/(K14-I14)*(J14-I14)+I38 ->  | K38: =(K39-K37)/(A39-A37)*(A38-A37)+K37 ->  | L38: =(M38-K38)/(M14-K14)*(L14-K14)+K38 ->  | M38: =(M39-M37)/(A39-A37)*(A38-A37)+M37 ->  | N38: =(O38-M38)/(O14-M14)*(N14-M14)+M38 ->  | O38: =(O39-O37)/(A39-A37)*(A38-A37)+O37 ->  | P38: =(Q38-O38)/(Q14-O14)*(P14-O14)+O38 ->  | Q38: =(Q39-Q37)/(A39-A37)*(A38-A37)+Q37 ->  | R38: =(S38-Q38)/(S14-Q14)*(R14-Q14)+Q38 ->  | S38: =(S39-S37)/(A39-A37)*(A38-A37)+S37 -> 265 | T38: =(U38-S38)/(U14-S14)*(T14-S14)+S38 -> 355 | U38: =(U39-U37)/(A39-A37)*(A38-A37)+U37 -> 220 | V38: =(W38-U38)/(W14-U14)*(V14-U14)+U38 -> 40 | W38: =(W39-W37)/(A39-A37)*(A38-A37)+W37 -> 280 | X38: =(Y38-W38)/(Y14-W14)*(X14-W14)+W38 -> 150 | Y38: =(Y39-Y37)/(A39-A37)*(A38-A37)+Y37 -> 345 | Z38: =(AA38-Y38)/(AA14-Y14)*(Z14-Y14)+Y38 -> 60 | AA38: =(AA39-AA37)/(A39-A37)*(A38-A37)+AA37 -> 440 | AB38: =(AC38-AA38)/(AC14-AA14)*(AB14-AA14)+AA38 -> 320 | AC38: =(AC39-AC37)/(A39-A37)*(A38-A37)+AC37 -> 500 | AD38: =(AE38-AC38)/(AE14-AC14)*(AD14-AC14)+AC38 -> 558.4 | AE38: =(AE39-AE37)/(A39-A37)*(A38-A37)+AE37 -> 580 | AF38: =(AG38-AE38)/(AG14-AE14)*(AF14-AE14)+AE38 -> -220 | AG38: =(AG39-AG37)/(A39-A37)*(A38-A37)+AG37 -> 780 | AH38: =(AI38-AG38)/(AI14-AG14)*(AH14-AG14)+AG38 -> 780 | AI38: =(AI39-AI37)/(A39-A37)*(A38-A37)+AI37 -> 780 | AJ38: 25
A39: 40 | B39: =B37+1 -> 12 | C39: - | D39: =(E39-C39)/(E14-C14)*(D14-C14)+C39 ->  | E39: - | F39: =(G39-E39)/(G14-E14)*(F14-E14)+E39 ->  | G39: - | H39: =(I39-G39)/(I14-G14)*(H14-G14)+G39 ->  | I39: - | J39: =(K39-I39)/(K14-I14)*(J14-I14)+I39 ->  | K39: - | L39: =(M39-K39)/(M14-K14)*(L14-K14)+K39 ->  | M39: - | N39: =(O39-M39)/(O14-M14)*(N14-M14)+M39 ->  | O39: - | P39: =(Q39-O39)/(Q14-O14)*(P14-O14)+O39 ->  | Q39: - | R39: =(S39-Q39)/(S14-Q14)*(R14-Q14)+Q39 ->  | S39: 105 | T39: =(U39-S39)/(U14-S14)*(T14-S14)+S39 -> -45 | U39: 180 | V39: =(W39-U39)/(W14-U14)*(V14-U14)+U39 -> 0 | W39: 240 | X39: =(Y39-W39)/(Y14-W14)*(X14-W14)+W39 -> 110 | Y39: 305 | Z39: =(AA39-Y39)/(AA14-Y14)*(Z14-Y14)+Y39 -> 20 | AA39: 400 | AB39: =(AC39-AA39)/(AC14-AA14)*(AB14-AA14)+AA39 -> 280 | AC39: 460 | AD39: =(AE39-AC39)/(AE14-AC14)*(AD14-AC14)+AC39 -> 489.2 | AE39: 500 | AF39: =(AG39-AE39)/(AG14-AE14)*(AF14-AE14)+AE39 -> -300 | AG39: 700 | AH39: =(AI39-AG39)/(AI14-AG14)*(AH14-AG14)+AG39 -> 700 | AI39: 700 | AJ39: 26
A40: =IF(AND(AN21>A39,AN21<A41)=TRUE,AN21,0) -> 0 | C40: =(C41-C39)/(A41-A39)*(A40-A39)+C39 ->  | D40: =(E40-C40)/(E14-C14)*(D14-C14)+C40 ->  | E40: =(E41-E39)/(A41-A39)*(A40-A39)+E39 ->  | F40: =(G40-E40)/(G14-E14)*(F14-E14)+E40 ->  | G40: =(G41-G39)/(A41-A39)*(A40-A39)+G39 ->  | H40: =(I40-G40)/(I14-G14)*(H14-G14)+G40 ->  | I40: =(I41-I39)/(A41-A39)*(A40-A39)+I39 ->  | J40: =(K40-I40)/(K14-I14)*(J14-I14)+I40 ->  | K40: =(K41-K39)/(A41-A39)*(A40-A39)+K39 ->  | L40: =(M40-K40)/(M14-K14)*(L14-K14)+K40 ->  | M40: =(M41-M39)/(A41-A39)*(A40-A39)+M39 ->  | N40: =(O40-M40)/(O14-M14)*(N14-M14)+M40 ->  | O40: =(O41-O39)/(A41-A39)*(A40-A39)+O39 ->  | P40: =(Q40-O40)/(Q14-O14)*(P14-O14)+O40 ->  | Q40: =(Q41-Q39)/(A41-A39)*(A40-A39)+Q39 ->  | R40: =(S40-Q40)/(S14-Q14)*(R14-Q14)+Q40 ->  | S40: =(S41-S39)/(A41-A39)*(A40-A39)+S39 ->  | T40: =(U40-S40)/(U14-S14)*(T14-S14)+S40 ->  | U40: =(U41-U39)/(A41-A39)*(A40-A39)+U39 -> 260 | V40: =(W40-U40)/(W14-U14)*(V14-U14)+U40 -> 200 | W40: =(W41-W39)/(A41-A39)*(A40-A39)+W39 -> 280 | X40: =(Y40-W40)/(Y14-W14)*(X14-W14)+W40 -> 150 | Y40: =(Y41-Y39)/(A41-A39)*(A40-A39)+Y39 -> 345 | Z40: =(AA40-Y40)/(AA14-Y14)*(Z14-Y14)+Y40 -> -300 | AA40: =(AA41-AA39)/(A41-A39)*(A40-A39)+AA39 -> 560 | AB40: =(AC40-AA40)/(AC14-AA14)*(AB14-AA14)+AA40 -> 440 | AC40: =(AC41-AC39)/(A41-A39)*(A40-A39)+AC39 -> 620 | AD40: =(AE40-AC40)/(AE14-AC14)*(AD14-AC14)+AC40 -> 620 | AE40: =(AE41-AE39)/(A41-A39)*(A40-A39)+AE39 -> 620 | AF40: =(AG40-AE40)/(AG14-AE14)*(AF14-AE14)+AE40 -> -340 | AG40: =(AG41-AG39)/(A41-A39)*(A40-A39)+AG39 -> 860 | AH40: =(AI40-AG40)/(AI14-AG14)*(AH14-AG14)+AG40 -> 860 | AI40: =(AI41-AI39)/(A41-A39)*(A40-A39)+AI39 -> 860 | AJ40: 27
A41: 45 | B41: =B39+1 -> 13 | C41: - | D41: =(E41-C41)/(E14-C14)*(D14-C14)+C41 ->  | E41: - | F41: =(G41-E41)/(G14-E14)*(F14-E14)+E41 ->  | G41: - | H41: =(I41-G41)/(I14-G14)*(H14-G14)+G41 ->  | I41: - | J41: =(K41-I41)/(K14-I14)*(J14-I14)+I41 ->  | K41: - | L41: =(M41-K41)/(M14-K14)*(L14-K14)+K41 ->  | M41: - | N41: =(O41-M41)/(O14-M14)*(N14-M14)+M41 ->  | O41: - | P41: =(Q41-O41)/(Q14-O14)*(P14-O14)+O41 ->  | Q41: - | R41: =(S41-Q41)/(S14-Q14)*(R14-Q14)+Q41 ->  | S41: - | T41: =(U41-S41)/(U14-S14)*(T14-S14)+S41 ->  | U41: 170 | V41: =(W41-U41)/(W14-U14)*(V14-U14)+U41 -> -25 | W41: 235 | X41: =(Y41-W41)/(Y14-W14)*(X14-W14)+W41 -> 105 | Y41: 300 | Z41: =(AA41-Y41)/(AA14-Y14)*(Z14-Y14)+Y41 -> 60 | AA41: 380 | AB41: =(AC41-AA41)/(AC14-AA14)*(AB14-AA14)+AA41 -> 260 | AC41: 440 | AD41: =(AE41-AC41)/(AE14-AC14)*(AD14-AC14)+AC41 -> 472.85 | AE41: 485 | AF41: =(AG41-AE41)/(AG14-AE14)*(AF14-AE14)+AE41 -> -295 | AG41: 680 | AH41: =(AI41-AG41)/(AI14-AG14)*(AH14-AG14)+AG41 -> 680 | AI41: 680 | AJ41: 28
A42: =IF(AND(AN21>A41,AN21<A43)=TRUE,AN21,0) -> 0 | C42: =(C43-C41)/(A43-A41)*(A42-A41)+C41 ->  | D42: =(E42-C42)/(E14-C14)*(D14-C14)+C42 ->  | E42: =(E43-E41)/(A43-A41)*(A42-A41)+E41 ->  | F42: =(G42-E42)/(G14-E14)*(F14-E14)+E42 ->  | G42: =(G43-G41)/(A43-A41)*(A42-A41)+G41 ->  | H42: =(I42-G42)/(I14-G14)*(H14-G14)+G42 ->  | I42: =(I43-I41)/(A43-A41)*(A42-A41)+I41 ->  | J42: =(K42-I42)/(K14-I14)*(J14-I14)+I42 ->  | K42: =(K43-K41)/(A43-A41)*(A42-A41)+K41 ->  | L42: =(M42-K42)/(M14-K14)*(L14-K14)+K42 ->  | M42: =(M43-M41)/(A43-A41)*(A42-A41)+M41 ->  | N42: =(O42-M42)/(O14-M14)*(N14-M14)+M42 ->  | O42: =(O43-O41)/(A43-A41)*(A42-A41)+O41 ->  | P42: =(Q42-O42)/(Q14-O14)*(P14-O14)+O42 ->  | Q42: =(Q43-Q41)/(A43-A41)*(A42-A41)+Q41 ->  | R42: =(S42-Q42)/(S14-Q14)*(R14-Q14)+Q42 ->  | S42: =(S43-S41)/(A43-A41)*(A42-A41)+S41 ->  | T42: =(U42-S42)/(U14-S14)*(T14-S14)+S42 ->  | U42: =(U43-U41)/(A43-A41)*(A42-A41)+U41 -> 260 | V42: =(W42-U42)/(W14-U14)*(V14-U14)+U42 -> 200 | W42: =(W43-W41)/(A43-A41)*(A42-A41)+W41 -> 280 | X42: =(Y42-W42)/(Y14-W14)*(X14-W14)+W42 -> 60 | Y42: =(Y43-Y41)/(A43-A41)*(A42-A41)+Y41 -> 390 | Z42: =(AA42-Y42)/(AA14-Y14)*(Z14-Y14)+Y42 -> -120 | AA42: =(AA43-AA41)/(A43-A41)*(A42-A41)+AA41 -> 560 | AB42: =(AC42-AA42)/(AC14-AA14)*(AB14-AA14)+AA42 -> 620 | AC42: =(AC43-AC41)/(A43-A41)*(A42-A41)+AC41 -> 530 | AD42: =(AE42-AC42)/(AE14-AC14)*(AD14-AC14)+AC42 -> 595.7 | AE42: =(AE43-AE41)/(A43-A41)*(A42-A41)+AE41 -> 620 | AF42: =(AG42-AE42)/(AG14-AE14)*(AF14-AE14)+AE42 -> 20 | AG42: =(AG43-AG41)/(A43-A41)*(A42-A41)+AG41 -> 770 | AH42: =(AI42-AG42)/(AI14-AG14)*(AH14-AG14)+AG42 -> 770 | AI42: =(AI43-AI41)/(A43-A41)*(A42-A41)+AI41 -> 770 | AJ42: 29
A43: 50 | B43: =B41+1 -> 14 | C43: - | D43: =(E43-C43)/(E14-C14)*(D14-C14)+C43 ->  | E43: - | F43: =(G43-E43)/(G14-E14)*(F14-E14)+E43 ->  | G43: - | H43: =(I43-G43)/(I14-G14)*(H14-G14)+G43 ->  | I43: - | J43: =(K43-I43)/(K14-I14)*(J14-I14)+I43 ->  | K43: - | L43: =(M43-K43)/(M14-K14)*(L14-K14)+K43 ->  | M43: - | N43: =(O43-M43)/(O14-M14)*(N14-M14)+M43 ->  | O43: - | P43: =(Q43-O43)/(Q14-O14)*(P14-O14)+O43 ->  | Q43: - | R43: =(S43-Q43)/(S14-Q14)*(R14-Q14)+Q43 ->  | S43: - | T43: =(U43-S43)/(U14-S14)*(T14-S14)+S43 ->  | U43: 160 | V43: =(W43-U43)/(W14-U14)*(V14-U14)+U43 -> -50 | W43: 230 | X43: =(Y43-W43)/(Y14-W14)*(X14-W14)+W43 -> 110 | Y43: 290 | Z43: =(AA43-Y43)/(AA14-Y14)*(Z14-Y14)+Y43 -> 80 | AA43: 360 | AB43: =(AC43-AA43)/(AC14-AA14)*(AB14-AA14)+AA43 -> 220 | AC43: 430 | AD43: =(AE43-AC43)/(AE14-AC14)*(AD14-AC14)+AC43 -> 459.2 | AE43: 470 | AF43: =(AG43-AE43)/(AG14-AE14)*(AF14-AE14)+AE43 -> -330 | AG43: 670 | AH43: =(AI43-AG43)/(AI14-AG14)*(AH14-AG14)+AG43 -> 670 | AI43: 670 | AJ43: 30
A44: =IF(AND(AN21>A43,AN21<A45)=TRUE,AN21,0) -> 0 | C44: =(C45-C43)/(A45-A43)*(A44-A43)+C43 ->  | D44: =(E44-C44)/(E14-C14)*(D14-C14)+C44 ->  | E44: =(E45-E43)/(A45-A43)*(A44-A43)+E43 ->  | F44: =(G44-E44)/(G14-E14)*(F14-E14)+E44 ->  | G44: =(G45-G43)/(A45-A43)*(A44-A43)+G43 ->  | H44: =(I44-G44)/(I14-G14)*(H14-G14)+G44 ->  | I44: =(I45-I43)/(A45-A43)*(A44-A43)+I43 ->  | J44: =(K44-I44)/(K14-I14)*(J14-I14)+I44 ->  | K44: =(K45-K43)/(A45-A43)*(A44-A43)+K43 ->  | L44: =(M44-K44)/(M14-K14)*(L14-K14)+K44 ->  | M44: =(M45-M43)/(A45-A43)*(A44-A43)+M43 ->  | N44: =(O44-M44)/(O14-M14)*(N14-M14)+M44 ->  | O44: =(O45-O43)/(A45-A43)*(A44-A43)+O43 ->  | P44: =(Q44-O44)/(Q14-O14)*(P14-O14)+O44 ->  | Q44: =(Q45-Q43)/(A45-A43)*(A44-A43)+Q43 ->  | R44: =(S44-Q44)/(S14-Q14)*(R14-Q14)+Q44 ->  | S44: =(S45-S43)/(A45-A43)*(A44-A43)+S43 ->  | T44: =(U44-S44)/(U14-S14)*(T14-S14)+S44 ->  | U44: =(U45-U43)/(A45-A43)*(A44-A43)+U43 ->  | V44: =(W44-U44)/(W14-U14)*(V14-U14)+U44 ->  | W44: =(W45-W43)/(A45-A43)*(A44-A43)+W43 -> 280 | X44: =(Y44-W44)/(Y14-W14)*(X14-W14)+W44 -> 260 | Y44: =(Y45-Y43)/(A45-A43)*(A44-A43)+Y43 -> 290 | Z44: =(AA44-Y44)/(AA14-Y14)*(Z14-Y14)+Y44 -> 80 | AA44: =(AA45-AA43)/(A45-A43)*(A44-A43)+AA43 -> 360 | AB44: =(AC44-AA44)/(AC14-AA14)*(AB14-AA14)+AA44 -> 220 | AC44: =(AC45-AC43)/(A45-A43)*(A44-A43)+AC43 -> 430 | AD44: =(AE44-AC44)/(AE14-AC14)*(AD14-AC14)+AC44 -> 459.2 | AE44: =(AE45-AE43)/(A45-A43)*(A44-A43)+AE43 -> 470 | AF44: =(AG44-AE44)/(AG14-AE14)*(AF14-AE14)+AE44 -> -330 | AG44: =(AG45-AG43)/(A45-A43)*(A44-A43)+AG43 -> 670 | AH44: =(AI44-AG44)/(AI14-AG14)*(AH14-AG14)+AG44 -> 670 | AI44: =(AI45-AI43)/(A45-A43)*(A44-A43)+AI43 -> 670 | AJ44: 31
A45: 60 | B45: =B43+1 -> 15 | C45: - | D45: =(E45-C45)/(E14-C14)*(D14-C14)+C45 ->  | E45: - | F45: =(G45-E45)/(G14-E14)*(F14-E14)+E45 ->  | G45: - | H45: =(I45-G45)/(I14-G14)*(H14-G14)+G45 ->  | I45: - | J45: =(K45-I45)/(K14-I14)*(J14-I14)+I45 ->  | K45: - | L45: =(M45-K45)/(M14-K14)*(L14-K14)+K45 ->  | M45: - | N45: =(O45-M45)/(O14-M14)*(N14-M14)+M45 ->  | O45: - | P45: =(Q45-O45)/(Q14-O14)*(P14-O14)+O45 ->  | Q45: - | R45: =(S45-Q45)/(S14-Q14)*(R14-Q14)+Q45 ->  | S45: - | T45: =(U45-S45)/(U14-S14)*(T14-S14)+S45 ->  | U45: - | V45: =(W45-U45)/(W14-U14)*(V14-U14)+U45 ->  | W45: 220 | X45: =(Y45-W45)/(Y14-W14)*(X14-W14)+W45 -> 80 | Y45: 290 | Z45: =(AA45-Y45)/(AA14-Y14)*(Z14-Y14)+Y45 -> 80 | AA45: 360 | AB45: =(AC45-AA45)/(AC14-AA14)*(AB14-AA14)+AA45 -> 220 | AC45: 430 | AD45: =(AE45-AC45)/(AE14-AC14)*(AD14-AC14)+AC45 -> 459.2 | AE45: 470 | AF45: =(AG45-AE45)/(AG14-AE14)*(AF14-AE14)+AE45 -> -330 | AG45: 670 | AH45: =(AI45-AG45)/(AI14-AG14)*(AH14-AG14)+AG45 -> 670 | AI45: 670 | AJ45: 32
A46: =IF(AND(AN21>A45,AN21<A47)=TRUE,AN21,0) -> 0 | C46: =(C47-C45)/(A47-A45)*(A46-A45)+C45 ->  | D46: =(E46-C46)/(E14-C14)*(D14-C14)+C46 ->  | E46: =(E47-E45)/(A47-A45)*(A46-A45)+E45 ->  | F46: =(G46-E46)/(G14-E14)*(F14-E14)+E46 ->  | G46: =(G47-G45)/(A47-A45)*(A46-A45)+G45 ->  | H46: =(I46-G46)/(I14-G14)*(H14-G14)+G46 ->  | I46: =(I47-I45)/(A47-A45)*(A46-A45)+I45 ->  | J46: =(K46-I46)/(K14-I14)*(J14-I14)+I46 ->  | K46: =(K47-K45)/(A47-A45)*(A46-A45)+K45 ->  | L46: =(M46-K46)/(M14-K14)*(L14-K14)+K46 ->  | M46: =(M47-M45)/(A47-A45)*(A46-A45)+M45 ->  | N46: =(O46-M46)/(O14-M14)*(N14-M14)+M46 ->  | O46: =(O47-O45)/(A47-A45)*(A46-A45)+O45 ->  | P46: =(Q46-O46)/(Q14-O14)*(P14-O14)+O46 ->  | Q46: =(Q47-Q45)/(A47-A45)*(A46-A45)+Q45 ->  | R46: =(S46-Q46)/(S14-Q14)*(R14-Q14)+Q46 ->  | S46: =(S47-S45)/(A47-A45)*(A46-A45)+S45 ->  | T46: =(U46-S46)/(U14-S14)*(T14-S14)+S46 ->  | U46: =(U47-U45)/(A47-A45)*(A46-A45)+U45 ->  | V46: =(W46-U46)/(W14-U14)*(V14-U14)+U46 ->  | W46: =(W47-W45)/(A47-A45)*(A46-A45)+W45 ->  | X46: =(Y46-W46)/(Y14-W14)*(X14-W14)+W46 ->  | Y46: =(Y47-Y45)/(A47-A45)*(A46-A45)+Y45 -> 350 | Z46: =(AA46-Y46)/(AA14-Y14)*(Z14-Y14)+Y46 -> 320 | AA46: =(AA47-AA45)/(A47-A45)*(A46-A45)+AA45 -> 360 | AB46: =(AC46-AA46)/(AC14-AA14)*(AB14-AA14)+AA46 -> 220 | AC46: =(AC47-AC45)/(A47-A45)*(A46-A45)+AC45 -> 430 | AD46: =(AE46-AC46)/(AE14-AC14)*(AD14-AC14)+AC46 -> 459.2 | AE46: =(AE47-AE45)/(A47-A45)*(A46-A45)+AE45 -> 470 | AF46: =(AG46-AE46)/(AG14-AE14)*(AF14-AE14)+AE46 -> -330 | AG46: =(AG47-AG45)/(A47-A45)*(A46-A45)+AG45 -> 670 | AH46: =(AI46-AG46)/(AI14-AG14)*(AH14-AG14)+AG46 -> 670 | AI46: =(AI47-AI45)/(A47-A45)*(A46-A45)+AI45 -> 670 | AJ46: 33
A47: 100 | B47: =B45+1 -> 16 | C47: - | D47: =(E47-C47)/(E18-C18)*(D18-C18)+C47 ->  | E47: - | F47: =(G47-E47)/(G14-E14)*(F14-E14)+E47 ->  | G47: - | H47: =(I47-G47)/(I14-G14)*(H14-G14)+G47 ->  | I47: - | J47: =(K47-I47)/(K14-I14)*(J14-I14)+I47 ->  | K47: - | L47: =(M47-K47)/(M14-K14)*(L14-K14)+K47 ->  | M47: - | N47: =(O47-M47)/(O14-M14)*(N14-M14)+M47 ->  | O47: - | P47: =(Q47-O47)/(Q14-O14)*(P14-O14)+O47 ->  | Q47: - | R47: =(S47-Q47)/(S14-Q14)*(R14-Q14)+Q47 ->  | S47: - | T47: =(U47-S47)/(U14-S14)*(T14-S14)+S47 ->  | U47: - | V47: =(W47-U47)/(W14-U14)*(V14-U14)+U47 ->  | W47: - | X47: =(Y47-W47)/(Y14-W14)*(X14-W14)+W47 ->  | Y47: 250 | Z47: =(AA47-Y47)/(AA14-Y14)*(Z14-Y14)+Y47 -> -80 | AA47: 360 | AB47: =(AC47-AA47)/(AC14-AA14)*(AB14-AA14)+AA47 -> 220 | AC47: 430 | AD47: =(AE47-AC47)/(AE14-AC14)*(AD14-AC14)+AC47 -> 459.2 | AE47: 470 | AF47: =(AG47-AE47)/(AG14-AE14)*(AF14-AE14)+AE47 -> -330 | AG47: 670 | AH47: =(AI47-AG47)/(AI14-AG14)*(AH14-AG14)+AG47 -> 670 | AI47: 670 | AJ47: 34
AJ48: 35
A49: COL | C49: 3 | D49: =C49+1 -> 4 | E49: =D49+1 -> 5 | F49: 6 | G49: 7 | H49: 8 | I49: 9 | J49: 10 | K49: 11 | L49: 12 | M49: 13 | N49: 14 | O49: 15 | P49: 16 | Q49: 17 | R49: 18 | S49: =R49+1 -> 19 | T49: 20 | U49: 21 | V49: 22 | W49: 23 | X49: 24 | Y49: 25 | Z49: 26 | AA49: 27 | AB49: 28 | AC49: 29 | AD49: 30 | AE49: 31 | AF49: 32 | AG49: 33 | AH49: 34 | AI49: 35 | AJ49: 36
C50: 1 | D50: 2 | F50: 3 | H50: 4 | J50: 5 | L50: 6 | N50: 7 | P50: 8 | R50: 9 | T50: 10 | V50: 11 | X50: 12 | Z50: 13 | AB50: 14 | AD50: 15 | AH50: 17
B53: Рвх | C53: 0.003 | D53: =IF(AND(AK60>C53,AK60<E53)=TRUE,AK60,0) -> 0 | E53: 0.005 | F53: =IF(AND(AK60>E53,AK60<G53)=TRUE,AK60,0) -> 0 | G53: 0.0075 | H53: =IF(AND(AK60>G53,AK60<I53)=TRUE,AK60,0) -> 0 | I53: 0.01 | J53: =IF(AND(AK60>I53,AK60<K53)=TRUE,AK60,0) -> 0 | K53: 0.015 | L53: =IF(AND(AK60>K53,AK60<M53)=TRUE,AK60,0) -> 0 | M53: 0.02 | N53: =IF(AND(AK60>M53,AK60<O53)=TRUE,AK60,0) -> 0 | O53: 0.03 | P53: =IF(AND(AK60>O53,AK60<Q53)=TRUE,AK60,0) -> 0 | Q53: 0.04 | R53: =IF(AND(AK60>Q53,AK60<S53)=TRUE,AK60,0) -> 0 | S53: 0.05 | T53: =IF(AND(AK60>S53,AK60<U53)=TRUE,AK60,0) -> 0 | U53: 0.075 | V53: =IF(AND(AK60>U53,AK60<W53)=TRUE,AK60,0) -> 0 | W53: 0.1 | X53: =IF(AND(AK60>W53,AK60<Y53)=TRUE,AK60,0) -> 0 | Y53: 0.15 | Z53: =IF(AND(AK60>Y53,AK60<AA53)=TRUE,AK60,0) -> 0 | AA53: 0.2 | AB53: =IF(AND(AK60>AA53,AK60<AC53)=TRUE,AK60,0) -> 0 | AC53: 0.3 | AD53: =IF(AND(AK60>AC53,AK60<AE53)=TRUE,AK60,0) -> 0.373 | AE53: 0.4 | AF53: =IF(AND(AK60>AE53,AK60<AG53)=TRUE,AK60,0) -> 0 | AG53: 0.5 | AH53: =IF(AND(AK60>AG53,AK60<AI53)=TRUE,AK60,0) -> 0 | AI53: 0.6 | AJ53: 1
A54: Рвых | B54: МПа | AJ54: =AJ53+1 -> 2
A55: кПа | AJ55: =AJ54+1 -> 3
A56: 1 | B56: 1 | C56: 12 | D56: =(E56-C56)/(E53-C53)*(D53-C53)+C56 -> 7.5 | E56: 15 | F56: =(G56-E56)/(G53-E53)*(F53-E53)+E56 -> 5 | G56: 20 | H56: =(I56-G56)/(I53-G53)*(H53-G53)+G56 -> -10 | I56: 30 | J56: =(K56-I56)/(K53-I53)*(J53-I53)+I56 -> 10 | K56: 40 | L56: =(M56-K56)/(M53-K53)*(L53-K53)+K56 -> 10 | M56: 50 | N56: =(O56-M56)/(O53-M53)*(N53-M53)+M56 -> 20 | O56: 65 | P56: =(Q56-O56)/(Q53-O53)*(P53-O53)+O56 -> 20 | Q56: 80 | R56: =(S56-Q56)/(S53-Q53)*(R53-Q53)+Q56 -> 0 | S56: 100 | T56: =(U56-S56)/(U53-S53)*(T53-S53)+S56 -> 60 | U56: 120 | V56: =(W56-U56)/(W53-U53)*(V53-U53)+U56 -> 120 | W56: 120 | X56: =(Y56-W56)/(Y53-W53)*(X53-W53)+W56 -> 20 | Y56: 170 | Z56: =(AA56-Y56)/(AA53-Y53)*(Z53-Y53)+Y56 -> 80 | AA56: 200 | AB56: =(AC56-AA56)/(AC53-AA53)*(AB53-AA53)+AA56 -> 100 | AC56: 250 | AD56: =(AE56-AC56)/(AE53-AC53)*(AD53-AC53)+AC56 -> 250 | AE56: 250 | AF56: =(AG56-AE56)/(AG53-AE53)*(AF53-AE53)+AE56 -> 250 | AG56: 250 | AH56: =(AI56-AG56)/(AI53-AG53)*(AH53-AG53)+AG56 -> 250 | AI56: 250 | AJ56: 4 | AK56: Рвх | AL56: Q | AM56: Qcрасч | AN56: Рвых | AO56: Рвых
A57: =IF(AND(AN60>A56,AN60<A58)=TRUE,AN60,0) -> 0 | C57: =(C58-C56)/(A58-A56)*(A57-A56)+C56 ->  | D57: =(E57-C57)/(E53-C53)*(D53-C53)+C57 ->  | E57: =(E58-E56)/(A58-A56)*(A57-A56)+E56 -> 15 | F57: =(G57-E57)/(G53-E53)*(F53-E53)+E57 -> 5 | G57: =(G58-G56)/(A58-A56)*(A57-A56)+G56 -> 20 | H57: =(I57-G57)/(I53-G53)*(H53-G53)+G57 -> -10 | I57: =(I58-I56)/(A58-A56)*(A57-A56)+I56 -> 30 | J57: =(K57-I57)/(K53-I53)*(J53-I53)+I57 -> 10 | K57: =(K58-K56)/(A58-A56)*(A57-A56)+K56 -> 40 | L57: =(M57-K57)/(M53-K53)*(L53-K53)+K57 -> 10 | M57: =(M58-M56)/(A58-A56)*(A57-A56)+M56 -> 50 | N57: =(O57-M57)/(O53-M53)*(N53-M53)+M57 -> 20 | O57: =(O58-O56)/(A58-A56)*(A57-A56)+O56 -> 65 | P57: =(Q57-O57)/(Q53-O53)*(P53-O53)+O57 -> 20 | Q57: =(Q58-Q56)/(A58-A56)*(A57-A56)+Q56 -> 80 | R57: =(S57-Q57)/(S53-Q53)*(R53-Q53)+Q57 -> 0 | S57: =(S58-S56)/(A58-A56)*(A57-A56)+S56 -> 100 | T57: =(U57-S57)/(U53-S53)*(T53-S53)+S57 -> 60 | U57: =(U58-U56)/(A58-A56)*(A57-A56)+U56 -> 120 | V57: =(W57-U57)/(W53-U53)*(V53-U53)+U57 -> 120 | W57: =(W58-W56)/(A58-A56)*(A57-A56)+W56 -> 120 | X57: =(Y57-W57)/(Y53-W53)*(X53-W53)+W57 -> 20 | Y57: =(Y58-Y56)/(A58-A56)*(A57-A56)+Y56 -> 170 | Z57: =(AA57-Y57)/(AA53-Y53)*(Z53-Y53)+Y57 -> 80 | AA57: =(AA58-AA56)/(A58-A56)*(A57-A56)+AA56 -> 200 | AB57: =(AC57-AA57)/(AC53-AA53)*(AB53-AA53)+AA57 -> 100 | AC57: =(AC58-AC56)/(A58-A56)*(A57-A56)+AC56 -> 250 | AD57: =(AE57-AC57)/(AE53-AC53)*(AD53-AC53)+AC57 -> 250 | AE57: =(AE58-AE56)/(A58-A56)*(A57-A56)+AE56 -> 250 | AF57: =(AG57-AE57)/(AG53-AE53)*(AF53-AE53)+AE57 -> 250 | AG57: =(AG58-AG56)/(A58-A56)*(A57-A56)+AG56 -> 250 | AH57: =(AI57-AG57)/(AI53-AG53)*(AH53-AG53)+AG57 -> 250 | AI57: =(AI58-AI56)/(A58-A56)*(A57-A56)+AI56 -> 250 | AJ57: 5
A58: 2 | B58: =B56+1 -> 2 | C58: - | D58: =(E58-C58)/(E53-C53)*(D53-C53)+C58 ->  | E58: 15 | F58: =(G58-E58)/(G53-E53)*(F53-E53)+E58 -> 5 | G58: 20 | H58: =(I58-G58)/(I53-G53)*(H53-G53)+G58 -> -10 | I58: 30 | J58: =(K58-I58)/(K53-I53)*(J53-I53)+I58 -> 10 | K58: 40 | L58: =(M58-K58)/(M53-K53)*(L53-K53)+K58 -> 10 | M58: 50 | N58: =(O58-M58)/(O53-M53)*(N53-M53)+M58 -> 20 | O58: 65 | P58: =(Q58-O58)/(Q53-O53)*(P53-O53)+O58 -> 20 | Q58: 80 | R58: =(S58-Q58)/(S53-Q53)*(R53-Q53)+Q58 -> 0 | S58: 100 | T58: =(U58-S58)/(U53-S53)*(T53-S53)+S58 -> 60 | U58: 120 | V58: =(W58-U58)/(W53-U53)*(V53-U53)+U58 -> 120 | W58: 120 | X58: =(Y58-W58)/(Y53-W53)*(X53-W53)+W58 -> 20 | Y58: 170 | Z58: =(AA58-Y58)/(AA53-Y53)*(Z53-Y53)+Y58 -> 80 | AA58: 200 | AB58: =(AC58-AA58)/(AC53-AA53)*(AB53-AA53)+AA58 -> 100 | AC58: 250 | AD58: =(AE58-AC58)/(AE53-AC53)*(AD53-AC53)+AC58 -> 250 | AE58: 250 | AF58: =(AG58-AE58)/(AG53-AE53)*(AF53-AE53)+AE58 -> 250 | AG58: 250 | AH58: =(AI58-AG58)/(AI53-AG53)*(AH53-AG53)+AG58 -> 250 | AI58: 250 | AJ58: 6 | AK58: МПа | AL58: нм3/час | AM58: нм3/час | AN58: кПа | AO58: кПа
A59: =IF(AND(AN60>A58,AN60<A60)=TRUE,AN60,0) -> 0 | C59: =(C60-C58)/(A60-A58)*(A59-A58)+C58 ->  | D59: =(E59-C59)/(E53-C53)*(D53-C53)+C59 ->  | E59: =(E60-E58)/(A60-A58)*(A59-A58)+E58 -> 21 | F59: =(G59-E59)/(G53-E53)*(F53-E53)+E59 -> 23 | G59: =(G60-G58)/(A60-A58)*(A59-A58)+G58 -> 20 | H59: =(I59-G59)/(I53-G53)*(H53-G53)+G59 -> -10 | I59: =(I60-I58)/(A60-A58)*(A59-A58)+I58 -> 30 | J59: =(K59-I59)/(K53-I53)*(J53-I53)+I59 -> 10 | K59: =(K60-K58)/(A60-A58)*(A59-A58)+K58 -> 40 | L59: =(M59-K59)/(M53-K53)*(L53-K53)+K59 -> 10 | M59: =(M60-M58)/(A60-A58)*(A59-A58)+M58 -> 50 | N59: =(O59-M59)/(O53-M53)*(N53-M53)+M59 -> 20 | O59: =(O60-O58)/(A60-A58)*(A59-A58)+O58 -> 65 | P59: =(Q59-O59)/(Q53-O53)*(P53-O53)+O59 -> 20 | Q59: =(Q60-Q58)/(A60-A58)*(A59-A58)+Q58 -> 80 | R59: =(S59-Q59)/(S53-Q53)*(R53-Q53)+Q59 -> 0 | S59: =(S60-S58)/(E60-E58)*(E59-E58)+S58 -> 100 | T59: =(U59-S59)/(U53-S53)*(T53-S53)+S59 -> 60 | U59: =(U60-U58)/(A60-A58)*(A59-A58)+U58 -> 120 | V59: =(W59-U59)/(W53-U53)*(V53-U53)+U59 -> 120 | W59: =(W60-W58)/(A60-A58)*(A59-A58)+W58 -> 120 | X59: =(Y59-W59)/(Y53-W53)*(X53-W53)+W59 -> 20 | Y59: =(Y60-Y58)/(A60-A58)*(A59-A58)+Y58 -> 170 | Z59: =(AA59-Y59)/(AA53-Y53)*(Z53-Y53)+Y59 -> 80 | AA59: =(AA60-AA58)/(E60-E58)*(E59-E58)+AA58 -> 200 | AB59: =(AC59-AA59)/(AC53-AA53)*(AB53-AA53)+AA59 -> 100 | AC59: =(AC60-AC58)/(A60-A58)*(A59-A58)+AC58 -> 250 | AD59: =(AE59-AC59)/(AE53-AC53)*(AD53-AC53)+AC59 -> 250 | AE59: =(AE60-AE58)/(A60-A58)*(A59-A58)+AE58 -> 250 | AF59: =(AG59-AE59)/(AG53-AE53)*(AF53-AE53)+AE59 -> 250 | AG59: =(AG60-AG58)/(E60-E58)*(E59-E58)+AG58 -> 250 | AH59: =(AI59-AG59)/(AI53-AG53)*(AH53-AG53)+AG59 -> 250 | AI59: =(AI60-AI58)/(A60-A58)*(A59-A58)+AI58 -> 250 | AJ59: 7
A60: 3 | B60: =B58+1 -> 3 | C60: - | D60: =(E60-C60)/(E53-C53)*(D53-C53)+C60 ->  | E60: 12 | F60: =(G60-E60)/(G53-E53)*(F53-E53)+E60 -> -4 | G60: 20 | H60: =(I60-G60)/(I53-G53)*(H53-G53)+G60 -> -10 | I60: 30 | J60: =(K60-I60)/(K53-I53)*(J53-I53)+I60 -> 10 | K60: 40 | L60: =(M60-K60)/(M53-K53)*(L53-K53)+K60 -> 10 | M60: 50 | N60: =(O60-M60)/(O53-M53)*(N53-M53)+M60 -> 20 | O60: 65 | P60: =(Q60-O60)/(Q53-O53)*(P53-O53)+O60 -> 20 | Q60: 80 | R60: =(S60-Q60)/(S53-Q53)*(R53-Q53)+Q60 -> 0 | S60: 100 | T60: =(U60-S60)/(U53-S53)*(T53-S53)+S60 -> 60 | U60: 120 | V60: =(W60-U60)/(W53-U53)*(V53-U53)+U60 -> 120 | W60: 120 | X60: =(Y60-W60)/(Y53-W53)*(X53-W53)+W60 -> 20 | Y60: 170 | Z60: =(AA60-Y60)/(AA53-Y53)*(Z53-Y53)+Y60 -> 80 | AA60: 200 | AB60: =(AC60-AA60)/(AC53-AA53)*(AB53-AA53)+AA60 -> 100 | AC60: 250 | AD60: =(AE60-AC60)/(AE53-AC53)*(AD53-AC53)+AC60 -> 250 | AE60: 250 | AF60: =(AG60-AE60)/(AG53-AE53)*(AF53-AE53)+AE60 -> 250 | AG60: 250 | AH60: =(AI60-AG60)/(AI53-AG53)*(AH53-AG53)+AG60 -> 250 | AI60: 250 | AJ60: 8 | AK60: =AK21 -> 0.373 | AL60: =AL21 -> 229.2 | AM60: =VLOOKUP(AN60,A53:AI88,HLOOKUP(AK60,A53:AI88,36,0),0) ->  | AN60: =AN21 -> 300 | AO60: =IF(AK60<A56,"NO",IF(AK60>A82,"N0",IF(VLOOKUP(AK60,A56:AI82,3,0)>AL60,"NO",IF(VLOOKUP(AK60,A56:AI82,17,0)<AL60,"NO",IF(AND(AM60>=AL60-0.1,AM60<AL60+0.1)=TRUE,AN60,"NO"))))) -> NO
A61: =IF(AND(AN60>A60,AN60<A62)=TRUE,AN60,0) -> 0 | C61: =(C62-C60)/(A62-A60)*(A61-A60)+C60 ->  | D61: =(E61-C61)/(E53-C53)*(D53-C53)+C61 ->  | E61: =(E62-E60)/(A62-A60)*(A61-A60)+E60 ->  | F61: =(G61-E61)/(G53-E53)*(F53-E53)+E61 ->  | G61: =(G62-G60)/(A62-A60)*(A61-A60)+G60 -> 35 | H61: =(I61-G61)/(I53-G53)*(H53-G53)+G61 -> 5 | I61: =(I62-I60)/(A62-A60)*(A61-A60)+I60 -> 45 | J61: =(K61-I61)/(K53-I53)*(J53-I53)+I61 -> 55 | K61: =(K62-K60)/(A62-A60)*(A61-A60)+K60 -> 40 | L61: =(M61-K61)/(M53-K53)*(L53-K53)+K61 -> 10 | M61: =(M62-M60)/(A62-A60)*(A61-A60)+M60 -> 50 | N61: =(O61-M61)/(O53-M53)*(N53-M53)+M61 -> 20 | O61: =(O62-O60)/(A62-A60)*(A61-A60)+O60 -> 65 | P61: =(Q61-O61)/(Q53-O53)*(P53-O53)+O61 -> 20 | Q61: =(Q62-Q60)/(A62-A60)*(A61-A60)+Q60 -> 80 | R61: =(S61-Q61)/(S53-Q53)*(R53-Q53)+Q61 -> 0 | S61: =(S62-S60)/(A62-A60)*(A61-A60)+S60 -> 100 | T61: =(U61-S61)/(U53-S53)*(T53-S53)+S61 -> 60 | U61: =(U62-U60)/(G62-G60)*(G61-G60)+U60 -> 120 | V61: =(W61-U61)/(W53-U53)*(V53-U53)+U61 -> 120 | W61: =(W62-W60)/(I62-I60)*(I61-I60)+W60 -> 120 | X61: =(Y61-W61)/(Y53-W53)*(X53-W53)+W61 -> 20 | Y61: =(Y62-Y60)/(A62-A60)*(A61-A60)+Y60 -> 170 | Z61: =(AA61-Y61)/(AA53-Y53)*(Z53-Y53)+Y61 -> 80 | AA61: =(AA62-AA60)/(A62-A60)*(A61-A60)+AA60 -> 200 | AB61: =(AC61-AA61)/(AC53-AA53)*(AB53-AA53)+AA61 -> 100 | AC61: =(AC62-AC60)/(A62-A60)*(A61-A60)+AC60 -> 250 | AD61: =(AE61-AC61)/(AE53-AC53)*(AD53-AC53)+AC61 -> 250 | AE61: =(AE62-AE60)/(A62-A60)*(A61-A60)+AE60 -> 250 | AF61: =(AG61-AE61)/(AG53-AE53)*(AF53-AE53)+AE61 -> 250 | AG61: =(AG62-AG60)/(A62-A60)*(A61-A60)+AG60 -> 250 | AH61: =(AI61-AG61)/(AI53-AG53)*(AH53-AG53)+AG61 -> 250 | AI61: =(AI62-AI60)/(A62-A60)*(A61-A60)+AI60 -> 250 | AJ61: 9
A62: 4 | B62: =B60+1 -> 4 | C62: - | D62: =(E62-C62)/(E53-C53)*(D53-C53)+C62 ->  | E62: - | F62: =(G62-E62)/(G53-E53)*(F53-E53)+E62 ->  | G62: 15 | H62: =(I62-G62)/(I53-G53)*(H53-G53)+G62 -> -15 | I62: 25 | J62: =(K62-I62)/(K53-I53)*(J53-I53)+I62 -> -5 | K62: 40 | L62: =(M62-K62)/(M53-K53)*(L53-K53)+K62 -> 10 | M62: 50 | N62: =(O62-M62)/(O53-M53)*(N53-M53)+M62 -> 20 | O62: 65 | P62: =(Q62-O62)/(Q53-O53)*(P53-O53)+O62 -> 20 | Q62: 80 | R62: =(S62-Q62)/(S53-Q53)*(R53-Q53)+Q62 -> 0 | S62: 100 | T62: =(U62-S62)/(U53-S53)*(T53-S53)+S62 -> 60 | U62: 120 | V62: =(W62-U62)/(W53-U53)*(V53-U53)+U62 -> 120 | W62: 120 | X62: =(Y62-W62)/(Y53-W53)*(X53-W53)+W62 -> 20 | Y62: 170 | Z62: =(AA62-Y62)/(AA53-Y53)*(Z53-Y53)+Y62 -> 80 | AA62: 200 | AB62: =(AC62-AA62)/(AC53-AA53)*(AB53-AA53)+AA62 -> 100 | AC62: 250 | AD62: =(AE62-AC62)/(AE53-AC53)*(AD53-AC53)+AC62 -> 250 | AE62: 250 | AF62: =(AG62-AE62)/(AG53-AE53)*(AF53-AE53)+AE62 -> 250 | AG62: 250 | AH62: =(AI62-AG62)/(AI53-AG53)*(AH53-AG53)+AG62 -> 250 | AI62: 250 | AJ62: 10 | AK62: 0.1 | AL62: =AL23 -> 263.58
A63: =IF(AND(AN60>A62,AN60<A64)=TRUE,AN60,0) -> 0 | C63: =(C64-C62)/(A64-A62)*(A63-A62)+C62 ->  | D63: =(E63-C63)/(E53-C53)*(D53-C53)+C63 ->  | E63: =(E64-E62)/(A64-A62)*(A63-A62)+E62 ->  | F63: =(G63-E63)/(G53-E53)*(F53-E53)+E63 ->  | G63: =(G64-G62)/(A64-A62)*(A63-A62)+G62 -> 15 | H63: =(I63-G63)/(I53-G53)*(H53-G53)+G63 -> -75 | I63: =(I64-I62)/(A64-A62)*(A63-A62)+I62 -> 45 | J63: =(K63-I63)/(K53-I53)*(J53-I53)+I63 -> 55 | K63: =(K64-K62)/(A64-A62)*(A63-A62)+K62 -> 40 | L63: =(M63-K63)/(M53-K53)*(L53-K53)+K63 -> 10 | M63: =(M64-M62)/(A64-A62)*(A63-A62)+M62 -> 50 | N63: =(O63-M63)/(O53-M53)*(N53-M53)+M63 -> 20 | O63: =(O64-O62)/(A64-A62)*(A63-A62)+O62 -> 65 | P63: =(Q63-O63)/(Q53-O53)*(P53-O53)+O63 -> 20 | Q63: =(Q64-Q62)/(A64-A62)*(A63-A62)+Q62 -> 80 | R63: =(S63-Q63)/(S53-Q53)*(R53-Q53)+Q63 -> 0 | S63: =(S64-S62)/(A64-A62)*(A63-A62)+S62 -> 100 | T63: =(U63-S63)/(U53-S53)*(T53-S53)+S63 -> 60 | U63: =(U64-U62)/(A64-A62)*(A63-A62)+U62 -> 120 | V63: =(W63-U63)/(W53-U53)*(V53-U53)+U63 -> 120 | W63: =(W64-W62)/(I64-I62)*(I63-I62)+W62 -> 120 | X63: =(Y63-W63)/(Y53-W53)*(X53-W53)+W63 -> 20 | Y63: =(Y64-Y62)/(A64-A62)*(A63-A62)+Y62 -> 170 | Z63: =(AA63-Y63)/(AA53-Y53)*(Z53-Y53)+Y63 -> 80 | AA63: =(AA64-AA62)/(A64-A62)*(A63-A62)+AA62 -> 200 | AB63: =(AC63-AA63)/(AC53-AA53)*(AB53-AA53)+AA63 -> 100 | AC63: =(AC64-AC62)/(A64-A62)*(A63-A62)+AC62 -> 250 | AD63: =(AE63-AC63)/(AE53-AC53)*(AD53-AC53)+AC63 -> 250 | AE63: =(AE64-AE62)/(A64-A62)*(A63-A62)+AE62 -> 250 | AF63: =(AG63-AE63)/(AG53-AE53)*(AF53-AE53)+AE63 -> 250 | AG63: =(AG64-AG62)/(A64-A62)*(A63-A62)+AG62 -> 250 | AH63: =(AI63-AG63)/(AI53-AG53)*(AH53-AG53)+AG63 -> 250 | AI63: =(AI64-AI62)/(A64-A62)*(A63-A62)+AI62 -> 250 | AJ63: 11
A64: 5 | B64: =B62+1 -> 5 | C64: - | D64: =(E64-C64)/(E53-C53)*(D53-C53)+C64 ->  | E64: - | F64: =(G64-E64)/(G53-E53)*(F53-E53)+E64 ->  | G64: 15 | H64: =(I64-G64)/(I53-G53)*(H53-G53)+G64 -> 0 | I64: 20 | J64: =(K64-I64)/(K53-I53)*(J53-I53)+I64 -> -20 | K64: 40 | L64: =(M64-K64)/(M53-K53)*(L53-K53)+K64 -> 10 | M64: 50 | N64: =(O64-M64)/(O53-M53)*(N53-M53)+M64 -> 20 | O64: 65 | P64: =(Q64-O64)/(Q53-O53)*(P53-O53)+O64 -> 20 | Q64: 80 | R64: =(S64-Q64)/(S53-Q53)*(R53-Q53)+Q64 -> 0 | S64: 100 | T64: =(U64-S64)/(U53-S53)*(T53-S53)+S64 -> 60 | U64: 120 | V64: =(W64-U64)/(W53-U53)*(V53-U53)+U64 -> 120 | W64: 120 | X64: =(Y64-W64)/(Y53-W53)*(X53-W53)+W64 -> 20 | Y64: 170 | Z64: =(AA64-Y64)/(AA53-Y53)*(Z53-Y53)+Y64 -> 80 | AA64: 200 | AB64: =(AC64-AA64)/(AC53-AA53)*(AB53-AA53)+AA64 -> 100 | AC64: 250 | AD64: =(AE64-AC64)/(AE53-AC53)*(AD53-AC53)+AC64 -> 250 | AE64: 250 | AF64: =(AG64-AE64)/(AG53-AE53)*(AF53-AE53)+AE64 -> 250 | AG64: 250 | AH64: =(AI64-AG64)/(AI53-AG53)*(AH53-AG53)+AG64 -> 250 | AI64: 250 | AJ64: 12 | AK64: Регулятор давления | AN64: =Лист1!F63 -> РЕД-3-40-С3 DN40 Qmax=240 нм3/час
A65: =IF(AND(AN60>A64,AN60<A66)=TRUE,AN60,0) -> 0 | C65: =(C66-C64)/(A66-A64)*(A65-A64)+C64 ->  | D65: =(E65-C65)/(E53-C53)*(D53-C53)+C65 ->  | E65: =(E66-E64)/(A66-A64)*(A65-A64)+E64 ->  | F65: =(G65-E65)/(G53-E53)*(F53-E53)+E65 ->  | G65: =(G66-G64)/(A66-A64)*(A65-A64)+G64 ->  | H65: =(I65-G65)/(I53-G53)*(H53-G53)+G65 ->  | I65: =(I66-I64)/(A66-A64)*(A65-A64)+I64 -> 30 | J65: =(K65-I65)/(K53-I53)*(J53-I53)+I65 -> -30 | K65: =(K66-K64)/(A66-A64)*(A65-A64)+K64 -> 60 | L65: =(M65-K65)/(M53-K53)*(L53-K53)+K65 -> 60 | M65: =(M66-M64)/(A66-A64)*(A65-A64)+M64 -> 60 | N65: =(O65-M65)/(O53-M53)*(N53-M53)+M65 -> 30 | O65: =(O66-O64)/(A66-A64)*(A65-A64)+O64 -> 75 | P65: =(Q65-O65)/(Q53-O53)*(P53-O53)+O65 -> 60 | Q65: =(Q66-Q64)/(A66-A64)*(A65-A64)+Q64 -> 80 | R65: =(S65-Q65)/(S53-Q53)*(R53-Q53)+Q65 -> 0 | S65: =(S66-S64)/(A66-A64)*(A65-A64)+S64 -> 100 | T65: =(U65-S65)/(U53-S53)*(T53-S53)+S65 -> 60 | U65: =(U66-U64)/(A66-A64)*(A65-A64)+U64 -> 120 | V65: =(W65-U65)/(W53-U53)*(V53-U53)+U65 -> 120 | W65: =(W66-W64)/(A66-A64)*(A65-A64)+W64 -> 120 | X65: =(Y65-W65)/(Y53-W53)*(X53-W53)+W65 -> 20 | Y65: =(Y66-Y64)/(A66-A64)*(A65-A64)+Y64 -> 170 | Z65: =(AA65-Y65)/(AA53-Y53)*(Z53-Y53)+Y65 -> 80 | AA65: =(AA66-AA64)/(A66-A64)*(A65-A64)+AA64 -> 200 | AB65: =(AC65-AA65)/(AC53-AA53)*(AB53-AA53)+AA65 -> 100 | AC65: =(AC66-AC64)/(A66-A64)*(A65-A64)+AC64 -> 250 | AD65: =(AE65-AC65)/(AE53-AC53)*(AD53-AC53)+AC65 -> 250 | AE65: =(AE66-AE64)/(A66-A64)*(A65-A64)+AE64 -> 250 | AF65: =(AG65-AE65)/(AG53-AE53)*(AF53-AE53)+AE65 -> 250 | AG65: =(AG66-AG64)/(A66-A64)*(A65-A64)+AG64 -> 250 | AH65: =(AI65-AG65)/(AI53-AG53)*(AH53-AG53)+AG65 -> 250 | AI65: =(AI66-AI64)/(A66-A64)*(A65-A64)+AI64 -> 250 | AJ65: 13
A66: 7.5 | B66: =B64+1 -> 6 | C66: - | D66: =(E66-C66)/(E53-C53)*(D53-C53)+C66 ->  | E66: - | F66: =(G66-E66)/(G53-E53)*(F53-E53)+E66 ->  | G66: - | H66: =(I66-G66)/(I53-G53)*(H53-G53)+G66 ->  | I66: 15 | J66: =(K66-I66)/(K53-I53)*(J53-I53)+I66 -> -15 | K66: 30 | L66: =(M66-K66)/(M53-K53)*(L53-K53)+K66 -> -15 | M66: 45 | N66: =(O66-M66)/(O53-M53)*(N53-M53)+M66 -> 15 | O66: 60 | P66: =(Q66-O66)/(Q53-O53)*(P53-O53)+O66 -> 0 | Q66: 80 | R66: =(S66-Q66)/(S53-Q53)*(R53-Q53)+Q66 -> 0 | S66: 100 | T66: =(U66-S66)/(U53-S53)*(T53-S53)+S66 -> 60 | U66: 120 | V66: =(W66-U66)/(W53-U53)*(V53-U53)+U66 -> 120 | W66: 120 | X66: =(Y66-W66)/(Y53-W53)*(X53-W53)+W66 -> 20 | Y66: 170 | Z66: =(AA66-Y66)/(AA53-Y53)*(Z53-Y53)+Y66 -> 80 | AA66: 200 | AB66: =(AC66-AA66)/(AC53-AA53)*(AB53-AA53)+AA66 -> 100 | AC66: 250 | AD66: =(AE66-AC66)/(AE53-AC53)*(AD53-AC53)+AC66 -> 250 | AE66: 250 | AF66: =(AG66-AE66)/(AG53-AE53)*(AF53-AE53)+AE66 -> 250 | AG66: 250 | AH66: =(AI66-AG66)/(AI53-AG53)*(AH53-AG53)+AG66 -> 250 | AI66: 250 | AJ66: 14
A67: =IF(AND(AN60>A66,AN60<A68)=TRUE,AN60,0) -> 0 | C67: =(C68-C66)/(A68-A66)*(A67-A66)+C66 ->  | D67: =(E67-C67)/(E53-C53)*(D53-C53)+C67 ->  | E67: =(E68-E66)/(A68-A66)*(A67-A66)+E66 ->  | F67: =(G67-E67)/(G53-E53)*(F53-E53)+E67 ->  | G67: =(G68-G66)/(A68-A66)*(A67-A66)+G66 ->  | H67: =(I67-G67)/(I53-G53)*(H53-G53)+G67 ->  | I67: =(I68-I66)/(A68-A66)*(A67-A66)+I66 ->  | J67: =(K67-I67)/(K53-I53)*(J53-I53)+I67 ->  | K67: =(K68-K66)/(A68-A66)*(A67-A66)+K66 -> 60 | L67: =(M67-K67)/(M53-K53)*(L53-K53)+K67 -> -30 | M67: =(M68-M66)/(A68-A66)*(A67-A66)+M66 -> 90 | N67: =(O67-M67)/(O53-M53)*(N53-M53)+M67 -> 90 | O67: =(O68-O66)/(A68-A66)*(A67-A66)+O66 -> 90 | P67: =(Q67-O67)/(Q53-O53)*(P53-O53)+O67 -> 120 | Q67: =(Q68-Q66)/(A68-A66)*(A67-A66)+Q66 -> 80 | R67: =(S67-Q67)/(S53-Q53)*(R53-Q53)+Q67 -> 0 | S67: =(S68-S66)/(A68-A66)*(A67-A66)+S66 -> 100 | T67: =(U67-S67)/(U53-S53)*(T53-S53)+S67 -> 60 | U67: =(U68-U66)/(A68-A66)*(A67-A66)+U66 -> 120 | V67: =(W67-U67)/(W53-U53)*(V53-U53)+U67 -> 120 | W67: =(W68-W66)/(A68-A66)*(A67-A66)+W66 -> 120 | X67: =(Y67-W67)/(Y53-W53)*(X53-W53)+W67 -> 20 | Y67: =(Y68-Y66)/(A68-A66)*(A67-A66)+Y66 -> 170 | Z67: =(AA67-Y67)/(AA53-Y53)*(Z53-Y53)+Y67 -> 80 | AA67: =(AA68-AA66)/(A68-A66)*(A67-A66)+AA66 -> 200 | AB67: =(AC67-AA67)/(AC53-AA53)*(AB53-AA53)+AA67 -> 100 | AC67: =(AC68-AC66)/(A68-A66)*(A67-A66)+AC66 -> 250 | AD67: =(AE67-AC67)/(AE53-AC53)*(AD53-AC53)+AC67 -> 184.3 | AE67: =(AE68-AE66)/(A68-A66)*(A67-A66)+AE66 -> 160 | AF67: =(AG67-AE67)/(AG53-AE53)*(AF53-AE53)+AE67 -> 400 | AG67: =(AG68-AG66)/(A68-A66)*(A67-A66)+AG66 -> 100 | AH67: =(AI67-AG67)/(AI53-AG53)*(AH53-AG53)+AG67 -> 100 | AI67: =(AI68-AI66)/(A68-A66)*(A67-A66)+AI66 -> 100 | AJ67: 15
A68: 10 | B68: =B66+1 -> 7 | C68: - | D68: =(E68-C68)/(E53-C53)*(D53-C53)+C68 ->  | E68: - | F68: =(G68-E68)/(G53-E53)*(F53-E53)+E68 ->  | G68: - | H68: =(I68-G68)/(I53-G53)*(H53-G53)+G68 ->  | I68: - | J68: =(K68-I68)/(K53-I53)*(J53-I53)+I68 ->  | K68: 20 | L68: =(M68-K68)/(M53-K53)*(L53-K53)+K68 -> -10 | M68: 30 | N68: =(O68-M68)/(O53-M53)*(N53-M53)+M68 -> -10 | O68: 50 | P68: =(Q68-O68)/(Q53-O53)*(P53-O53)+O68 -> -40 | Q68: 80 | R68: =(S68-Q68)/(S53-Q53)*(R53-Q53)+Q68 -> 0 | S68: 100 | T68: =(U68-S68)/(U53-S53)*(T53-S53)+S68 -> 60 | U68: 120 | V68: =(W68-U68)/(W53-U53)*(V53-U53)+U68 -> 120 | W68: 120 | X68: =(Y68-W68)/(Y53-W53)*(X53-W53)+W68 -> 20 | Y68: 170 | Z68: =(AA68-Y68)/(AA53-Y53)*(Z53-Y53)+Y68 -> 80 | AA68: 200 | AB68: =(AC68-AA68)/(AC53-AA53)*(AB53-AA53)+AA68 -> 100 | AC68: 250 | AD68: =(AE68-AC68)/(AE53-AC53)*(AD53-AC53)+AC68 -> 271.9 | AE68: 280 | AF68: =(AG68-AE68)/(AG53-AE53)*(AF53-AE53)+AE68 -> 200 | AG68: 300 | AH68: =(AI68-AG68)/(AI53-AG53)*(AH53-AG53)+AG68 -> 300 | AI68: 300 | AJ68: 16
A69: =IF(AND(AN60>A68,AN60<A70)=TRUE,AN60,0) -> 0 | C69: =(C70-C68)/(A70-A68)*(A69-A68)+C68 ->  | D69: =(E69-C69)/(E53-C53)*(D53-C53)+C69 ->  | E69: =(E70-E68)/(A70-A68)*(A69-A68)+E68 ->  | F69: =(G69-E69)/(G53-E53)*(F53-E53)+E69 ->  | G69: =(G70-G68)/(A70-A68)*(A69-A68)+G68 ->  | H69: =(I69-G69)/(I53-G53)*(H53-G53)+G69 ->  | I69: =(I70-I68)/(A70-A68)*(A69-A68)+I68 ->  | J69: =(K69-I69)/(K53-I53)*(J53-I53)+I69 ->  | K69: =(K70-K68)/(A70-A68)*(A69-A68)+K68 ->  | L69: =(M69-K69)/(M53-K53)*(L53-K53)+K69 ->  | M69: =(M70-M68)/(A70-A68)*(A69-A68)+M68 -> 50 | N69: =(O69-M69)/(O53-M53)*(N53-M53)+M69 -> 10 | O69: =(O70-O68)/(A70-A68)*(A69-A68)+O68 -> 70 | P69: =(Q69-O69)/(Q53-O53)*(P53-O53)+O69 -> -20 | Q69: =(Q70-Q68)/(A70-A68)*(A69-A68)+Q68 -> 100 | R69: =(S69-Q69)/(S53-Q53)*(R53-Q53)+Q69 -> 100 | S69: =(S70-S68)/(A70-A68)*(A69-A68)+S68 -> 100 | T69: =(U69-S69)/(U53-S53)*(T53-S53)+S69 -> 60 | U69: =(U70-U68)/(A70-A68)*(A69-A68)+U68 -> 120 | V69: =(W69-U69)/(W53-U53)*(V53-U53)+U69 -> 120 | W69: =(W70-W68)/(A70-A68)*(A69-A68)+W68 -> 120 | X69: =(Y69-W69)/(Y53-W53)*(X53-W53)+W69 -> 20 | Y69: =(Y70-Y68)/(A70-A68)*(A69-A68)+Y68 -> 170 | Z69: =(AA69-Y69)/(AA53-Y53)*(Z53-Y53)+Y69 -> 80 | AA69: =(AA70-AA68)/(A70-A68)*(A69-A68)+AA68 -> 200 | AB69: =(AC69-AA69)/(AC53-AA53)*(AB53-AA53)+AA69 -> 100 | AC69: =(AC70-AC68)/(A70-A68)*(A69-A68)+AC68 -> 250 | AD69: =(AE69-AC69)/(AE53-AC53)*(AD53-AC53)+AC69 -> 271.9 | AE69: =(AE70-AE68)/(A70-A68)*(A69-A68)+AE68 -> 280 | AF69: =(AG69-AE69)/(AG53-AE53)*(AF53-AE53)+AE69 -> 200 | AG69: =(AG70-AG68)/(A70-A68)*(A69-A68)+AG68 -> 300 | AH69: =(AI69-AG69)/(AI53-AG53)*(AH53-AG53)+AG69 -> 300 | AI69: =(AI70-AI68)/(A70-A68)*(A69-A68)+AI68 -> 300 | AJ69: =AJ68+1 -> 17
A70: 15 | B70: =B68+1 -> 8 | C70: - | D70: =(E70-C70)/(E53-C53)*(D53-C53)+C70 ->  | E70: - | F70: =(G70-E70)/(G53-E53)*(F53-E53)+E70 ->  | G70: - | H70: =(I70-G70)/(I53-G53)*(H53-G53)+G70 ->  | I70: - | J70: =(K70-I70)/(K53-I53)*(J53-I53)+I70 ->  | K70: - | L70: =(M70-K70)/(M53-K53)*(L53-K53)+K70 ->  | M70: 20 | N70: =(O70-M70)/(O53-M53)*(N53-M53)+M70 -> -20 | O70: 40 | P70: =(Q70-O70)/(Q53-O53)*(P53-O53)+O70 -> -50 | Q70: 70 | R70: =(S70-Q70)/(S53-Q53)*(R53-Q53)+Q70 -> -50 | S70: 100 | T70: =(U70-S70)/(U53-S53)*(T53-S53)+S70 -> 60 | U70: 120 | V70: =(W70-U70)/(W53-U53)*(V53-U53)+U70 -> 120 | W70: 120 | X70: =(Y70-W70)/(Y53-W53)*(X53-W53)+W70 -> 20 | Y70: 170 | Z70: =(AA70-Y70)/(AA53-Y53)*(Z53-Y53)+Y70 -> 80 | AA70: 200 | AB70: =(AC70-AA70)/(AC53-AA53)*(AB53-AA53)+AA70 -> 100 | AC70: 250 | AD70: =(AE70-AC70)/(AE53-AC53)*(AD53-AC53)+AC70 -> 271.9 | AE70: 280 | AF70: =(AG70-AE70)/(AG53-AE53)*(AF53-AE53)+AE70 -> 200 | AG70: 300 | AH70: =(AI70-AG70)/(AI53-AG53)*(AH53-AG53)+AG70 -> 300 | AI70: 300 | AJ70: =AJ69+1 -> 18
A71: =IF(AND(AN60>A70,AN60<A72)=TRUE,AN60,0) -> 0 | C71: =(C72-C70)/(A72-A70)*(A71-A70)+C70 ->  | D71: =(E71-C71)/(E53-C53)*(D53-C53)+C71 ->  | E71: =(E72-E70)/(A72-A70)*(A71-A70)+E70 ->  | F71: =(G71-E71)/(G53-E53)*(F53-E53)+E71 ->  | G71: =(G72-G70)/(A72-A70)*(A71-A70)+G70 ->  | H71: =(I71-G71)/(I53-G53)*(H53-G53)+G71 ->  | I71: =(I72-I70)/(A72-A70)*(A71-A70)+I70 ->  | J71: =(K71-I71)/(K53-I53)*(J53-I53)+I71 ->  | K71: =(K72-K70)/(A72-A70)*(A71-A70)+K70 ->  | L71: =(M71-K71)/(M53-K53)*(L53-K53)+K71 ->  | M71: =(M72-M70)/(A72-A70)*(A71-A70)+M70 ->  | N71: =(O71-M71)/(O53-M53)*(N53-M53)+M71 ->  | O71: =(O72-O70)/(A72-A70)*(A71-A70)+O70 -> 70 | P71: =(Q71-O71)/(Q53-O53)*(P53-O53)+O71 -> -20 | Q71: =(Q72-Q70)/(A72-A70)*(A71-A70)+Q70 -> 100 | R71: =(S71-Q71)/(S53-Q53)*(R53-Q53)+Q71 -> 100 | S71: =(S72-S70)/(A72-A70)*(A71-A70)+S70 -> 100 | T71: =(U71-S71)/(U53-S53)*(T53-S53)+S71 -> 60 | U71: =(U72-U70)/(A72-A70)*(A71-A70)+U70 -> 120 | V71: =(W71-U71)/(W53-U53)*(V53-U53)+U71 -> 120 | W71: =(W72-W70)/(A72-A70)*(A71-A70)+W70 -> 120 | X71: =(Y71-W71)/(Y53-W53)*(X53-W53)+W71 -> 20 | Y71: =(Y72-Y70)/(A72-A70)*(A71-A70)+Y70 -> 170 | Z71: =(AA71-Y71)/(AA53-Y53)*(Z53-Y53)+Y71 -> 80 | AA71: =(AA72-AA70)/(A72-A70)*(A71-A70)+AA70 -> 200 | AB71: =(AC71-AA71)/(AC53-AA53)*(AB53-AA53)+AA71 -> 100 | AC71: =(AC72-AC70)/(A72-A70)*(A71-A70)+AC70 -> 250 | AD71: =(AE71-AC71)/(AE53-AC53)*(AD53-AC53)+AC71 -> 271.9 | AE71: =(AE72-AE70)/(A72-A70)*(A71-A70)+AE70 -> 280 | AF71: =(AG71-AE71)/(AG53-AE53)*(AF53-AE53)+AE71 -> 200 | AG71: =(AG72-AG70)/(A72-A70)*(A71-A70)+AG70 -> 300 | AH71: =(AI71-AG71)/(AI53-AG53)*(AH53-AG53)+AG71 -> 300 | AI71: =(AI72-AI70)/(A72-A70)*(A71-A70)+AI70 -> 300 | AJ71: 19
A72: 20 | B72: =B70+1 -> 9 | C72: - | D72: =(E72-C72)/(E53-C53)*(D53-C53)+C72 ->  | E72: - | F72: =(G72-E72)/(G53-E53)*(F53-E53)+E72 ->  | G72: - | H72: =(I72-G72)/(I53-G53)*(H53-G53)+G72 ->  | I72: - | J72: =(K72-I72)/(K53-I53)*(J53-I53)+I72 ->  | K72: - | L72: =(M72-K72)/(M53-K53)*(L53-K53)+K72 ->  | M72: - | N72: =(O72-M72)/(O53-M53)*(N53-M53)+M72 ->  | O72: 30 | P72: =(Q72-O72)/(Q53-O53)*(P53-O53)+O72 -> -60 | Q72: 60 | R72: =(S72-Q72)/(S53-Q53)*(R53-Q53)+Q72 -> -100 | S72: 100 | T72: =(U72-S72)/(U53-S53)*(T53-S53)+S72 -> 60 | U72: 120 | V72: =(W72-U72)/(W53-U53)*(V53-U53)+U72 -> 120 | W72: 120 | X72: =(Y72-W72)/(Y53-W53)*(X53-W53)+W72 -> 20 | Y72: 170 | Z72: =(AA72-Y72)/(AA53-Y53)*(Z53-Y53)+Y72 -> 80 | AA72: 200 | AB72: =(AC72-AA72)/(AC53-AA53)*(AB53-AA53)+AA72 -> 100 | AC72: 250 | AD72: =(AE72-AC72)/(AE53-AC53)*(AD53-AC53)+AC72 -> 271.9 | AE72: 280 | AF72: =(AG72-AE72)/(AG53-AE53)*(AF53-AE53)+AE72 -> 200 | AG72: 300 | AH72: =(AI72-AG72)/(AI53-AG53)*(AH53-AG53)+AG72 -> 300 | AI72: 300 | AJ72: 20
A73: =IF(AND(AN60>A72,AN60<A74)=TRUE,AN60,0) -> 0 | C73: =(C74-C72)/(A74-A72)*(A73-A72)+C72 ->  | D73: =(E73-C73)/(E53-C53)*(D53-C53)+C73 ->  | E73: =(E74-E72)/(A74-A72)*(A73-A72)+E72 ->  | F73: =(G73-E73)/(G53-E53)*(F53-E53)+E73 ->  | G73: =(G74-G72)/(A74-A72)*(A73-A72)+G72 ->  | H73: =(I73-G73)/(I53-G53)*(H53-G53)+G73 ->  | I73: =(I74-I72)/(A74-A72)*(A73-A72)+I72 ->  | J73: =(K73-I73)/(K53-I53)*(J53-I53)+I73 ->  | K73: =(K74-K72)/(A74-A72)*(A73-A72)+K72 ->  | L73: =(M73-K73)/(M53-K53)*(L53-K53)+K73 ->  | M73: =(M74-M72)/(A74-A72)*(A73-A72)+M72 ->  | N73: =(O73-M73)/(O53-M53)*(N53-M53)+M73 ->  | O73: =(O74-O72)/(A74-A72)*(A73-A72)+O72 ->  | P73: =(Q73-O73)/(Q53-O53)*(P53-O53)+O73 ->  | Q73: =(Q74-Q72)/(A74-A72)*(A73-A72)+Q72 -> 80 | R73: =(S73-Q73)/(S53-Q53)*(R53-Q53)+Q73 -> -160 | S73: =(S74-S72)/(A74-A72)*(A73-A72)+S72 -> 140 | T73: =(U73-S73)/(U53-S53)*(T53-S53)+S73 -> 140 | U73: =(U74-U72)/(A74-A72)*(A73-A72)+U72 -> 140 | V73: =(W73-U73)/(W53-U53)*(V53-U53)+U73 -> 140 | W73: =(W74-W72)/(A74-A72)*(A73-A72)+W72 -> 140 | X73: =(Y73-W73)/(Y53-W53)*(X53-W53)+W73 -> 80 | Y73: =(Y74-Y72)/(A74-A72)*(A73-A72)+Y72 -> 170 | Z73: =(AA73-Y73)/(AA53-Y53)*(Z53-Y53)+Y73 -> 80 | AA73: =(AA74-AA72)/(A74-A72)*(A73-A72)+AA72 -> 200 | AB73: =(AC73-AA73)/(AC53-AA53)*(AB53-AA53)+AA73 -> 100 | AC73: =(AC74-AC72)/(A74-A72)*(A73-A72)+AC72 -> 250 | AD73: =(AE73-AC73)/(AE53-AC53)*(AD53-AC53)+AC73 -> 271.9 | AE73: =(AE74-AE72)/(A74-A72)*(A73-A72)+AE72 -> 280 | AF73: =(AG73-AE73)/(AG53-AE53)*(AF53-AE53)+AE73 -> 200 | AG73: =(AG74-AG72)/(A74-A72)*(A73-A72)+AG72 -> 300 | AH73: =(AI73-AG73)/(AI53-AG53)*(AH53-AG53)+AG73 -> 300 | AI73: =(AI74-AI72)/(A74-A72)*(A73-A72)+AI72 -> 300 | AJ73: 21
A74: 30 | B74: =B72+1 -> 10 | C74: - | D74: =(E74-C74)/(E53-C53)*(D53-C53)+C74 ->  | E74: - | F74: =(G74-E74)/(G53-E53)*(F53-E53)+E74 ->  | G74: - | H74: =(I74-G74)/(I53-G53)*(H53-G53)+G74 ->  | I74: - | J74: =(K74-I74)/(K53-I53)*(J53-I53)+I74 ->  | K74: - | L74: =(M74-K74)/(M53-K53)*(L53-K53)+K74 ->  | M74: - | N74: =(O74-M74)/(O53-M53)*(N53-M53)+M74 ->  | O74: - | P74: =(Q74-O74)/(Q53-O53)*(P53-O53)+O74 ->  | Q74: 50 | R74: =(S74-Q74)/(S53-Q53)*(R53-Q53)+Q74 -> -70 | S74: 80 | T74: =(U74-S74)/(U53-S53)*(T53-S53)+S74 -> 20 | U74: 110 | V74: =(W74-U74)/(W53-U53)*(V53-U53)+U74 -> 110 | W74: 110 | X74: =(Y74-W74)/(Y53-W53)*(X53-W53)+W74 -> -10 | Y74: 170 | Z74: =(AA74-Y74)/(AA53-Y53)*(Z53-Y53)+Y74 -> 80 | AA74: 200 | AB74: =(AC74-AA74)/(AC53-AA53)*(AB53-AA53)+AA74 -> 100 | AC74: 250 | AD74: =(AE74-AC74)/(AE53-AC53)*(AD53-AC53)+AC74 -> 271.9 | AE74: 280 | AF74: =(AG74-AE74)/(AG53-AE53)*(AF53-AE53)+AE74 -> 200 | AG74: 300 | AH74: =(AI74-AG74)/(AI53-AG53)*(AH53-AG53)+AG74 -> 300 | AI74: 300 | AJ74: 22
A75: =IF(AND(AN60>A74,AN60<A76)=TRUE,AN60,0) -> 0 | C75: =(C76-C74)/(A76-A74)*(A75-A74)+C74 ->  | D75: =(E75-C75)/(E53-C53)*(D53-C53)+C75 ->  | E75: =(E76-E74)/(A76-A74)*(A75-A74)+E74 ->  | F75: =(G75-E75)/(G53-E53)*(F53-E53)+E75 ->  | G75: =(G76-G74)/(A76-A74)*(A75-A74)+G74 ->  | H75: =(I75-G75)/(I53-G53)*(H53-G53)+G75 ->  | I75: =(I76-I74)/(A76-A74)*(A75-A74)+I74 ->  | J75: =(K75-I75)/(K53-I53)*(J53-I53)+I75 ->  | K75: =(K76-K74)/(A76-A74)*(A75-A74)+K74 ->  | L75: =(M75-K75)/(M53-K53)*(L53-K53)+K75 ->  | M75: =(M76-M74)/(A76-A74)*(A75-A74)+M74 ->  | N75: =(O75-M75)/(O53-M53)*(N53-M53)+M75 ->  | O75: =(O76-O74)/(A76-A74)*(A75-A74)+O74 ->  | P75: =(Q75-O75)/(Q53-O53)*(P53-O53)+O75 ->  | Q75: =(Q76-Q74)/(A76-A74)*(A75-A74)+Q74 ->  | R75: =(S75-Q75)/(S53-Q53)*(R53-Q53)+Q75 ->  | S75: =(S76-S74)/(A76-A74)*(A75-A74)+S74 -> 320 | T75: =(U75-S75)/(U53-S53)*(T53-S53)+S75 -> 140 | U75: =(U76-U74)/(A76-A74)*(A75-A74)+U74 -> 410 | V75: =(W75-U75)/(W53-U53)*(V53-U53)+U75 -> 770 | W75: =(W76-W74)/(A76-A74)*(A75-A74)+W74 -> 290 | X75: =(Y75-W75)/(Y53-W53)*(X53-W53)+W75 -> 50 | Y75: =(Y76-Y74)/(A76-A74)*(A75-A74)+Y74 -> 410 | Z75: =(AA75-Y75)/(AA53-Y53)*(Z53-Y53)+Y75 -> 500 | AA75: =(AA76-AA74)/(A76-A74)*(A75-A74)+AA74 -> 380 | AB75: =(AC75-AA75)/(AC53-AA53)*(AB53-AA53)+AA75 -> 40 | AC75: =(AC76-AC74)/(A76-A74)*(A75-A74)+AC74 -> 550 | AD75: =(AE75-AC75)/(AE53-AC53)*(AD53-AC53)+AC75 -> 571.9 | AE75: =(AE76-AE74)/(A76-A74)*(A75-A74)+AE74 -> 580 | AF75: =(AG75-AE75)/(AG53-AE53)*(AF53-AE53)+AE75 -> 500 | AG75: =(AG76-AG74)/(A76-A74)*(A75-A74)+AG74 -> 600 | AH75: =(AI75-AG75)/(AI53-AG53)*(AH53-AG53)+AG75 -> 600 | AI75: =(AI76-AI74)/(A76-A74)*(A75-A74)+AI74 -> 600 | AJ75: 23
A76: 35 | B76: =B74+1 -> 11 | C76: - | D76: =(E76-C76)/(E53-C53)*(D53-C53)+C76 ->  | E76: - | F76: =(G76-E76)/(G53-E53)*(F53-E53)+E76 ->  | G76: - | H76: =(I76-G76)/(I53-G53)*(H53-G53)+G76 ->  | I76: - | J76: =(K76-I76)/(K53-I53)*(J53-I53)+I76 ->  | K76: - | L76: =(M76-K76)/(M53-K53)*(L53-K53)+K76 ->  | M76: - | N76: =(O76-M76)/(O53-M53)*(N53-M53)+M76 ->  | O76: - | P76: =(Q76-O76)/(Q53-O53)*(P53-O53)+O76 ->  | Q76: - | R76: =(S76-Q76)/(S53-Q53)*(R53-Q53)+Q76 ->  | S76: 40 | T76: =(U76-S76)/(U53-S53)*(T53-S53)+S76 -> 0 | U76: 60 | V76: =(W76-U76)/(W53-U53)*(V53-U53)+U76 -> 0 | W76: 80 | X76: =(Y76-W76)/(Y53-W53)*(X53-W53)+W76 -> -20 | Y76: 130 | Z76: =(AA76-Y76)/(AA53-Y53)*(Z53-Y53)+Y76 -> 10 | AA76: 170 | AB76: =(AC76-AA76)/(AC53-AA53)*(AB53-AA53)+AA76 -> 110 | AC76: 200 | AD76: =(AE76-AC76)/(AE53-AC53)*(AD53-AC53)+AC76 -> 221.9 | AE76: 230 | AF76: =(AG76-AE76)/(AG53-AE53)*(AF53-AE53)+AE76 -> 150 | AG76: 250 | AH76: =(AI76-AG76)/(AI53-AG53)*(AH53-AG53)+AG76 -> 250 | AI76: 250 | AJ76: 24
A77: =IF(AND(AN60>A76,AN60<A78)=TRUE,AN60,0) -> 0 | C77: =(C78-C76)/(A78-A76)*(A77-A76)+C76 ->  | D77: =(E77-C77)/(E53-C53)*(D53-C53)+C77 ->  | E77: =(E78-E76)/(A78-A76)*(A77-A76)+E76 ->  | F77: =(G77-E77)/(G53-E53)*(F53-E53)+E77 ->  | G77: =(G78-G76)/(A78-A76)*(A77-A76)+G76 ->  | H77: =(I77-G77)/(I53-G53)*(H53-G53)+G77 ->  | I77: =(I78-I76)/(A78-A76)*(A77-A76)+I76 ->  | J77: =(K77-I77)/(K53-I53)*(J53-I53)+I77 ->  | K77: =(K78-K76)/(A78-A76)*(A77-A76)+K76 ->  | L77: =(M77-K77)/(M53-K53)*(L53-K53)+K77 ->  | M77: =(M78-M76)/(A78-A76)*(A77-A76)+M76 ->  | N77: =(O77-M77)/(O53-M53)*(N53-M53)+M77 ->  | O77: =(O78-O76)/(A78-A76)*(A77-A76)+O76 ->  | P77: =(Q77-O77)/(Q53-O53)*(P53-O53)+O77 ->  | Q77: =(Q78-Q76)/(A78-A76)*(A77-A76)+Q76 ->  | R77: =(S77-Q77)/(S53-Q53)*(R53-Q53)+Q77 ->  | S77: =(S78-S76)/(A78-A76)*(A77-A76)+S76 -> 75 | T77: =(U77-S77)/(U53-S53)*(T53-S53)+S77 -> 105 | U77: =(U78-U76)/(A78-A76)*(A77-A76)+U76 -> 60 | V77: =(W77-U77)/(W53-U53)*(V53-U53)+U77 -> 0 | W77: =(W78-W76)/(A78-A76)*(A77-A76)+W76 -> 80 | X77: =(Y77-W77)/(Y53-W53)*(X53-W53)+W77 -> -20 | Y77: =(Y78-Y76)/(A78-A76)*(A77-A76)+Y76 -> 130 | Z77: =(AA77-Y77)/(AA53-Y53)*(Z53-Y53)+Y77 -> 10 | AA77: =(AA78-AA76)/(A78-A76)*(A77-A76)+AA76 -> 170 | AB77: =(AC77-AA77)/(AC53-AA53)*(AB53-AA53)+AA77 -> 110 | AC77: =(AC78-AC76)/(A78-A76)*(A77-A76)+AC76 -> 200 | AD77: =(AE77-AC77)/(AE53-AC53)*(AD53-AC53)+AC77 -> 221.9 | AE77: =(AE78-AE76)/(A78-A76)*(A77-A76)+AE76 -> 230 | AF77: =(AG77-AE77)/(AG53-AE53)*(AF53-AE53)+AE77 -> 150 | AG77: =(AG78-AG76)/(A78-A76)*(A77-A76)+AG76 -> 250 | AH77: =(AI77-AG77)/(AI53-AG53)*(AH53-AG53)+AG77 -> 250 | AI77: =(AI78-AI76)/(A78-A76)*(A77-A76)+AI76 -> 250 | AJ77: 25
A78: 40 | B78: =B76+1 -> 12 | C78: - | D78: =(E78-C78)/(E53-C53)*(D53-C53)+C78 ->  | E78: - | F78: =(G78-E78)/(G53-E53)*(F53-E53)+E78 ->  | G78: - | H78: =(I78-G78)/(I53-G53)*(H53-G53)+G78 ->  | I78: - | J78: =(K78-I78)/(K53-I53)*(J53-I53)+I78 ->  | K78: - | L78: =(M78-K78)/(M53-K53)*(L53-K53)+K78 ->  | M78: - | N78: =(O78-M78)/(O53-M53)*(N53-M53)+M78 ->  | O78: - | P78: =(Q78-O78)/(Q53-O53)*(P53-O53)+O78 ->  | Q78: - | R78: =(S78-Q78)/(S53-Q53)*(R53-Q53)+Q78 ->  | S78: 35 | T78: =(U78-S78)/(U53-S53)*(T53-S53)+S78 -> -15 | U78: 60 | V78: =(W78-U78)/(W53-U53)*(V53-U53)+U78 -> 0 | W78: 80 | X78: =(Y78-W78)/(Y53-W53)*(X53-W53)+W78 -> -20 | Y78: 130 | Z78: =(AA78-Y78)/(AA53-Y53)*(Z53-Y53)+Y78 -> 10 | AA78: 170 | AB78: =(AC78-AA78)/(AC53-AA53)*(AB53-AA53)+AA78 -> 110 | AC78: 200 | AD78: =(AE78-AC78)/(AE53-AC53)*(AD53-AC53)+AC78 -> 221.9 | AE78: 230 | AF78: =(AG78-AE78)/(AG53-AE53)*(AF53-AE53)+AE78 -> 150 | AG78: 250 | AH78: =(AI78-AG78)/(AI53-AG53)*(AH53-AG53)+AG78 -> 250 | AI78: 250 | AJ78: 26
A79: =IF(AND(AN60>A78,AN60<A80)=TRUE,AN60,0) -> 0 | C79: =(C80-C78)/(A80-A78)*(A79-A78)+C78 ->  | D79: =(E79-C79)/(E53-C53)*(D53-C53)+C79 ->  | E79: =(E80-E78)/(A80-A78)*(A79-A78)+E78 ->  | F79: =(G79-E79)/(G53-E53)*(F53-E53)+E79 ->  | G79: =(G80-G78)/(A80-A78)*(A79-A78)+G78 ->  | H79: =(I79-G79)/(I53-G53)*(H53-G53)+G79 ->  | I79: =(I80-I78)/(A80-A78)*(A79-A78)+I78 ->  | J79: =(K79-I79)/(K53-I53)*(J53-I53)+I79 ->  | K79: =(K80-K78)/(A80-A78)*(A79-A78)+K78 ->  | L79: =(M79-K79)/(M53-K53)*(L53-K53)+K79 ->  | M79: =(M80-M78)/(A80-A78)*(A79-A78)+M78 ->  | N79: =(O79-M79)/(O53-M53)*(N53-M53)+M79 ->  | O79: =(O80-O78)/(A80-A78)*(A79-A78)+O78 ->  | P79: =(Q79-O79)/(Q53-O53)*(P53-O53)+O79 ->  | Q79: =(Q80-Q78)/(A80-A78)*(A79-A78)+Q78 ->  | R79: =(S79-Q79)/(S53-Q53)*(R53-Q53)+Q79 ->  | S79: =(S80-S78)/(A80-A78)*(A79-A78)+S78 ->  | T79: =(U79-S79)/(U53-S53)*(T53-S53)+S79 ->  | U79: =(U80-U78)/(A80-A78)*(A79-A78)+U78 -> 60 | V79: =(W79-U79)/(W53-U53)*(V53-U53)+U79 -> 0 | W79: =(W80-W78)/(A80-A78)*(A79-A78)+W78 -> 80 | X79: =(Y79-W79)/(Y53-W53)*(X53-W53)+W79 -> -20 | Y79: =(Y80-Y78)/(A80-A78)*(A79-A78)+Y78 -> 130 | Z79: =(AA79-Y79)/(AA53-Y53)*(Z53-Y53)+Y79 -> 10 | AA79: =(AA80-AA78)/(A80-A78)*(A79-A78)+AA78 -> 170 | AB79: =(AC79-AA79)/(AC53-AA53)*(AB53-AA53)+AA79 -> 110 | AC79: =(AC80-AC78)/(A80-A78)*(A79-A78)+AC78 -> 200 | AD79: =(AE79-AC79)/(AE53-AC53)*(AD53-AC53)+AC79 -> 221.9 | AE79: =(AE80-AE78)/(A80-A78)*(A79-A78)+AE78 -> 230 | AF79: =(AG79-AE79)/(AG53-AE53)*(AF53-AE53)+AE79 -> 150 | AG79: =(AG80-AG78)/(A80-A78)*(A79-A78)+AG78 -> 250 | AH79: =(AI79-AG79)/(AI53-AG53)*(AH53-AG53)+AG79 -> 250 | AI79: =(AI80-AI78)/(A80-A78)*(A79-A78)+AI78 -> 250 | AJ79: =AJ78+1 -> 27
A80: 45 | B80: =B78+1 -> 13 | C80: - | D80: =(E80-C80)/(E53-C53)*(D53-C53)+C80 ->  | E80: - | F80: =(G80-E80)/(G53-E53)*(F53-E53)+E80 ->  | G80: - | H80: =(I80-G80)/(I53-G53)*(H53-G53)+G80 ->  | I80: - | J80: =(K80-I80)/(K53-I53)*(J53-I53)+I80 ->  | K80: - | L80: =(M80-K80)/(M53-K53)*(L53-K53)+K80 ->  | M80: - | N80: =(O80-M80)/(O53-M53)*(N53-M53)+M80 ->  | O80: - | P80: =(Q80-O80)/(Q53-O53)*(P53-O53)+O80 ->  | Q80: - | R80: =(S80-Q80)/(S53-Q53)*(R53-Q53)+Q80 ->  | S80: - | T80: =(U80-S80)/(U53-S53)*(T53-S53)+S80 ->  | U80: 60 | V80: =(W80-U80)/(W53-U53)*(V53-U53)+U80 -> 0 | W80: 80 | X80: =(Y80-W80)/(Y53-W53)*(X53-W53)+W80 -> -20 | Y80: 130 | Z80: =(AA80-Y80)/(AA53-Y53)*(Z53-Y53)+Y80 -> 10 | AA80: 170 | AB80: =(AC80-AA80)/(AC53-AA53)*(AB53-AA53)+AA80 -> 110 | AC80: 200 | AD80: =(AE80-AC80)/(AE53-AC53)*(AD53-AC53)+AC80 -> 221.9 | AE80: 230 | AF80: =(AG80-AE80)/(AG53-AE53)*(AF53-AE53)+AE80 -> 150 | AG80: 250 | AH80: =(AI80-AG80)/(AI53-AG53)*(AH53-AG53)+AG80 -> 250 | AI80: 250 | AJ80: 28
A81: =IF(AND(AN60>A80,AN60<A82)=TRUE,AN60,0) -> 0 | C81: =(C82-C80)/(A82-A80)*(A81-A80)+C80 ->  | D81: =(E81-C81)/(E53-C53)*(D53-C53)+C81 ->  | E81: =(E82-E80)/(A82-A80)*(A81-A80)+E80 ->  | F81: =(G81-E81)/(G53-E53)*(F53-E53)+E81 ->  | G81: =(G82-G80)/(A82-A80)*(A81-A80)+G80 ->  | H81: =(I81-G81)/(I53-G53)*(H53-G53)+G81 ->  | I81: =(I82-I80)/(A82-A80)*(A81-A80)+I80 ->  | J81: =(K81-I81)/(K53-I53)*(J53-I53)+I81 ->  | K81: =(K82-K80)/(A82-A80)*(A81-A80)+K80 ->  | L81: =(M81-K81)/(M53-K53)*(L53-K53)+K81 ->  | M81: =(M82-M80)/(A82-A80)*(A81-A80)+M80 ->  | N81: =(O81-M81)/(O53-M53)*(N53-M53)+M81 ->  | O81: =(O82-O80)/(A82-A80)*(A81-A80)+O80 ->  | P81: =(Q81-O81)/(Q53-O53)*(P53-O53)+O81 ->  | Q81: =(Q82-Q80)/(A82-A80)*(A81-A80)+Q80 ->  | R81: =(S81-Q81)/(S53-Q53)*(R53-Q53)+Q81 ->  | S81: =(S82-S80)/(A82-A80)*(A81-A80)+S80 ->  | T81: =(U81-S81)/(U53-S53)*(T53-S53)+S81 ->  | U81: =(U82-U80)/(A82-A80)*(A81-A80)+U80 -> 150 | V81: =(W81-U81)/(W53-U53)*(V53-U53)+U81 -> 225 | W81: =(W82-W80)/(A82-A80)*(A81-A80)+W80 -> 125 | X81: =(Y81-W81)/(Y53-W53)*(X53-W53)+W81 -> -65 | Y81: =(Y82-Y80)/(A82-A80)*(A81-A80)+Y80 -> 220 | Z81: =(AA81-Y81)/(AA53-Y53)*(Z53-Y53)+Y81 -> 100 | AA81: =(AA82-AA80)/(A82-A80)*(A81-A80)+AA80 -> 260 | AB81: =(AC81-AA81)/(AC53-AA53)*(AB53-AA53)+AA81 -> 200 | AC81: =(AC82-AC80)/(A82-A80)*(A81-A80)+AC80 -> 290 | AD81: =(AE81-AC81)/(AE53-AC53)*(AD53-AC53)+AC81 -> 311.9 | AE81: =(AE82-AE80)/(A82-A80)*(A81-A80)+AE80 -> 320 | AF81: =(AG81-AE81)/(AG53-AE53)*(AF53-AE53)+AE81 -> 240 | AG81: =(AG82-AG80)/(A82-A80)*(A81-A80)+AG80 -> 340 | AH81: =(AI81-AG81)/(AI53-AG53)*(AH53-AG53)+AG81 -> 340 | AI81: =(AI82-AI80)/(A82-A80)*(A81-A80)+AI80 -> 340 | AJ81: 29
A82: 50 | B82: =B80+1 -> 14 | C82: - | D82: =(E82-C82)/(E53-C53)*(D53-C53)+C82 ->  | E82: - | F82: =(G82-E82)/(G53-E53)*(F53-E53)+E82 ->  | G82: - | H82: =(I82-G82)/(I53-G53)*(H53-G53)+G82 ->  | I82: - | J82: =(K82-I82)/(K53-I53)*(J53-I53)+I82 ->  | K82: - | L82: =(M82-K82)/(M53-K53)*(L53-K53)+K82 ->  | M82: - | N82: =(O82-M82)/(O53-M53)*(N53-M53)+M82 ->  | O82: - | P82: =(Q82-O82)/(Q53-O53)*(P53-O53)+O82 ->  | Q82: - | R82: =(S82-Q82)/(S53-Q53)*(R53-Q53)+Q82 ->  | S82: - | T82: =(U82-S82)/(U53-S53)*(T53-S53)+S82 ->  | U82: 50 | V82: =(W82-U82)/(W53-U53)*(V53-U53)+U82 -> -25 | W82: 75 | X82: =(Y82-W82)/(Y53-W53)*(X53-W53)+W82 -> -15 | Y82: 120 | Z82: =(AA82-Y82)/(AA53-Y53)*(Z53-Y53)+Y82 -> 0 | AA82: 160 | AB82: =(AC82-AA82)/(AC53-AA53)*(AB53-AA53)+AA82 -> 100 | AC82: 190 | AD82: =(AE82-AC82)/(AE53-AC53)*(AD53-AC53)+AC82 -> 211.9 | AE82: 220 | AF82: =(AG82-AE82)/(AG53-AE53)*(AF53-AE53)+AE82 -> 140 | AG82: 240 | AH82: =(AI82-AG82)/(AI53-AG53)*(AH53-AG53)+AG82 -> 240 | AI82: 240 | AJ82: 30
A83: =IF(AND(AN60>A82,AN60<A84)=TRUE,AN60,0) -> 0 | C83: =(C84-C82)/(A84-A82)*(A83-A82)+C82 ->  | D83: =(E83-C83)/(E53-C53)*(D53-C53)+C83 ->  | E83: =(E84-E82)/(A84-A82)*(A83-A82)+E82 ->  | F83: =(G83-E83)/(G53-E53)*(F53-E53)+E83 ->  | G83: =(G84-G82)/(A84-A82)*(A83-A82)+G82 ->  | H83: =(I83-G83)/(I53-G53)*(H53-G53)+G83 ->  | I83: =(I84-I82)/(A84-A82)*(A83-A82)+I82 ->  | J83: =(K83-I83)/(K53-I53)*(J53-I53)+I83 ->  | K83: =(K84-K82)/(A84-A82)*(A83-A82)+K82 ->  | L83: =(M83-K83)/(M53-K53)*(L53-K53)+K83 ->  | M83: =(M84-M82)/(A84-A82)*(A83-A82)+M82 ->  | N83: =(O83-M83)/(O53-M53)*(N53-M53)+M83 ->  | O83: =(O84-O82)/(A84-A82)*(A83-A82)+O82 ->  | P83: =(Q83-O83)/(Q53-O53)*(P53-O53)+O83 ->  | Q83: =(Q84-Q82)/(A84-A82)*(A83-A82)+Q82 ->  | R83: =(S83-Q83)/(S53-Q53)*(R53-Q53)+Q83 ->  | S83: =(S84-S82)/(A84-A82)*(A83-A82)+S82 ->  | T83: =(U83-S83)/(U53-S53)*(T53-S53)+S83 ->  | U83: =(U84-U82)/(A84-A82)*(A83-A82)+U82 ->  | V83: =(W83-U83)/(W53-U53)*(V53-U53)+U83 ->  | W83: =(W84-W82)/(A84-A82)*(A83-A82)+W82 -> 85 | X83: =(Y83-W83)/(Y53-W53)*(X53-W53)+W83 -> -65 | Y83: =(Y84-Y82)/(A84-A82)*(A83-A82)+Y82 -> 160 | Z83: =(AA83-Y83)/(AA53-Y53)*(Z53-Y53)+Y83 -> 160 | AA83: =(AA84-AA82)/(A84-A82)*(A83-A82)+AA82 -> 160 | AB83: =(AC83-AA83)/(AC53-AA53)*(AB53-AA53)+AA83 -> 100 | AC83: =(AC84-AC82)/(A84-A82)*(A83-A82)+AC82 -> 190 | AD83: =(AE83-AC83)/(AE53-AC53)*(AD53-AC53)+AC83 -> 211.9 | AE83: =(AE84-AE82)/(A84-A82)*(A83-A82)+AE82 -> 220 | AF83: =(AG83-AE83)/(AG53-AE53)*(AF53-AE53)+AE83 -> 140 | AG83: =(AG84-AG82)/(A84-A82)*(A83-A82)+AG82 -> 240 | AH83: =(AI83-AG83)/(AI53-AG53)*(AH53-AG53)+AG83 -> 240 | AI83: =(AI84-AI82)/(A84-A82)*(A83-A82)+AI82 -> 240 | AJ83: 31
A84: 75 | B84: =B82+1 -> 15 | C84: - | D84: =(E84-C84)/(E53-C53)*(D53-C53)+C84 ->  | E84: - | F84: =(G84-E84)/(G53-E53)*(F53-E53)+E84 ->  | G84: - | H84: =(I84-G84)/(I53-G53)*(H53-G53)+G84 ->  | I84: - | J84: =(K84-I84)/(K53-I53)*(J53-I53)+I84 ->  | K84: - | L84: =(M84-K84)/(M53-K53)*(L53-K53)+K84 ->  | M84: - | N84: =(O84-M84)/(O53-M53)*(N53-M53)+M84 ->  | O84: - | P84: =(Q84-O84)/(Q53-O53)*(P53-O53)+O84 ->  | Q84: - | R84: =(S84-Q84)/(S53-Q53)*(R53-Q53)+Q84 ->  | S84: - | T84: =(U84-S84)/(U53-S53)*(T53-S53)+S84 ->  | U84: - | V84: =(W84-U84)/(W53-U53)*(V53-U53)+U84 ->  | W84: 70 | X84: =(Y84-W84)/(Y53-W53)*(X53-W53)+W84 -> 10 | Y84: 100 | Z84: =(AA84-Y84)/(AA53-Y53)*(Z53-Y53)+Y84 -> -80 | AA84: 160 | AB84: =(AC84-AA84)/(AC53-AA53)*(AB53-AA53)+AA84 -> 100 | AC84: 190 | AD84: =(AE84-AC84)/(AE53-AC53)*(AD53-AC53)+AC84 -> 211.9 | AE84: 220 | AF84: =(AG84-AE84)/(AG53-AE53)*(AF53-AE53)+AE84 -> 140 | AG84: 240 | AH84: =(AI84-AG84)/(AI53-AG53)*(AH53-AG53)+AG84 -> 240 | AI84: 240 | AJ84: 32
A85: =IF(AND(AN60>A84,AN60<A86)=TRUE,AN60,0) -> 0 | C85: =(C86-C84)/(A86-A84)*(A85-A84)+C84 ->  | D85: =(E85-C85)/(E53-C53)*(D53-C53)+C85 ->  | E85: =(E86-E84)/(A86-A84)*(A85-A84)+E84 ->  | F85: =(G85-E85)/(G53-E53)*(F53-E53)+E85 ->  | G85: =(G86-G84)/(A86-A84)*(A85-A84)+G84 ->  | H85: =(I85-G85)/(I53-G53)*(H53-G53)+G85 ->  | I85: =(I86-I84)/(A86-A84)*(A85-A84)+I84 ->  | J85: =(K85-I85)/(K53-I53)*(J53-I53)+I85 ->  | K85: =(K86-K84)/(A86-A84)*(A85-A84)+K84 ->  | L85: =(M85-K85)/(M53-K53)*(L53-K53)+K85 ->  | M85: =(M86-M84)/(A86-A84)*(A85-A84)+M84 ->  | N85: =(O85-M85)/(O53-M53)*(N53-M53)+M85 ->  | O85: =(O86-O84)/(A86-A84)*(A85-A84)+O84 ->  | P85: =(Q85-O85)/(Q53-O53)*(P53-O53)+O85 ->  | Q85: =(Q86-Q84)/(A86-A84)*(A85-A84)+Q84 ->  | R85: =(S85-Q85)/(S53-Q53)*(R53-Q53)+Q85 ->  | S85: =(S86-S84)/(A86-A84)*(A85-A84)+S84 ->  | T85: =(U85-S85)/(U53-S53)*(T53-S53)+S85 ->  | U85: =(U86-U84)/(A86-A84)*(A85-A84)+U84 ->  | V85: =(W85-U85)/(W53-U53)*(V53-U53)+U85 ->  | W85: =(W86-W84)/(A86-A84)*(A85-A84)+W84 ->  | X85: =(Y85-W85)/(Y53-W53)*(X53-W53)+W85 ->  | Y85: =(Y86-Y84)/(A86-A84)*(A85-A84)+Y84 -> 100 | Z85: =(AA85-Y85)/(AA53-Y53)*(Z53-Y53)+Y85 -> -80 | AA85: =(AA86-AA84)/(A86-A84)*(A85-A84)+AA84 -> 160 | AB85: =(AC85-AA85)/(AC53-AA53)*(AB53-AA53)+AA85 -> 100 | AC85: =(AC86-AC84)/(A86-A84)*(A85-A84)+AC84 -> 190 | AD85: =(AE85-AC85)/(AE53-AC53)*(AD53-AC53)+AC85 -> 211.9 | AE85: =(AE86-AE84)/(A86-A84)*(A85-A84)+AE84 -> 220 | AF85: =(AG85-AE85)/(AG53-AE53)*(AF53-AE53)+AE85 -> 140 | AG85: =(AG86-AG84)/(A86-A84)*(A85-A84)+AG84 -> 240 | AH85: =(AI85-AG85)/(AI53-AG53)*(AH53-AG53)+AG85 -> 240 | AI85: =(AI86-AI84)/(A86-A84)*(A85-A84)+AI84 -> 240 | AJ85: 33
A86: 100 | B86: =B84+1 -> 16 | C86: - | D86: =(E86-C86)/(E53-C53)*(D53-C53)+C86 ->  | E86: - | F86: =(G86-E86)/(G53-E53)*(F53-E53)+E86 ->  | G86: - | H86: =(I86-G86)/(I53-G53)*(H53-G53)+G86 ->  | I86: - | J86: =(K86-I86)/(K53-I53)*(J53-I53)+I86 ->  | K86: - | L86: =(M86-K86)/(M53-K53)*(L53-K53)+K86 ->  | M86: - | N86: =(O86-M86)/(O53-M53)*(N53-M53)+M86 ->  | O86: - | P86: =(Q86-O86)/(Q53-O53)*(P53-O53)+O86 ->  | Q86: - | R86: =(S86-Q86)/(S53-Q53)*(R53-Q53)+Q86 ->  | S86: - | T86: =(U86-S86)/(U53-S53)*(T53-S53)+S86 ->  | U86: - | V86: =(W86-U86)/(W53-U53)*(V53-U53)+U86 ->  | W86: - | X86: =(Y86-W86)/(Y53-W53)*(X53-W53)+W86 ->  | Y86: 100 | Z86: =(AA86-Y86)/(AA53-Y53)*(Z53-Y53)+Y86 -> -80 | AA86: 160 | AB86: =(AC86-AA86)/(AC53-AA53)*(AB53-AA53)+AA86 -> 100 | AC86: 190 | AD86: =(AE86-AC86)/(AE53-AC53)*(AD53-AC53)+AC86 -> 211.9 | AE86: 220 | AF86: =(AG86-AE86)/(AG53-AE53)*(AF53-AE53)+AE86 -> 140 | AG86: 240 | AH86: =(AI86-AG86)/(AI53-AG53)*(AH53-AG53)+AG86 -> 240 | AI86: 240 | AJ86: 34
AJ87: 35
A88: COL | C88: 3 | D88: =C88+1 -> 4 | E88: =D88+1 -> 5 | F88: 6 | G88: 7 | H88: 8 | I88: 9 | J88: 10 | K88: 11 | L88: 12 | M88: 13 | N88: 14 | O88: 15 | P88: 16 | Q88: 17 | R88: 18 | S88: =R88+1 -> 19 | T88: 20 | U88: 21 | V88: 22 | W88: 23 | X88: 24 | Y88: 25 | Z88: 26 | AA88: 27 | AB88: 28 | AC88: 29 | AD88: 30 | AE88: 31 | AF88: 32 | AG88: 33 | AH88: 34 | AI88: 35 | AJ88: 36
C89: 1 | D89: 2 | F89: 3 | H89: 4 | J89: 5 | L89: 6 | N89: 7 | P89: 8 | R89: 9 | T89: 10 | V89: 11 | X89: 12 | Z89: 13 | AB89: 14 | AD89: 15 | AF89: 16 | AH89: 17
B92: Рвх | C92: 0.01 | D92: =IF(AND(AA99>C92,AA99<E92)=TRUE,AA99,0) -> 0 | E92: 0.02 | F92: =IF(AND(AC99>E92,AC99<G92)=TRUE,AC99,0) -> 0 | G92: 0.03 | H92: =IF(AND(AC99>G92,AC99<I92)=TRUE,AC99,0) -> 0 | I92: 0.04 | J92: =IF(AND(AC99>I92,AC99<K92)=TRUE,AC99,0) -> 0 | K92: 0.05 | L92: =IF(AND(AC99>K92,AC99<M92)=TRUE,AC99,0) -> 0 | M92: 0.075 | N92: =IF(AND(AC99>M92,AC99<O92)=TRUE,AC99,0) -> 0 | O92: 0.1 | P92: =IF(AND(AC99>O92,AC99<Q92)=TRUE,AC99,0) -> 0 | Q92: 0.15 | R92: =IF(AND(AC99>Q92,AC99<S92)=TRUE,AC99,0) -> 0 | S92: 0.2 | T92: =IF(AND(AC99>S92,AC99<U92)=TRUE,AC99,0) -> 0 | U92: 0.3 | V92: =IF(AND(AC99>U92,AC99<W92)=TRUE,AC99,0) -> 0.373 | W92: 0.4 | X92: =IF(AND(AC99>W92,AC99<Y92)=TRUE,AC99,0) -> 0 | Y92: 0.5 | Z92: =IF(AND(AC99>Y92,AC99<AA92)=TRUE,AC99,0) -> 0 | AA92: 0.6 | AB92: 1
A93: Рвых | B93: МПа | AB93: =AB92+1 -> 2
A94: кПа | AB94: =AB93+1 -> 3
A95: 1 | B95: 1 | C95: 25 | D95: =(E95-C95)/(E92-C92)*(D92-C92)+C95 -> 15 | E95: 35 | F95: =(G95-E95)/(G92-E92)*(F92-E92)+E95 -> 5 | G95: 50 | H95: =(I95-G95)/(I92-G92)*(H92-G92)+G95 -> 20 | I95: 60 | J95: =(K95-I95)/(K92-I92)*(J92-I92)+I95 -> 20 | K95: 70 | L95: =(M95-K95)/(M92-K92)*(L92-K92)+K95 -> 70 | M95: 70 | N95: =(O95-M95)/(O92-M92)*(N92-M92)+M95 -> 55 | O95: 75 | P95: =(Q95-O95)/(Q92-O92)*(P92-O92)+O95 -> 75 | Q95: 75 | R95: =(S95-Q95)/(S92-Q92)*(R92-Q92)+Q95 -> 75 | S95: 75 | T95: =(U95-S95)/(U92-S92)*(T92-S92)+S95 -> 75 | U95: 75 | V95: =(W95-U95)/(W92-U92)*(V92-U92)+U95 -> 75 | W95: 75 | X95: =(Y95-W95)/(Y92-W92)*(X92-W92)+W95 -> 75 | Y95: 75 | Z95: =(AA95-Y95)/(AA92-Y92)*(Z92-Y92)+Y95 -> 75 | AA95: 75 | AB95: 4 | AC95: Рвх | AD95: Q | AE95: Qcрасч | AF95: Рвых | AG95: Рвых
A96: =IF(AND(AF99>A95,AF99<A97)=TRUE,AF99,0) -> 0 | C96: =(C97-C95)/(A97-A95)*(A96-A95)+C95 -> 25 | D96: =(E96-C96)/(E92-C92)*(D92-C92)+C96 -> 15 | E96: =(E97-E95)/(A97-A95)*(A96-A95)+E95 -> 35 | F96: =(G96-E96)/(G92-E92)*(F92-E92)+E96 -> 5 | G96: =(G97-G95)/(A97-A95)*(A96-A95)+G95 -> 50 | H96: =(I96-G96)/(I92-G92)*(H92-G92)+G96 -> 20 | I96: =(I97-I95)/(A97-A95)*(A96-A95)+I95 -> 60 | J96: =(K96-I96)/(K92-I92)*(J92-I92)+I96 -> 20 | K96: =(K97-K95)/(A97-A95)*(A96-A95)+K95 -> 70 | L96: =(M96-K96)/(M92-K92)*(L92-K92)+K96 -> 70 | M96: =(M97-M95)/(A97-A95)*(A96-A95)+M95 -> 70 | N96: =(O96-M96)/(O92-M92)*(N92-M92)+M96 -> 55 | O96: =(O97-O95)/(A97-A95)*(A96-A95)+O95 -> 75 | P96: =(Q96-O96)/(Q92-O92)*(P92-O92)+O96 -> 75 | Q96: =(Q97-Q95)/(A97-A95)*(A96-A95)+Q95 -> 75 | R96: =(S96-Q96)/(S92-Q92)*(R92-Q92)+Q96 -> 75 | S96: =(S97-S95)/(A97-A95)*(A96-A95)+S95 -> 75 | T96: =(U96-S96)/(U92-S92)*(T92-S92)+S96 -> 75 | U96: =(U97-U95)/(A97-A95)*(A96-A95)+U95 -> 75 | V96: =(W96-U96)/(W92-U92)*(V92-U92)+U96 -> 75 | W96: =(W97-W95)/(A97-A95)*(A96-A95)+W95 -> 75 | X96: =(Y96-W96)/(Y92-W92)*(X92-W92)+W96 -> 75 | Y96: =(Y97-Y95)/(A97-A95)*(A96-A95)+Y95 -> 75 | Z96: =(AA96-Y96)/(AA92-Y92)*(Z92-Y92)+Y96 -> 75 | AA96: =(AA97-AA95)/(A97-A95)*(A96-A95)+AA95 -> 75 | AB96: 5
A97: 2 | B97: =B95+1 -> 2 | C97: 25 | D97: =(E97-C97)/(E92-C92)*(D92-C92)+C97 -> 15 | E97: 35 | F97: =(G97-E97)/(G92-E92)*(F92-E92)+E97 -> 5 | G97: 50 | H97: =(I97-G97)/(I92-G92)*(H92-G92)+G97 -> 20 | I97: 60 | J97: =(K97-I97)/(K92-I92)*(J92-I92)+I97 -> 20 | K97: 70 | L97: =(M97-K97)/(M92-K92)*(L92-K92)+K97 -> 70 | M97: 70 | N97: =(O97-M97)/(O92-M92)*(N92-M92)+M97 -> 55 | O97: 75 | P97: =(Q97-O97)/(Q92-O92)*(P92-O92)+O97 -> 75 | Q97: 75 | R97: =(S97-Q97)/(S92-Q92)*(R92-Q92)+Q97 -> 75 | S97: 75 | T97: =(U97-S97)/(U92-S92)*(T92-S92)+S97 -> 75 | U97: 75 | V97: =(W97-U97)/(W92-U92)*(V92-U92)+U97 -> 75 | W97: 75 | X97: =(Y97-W97)/(Y92-W92)*(X92-W92)+W97 -> 75 | Y97: 75 | Z97: =(AA97-Y97)/(AA92-Y92)*(Z92-Y92)+Y97 -> 75 | AA97: 75 | AB97: 6 | AC97: МПа | AD97: нм3/час | AE97: нм3/час | AF97: кПа | AG97: кПа
A98: =IF(AND(AF99>A97,AF99<A99)=TRUE,AF99,0) -> 0 | C98: =(C99-C97)/(A99-A97)*(A98-A97)+C97 -> 25 | D98: =(E98-C98)/(E92-C92)*(D92-C92)+C98 -> 5 | E98: =(E99-E97)/(A99-A97)*(A98-A97)+E97 -> 45 | F98: =(G98-E98)/(G92-E92)*(F92-E92)+E98 -> 15 | G98: =(G99-G97)/(A99-A97)*(A98-A97)+G97 -> 60 | H98: =(I98-G98)/(I92-G92)*(H92-G92)+G98 -> 30 | I98: =(I99-I97)/(A99-A97)*(A98-A97)+I97 -> 70 | J98: =(K98-I98)/(K92-I92)*(J92-I92)+I98 -> 70 | K98: =(K99-K97)/(A99-A97)*(A98-A97)+K97 -> 70 | L98: =(M98-K98)/(M92-K92)*(L92-K92)+K98 -> 70 | M98: =(M99-M97)/(A99-A97)*(A98-A97)+M97 -> 70 | N98: =(O98-M98)/(O92-M92)*(N92-M92)+M98 -> 55 | O98: =(O99-O97)/(A99-A97)*(A98-A97)+O97 -> 75 | P98: =(Q98-O98)/(Q92-O92)*(P92-O92)+O98 -> 75 | Q98: =(Q99-Q97)/(A99-A97)*(A98-A97)+Q97 -> 75 | R98: =(S98-Q98)/(S92-Q92)*(R92-Q92)+Q98 -> 75 | S98: =(S99-S97)/(A99-A97)*(A98-A97)+S97 -> 75 | T98: =(U98-S98)/(U92-S92)*(T92-S92)+S98 -> 75 | U98: =(U99-U97)/(A99-A97)*(A98-A97)+U97 -> 75 | V98: =(W98-U98)/(W92-U92)*(V92-U92)+U98 -> 75 | W98: =(W99-W97)/(A99-A97)*(A98-A97)+W97 -> 75 | X98: =(Y98-W98)/(Y92-W92)*(X92-W92)+W98 -> 75 | Y98: =(Y99-Y97)/(A99-A97)*(A98-A97)+Y97 -> 75 | Z98: =(AA98-Y98)/(AA92-Y92)*(Z92-Y92)+Y98 -> 75 | AA98: =(AA99-AA97)/(A99-A97)*(A98-A97)+AA97 -> 75 | AB98: 7
A99: 3 | B99: =B97+1 -> 3 | C99: 25 | D99: =(E99-C99)/(E92-C92)*(D92-C92)+C99 -> 20 | E99: 30 | F99: =(G99-E99)/(G92-E92)*(F92-E92)+E99 -> 0 | G99: 45 | H99: =(I99-G99)/(I92-G92)*(H92-G92)+G99 -> 15 | I99: 55 | J99: =(K99-I99)/(K92-I92)*(J92-I92)+I99 -> -5 | K99: 70 | L99: =(M99-K99)/(M92-K92)*(L92-K92)+K99 -> 70 | M99: 70 | N99: =(O99-M99)/(O92-M92)*(N92-M92)+M99 -> 55 | O99: 75 | P99: =(Q99-O99)/(Q92-O92)*(P92-O92)+O99 -> 75 | Q99: 75 | R99: =(S99-Q99)/(S92-Q92)*(R92-Q92)+Q99 -> 75 | S99: 75 | T99: =(U99-S99)/(U92-S92)*(T92-S92)+S99 -> 75 | U99: 75 | V99: =(W99-U99)/(W92-U92)*(V92-U92)+U99 -> 75 | W99: 75 | X99: =(Y99-W99)/(Y92-W92)*(X92-W92)+W99 -> 75 | Y99: 75 | Z99: =(AA99-Y99)/(AA92-Y92)*(Z92-Y92)+Y99 -> 75 | AA99: 75 | AB99: 8 | AC99: =AK60 -> 0.373 | AD99: =AL60 -> 229.2 | AE99: =VLOOKUP(AF99,A92:AA123,HLOOKUP(AC99,A92:AA123,32,0),0) ->  | AF99: =AN60 -> 300 | AG99: =IF(AC99<A95,"NO",IF(AC99>A121,"N0",IF(VLOOKUP(AC99,A95:AA121,3,0)>AD99,"NO",IF(VLOOKUP(AC99,A95:AA121,17,0)<AD99,"NO",IF(AND(AE99>=AD99-0.1,AE99<AD99+0.1)=TRUE,AF99,"NO"))))) -> NO
A100: =IF(AND(AF99>A99,AF99<A101)=TRUE,AF99,0) -> 0 | C100: =(C101-C99)/(A101-A99)*(A100-A99)+C99 -> 25 | D100: =(E100-C100)/(E92-C92)*(D92-C92)+C100 -> 20 | E100: =(E101-E99)/(A101-A99)*(A100-A99)+E99 -> 30 | F100: =(G100-E100)/(G92-E92)*(F92-E92)+E100 -> -30 | G100: =(G101-G99)/(A101-A99)*(A100-A99)+G99 -> 60 | H100: =(I100-G100)/(I92-G92)*(H92-G92)+G100 -> 30 | I100: =(I101-I99)/(A101-A99)*(A100-A99)+I99 -> 70 | J100: =(K100-I100)/(K92-I92)*(J92-I92)+I100 -> 10 | K100: =(K101-K99)/(A101-A99)*(A100-A99)+K99 -> 85 | L100: =(M100-K100)/(M92-K92)*(L92-K92)+K100 -> 115 | M100: =(M101-M99)/(A101-A99)*(A100-A99)+M99 -> 70 | N100: =(O100-M100)/(O92-M92)*(N92-M92)+M100 -> 10 | O100: =(O101-O99)/(A101-A99)*(A100-A99)+O99 -> 90 | P100: =(Q100-O100)/(Q92-O92)*(P92-O92)+O100 -> 90 | Q100: =(Q101-Q99)/(A101-A99)*(A100-A99)+Q99 -> 90 | R100: =(S100-Q100)/(S92-Q92)*(R92-Q92)+Q100 -> 90 | S100: =(S101-S99)/(A101-A99)*(A100-A99)+S99 -> 90 | T100: =(U100-S100)/(U92-S92)*(T92-S92)+S100 -> 90 | U100: =(U101-U99)/(A101-A99)*(A100-A99)+U99 -> 90 | V100: =(W100-U100)/(W92-U92)*(V92-U92)+U100 -> 90 | W100: =(W101-W99)/(A101-A99)*(A100-A99)+W99 -> 90 | X100: =(Y100-W100)/(Y92-W92)*(X92-W92)+W100 -> 90 | Y100: =(Y101-Y99)/(A101-A99)*(A100-A99)+Y99 -> 90 | Z100: =(AA100-Y100)/(AA92-Y92)*(Z92-Y92)+Y100 -> 90 | AA100: =(AA101-AA99)/(A101-A99)*(A100-A99)+AA99 -> 90 | AB100: 9
A101: 4 | B101: =B99+1 -> 4 | C101: 25 | D101: =(E101-C101)/(E92-C92)*(D92-C92)+C101 -> 20 | E101: 30 | F101: =(G101-E101)/(G92-E92)*(F92-E92)+E101 -> 10 | G101: 40 | H101: =(I101-G101)/(I92-G92)*(H92-G92)+G101 -> 10 | I101: 50 | J101: =(K101-I101)/(K92-I92)*(J92-I92)+I101 -> -10 | K101: 65 | L101: =(M101-K101)/(M92-K92)*(L92-K92)+K101 -> 55 | M101: 70 | N101: =(O101-M101)/(O92-M92)*(N92-M92)+M101 -> 70 | O101: 70 | P101: =(Q101-O101)/(Q92-O92)*(P92-O92)+O101 -> 70 | Q101: 70 | R101: =(S101-Q101)/(S92-Q92)*(R92-Q92)+Q101 -> 70 | S101: 70 | T101: =(U101-S101)/(U92-S92)*(T92-S92)+S101 -> 70 | U101: 70 | V101: =(W101-U101)/(W92-U92)*(V92-U92)+U101 -> 70 | W101: 70 | X101: =(Y101-W101)/(Y92-W92)*(X92-W92)+W101 -> 70 | Y101: 70 | Z101: =(AA101-Y101)/(AA92-Y92)*(Z92-Y92)+Y101 -> 70 | AA101: 70 | AB101: 10 | AC101: 0.1 | AD101: =AL62 -> 263.58
A102: =IF(AND(AF99>A101,AF99<A103)=TRUE,AF99,0) -> 0 | C102: =(C103-C101)/(A103-A101)*(A102-A101)+C101 -> 45 | D102: =(E102-C102)/(E92-C92)*(D92-C92)+C102 -> 60 | E102: =(E103-E101)/(A103-A101)*(A102-A101)+E101 -> 30 | F102: =(G102-E102)/(G92-E92)*(F92-E92)+E102 -> 10 | G102: =(G103-G101)/(A103-A101)*(A102-A101)+G101 -> 40 | H102: =(I102-G102)/(I92-G92)*(H92-G92)+G102 -> 10 | I102: =(I103-I101)/(A103-A101)*(A102-A101)+I101 -> 50 | J102: =(K102-I102)/(K92-I92)*(J92-I92)+I102 -> -10 | K102: =(K103-K101)/(A103-A101)*(A102-A101)+K101 -> 65 | L102: =(M102-K102)/(M92-K92)*(L92-K92)+K102 -> 55 | M102: =(M103-M101)/(A103-A101)*(A102-A101)+M101 -> 70 | N102: =(O102-M102)/(O92-M92)*(N92-M92)+M102 -> 70 | O102: =(O103-O101)/(C103-C101)*(C102-C101)+O101 -> 70 | P102: =(Q102-O102)/(Q92-O92)*(P92-O92)+O102 -> 70 | Q102: =(Q103-Q101)/(A103-A101)*(A102-A101)+Q101 -> 70 | R102: =(S102-Q102)/(S92-Q92)*(R92-Q92)+Q102 -> 70 | S102: =(S103-S101)/(A103-A101)*(A102-A101)+S101 -> 70 | T102: =(U102-S102)/(U92-S92)*(T92-S92)+S102 -> 70 | U102: =(U103-U101)/(A103-A101)*(A102-A101)+U101 -> 70 | V102: =(W102-U102)/(W92-U92)*(V92-U92)+U102 -> 70 | W102: =(W103-W101)/(A103-A101)*(A102-A101)+W101 -> 70 | X102: =(Y102-W102)/(Y92-W92)*(X92-W92)+W102 -> 70 | Y102: =(Y103-Y101)/(A103-A101)*(A102-A101)+Y101 -> 70 | Z102: =(AA102-Y102)/(AA92-Y92)*(Z92-Y92)+Y102 -> 70 | AA102: =(AA103-AA101)/(A103-A101)*(A102-A101)+AA101 -> 70 | AB102: 11
A103: 5 | B103: =B101+1 -> 5 | C103: 20 | D103: =(E103-C103)/(E92-C92)*(D92-C92)+C103 -> 10 | E103: 30 | F103: =(G103-E103)/(G92-E92)*(F92-E92)+E103 -> 10 | G103: 40 | H103: =(I103-G103)/(I92-G92)*(H92-G92)+G103 -> 10 | I103: 50 | J103: =(K103-I103)/(K92-I92)*(J92-I92)+I103 -> -10 | K103: 65 | L103: =(M103-K103)/(M92-K92)*(L92-K92)+K103 -> 55 | M103: 70 | N103: =(O103-M103)/(O92-M92)*(N92-M92)+M103 -> 70 | O103: 70 | P103: =(Q103-O103)/(Q92-O92)*(P92-O92)+O103 -> 70 | Q103: 70 | R103: =(S103-Q103)/(S92-Q92)*(R92-Q92)+Q103 -> 70 | S103: 70 | T103: =(U103-S103)/(U92-S92)*(T92-S92)+S103 -> 70 | U103: 70 | V103: =(W103-U103)/(W92-U92)*(V92-U92)+U103 -> 70 | W103: 70 | X103: =(Y103-W103)/(Y92-W92)*(X92-W92)+W103 -> 70 | Y103: 70 | Z103: =(AA103-Y103)/(AA92-Y92)*(Z92-Y92)+Y103 -> 70 | AA103: 70 | AB103: 12 | AC103: Регулятор давления | AF103: =Лист1!F58 -> РЕД-2-25-Н DN25 Qmax=75 нм3/час
A104: =IF(AND(AF99>A103,AF99<A105)=TRUE,AF99,0) -> 0 | C104: =(C105-C103)/(A105-A103)*(A104-A103)+C103 -> 20 | D104: =(E104-C104)/(E92-C92)*(D92-C92)+C104 -> 10 | E104: =(E105-E103)/(A105-A103)*(A104-A103)+E103 -> 30 | F104: =(G104-E104)/(G92-E92)*(F92-E92)+E104 -> 10 | G104: =(G105-G103)/(A105-A103)*(A104-A103)+G103 -> 40 | H104: =(I104-G104)/(I92-G92)*(H92-G92)+G104 -> 10 | I104: =(I105-I103)/(A105-A103)*(A104-A103)+I103 -> 50 | J104: =(K104-I104)/(K92-I92)*(J92-I92)+I104 -> -110 | K104: =(K105-K103)/(A105-A103)*(A104-A103)+K103 -> 90 | L104: =(M104-K104)/(M92-K92)*(L92-K92)+K104 -> 130 | M104: =(M105-M103)/(A105-A103)*(A104-A103)+M103 -> 70 | N104: =(O104-M104)/(O92-M92)*(N92-M92)+M104 -> 520 | O104: =(O105-O103)/(A105-A103)*(A104-A103)+O103 -> -80 | P104: =(Q104-O104)/(Q92-O92)*(P92-O92)+O104 -> -80 | Q104: =(Q105-Q103)/(A105-A103)*(A104-A103)+Q103 -> -80 | R104: =(S104-Q104)/(S92-Q92)*(R92-Q92)+Q104 -> -80 | S104: =(S105-S103)/(A105-A103)*(A104-A103)+S103 -> -80 | T104: =(U104-S104)/(U92-S92)*(T92-S92)+S104 -> -80 | U104: =(U105-U103)/(A105-A103)*(A104-A103)+U103 -> -80 | V104: =(W104-U104)/(W92-U92)*(V92-U92)+U104 -> -80 | W104: =(W105-W103)/(A105-A103)*(A104-A103)+W103 -> -80 | X104: =(Y104-W104)/(Y92-W92)*(X92-W92)+W104 -> -80 | Y104: =(Y105-Y103)/(A105-A103)*(A104-A103)+Y103 -> -80 | Z104: =(AA104-Y104)/(AA92-Y92)*(Z92-Y92)+Y104 -> -80 | AA104: =(AA105-AA103)/(A105-A103)*(A104-A103)+AA103 -> -80 | AB104: 13
A105: 6 | B105: =B103+1 -> 6 | C105: 20 | D105: =(E105-C105)/(E92-C92)*(D92-C92)+C105 -> 10 | E105: 30 | F105: =(G105-E105)/(G92-E92)*(F92-E92)+E105 -> 10 | G105: 40 | H105: =(I105-G105)/(I92-G92)*(H92-G92)+G105 -> 10 | I105: 50 | J105: =(K105-I105)/(K92-I92)*(J92-I92)+I105 -> 10 | K105: 60 | L105: =(M105-K105)/(M92-K92)*(L92-K92)+K105 -> 40 | M105: 70 | N105: =(O105-M105)/(O92-M92)*(N92-M92)+M105 -> -20 | O105: 100 | P105: =(Q105-O105)/(Q92-O92)*(P92-O92)+O105 -> 100 | Q105: 100 | R105: =(S105-Q105)/(S92-Q92)*(R92-Q92)+Q105 -> 100 | S105: 100 | T105: =(U105-S105)/(U92-S92)*(T92-S92)+S105 -> 100 | U105: 100 | V105: =(W105-U105)/(W92-U92)*(V92-U92)+U105 -> 100 | W105: 100 | X105: =(Y105-W105)/(Y92-W92)*(X92-W92)+W105 -> 100 | Y105: 100 | Z105: =(AA105-Y105)/(AA92-Y92)*(Z92-Y92)+Y105 -> 100 | AA105: 100 | AB105: 14
A106: =IF(AND(AF99>A105,AF99<A107)=TRUE,AF99,0) -> 0 | C106: =(C107-C105)/(A107-A105)*(A106-A105)+C105 -> 20 | D106: =(E106-C106)/(E92-C92)*(D92-C92)+C106 -> 10 | E106: =(E107-E105)/(A107-A105)*(A106-A105)+E105 -> 30 | F106: =(G106-E106)/(G92-E92)*(F92-E92)+E106 -> 10 | G106: =(G107-G105)/(A107-A105)*(A106-A105)+G105 -> 40 | H106: =(I106-G106)/(I92-G92)*(H92-G92)+G106 -> -80 | I106: =(I107-I105)/(A107-A105)*(A106-A105)+I105 -> 80 | J106: =(K106-I106)/(K92-I92)*(J92-I92)+I106 -> 40 | K106: =(K107-K105)/(A107-A105)*(A106-A105)+K105 -> 90 | L106: =(M106-K106)/(M92-K92)*(L92-K92)+K106 -> 130 | M106: =(M107-M105)/(A107-A105)*(A106-A105)+M105 -> 70 | N106: =(O106-M106)/(O92-M92)*(N92-M92)+M106 -> -20 | O106: =(O107-O105)/(A107-A105)*(A106-A105)+O105 -> 100 | P106: =(Q106-O106)/(Q92-O92)*(P92-O92)+O106 -> 100 | Q106: =(Q107-Q105)/(A107-A105)*(A106-A105)+Q105 -> 100 | R106: =(S106-Q106)/(S92-Q92)*(R92-Q92)+Q106 -> 100 | S106: =(S107-S105)/(A107-A105)*(A106-A105)+S105 -> 100 | T106: =(U106-S106)/(U92-S92)*(T92-S92)+S106 -> 100 | U106: =(U107-U105)/(A107-A105)*(A106-A105)+U105 -> 100 | V106: =(W106-U106)/(W92-U92)*(V92-U92)+U106 -> 100 | W106: =(W107-W105)/(A107-A105)*(A106-A105)+W105 -> 100 | X106: =(Y106-W106)/(Y92-W92)*(X92-W92)+W106 -> 100 | Y106: =(Y107-Y105)/(A107-A105)*(A106-A105)+Y105 -> 100 | Z106: =(AA106-Y106)/(AA92-Y92)*(Z92-Y92)+Y106 -> 100 | AA106: =(AA107-AA105)/(A107-A105)*(A106-A105)+AA105 -> 100 | AB106: 15
A107: 7 | B107: =B105+1 -> 7 | C107: 20 | D107: =(E107-C107)/(E92-C92)*(D92-C92)+C107 -> 10 | E107: 30 | F107: =(G107-E107)/(G92-E92)*(F92-E92)+E107 -> 10 | G107: 40 | H107: =(I107-G107)/(I92-G92)*(H92-G92)+G107 -> 25 | I107: 45 | J107: =(K107-I107)/(K92-I92)*(J92-I92)+I107 -> 5 | K107: 55 | L107: =(M107-K107)/(M92-K92)*(L92-K92)+K107 -> 25 | M107: 70 | N107: =(O107-M107)/(O92-M92)*(N92-M92)+M107 -> -20 | O107: 100 | P107: =(Q107-O107)/(Q92-O92)*(P92-O92)+O107 -> 100 | Q107: 100 | R107: =(S107-Q107)/(S92-Q92)*(R92-Q92)+Q107 -> 100 | S107: 100 | T107: =(U107-S107)/(U92-S92)*(T92-S92)+S107 -> 100 | U107: 100 | V107: =(W107-U107)/(W92-U92)*(V92-U92)+U107 -> 100 | W107: 100 | X107: =(Y107-W107)/(Y92-W92)*(X92-W92)+W107 -> 100 | Y107: 100 | Z107: =(AA107-Y107)/(AA92-Y92)*(Z92-Y92)+Y107 -> 100 | AA107: 100 | AB107: 16
A108: =IF(AND(AF99>A107,AF99<A109)=TRUE,AF99,0) -> 0 | C108: =(C109-C107)/(A109-A107)*(A108-A107)+C107 -> 20 | D108: =(E108-C108)/(E92-C92)*(D92-C92)+C108 -> 10 | E108: =(E109-E107)/(A109-A107)*(A108-A107)+E107 -> 30 | F108: =(G108-E108)/(G92-E92)*(F92-E92)+E108 -> -60 | G108: =(G109-G107)/(A109-A107)*(A108-A107)+G107 -> 75 | H108: =(I108-G108)/(I92-G92)*(H92-G92)+G108 -> 165 | I108: =(I109-I107)/(A109-A107)*(A108-A107)+I107 -> 45 | J108: =(K108-I108)/(K92-I92)*(J92-I92)+I108 -> 5 | K108: =(K109-K107)/(A109-A107)*(A108-A107)+K107 -> 55 | L108: =(M108-K108)/(M92-K92)*(L92-K92)+K108 -> 25 | M108: =(M109-M107)/(A109-A107)*(A108-A107)+M107 -> 70 | N108: =(O108-M108)/(O92-M92)*(N92-M92)+M108 -> -125 | O108: =(O109-O107)/(A109-A107)*(A108-A107)+O107 -> 135 | P108: =(Q108-O108)/(Q92-O92)*(P92-O92)+O108 -> 135 | Q108: =(Q109-Q107)/(A109-A107)*(A108-A107)+Q107 -> 135 | R108: =(S108-Q108)/(S92-Q92)*(R92-Q92)+Q108 -> 135 | S108: =(S109-S107)/(A109-A107)*(A108-A107)+S107 -> 135 | T108: =(U108-S108)/(U92-S92)*(T92-S92)+S108 -> 135 | U108: =(U109-U107)/(A109-A107)*(A108-A107)+U107 -> 135 | V108: =(W108-U108)/(W92-U92)*(V92-U92)+U108 -> 135 | W108: =(W109-W107)/(A109-A107)*(A108-A107)+W107 -> 135 | X108: =(Y108-W108)/(Y92-W92)*(X92-W92)+W108 -> 135 | Y108: =(Y109-Y107)/(A109-A107)*(A108-A107)+Y107 -> 135 | Z108: =(AA108-Y108)/(AA92-Y92)*(Z92-Y92)+Y108 -> 135 | AA108: =(AA109-AA107)/(A109-A107)*(A108-A107)+AA107 -> 135 | AB108: =AB107+1 -> 17
A109: 8 | B109: =B107+1 -> 8 | C109: 20 | D109: =(E109-C109)/(E92-C92)*(D92-C92)+C109 -> 10 | E109: 30 | F109: =(G109-E109)/(G92-E92)*(F92-E92)+E109 -> 20 | G109: 35 | H109: =(I109-G109)/(I92-G92)*(H92-G92)+G109 -> 5 | I109: 45 | J109: =(K109-I109)/(K92-I92)*(J92-I92)+I109 -> 5 | K109: 55 | L109: =(M109-K109)/(M92-K92)*(L92-K92)+K109 -> 25 | M109: 70 | N109: =(O109-M109)/(O92-M92)*(N92-M92)+M109 -> -5 | O109: 95 | P109: =(Q109-O109)/(Q92-O92)*(P92-O92)+O109 -> 95 | Q109: 95 | R109: =(S109-Q109)/(S92-Q92)*(R92-Q92)+Q109 -> 95 | S109: 95 | T109: =(U109-S109)/(U92-S92)*(T92-S92)+S109 -> 95 | U109: 95 | V109: =(W109-U109)/(W92-U92)*(V92-U92)+U109 -> 95 | W109: 95 | X109: =(Y109-W109)/(Y92-W92)*(X92-W92)+W109 -> 95 | Y109: 95 | Z109: =(AA109-Y109)/(AA92-Y92)*(Z92-Y92)+Y109 -> 95 | AA109: 95 | AB109: =AB108+1 -> 18
A110: =IF(AND(AF99>A109,AF99<A111)=TRUE,AF99,0) -> 0 | C110: =(C111-C109)/(A111-A109)*(A110-A109)+C109 -> 20 | D110: =(E110-C110)/(E92-C92)*(D92-C92)+C110 -> 10 | E110: =(E111-E109)/(A111-A109)*(A110-A109)+E109 -> 30 | F110: =(G110-E110)/(G92-E92)*(F92-E92)+E110 -> 20 | G110: =(G111-G109)/(A111-A109)*(A110-A109)+G109 -> 35 | H110: =(I110-G110)/(I92-G92)*(H92-G92)+G110 -> 5 | I110: =(I111-I109)/(A111-A109)*(A110-A109)+I109 -> 45 | J110: =(K110-I110)/(K92-I92)*(J92-I92)+I110 -> -155 | K110: =(K111-K109)/(A111-A109)*(A110-A109)+K109 -> 95 | L110: =(M110-K110)/(M92-K92)*(L92-K92)+K110 -> 145 | M110: =(M111-M109)/(A111-A109)*(A110-A109)+M109 -> 70 | N110: =(O110-M110)/(O92-M92)*(N92-M92)+M110 -> -125 | O110: =(O111-O109)/(A111-A109)*(A110-A109)+O109 -> 135 | P110: =(Q110-O110)/(Q92-O92)*(P92-O92)+O110 -> 135 | Q110: =(Q111-Q109)/(A111-A109)*(A110-A109)+Q109 -> 135 | R110: =(S110-Q110)/(S92-Q92)*(R92-Q92)+Q110 -> 135 | S110: =(S111-S109)/(A111-A109)*(A110-A109)+S109 -> 135 | T110: =(U110-S110)/(U92-S92)*(T92-S92)+S110 -> 135 | U110: =(U111-U109)/(A111-A109)*(A110-A109)+U109 -> 135 | V110: =(W110-U110)/(W92-U92)*(V92-U92)+U110 -> 135 | W110: =(W111-W109)/(A111-A109)*(A110-A109)+W109 -> 135 | X110: =(Y110-W110)/(Y92-W92)*(X92-W92)+W110 -> 135 | Y110: =(Y111-Y109)/(A111-A109)*(A110-A109)+Y109 -> 135 | Z110: =(AA110-Y110)/(AA92-Y92)*(Z92-Y92)+Y110 -> 135 | AA110: =(AA111-AA109)/(A111-A109)*(A110-A109)+AA109 -> 135 | AB110: 19
A111: 9 | B111: =B109+1 -> 9 | C111: 20 | D111: =(E111-C111)/(E92-C92)*(D92-C92)+C111 -> 10 | E111: 30 | F111: =(G111-E111)/(G92-E92)*(F92-E92)+E111 -> 20 | G111: 35 | H111: =(I111-G111)/(I92-G92)*(H92-G92)+G111 -> 5 | I111: 45 | J111: =(K111-I111)/(K92-I92)*(J92-I92)+I111 -> 25 | K111: 50 | L111: =(M111-K111)/(M92-K92)*(L92-K92)+K111 -> 10 | M111: 70 | N111: =(O111-M111)/(O92-M92)*(N92-M92)+M111 -> 10 | O111: 90 | P111: =(Q111-O111)/(Q92-O92)*(P92-O92)+O111 -> 90 | Q111: 90 | R111: =(S111-Q111)/(S92-Q92)*(R92-Q92)+Q111 -> 90 | S111: 90 | T111: =(U111-S111)/(U92-S92)*(T92-S92)+S111 -> 90 | U111: 90 | V111: =(W111-U111)/(W92-U92)*(V92-U92)+U111 -> 90 | W111: 90 | X111: =(Y111-W111)/(Y92-W92)*(X92-W92)+W111 -> 90 | Y111: 90 | Z111: =(AA111-Y111)/(AA92-Y92)*(Z92-Y92)+Y111 -> 90 | AA111: 90 | AB111: 20
A112: =IF(AND(AF99>A111,AF99<A113)=TRUE,AF99,0) -> 0 | C112: =(C113-C111)/(A113-A111)*(A112-A111)+C111 ->  | D112: =(E112-C112)/(E92-C92)*(D92-C92)+C112 ->  | E112: =(E113-E111)/(A113-A111)*(A112-A111)+E111 -> 120 | F112: =(G112-E112)/(G92-E92)*(F92-E92)+E112 -> 200 | G112: =(G113-G111)/(A113-A111)*(A112-A111)+G111 -> 80 | H112: =(I112-G112)/(I92-G92)*(H92-G92)+G112 -> -85 | I112: =(I113-I111)/(A113-A111)*(A112-A111)+I111 -> 135 | J112: =(K112-I112)/(K92-I92)*(J92-I92)+I112 -> 295 | K112: =(K113-K111)/(A113-A111)*(A112-A111)+K111 -> 95 | L112: =(M112-K112)/(M92-K92)*(L92-K92)+K112 -> 55 | M112: =(M113-M111)/(A113-A111)*(A112-A111)+M111 -> 115 | N112: =(O112-M112)/(O92-M92)*(N92-M92)+M112 -> -80 | O112: =(O113-O111)/(A113-A111)*(A112-A111)+O111 -> 180 | P112: =(Q112-O112)/(Q92-O92)*(P92-O92)+O112 -> 180 | Q112: =(Q113-Q111)/(A113-A111)*(A112-A111)+Q111 -> 180 | R112: =(S112-Q112)/(S92-Q92)*(R92-Q92)+Q112 -> 180 | S112: =(S113-S111)/(A113-A111)*(A112-A111)+S111 -> 180 | T112: =(U112-S112)/(U92-S92)*(T92-S92)+S112 -> 180 | U112: =(U113-U111)/(A113-A111)*(A112-A111)+U111 -> 180 | V112: =(W112-U112)/(W92-U92)*(V92-U92)+U112 -> 180 | W112: =(W113-W111)/(A113-A111)*(A112-A111)+W111 -> 180 | X112: =(Y112-W112)/(Y92-W92)*(X92-W92)+W112 -> 180 | Y112: =(Y113-Y111)/(A113-A111)*(A112-A111)+Y111 -> 180 | Z112: =(AA112-Y112)/(AA92-Y92)*(Z92-Y92)+Y112 -> 180 | AA112: =(AA113-AA111)/(A113-A111)*(A112-A111)+AA111 -> 180 | AB112: 21
A113: 10 | B113: =B111+1 -> 10 | C113: - | D113: =(E113-C113)/(E92-C92)*(D92-C92)+C113 ->  | E113: 20 | F113: =(G113-E113)/(G92-E92)*(F92-E92)+E113 -> 0 | G113: 30 | H113: =(I113-G113)/(I92-G92)*(H92-G92)+G113 -> 15 | I113: 35 | J113: =(K113-I113)/(K92-I92)*(J92-I92)+I113 -> -5 | K113: 45 | L113: =(M113-K113)/(M92-K92)*(L92-K92)+K113 -> 5 | M113: 65 | N113: =(O113-M113)/(O92-M92)*(N92-M92)+M113 -> 20 | O113: 80 | P113: =(Q113-O113)/(Q92-O92)*(P92-O92)+O113 -> 80 | Q113: 80 | R113: =(S113-Q113)/(S92-Q92)*(R92-Q92)+Q113 -> 80 | S113: 80 | T113: =(U113-S113)/(U92-S92)*(T92-S92)+S113 -> 80 | U113: 80 | V113: =(W113-U113)/(W92-U92)*(V92-U92)+U113 -> 80 | W113: 80 | X113: =(Y113-W113)/(Y92-W92)*(X92-W92)+W113 -> 80 | Y113: 80 | Z113: =(AA113-Y113)/(AA92-Y92)*(Z92-Y92)+Y113 -> 80 | AA113: 80 | AB113: 22
A114: =IF(AND(AF99>A113,AF99<A115)=TRUE,AF99,0) -> 0 | C114: =(C115-C113)/(A115-A113)*(A114-A113)+C113 ->  | D114: =(E114-C114)/(E92-C92)*(D92-C92)+C114 ->  | E114: =(E115-E113)/(A115-A113)*(A114-A113)+E113 -> 20 | F114: =(G114-E114)/(G92-E92)*(F92-E92)+E114 -> 0 | G114: =(G115-G113)/(A115-A113)*(A114-A113)+G113 -> 30 | H114: =(I114-G114)/(I92-G92)*(H92-G92)+G114 -> 15 | I114: =(I115-I113)/(A115-A113)*(A114-A113)+I113 -> 35 | J114: =(K114-I114)/(K92-I92)*(J92-I92)+I114 -> -5 | K114: =(K115-K113)/(A115-A113)*(A114-A113)+K113 -> 45 | L114: =(M114-K114)/(M92-K92)*(L92-K92)+K114 -> -15 | M114: =(M115-M113)/(A115-A113)*(A114-A113)+M113 -> 75 | N114: =(O114-M114)/(O92-M92)*(N92-M92)+M114 -> 30 | O114: =(O115-O113)/(A115-A113)*(A114-A113)+O113 -> 90 | P114: =(Q114-O114)/(Q92-O92)*(P92-O92)+O114 -> 90 | Q114: =(Q115-Q113)/(A115-A113)*(A114-A113)+Q113 -> 90 | R114: =(S114-Q114)/(S92-Q92)*(R92-Q92)+Q114 -> 90 | S114: =(S115-S113)/(A115-A113)*(A114-A113)+S113 -> 90 | T114: =(U114-S114)/(U92-S92)*(T92-S92)+S114 -> 90 | U114: =(U115-U113)/(A115-A113)*(A114-A113)+U113 -> 90 | V114: =(W114-U114)/(W92-U92)*(V92-U92)+U114 -> 90 | W114: =(W115-W113)/(A115-A113)*(A114-A113)+W113 -> 90 | X114: =(Y114-W114)/(Y92-W92)*(X92-W92)+W114 -> 90 | Y114: =(Y115-Y113)/(A115-A113)*(A114-A113)+Y113 -> 90 | Z114: =(AA114-Y114)/(AA92-Y92)*(Z92-Y92)+Y114 -> 90 | AA114: =(AA115-AA113)/(A115-A113)*(A114-A113)+AA113 -> 90 | AB114: 23
A115: 15 | B115: =B113+1 -> 11 | C115: - | D115: =(E115-C115)/(E92-C92)*(D92-C92)+C115 ->  | E115: 20 | F115: =(G115-E115)/(G92-E92)*(F92-E92)+E115 -> 0 | G115: 30 | H115: =(I115-G115)/(I92-G92)*(H92-G92)+G115 -> 15 | I115: 35 | J115: =(K115-I115)/(K92-I92)*(J92-I92)+I115 -> -5 | K115: 45 | L115: =(M115-K115)/(M92-K92)*(L92-K92)+K115 -> 15 | M115: 60 | N115: =(O115-M115)/(O92-M92)*(N92-M92)+M115 -> 15 | O115: 75 | P115: =(Q115-O115)/(Q92-O92)*(P92-O92)+O115 -> 75 | Q115: 75 | R115: =(S115-Q115)/(S92-Q92)*(R92-Q92)+Q115 -> 75 | S115: 75 | T115: =(U115-S115)/(U92-S92)*(T92-S92)+S115 -> 75 | U115: 75 | V115: =(W115-U115)/(W92-U92)*(V92-U92)+U115 -> 75 | W115: 75 | X115: =(Y115-W115)/(Y92-W92)*(X92-W92)+W115 -> 75 | Y115: 75 | Z115: =(AA115-Y115)/(AA92-Y92)*(Z92-Y92)+Y115 -> 75 | AA115: 75 | AB115: 24
A116: =IF(AND(AF99>A115,AF99<A117)=TRUE,AF99,0) -> 0 | C116: =(C117-C115)/(A117-A115)*(A116-A115)+C115 ->  | D116: =(E116-C116)/(E92-C92)*(D92-C92)+C116 ->  | E116: =(E117-E115)/(A117-A115)*(A116-A115)+E115 ->  | F116: =(G116-E116)/(G92-E92)*(F92-E92)+E116 ->  | G116: =(G117-G115)/(A117-A115)*(A116-A115)+G115 -> 45 | H116: =(I116-G116)/(I92-G92)*(H92-G92)+G116 -> 30 | I116: =(I117-I115)/(A117-A115)*(A116-A115)+I115 -> 50 | J116: =(K116-I116)/(K92-I92)*(J92-I92)+I116 -> 10 | K116: =(K117-K115)/(A117-A115)*(A116-A115)+K115 -> 60 | L116: =(M116-K116)/(M92-K92)*(L92-K92)+K116 -> 0 | M116: =(M117-M115)/(A117-A115)*(A116-A115)+M115 -> 90 | N116: =(O116-M116)/(O92-M92)*(N92-M92)+M116 -> 90 | O116: =(O117-O115)/(A117-A115)*(A116-A115)+O115 -> 90 | P116: =(Q116-O116)/(Q92-O92)*(P92-O92)+O116 -> 90 | Q116: =(Q117-Q115)/(A117-A115)*(A116-A115)+Q115 -> 90 | R116: =(S116-Q116)/(S92-Q92)*(R92-Q92)+Q116 -> 90 | S116: =(S117-S115)/(A117-A115)*(A116-A115)+S115 -> 90 | T116: =(U116-S116)/(U92-S92)*(T92-S92)+S116 -> 90 | U116: =(U117-U115)/(A117-A115)*(A116-A115)+U115 -> 90 | V116: =(W116-U116)/(W92-U92)*(V92-U92)+U116 -> 90 | W116: =(W117-W115)/(A117-A115)*(A116-A115)+W115 -> 90 | X116: =(Y116-W116)/(Y92-W92)*(X92-W92)+W116 -> 90 | Y116: =(Y117-Y115)/(A117-A115)*(A116-A115)+Y115 -> 90 | Z116: =(AA116-Y116)/(AA92-Y92)*(Z92-Y92)+Y116 -> 90 | AA116: =(AA117-AA115)/(A117-A115)*(A116-A115)+AA115 -> 90 | AB116: 25
A117: 20 | B117: =B115+1 -> 12 | C117: - | D117: =(E117-C117)/(E92-C92)*(D92-C92)+C117 ->  | E117: - | F117: =(G117-E117)/(G92-E92)*(F92-E92)+E117 ->  | G117: 25 | H117: =(I117-G117)/(I92-G92)*(H92-G92)+G117 -> 10 | I117: 30 | J117: =(K117-I117)/(K92-I92)*(J92-I92)+I117 -> -10 | K117: 40 | L117: =(M117-K117)/(M92-K92)*(L92-K92)+K117 -> 20 | M117: 50 | N117: =(O117-M117)/(O92-M92)*(N92-M92)+M117 -> -10 | O117: 70 | P117: =(Q117-O117)/(Q92-O92)*(P92-O92)+O117 -> 70 | Q117: 70 | R117: =(S117-Q117)/(S92-Q92)*(R92-Q92)+Q117 -> 70 | S117: 70 | T117: =(U117-S117)/(U92-S92)*(T92-S92)+S117 -> 70 | U117: 70 | V117: =(W117-U117)/(W92-U92)*(V92-U92)+U117 -> 70 | W117: 70 | X117: =(Y117-W117)/(Y92-W92)*(X92-W92)+W117 -> 70 | Y117: 70 | Z117: =(AA117-Y117)/(AA92-Y92)*(Z92-Y92)+Y117 -> 70 | AA117: 70 | AB117: 26
A118: =IF(AND(AF99>A117,AF99<A119)=TRUE,AF99,0) -> 0 | C118: =(C119-C117)/(A119-A117)*(A118-A117)+C117 ->  | D118: =(E118-C118)/(E92-C92)*(D92-C92)+C118 ->  | E118: =(E119-E117)/(A119-A117)*(A118-A117)+E117 ->  | F118: =(G118-E118)/(G92-E92)*(F92-E92)+E118 ->  | G118: =(G119-G117)/(A119-A117)*(A118-A117)+G117 -> 45 | H118: =(I118-G118)/(I92-G92)*(H92-G92)+G118 -> 90 | I118: =(I119-I117)/(A119-A117)*(A118-A117)+I117 -> 30 | J118: =(K118-I118)/(K92-I92)*(J92-I92)+I118 -> -10 | K118: =(K119-K117)/(A119-A117)*(A118-A117)+K117 -> 40 | L118: =(M118-K118)/(M92-K92)*(L92-K92)+K118 -> 20 | M118: =(M119-M117)/(A119-A117)*(A118-A117)+M117 -> 50 | N118: =(O118-M118)/(O92-M92)*(N92-M92)+M118 -> -130 | O118: =(O119-O117)/(A119-A117)*(A118-A117)+O117 -> 110 | P118: =(Q118-O118)/(Q92-O92)*(P92-O92)+O118 -> 110 | Q118: =(Q119-Q117)/(A119-A117)*(A118-A117)+Q117 -> 110 | R118: =(S118-Q118)/(S92-Q92)*(R92-Q92)+Q118 -> 110 | S118: =(S119-S117)/(A119-A117)*(A118-A117)+S117 -> 110 | T118: =(U118-S118)/(U92-S92)*(T92-S92)+S118 -> 110 | U118: =(U119-U117)/(A119-A117)*(A118-A117)+U117 -> 110 | V118: =(W118-U118)/(W92-U92)*(V92-U92)+U118 -> 110 | W118: =(W119-W117)/(A119-A117)*(A118-A117)+W117 -> 110 | X118: =(Y118-W118)/(Y92-W92)*(X92-W92)+W118 -> 110 | Y118: =(Y119-Y117)/(A119-A117)*(A118-A117)+Y117 -> 110 | Z118: =(AA118-Y118)/(AA92-Y92)*(Z92-Y92)+Y118 -> 110 | AA118: =(AA119-AA117)/(A119-A117)*(A118-A117)+AA117 -> 110 | AB118: 27
A119: 25 | B119: =B117+1 -> 13 | C119: - | D119: =(E119-C119)/(E92-C92)*(D92-C92)+C119 ->  | E119: - | F119: =(G119-E119)/(G92-E92)*(F92-E92)+E119 ->  | G119: 20 | H119: =(I119-G119)/(I92-G92)*(H92-G92)+G119 -> -10 | I119: 30 | J119: =(K119-I119)/(K92-I92)*(J92-I92)+I119 -> -10 | K119: 40 | L119: =(M119-K119)/(M92-K92)*(L92-K92)+K119 -> 20 | M119: 50 | N119: =(O119-M119)/(O92-M92)*(N92-M92)+M119 -> 20 | O119: 60 | P119: =(Q119-O119)/(Q92-O92)*(P92-O92)+O119 -> 60 | Q119: 60 | R119: =(S119-Q119)/(S92-Q92)*(R92-Q92)+Q119 -> 60 | S119: 60 | T119: =(U119-S119)/(U92-S92)*(T92-S92)+S119 -> 60 | U119: 60 | V119: =(W119-U119)/(W92-U92)*(V92-U92)+U119 -> 60 | W119: 60 | X119: =(Y119-W119)/(Y92-W92)*(X92-W92)+W119 -> 60 | Y119: 60 | Z119: =(AA119-Y119)/(AA92-Y92)*(Z92-Y92)+Y119 -> 60 | AA119: 60 | AB119: 28
A120: =IF(AND(AF99>A119,AF99<A121)=TRUE,AF99,0) -> 0 | C120: =(C121-C119)/(A121-A119)*(A120-A119)+C119 ->  | D120: =(E120-C120)/(E92-C92)*(D92-C92)+C120 ->  | E120: =(E121-E119)/(A121-A119)*(A120-A119)+E119 ->  | F120: =(G120-E120)/(G92-E92)*(F92-E92)+E120 ->  | G120: =(G121-G119)/(A121-A119)*(A120-A119)+G119 ->  | H120: =(I120-G120)/(I92-G92)*(H92-G92)+G120 ->  | I120: =(I121-I119)/(A121-A119)*(A120-A119)+I119 -> 55 | J120: =(K120-I120)/(K92-I92)*(J92-I92)+I120 -> -85 | K120: =(K121-K119)/(A121-A119)*(A120-A119)+K119 -> 90 | L120: =(M120-K120)/(M92-K92)*(L92-K92)+K120 -> 120 | M120: =(M121-M119)/(A121-A119)*(A120-A119)+M119 -> 75 | N120: =(O120-M120)/(O92-M92)*(N92-M92)+M120 -> 120 | O120: =(O121-O119)/(A121-A119)*(A120-A119)+O119 -> 60 | P120: =(Q120-O120)/(Q92-O92)*(P92-O92)+O120 -> 60 | Q120: =(Q121-Q119)/(A121-A119)*(A120-A119)+Q119 -> 60 | R120: =(S120-Q120)/(S92-Q92)*(R92-Q92)+Q120 -> 60 | S120: =(S121-S119)/(A121-A119)*(A120-A119)+S119 -> 60 | T120: =(U120-S120)/(U92-S92)*(T92-S92)+S120 -> 60 | U120: =(U121-U119)/(A121-A119)*(A120-A119)+U119 -> 60 | V120: =(W120-U120)/(W92-U92)*(V92-U92)+U120 -> 60 | W120: =(W121-W119)/(A121-A119)*(A120-A119)+W119 -> 60 | X120: =(Y120-W120)/(Y92-W92)*(X92-W92)+W120 -> 60 | Y120: =(Y121-Y119)/(A121-A119)*(A120-A119)+Y119 -> 60 | Z120: =(AA120-Y120)/(AA92-Y92)*(Z92-Y92)+Y120 -> 60 | AA120: =(AA121-AA119)/(A121-A119)*(A120-A119)+AA119 -> 60 | AB120: 29
A121: 30 | B121: =B119+1 -> 14 | C121: - | D121: =(E121-C121)/(E92-C92)*(D92-C92)+C121 ->  | E121: - | F121: =(G121-E121)/(G92-E92)*(F92-E92)+E121 ->  | G121: - | H121: =(I121-G121)/(I92-G92)*(H92-G92)+G121 ->  | I121: 25 | J121: =(K121-I121)/(K92-I92)*(J92-I92)+I121 -> 5 | K121: 30 | L121: =(M121-K121)/(M92-K92)*(L92-K92)+K121 -> 0 | M121: 45 | N121: =(O121-M121)/(O92-M92)*(N92-M92)+M121 -> 0 | O121: 60 | P121: =(Q121-O121)/(Q92-O92)*(P92-O92)+O121 -> 60 | Q121: 60 | R121: =(S121-Q121)/(S92-Q92)*(R92-Q92)+Q121 -> 60 | S121: 60 | T121: =(U121-S121)/(U92-S92)*(T92-S92)+S121 -> 60 | U121: 60 | V121: =(W121-U121)/(W92-U92)*(V92-U92)+U121 -> 60 | W121: 60 | X121: =(Y121-W121)/(Y92-W92)*(X92-W92)+W121 -> 60 | Y121: 60 | Z121: =(AA121-Y121)/(AA92-Y92)*(Z92-Y92)+Y121 -> 60 | AA121: 60 | AB121: 30
AB122: 31
A123: COL | C123: 3 | D123: =C123+1 -> 4 | E123: =D123+1 -> 5 | F123: 6 | G123: 7 | H123: 8 | I123: 9 | J123: 10 | K123: 11 | L123: 12 | M123: 13 | N123: 14 | O123: 15 | P123: 16 | Q123: 17 | R123: 18 | S123: =R123+1 -> 19 | T123: 20 | U123: 21 | V123: 22 | W123: 23 | X123: 24 | Y123: 25 | Z123: 26 | AA123: 27 | AB123: 32
C124: 1 | D124: 2 | F124: 3 | H124: 4 | J124: 5 | L124: 6 | N124: 7 | P124: 8 | R124: 9 | T124: 10 | V124: 11 | X124: 12 | Z124: 13
B127: Рвх | C127: 0.015 | D127: =IF(AND(AI134>C127,AI134<E127)=TRUE,AI134,0) -> 0 | E127: 0.03 | F127: =IF(AND(AI134>E127,AI134<G127)=TRUE,AI134,0) -> 0 | G127: 0.05 | H127: =IF(AND(AI134>G127,AI134<I127)=TRUE,AI134,0) -> 0 | I127: 0.07 | J127: =IF(AND(AI134>I127,AI134<K127)=TRUE,AI134,0) -> 0 | K127: 0.1 | L127: =IF(AND(AI134>K127,AI134<M127)=TRUE,AI134,0) -> 0 | M127: 0.15 | N127: =IF(AND(AI134>M127,AI134<O127)=TRUE,AI134,0) -> 0 | O127: 0.2 | P127: =IF(AND(AI134>O127,AI134<Q127)=TRUE,AI134,0) -> 0 | Q127: 0.3 | R127: =IF(AND(AI134>Q127,AI134<S127)=TRUE,AI134,0) -> 0.373 | S127: 0.4 | T127: =IF(AND(AI134>S127,AI134<U127)=TRUE,AI134,0) -> 0 | U127: 0.5 | V127: =IF(AND(AI134>U127,AI134<W127)=TRUE,AI134,0) -> 0 | W127: 0.6 | X127: =IF(AND(AI134>W127,AI134<Y127)=TRUE,AI134,0) -> 0 | Y127: 0.8 | Z127: =IF(AND(AI134>Y127,AI134<AA127)=TRUE,AI134,0) -> 0 | AA127: 1 | AB127: =IF(AND(AI134>AA127,AI134<AC127)=TRUE,AI134,0) -> 0 | AC127: 1.2 | AD127: =IF(AND(AI134>AC127,AI134<AE127)=TRUE,AI134,0) -> 0 | AE127: 1.4 | AF127: =IF(AND(AM134>AE127,AM134<AG127)=TRUE,AM134,0) -> 0 | AG127: 1.6 | AH127: 1
A128: Рвых | B128: МПа | AH128: =AH127+1 -> 2
A129: кПа | AH129: =AH128+1 -> 3
A130: 8 | B130: 1 | C130: 80 | D130: =(E130-C130)/(E127-C127)*(D127-C127)+C130 -> 15 | E130: 145 | F130: =(G130-E130)/(G127-E127)*(F127-E127)+E130 -> 47.5 | G130: 210 | H130: =(I130-G130)/(I127-G127)*(H127-G127)+G130 -> 97.5 | I130: 255 | J130: =(K130-I130)/(K127-I127)*(J127-I127)+I130 -> 80 | K130: 330 | L130: =(M130-K130)/(M127-K127)*(L127-K127)+K130 -> 170 | M130: 410 | N130: =(O130-M130)/(O127-M127)*(N127-M127)+M130 -> -160 | O130: 600 | P130: =(Q130-O130)/(Q127-O127)*(P127-O127)+O130 -> 520 | Q130: =O130+((U130-O130)/((U127-O127)*10)) -> 640 | R130: =(S130-Q130)/(S127-Q127)*(R127-Q127)+Q130 -> 669.2 | S130: =Q130+((U130-O130)/((U127-O127)*10)) -> 680 | T130: =(U130-S130)/(U127-S127)*(T127-S127)+S130 -> 520 | U130: 720 | V130: =(W130-U130)/(W127-U127)*(V127-U127)+U130 -> 720 | W130: 720 | X130: =(Y130-W130)/(Y127-W127)*(X127-W127)+W130 ->  | Y130: - | Z130: =(AA130-Y130)/(AA127-Y127)*(Z127-Y127)+Y130 ->  | AA130: - | AB130: =(AC130-AA130)/(AC127-AA127)*(AB127-AA127)+AA130 ->  | AC130: - | AD130: =(AE130-AC130)/(AE127-AC127)*(AD127-AC127)+AC130 ->  | AE130: - | AF130: =(AG130-AE130)/(AG127-AE127)*(AF127-AE127)+AE130 ->  | AG130: - | AH130: =AH129+1 -> 4 | AI130: Рвх | AJ130: Q | AK130: Qcрасч | AL130: Рвых | AM130: Рвых
A131: =IF(AND(AL134>A130,AL134<A132)=TRUE,AL134,0) -> 0 | C131: =(C132-C130)/(A132-A130)*(A131-A130)+C130 -> 120 | D131: =(E131-C131)/(E127-C127)*(D127-C127)+C131 -> 75 | E131: =(E132-E130)/(A132-A130)*(A131-A130)+E130 -> 165 | F131: =(G131-E131)/(G127-E127)*(F127-E127)+E131 -> 67.5 | G131: =(G132-G130)/(A132-A130)*(A131-A130)+G130 -> 230 | H131: =(I131-G131)/(I127-G127)*(H127-G127)+G131 -> 67.5 | I131: =(I132-I130)/(A132-A130)*(A131-A130)+I130 -> 295 | J131: =(K131-I131)/(K127-I127)*(J127-I127)+I131 -> 120 | K131: =(K132-K130)/(A132-A130)*(A131-A130)+K130 -> 370 | L131: =(M131-K131)/(M127-K127)*(L127-K127)+K131 -> 250 | M131: =(M132-M130)/(A132-A130)*(A131-A130)+M130 -> 430 | N131: =(O131-M131)/(O127-M127)*(N127-M127)+M131 -> -80 | O131: =(O132-O130)/(A132-A130)*(A131-A130)+O130 -> 600 | P131: =(Q131-O131)/(Q127-O127)*(P127-O127)+O131 -> 520 | Q131: =(Q132-Q130)/(A132-A130)*(A131-A130)+Q130 -> 640 | R131: =(S131-Q131)/(S127-Q127)*(R127-Q127)+Q131 -> 669.2 | S131: =(S132-S130)/(A132-A130)*(A131-A130)+S130 -> 680 | T131: =(U131-S131)/(U127-S127)*(T127-S127)+S131 -> 520 | U131: =(U132-U130)/(A132-A130)*(A131-A130)+U130 -> 720 | V131: =(W131-U131)/(W127-U127)*(V127-U127)+U131 -> 720 | W131: =(W132-W130)/(E132-E130)*(E131-E130)+W130 -> 720 | X131: =(Y131-W131)/(Y127-W127)*(X127-W127)+W131 ->  | Y131: =(Y132-Y130)/(A132-A130)*(A131-A130)+Y130 ->  | Z131: =(AA131-Y131)/(AA127-Y127)*(Z127-Y127)+Y131 ->  | AA131: =(AA132-AA130)/(A132-A130)*(A131-A130)+AA130 ->  | AB131: =(AC131-AA131)/(AC127-AA127)*(AB127-AA127)+AA131 ->  | AC131: =(AC132-AC130)/(A132-A130)*(A131-A130)+AC130 ->  | AD131: =(AE131-AC131)/(AE127-AC127)*(AD127-AC127)+AC131 ->  | AE131: =(AE132-AE130)/(E132-E130)*(E131-E130)+AE130 ->  | AF131: =(AG131-AE131)/(AG127-AE127)*(AF127-AE127)+AE131 ->  | AG131: =(AG132-AG130)/(A132-A130)*(A131-A130)+AG130 ->  | AH131: 5
A132: 10 | B132: =B130+1 -> 2 | C132: 70 | D132: =(E132-C132)/(E127-C127)*(D127-C127)+C132 -> 0 | E132: 140 | F132: =(G132-E132)/(G127-E127)*(F127-E127)+E132 -> 42.5 | G132: 205 | H132: =(I132-G132)/(I127-G127)*(H127-G127)+G132 -> 105 | I132: 245 | J132: =(K132-I132)/(K127-I127)*(J127-I127)+I132 -> 70 | K132: 320 | L132: =(M132-K132)/(M127-K127)*(L127-K127)+K132 -> 150 | M132: 405 | N132: =(O132-M132)/(O127-M127)*(N127-M127)+M132 -> -180 | O132: 600 | P132: =(Q132-O132)/(Q127-O127)*(P127-O127)+O132 -> 520 | Q132: =O132+((U132-O132)/((U127-O127)*10)) -> 640 | R132: =(S132-Q132)/(S127-Q127)*(R127-Q127)+Q132 -> 669.2 | S132: =Q132+((U132-O132)/((U127-O127)*10)) -> 680 | T132: =(U132-S132)/(U127-S127)*(T127-S127)+S132 -> 520 | U132: 720 | V132: =(W132-U132)/(W127-U127)*(V127-U127)+U132 -> 720 | W132: 720 | X132: =(Y132-W132)/(Y127-W127)*(X127-W127)+W132 ->  | Y132: - | Z132: =(AA132-Y132)/(AA127-Y127)*(Z127-Y127)+Y132 ->  | AA132: - | AB132: =(AC132-AA132)/(AC127-AA127)*(AB127-AA127)+AA132 ->  | AC132: - | AD132: =(AE132-AC132)/(AE127-AC127)*(AD127-AC127)+AC132 ->  | AE132: - | AF132: =(AG132-AE132)/(AG127-AE127)*(AF127-AE127)+AE132 ->  | AG132: - | AH132: =AH131+1 -> 6 | AI132: МПа | AJ132: нм3/час | AK132: нм3/час | AL132: кПа | AM132: кПа
A133: =IF(AND(AL134>A132,AL134<A134)=TRUE,AL134,0) -> 0 | C133: =(C134-C132)/(A134-A132)*(A133-A132)+C132 -> 210 | D133: =(E133-C133)/(E127-C127)*(D127-C127)+C133 -> 240 | E133: =(E134-E132)/(A134-A132)*(A133-A132)+E132 -> 180 | F133: =(G133-E133)/(G127-E127)*(F127-E127)+E133 -> 127.5 | G133: =(G134-G132)/(A134-A132)*(A133-A132)+G132 -> 215 | H133: =(I133-G133)/(I127-G127)*(H127-G127)+G133 -> 115 | I133: =(I134-I132)/(A134-A132)*(A133-A132)+I132 -> 255 | J133: =(K133-I133)/(K127-I127)*(J127-I127)+I133 -> 80 | K133: =(K134-K132)/(A134-A132)*(A133-A132)+K132 -> 330 | L133: =(M133-K133)/(M127-K127)*(L127-K127)+K133 -> 160 | M133: =(M134-M132)/(A134-A132)*(A133-A132)+M132 -> 415 | N133: =(O133-M133)/(O127-M127)*(N127-M127)+M133 -> -140 | O133: =(O134-O132)/(A134-A132)*(A133-A132)+O132 -> 600 | P133: =(Q133-O133)/(Q127-O127)*(P127-O127)+O133 -> 726.6666667 | Q133: =(Q134-Q132)/(A134-A132)*(A133-A132)+Q132 -> 536.6666667 | R133: =(S133-Q133)/(S127-Q127)*(R127-Q127)+Q133 -> 490.4333333 | S133: =(S134-S132)/(A134-A132)*(A133-A132)+S132 -> 473.3333333 | T133: =(U133-S133)/(U127-S127)*(T127-S127)+S133 -> 726.6666667 | U133: =(U134-U132)/(A134-A132)*(A133-A132)+U132 -> 410 | V133: =(W133-U133)/(W127-U127)*(V127-U127)+U133 -> 410 | W133: =(W134-W132)/(E134-E132)*(E133-E132)+W132 -> 410 | X133: =(Y133-W133)/(Y127-W127)*(X127-W127)+W133 ->  | Y133: =(Y134-Y132)/(G134-G132)*(G133-G132)+Y132 ->  | Z133: =(AA133-Y133)/(AA127-Y127)*(Z127-Y127)+Y133 ->  | AA133: =(AA134-AA132)/(I134-I132)*(I133-I132)+AA132 ->  | AB133: =(AC133-AA133)/(AC127-AA127)*(AB127-AA127)+AA133 ->  | AC133: =(AC134-AC132)/(A134-A132)*(A133-A132)+AC132 ->  | AD133: =(AE133-AC133)/(AE127-AC127)*(AD127-AC127)+AC133 ->  | AE133: =(AE134-AE132)/(E134-E132)*(E133-E132)+AE132 ->  | AF133: =(AG133-AE133)/(AG127-AE127)*(AF127-AE127)+AE133 ->  | AG133: =(AG134-AG132)/(A134-A132)*(A133-A132)+AG132 ->  | AH133: 7
A134: 15 | B134: =B132+1 -> 3 | C134: 0 | D134: =(E134-C134)/(E127-C127)*(D127-C127)+C134 -> -120 | E134: 120 | F134: =(G134-E134)/(G127-E127)*(F127-E127)+E134 -> 0 | G134: 200 | H134: =(I134-G134)/(I127-G127)*(H127-G127)+G134 -> 100 | I134: 240 | J134: =(K134-I134)/(K127-I127)*(J127-I127)+I134 -> 65 | K134: 315 | L134: =(M134-K134)/(M127-K127)*(L127-K127)+K134 -> 145 | M134: 400 | N134: =(O134-M134)/(O127-M127)*(N127-M127)+M134 -> -200 | O134: 600 | P134: =(Q134-O134)/(Q127-O127)*(P127-O127)+O134 -> 416.6666667 | Q134: =O134+((U134-O134)/((U127-O127)*10)) -> 691.6666667 | R134: =(S134-Q134)/(S127-Q127)*(R127-Q127)+Q134 -> 758.5833333 | S134: =Q134+((U134-O134)/((U127-O127)*10)) -> 783.3333333 | T134: =(U134-S134)/(U127-S127)*(T127-S127)+S134 -> 416.6666667 | U134: 875 | V134: =(W134-U134)/(W127-U127)*(V127-U127)+U134 -> 875 | W134: =(Y134-U134)/(Y127-U127)*(W127-U127)+U134 -> 875 | X134: =(Y134-W134)/(Y127-W127)*(X127-W127)+W134 -> 875 | Y134: 875 | Z134: =(AA134-Y134)/(AA127-Y127)*(Z127-Y127)+Y134 ->  | AA134: - | AB134: =(AC134-AA134)/(AC127-AA127)*(AB127-AA127)+AA134 ->  | AC134: - | AD134: =(AE134-AC134)/(AE127-AC127)*(AD127-AC127)+AC134 ->  | AE134: - | AF134: =(AG134-AE134)/(AG127-AE127)*(AF127-AE127)+AE134 ->  | AG134: - | AH134: 8 | AI134: =AK21 -> 0.373 | AJ134: =AL21 -> 229.2 | AK134: =VLOOKUP(AL134,A127:AG160,HLOOKUP(AI134,A127:AG160,34,0),0) -> 191.625 | AL134: =AN21 -> 300 | AM134: =IF(AI134<A130,"NO",IF(AI134>A158,"N0",IF(VLOOKUP(AI134,A130:AG158,3,0)>AJ134,"NO",IF(VLOOKUP(AI134,A130:AG158,17,0)<AJ134,"NO",IF(AND(AK134>=AJ134-0.1,AK134<AJ134+0.1)=TRUE,AL134,"NO"))))) -> NO
A135: =IF(AND(AL134>A134,AL134<A136)=TRUE,AL134,0) -> 0 | C135: =(C136-C134)/(A136-A134)*(A135-A134)+C134 ->  | D135: =(E135-C135)/(E127-C127)*(D127-C127)+C135 ->  | E135: =(E136-E134)/(A136-A134)*(A135-A134)+E134 -> 165 | F135: =(G135-E135)/(G127-E127)*(F127-E127)+E135 -> 67.5 | G135: =(G136-G134)/(A136-A134)*(A135-A134)+G134 -> 230 | H135: =(I135-G135)/(I127-G127)*(H127-G127)+G135 -> 167.5 | I135: =(I136-I134)/(A136-A134)*(A135-A134)+I134 -> 255 | J135: =(K135-I135)/(K127-I127)*(J127-I127)+I135 -> 80 | K135: =(K136-K134)/(A136-A134)*(A135-A134)+K134 -> 330 | L135: =(M135-K135)/(M127-K127)*(L127-K127)+K135 -> 160 | M135: =(M136-M134)/(A136-A134)*(A135-A134)+M134 -> 415 | N135: =(O135-M135)/(O127-M127)*(N127-M127)+M135 -> -140 | O135: =(O136-O134)/(A136-A134)*(A135-A134)+O134 -> 600 | P135: =(Q135-O135)/(Q127-O127)*(P127-O127)+O135 -> 586.6666667 | Q135: =(Q136-Q134)/(A136-A134)*(A135-A134)+Q134 -> 606.6666667 | R135: =(S135-Q135)/(S127-Q127)*(R127-Q127)+Q135 -> 611.5333333 | S135: =(S136-S134)/(A136-A134)*(A135-A134)+S134 -> 613.3333333 | T135: =(U135-S135)/(U127-S127)*(T127-S127)+S135 -> 586.6666667 | U135: =(U136-U134)/(A136-A134)*(A135-A134)+U134 -> 620 | V135: =(W135-U135)/(W127-U127)*(V127-U127)+U135 -> 620 | W135: =(W136-W134)/(A136-A134)*(A135-A134)+W134 -> 620 | X135: =(Y135-W135)/(Y127-W127)*(X127-W127)+W135 -> 620 | Y135: =(Y136-Y134)/(G136-G134)*(G135-G134)+Y134 -> 620 | Z135: =(AA135-Y135)/(AA127-Y127)*(Z127-Y127)+Y135 ->  | AA135: =(AA136-AA134)/(I136-I134)*(I135-I134)+AA134 ->  | AB135: =(AC135-AA135)/(AC127-AA127)*(AB127-AA127)+AA135 ->  | AC135: =(AC136-AC134)/(A136-A134)*(A135-A134)+AC134 ->  | AD135: =(AE135-AC135)/(AE127-AC127)*(AD127-AC127)+AC135 ->  | AE135: =(AE136-AE134)/(A136-A134)*(A135-A134)+AE134 ->  | AF135: =(AG135-AE135)/(AG127-AE127)*(AF127-AE127)+AE135 ->  | AG135: =(AG136-AG134)/(A136-A134)*(A135-A134)+AG134 ->  | AH135: 9
A136: 20 | B136: =B134+1 -> 4 | C136: - | D136: =(E136-C136)/(E127-C127)*(D127-C127)+C136 ->  | E136: 105 | F136: =(G136-E136)/(G127-E127)*(F127-E127)+E136 -> -22.5 | G136: 190 | H136: =(I136-G136)/(I127-G127)*(H127-G127)+G136 -> 77.5 | I136: 235 | J136: =(K136-I136)/(K127-I127)*(J127-I127)+I136 -> 60 | K136: 310 | L136: =(M136-K136)/(M127-K127)*(L127-K127)+K136 -> 140 | M136: 395 | N136: =(O136-M136)/(O127-M127)*(N127-M127)+M136 -> -220 | O136: 600 | P136: =(Q136-O136)/(Q127-O127)*(P127-O127)+O136 -> 360 | Q136: =O136+((U136-O136)/((U127-O127)*10)) -> 720 | R136: =(S136-Q136)/(S127-Q127)*(R127-Q127)+Q136 -> 807.6 | S136: =Q136+((U136-O136)/((U127-O127)*10)) -> 840 | T136: =(U136-S136)/(U127-S127)*(T127-S127)+S136 -> 360 | U136: 960 | V136: =(W136-U136)/(W127-U127)*(V127-U127)+U136 -> 960 | W136: =(Y136-U136)/(Y127-U127)*(W127-U127)+U136 -> 960 | X136: =(Y136-W136)/(Y127-W127)*(X127-W127)+W136 -> 960 | Y136: 960 | Z136: =(AA136-Y136)/(AA127-Y127)*(Z127-Y127)+Y136 -> 960 | AA136: 960 | AB136: =(AC136-AA136)/(AC127-AA127)*(AB127-AA127)+AA136 -> 960 | AC136: 960 | AD136: =(AE136-AC136)/(AE127-AC127)*(AD127-AC127)+AC136 ->  | AE136: - | AF136: =(AG136-AE136)/(AG127-AE127)*(AF127-AE127)+AE136 ->  | AG136: - | AH136: 10 | AI136: 0.1 | AJ136: =AL23 -> 263.58
A137: =IF(AND(AL134>A136,AL134<A138)=TRUE,AL134,0) -> 0 | C137: =(C138-C136)/(A138-A136)*(A137-A136)+C136 ->  | D137: =(E137-C137)/(E127-C127)*(D127-C127)+C137 ->  | E137: =(E138-E136)/(A138-A136)*(A137-A136)+E136 -> 315 | F137: =(G137-E137)/(G127-E127)*(F127-E127)+E137 -> 427.5 | G137: =(G138-G136)/(A138-A136)*(A137-A136)+G136 -> 240 | H137: =(I137-G137)/(I127-G127)*(H127-G127)+G137 -> 227.5 | I137: =(I138-I136)/(A138-A136)*(A137-A136)+I136 -> 245 | J137: =(K137-I137)/(K127-I127)*(J127-I127)+I137 -> 70 | K137: =(K138-K136)/(A138-A136)*(A137-A136)+K136 -> 320 | L137: =(M137-K137)/(M127-K127)*(L127-K127)+K137 -> 150 | M137: =(M138-M136)/(A138-A136)*(A137-A136)+M136 -> 405 | N137: =(O137-M137)/(O127-M127)*(N127-M127)+M137 -> -180 | O137: =(O138-O136)/(A138-A136)*(A137-A136)+O136 -> 600 | P137: =(Q137-O137)/(Q127-O127)*(P127-O127)+O137 -> 526.6666667 | Q137: =(Q138-Q136)/(A138-A136)*(A137-A136)+Q136 -> 636.6666667 | R137: =(S137-Q137)/(S127-Q127)*(R127-Q127)+Q137 -> 663.4333333 | S137: =(S138-S136)/(A138-A136)*(A137-A136)+S136 -> 673.3333333 | T137: =(U137-S137)/(U127-S127)*(T127-S127)+S137 -> 526.6666667 | U137: =(U138-U136)/(A138-A136)*(A137-A136)+U136 -> 710 | V137: =(W137-U137)/(W127-U127)*(V127-U127)+U137 -> 710 | W137: =(W138-W136)/(A138-A136)*(A137-A136)+W136 -> 710 | X137: =(Y137-W137)/(Y127-W127)*(X127-W127)+W137 -> 710 | Y137: =(Y138-Y136)/(G138-G136)*(G137-G136)+Y136 -> 710 | Z137: =(AA137-Y137)/(AA127-Y127)*(Z127-Y127)+Y137 -> 710 | AA137: =(AA138-AA136)/(I138-I136)*(I137-I136)+AA136 -> 710 | AB137: =(AC137-AA137)/(AC127-AA127)*(AB127-AA127)+AA137 -> 710 | AC137: =(AC138-AC136)/(A138-A136)*(A137-A136)+AC136 -> 710 | AD137: =(AE137-AC137)/(AE127-AC127)*(AD127-AC127)+AC137 ->  | AE137: =(AE138-AE136)/(A138-A136)*(A137-A136)+AE136 ->  | AF137: =(AG137-AE137)/(AG127-AE127)*(AF127-AE127)+AE137 ->  | AG137: =(AG138-AG136)/(A138-A136)*(A137-A136)+AG136 ->  | AH137: 11
A138: 30 | B138: =B136+1 -> 5 | C138: - | D138: =(E138-C138)/(E127-C127)*(D127-C127)+C138 ->  | E138: 0 | F138: =(G138-E138)/(G127-E127)*(F127-E127)+E138 -> -247.5 | G138: 165 | H138: =(I138-G138)/(I127-G127)*(H127-G127)+G138 -> 2.5 | I138: 230 | J138: =(K138-I138)/(K127-I127)*(J127-I127)+I138 -> 55 | K138: 305 | L138: =(M138-K138)/(M127-K127)*(L127-K127)+K138 -> 135 | M138: 390 | N138: =(O138-M138)/(O127-M127)*(N127-M127)+M138 -> -240 | O138: 600 | P138: =(Q138-O138)/(Q127-O127)*(P127-O127)+O138 -> 276.6666667 | Q138: =O138+((U138-O138)/((U127-O127)*10)) -> 761.6666667 | R138: =(S138-Q138)/(S127-Q127)*(R127-Q127)+Q138 -> 879.6833333 | S138: =Q138+((U138-O138)/((U127-O127)*10)) -> 923.3333333 | T138: =(U138-S138)/(U127-S127)*(T127-S127)+S138 -> 276.6666667 | U138: 1085 | V138: =(W138-U138)/(W127-U127)*(V127-U127)+U138 -> 1085 | W138: =(Y138-U138)/(Y127-U127)*(W127-U127)+U138 -> 1085 | X138: =(Y138-W138)/(Y127-W127)*(X127-W127)+W138 -> 1085 | Y138: 1085 | Z138: =(AA138-Y138)/(AA127-Y127)*(Z127-Y127)+Y138 -> 1085 | AA138: 1085 | AB138: =(AC138-AA138)/(AC127-AA127)*(AB127-AA127)+AA138 -> 1085 | AC138: 1085 | AD138: =(AE138-AC138)/(AE127-AC127)*(AD127-AC127)+AC138 -> 1085 | AE138: 1085 | AF138: =(AG138-AE138)/(AG127-AE127)*(AF127-AE127)+AE138 -> 1085 | AG138: 1085 | AH138: 12 | AI138: Регулятор давления | AL138: =Лист1!F70 -> РЕД-5-50-С5.3 DN50 Qmax=1350 м.куб/час
A139: =IF(AND(AL134>A138,AL134<A140)=TRUE,AL134,0) -> 0 | C139: =(C140-C138)/(A140-A138)*(A139-A138)+C138 ->  | D139: =(E139-C139)/(E127-C127)*(D127-C127)+C139 ->  | E139: =(E140-E138)/(A140-A138)*(A139-A138)+E138 ->  | F139: =(G139-E139)/(G127-E127)*(F127-E127)+E139 ->  | G139: =(G140-G138)/(A140-A138)*(A139-A138)+G138 -> 300 | H139: =(I139-G139)/(I127-G127)*(H127-G127)+G139 -> 325 | I139: =(I140-I138)/(A140-A138)*(A139-A138)+I138 -> 290 | J139: =(K139-I139)/(K127-I127)*(J127-I127)+I139 -> 185 | K139: =(K140-K138)/(A140-A138)*(A139-A138)+K138 -> 335 | L139: =(M139-K139)/(M127-K127)*(L127-K127)+K139 -> 195 | M139: =(M140-M138)/(A140-A138)*(A139-A138)+M138 -> 405 | N139: =(O139-M139)/(O127-M127)*(N127-M127)+M139 -> -180 | O139: =(O140-O138)/(A140-A138)*(A139-A138)+O138 -> 600 | P139: =(Q139-O139)/(Q127-O127)*(P127-O127)+O139 -> 6.666666667 | Q139: =(Q140-Q138)/(A140-A138)*(A139-A138)+Q138 -> 896.6666667 | R139: =(S139-Q139)/(S127-Q127)*(R127-Q127)+Q139 -> 1113.233333 | S139: =(S140-S138)/(A140-A138)*(A139-A138)+S138 -> 1193.333333 | T139: =(U139-S139)/(U127-S127)*(T127-S127)+S139 -> 6.666666667 | U139: =(U140-U138)/(A140-A138)*(A139-A138)+U138 -> 1490 | V139: =(W139-U139)/(W127-U127)*(V127-U127)+U139 -> 2490 | W139: =(W140-W138)/(A140-A138)*(A139-A138)+W138 -> 1290 | X139: =(Y139-W139)/(Y127-W127)*(X127-W127)+W139 -> 2490 | Y139: =(Y140-Y138)/(A140-A138)*(A139-A138)+Y138 -> 890 | Z139: =(AA139-Y139)/(AA127-Y127)*(Z127-Y127)+Y139 -> 890 | AA139: =(AA140-AA138)/(A140-A138)*(A139-A138)+AA138 -> 890 | AB139: =(AC139-AA139)/(AC127-AA127)*(AB127-AA127)+AA139 -> 890 | AC139: =(AC140-AC138)/(A140-A138)*(A139-A138)+AC138 -> 890 | AD139: =(AE139-AC139)/(AE127-AC127)*(AD127-AC127)+AC139 -> 890 | AE139: =(AE140-AE138)/(A140-A138)*(A139-A138)+AE138 -> 890 | AF139: =(AG139-AE139)/(AG127-AE127)*(AF127-AE127)+AE139 -> 890 | AG139: =(AG140-AG138)/(A140-A138)*(A139-A138)+AG138 -> 890 | AH139: 13
A140: 40 | B140: =B138+1 -> 6 | C140: - | D140: =(E140-C140)/(E127-C127)*(D127-C127)+C140 ->  | E140: - | F140: =(G140-E140)/(G127-E127)*(F127-E127)+E140 ->  | G140: 120 | H140: =(I140-G140)/(I127-G127)*(H127-G127)+G140 -> -105 | I140: 210 | J140: =(K140-I140)/(K127-I127)*(J127-I127)+I140 -> 11.66666667 | K140: 295 | L140: =(M140-K140)/(M127-K127)*(L127-K127)+K140 -> 115 | M140: 385 | N140: =(O140-M140)/(O127-M127)*(N127-M127)+M140 -> -260 | O140: 600 | P140: =(Q140-O140)/(Q127-O127)*(P127-O127)+O140 -> 366.6666667 | Q140: =O140+((U140-O140)/((U127-O127)*10)) -> 716.6666667 | R140: =(S140-Q140)/(S127-Q127)*(R127-Q127)+Q140 -> 801.8333333 | S140: =Q140+((U140-O140)/((U127-O127)*10)) -> 833.3333333 | T140: =(U140-S140)/(U127-S127)*(T127-S127)+S140 -> 366.6666667 | U140: 950 | V140: =(W140-U140)/(W127-U127)*(V127-U127)+U140 -> 616.6666667 | W140: =(Y140-U140)/(Y127-U127)*(W127-U127)+U140 -> 1016.666667 | X140: =(Y140-W140)/(Y127-W127)*(X127-W127)+W140 -> 616.6666667 | Y140: 1150 | Z140: =(AA140-Y140)/(AA127-Y127)*(Z127-Y127)+Y140 -> 1150 | AA140: 1150 | AB140: =(AC140-AA140)/(AC127-AA127)*(AB127-AA127)+AA140 -> 1150 | AC140: 1150 | AD140: =(AE140-AC140)/(AE127-AC127)*(AD127-AC127)+AC140 -> 1150 | AE140: 1150 | AF140: =(AG140-AE140)/(AG127-AE127)*(AF127-AE127)+AE140 -> 1150 | AG140: 1150 | AH140: 14
A141: =IF(AND(AL134>A140,AL134<A142)=TRUE,AL134,0) -> 0 | C141: =(C142-C140)/(A142-A140)*(A141-A140)+C140 ->  | D141: =(E141-C141)/(E127-C127)*(D127-C127)+C141 ->  | E141: =(E142-E140)/(A142-A140)*(A141-A140)+E140 ->  | F141: =(G141-E141)/(G127-E127)*(F127-E127)+E141 ->  | G141: =(G142-G140)/(A142-A140)*(A141-A140)+G140 -> 600 | H141: =(I141-G141)/(I127-G127)*(H127-G127)+G141 -> 1275 | I141: =(I142-I140)/(A142-A140)*(A141-A140)+I140 -> 330 | J141: =(K141-I141)/(K127-I127)*(J127-I127)+I141 -> 271.6666667 | K141: =(K142-K140)/(A142-A140)*(A141-A140)+K140 -> 355 | L141: =(M141-K141)/(M127-K127)*(L127-K127)+K141 -> 255 | M141: =(M142-M140)/(A142-A140)*(A141-A140)+M140 -> 405 | N141: =(O141-M141)/(O127-M127)*(N127-M127)+M141 -> -180 | O141: =(O142-O140)/(A142-A140)*(A141-A140)+O140 -> 600 | P141: =(Q141-O141)/(Q127-O127)*(P127-O127)+O141 -> 366.6666667 | Q141: =(Q142-Q140)/(A142-A140)*(A141-A140)+Q140 -> 716.6666667 | R141: =(S141-Q141)/(S127-Q127)*(R127-Q127)+Q141 -> 801.8333333 | S141: =(S142-S140)/(A142-A140)*(A141-A140)+S140 -> 833.3333333 | T141: =(U141-S141)/(U127-S127)*(T127-S127)+S141 -> 366.6666667 | U141: =(U142-U140)/(A142-A140)*(A141-A140)+U140 -> 950 | V141: =(W141-U141)/(W127-U127)*(V127-U127)+U141 -> 616.6666667 | W141: =(W142-W140)/(A142-A140)*(A141-A140)+W140 -> 1016.666667 | X141: =(Y141-W141)/(Y127-W127)*(X127-W127)+W141 -> 616.6666667 | Y141: =(Y142-Y140)/(A142-A140)*(A141-A140)+Y140 -> 1150 | Z141: =(AA141-Y141)/(AA127-Y127)*(Z127-Y127)+Y141 -> 2750 | AA141: =(AA142-AA140)/(A142-A140)*(A141-A140)+AA140 -> 750 | AB141: =(AC141-AA141)/(AC127-AA127)*(AB127-AA127)+AA141 -> 750 | AC141: =(AC142-AC140)/(A142-A140)*(A141-A140)+AC140 -> 750 | AD141: =(AE141-AC141)/(AE127-AC127)*(AD127-AC127)+AC141 -> 750 | AE141: =(AE142-AE140)/(A142-A140)*(A141-A140)+AE140 -> 750 | AF141: =(AG141-AE141)/(AG127-AE127)*(AF127-AE127)+AE141 -> 750 | AG141: =(AG142-AG140)/(A142-A140)*(A141-A140)+AG140 -> 750 | AH141: 15
A142: 50 | B142: =B140+1 -> 7 | C142: - | D142: =(E142-C142)/(E127-C127)*(D127-C127)+C142 ->  | E142: - | F142: =(G142-E142)/(G127-E127)*(F127-E127)+E142 ->  | G142: 0 | H142: =(I142-G142)/(I127-G127)*(H127-G127)+G142 -> -450 | I142: 180 | J142: =(K142-I142)/(K127-I127)*(J127-I127)+I142 -> -53.33333333 | K142: 280 | L142: =(M142-K142)/(M127-K127)*(L127-K127)+K142 -> 80 | M142: 380 | N142: =(O142-M142)/(O127-M127)*(N127-M127)+M142 -> -280 | O142: 600 | P142: =(Q142-O142)/(Q127-O127)*(P127-O127)+O142 -> 366.6666667 | Q142: =O142+((U142-O142)/((U127-O127)*10)) -> 716.6666667 | R142: =(S142-Q142)/(S127-Q127)*(R127-Q127)+Q142 -> 801.8333333 | S142: =Q142+((U142-O142)/((U127-O127)*10)) -> 833.3333333 | T142: =(U142-S142)/(U127-S127)*(T127-S127)+S142 -> 366.6666667 | U142: 950 | V142: =(W142-U142)/(W127-U127)*(V127-U127)+U142 -> 616.6666667 | W142: =(Y142-U142)/(Y127-U127)*(W127-U127)+U142 -> 1016.666667 | X142: =(Y142-W142)/(Y127-W127)*(X127-W127)+W142 -> 616.6666667 | Y142: 1150 | Z142: =(AA142-Y142)/(AA127-Y127)*(Z127-Y127)+Y142 -> 750 | AA142: 1250 | AB142: =(AC142-AA142)/(AC127-AA127)*(AB127-AA127)+AA142 -> 1250 | AC142: 1250 | AD142: =(AE142-AC142)/(AE127-AC127)*(AD127-AC127)+AC142 -> 1250 | AE142: 1250 | AF142: =(AG142-AE142)/(AG127-AE127)*(AF127-AE127)+AE142 -> 1250 | AG142: 1250 | AH142: 16
A143: =IF(AND(AL134>A142,AL134<A144)=TRUE,AL134,0) -> 0 | C143: =(C144-C142)/(A144-A142)*(A143-A142)+C142 ->  | D143: =(E143-C143)/(E127-C127)*(D127-C127)+C143 ->  | E143: =(E144-E142)/(A144-A142)*(A143-A142)+E142 ->  | F143: =(G143-E143)/(G127-E127)*(F127-E127)+E143 ->  | G143: =(G144-G142)/(A144-A142)*(A143-A142)+G142 ->  | H143: =(I143-G143)/(I127-G127)*(H127-G127)+G143 ->  | I143: =(I144-I142)/(A144-A142)*(A143-A142)+I142 -> 430 | J143: =(K143-I143)/(K127-I127)*(J127-I127)+I143 -> 546.6666667 | K143: =(K144-K142)/(A144-A142)*(A143-A142)+K142 -> 380 | L143: =(M143-K143)/(M127-K127)*(L127-K127)+K143 -> 330 | M143: =(M144-M142)/(A144-A142)*(A143-A142)+M142 -> 405 | N143: =(O143-M143)/(O127-M127)*(N127-M127)+M143 -> -285 | O143: =(O144-O142)/(A144-A142)*(A143-A142)+O142 -> 635 | P143: =(Q143-O143)/(Q127-O127)*(P127-O127)+O143 -> 425 | Q143: =(Q144-Q142)/(A144-A142)*(A143-A142)+Q142 -> 740 | R143: =(S143-Q143)/(S127-Q127)*(R127-Q127)+Q143 -> 816.65 | S143: =(S144-S142)/(A144-A142)*(A143-A142)+S142 -> 845 | T143: =(U143-S143)/(U127-S127)*(T127-S127)+S143 -> 425 | U143: =(U144-U142)/(A144-A142)*(A143-A142)+U142 -> 950 | V143: =(W143-U143)/(W127-U127)*(V127-U127)+U143 -> 950 | W143: =(W144-W142)/(A144-A142)*(A143-A142)+W142 -> 950 | X143: =(Y143-W143)/(Y127-W127)*(X127-W127)+W143 -> 950 | Y143: =(Y144-Y142)/(A144-A142)*(A143-A142)+Y142 -> 950 | Z143: =(AA143-Y143)/(AA127-Y127)*(Z127-Y127)+Y143 -> 1750 | AA143: =(AA144-AA142)/(A144-A142)*(A143-A142)+AA142 -> 750 | AB143: =(AC143-AA143)/(AC127-AA127)*(AB127-AA127)+AA143 -> 750 | AC143: =(AC144-AC142)/(A144-A142)*(A143-A142)+AC142 -> 750 | AD143: =(AE143-AC143)/(AE127-AC127)*(AD127-AC127)+AC143 -> 750 | AE143: =(AE144-AE142)/(A144-A142)*(A143-A142)+AE142 -> 750 | AF143: =(AG143-AE143)/(AG127-AE127)*(AF127-AE127)+AE143 -> 750 | AG143: =(AG144-AG142)/(A144-A142)*(A143-A142)+AG142 -> 750 | AH143: =AH142+1 -> 17
A144: 60 | B144: =B142+1 -> 8 | C144: - | D144: =(E144-C144)/(E127-C127)*(D127-C127)+C144 ->  | E144: - | F144: =(G144-E144)/(G127-E127)*(F127-E127)+E144 ->  | G144: - | H144: =(I144-G144)/(I127-G127)*(H127-G127)+G144 ->  | I144: 130 | J144: =(K144-I144)/(K127-I127)*(J127-I127)+I144 -> -173.3333333 | K144: 260 | L144: =(M144-K144)/(M127-K127)*(L127-K127)+K144 -> 30 | M144: 375 | N144: =(O144-M144)/(O127-M127)*(N127-M127)+M144 -> -279 | O144: 593 | P144: =(Q144-O144)/(Q127-O127)*(P127-O127)+O144 -> 355 | Q144: =O144+((U144-O144)/((U127-O127)*10)) -> 712 | R144: =(S144-Q144)/(S127-Q127)*(R127-Q127)+Q144 -> 798.87 | S144: =Q144+((U144-O144)/((U127-O127)*10)) -> 831 | T144: =(U144-S144)/(U127-S127)*(T127-S127)+S144 -> 355 | U144: 950 | V144: =(W144-U144)/(W127-U127)*(V127-U127)+U144 -> 550 | W144: =(Y144-U144)/(Y127-U127)*(W127-U127)+U144 -> 1030 | X144: =(Y144-W144)/(Y127-W127)*(X127-W127)+W144 -> 550 | Y144: 1190 | Z144: =(AA144-Y144)/(AA127-Y127)*(Z127-Y127)+Y144 -> 550 | AA144: 1350 | AB144: =(AC144-AA144)/(AC127-AA127)*(AB127-AA127)+AA144 -> 1350 | AC144: 1350 | AD144: =(AE144-AC144)/(AE127-AC127)*(AD127-AC127)+AC144 -> 1350 | AE144: 1350 | AF144: =(AG144-AE144)/(AG127-AE127)*(AF127-AE127)+AE144 -> 1350 | AG144: 1350 | AH144: =AH143+1 -> 18
A145: =IF(AND(AL134>A144,AL134<A146)=TRUE,AL134,0) -> 0 | C145: =(C146-C144)/(A146-A144)*(A145-A144)+C144 ->  | D145: =(E145-C145)/(E127-C127)*(D127-C127)+C145 ->  | E145: =(E146-E144)/(A146-A144)*(A145-A144)+E144 ->  | F145: =(G145-E145)/(G127-E127)*(F127-E127)+E145 ->  | G145: =(G146-G144)/(A146-A144)*(A145-A144)+G144 ->  | H145: =(I145-G145)/(I127-G127)*(H127-G127)+G145 ->  | I145: =(I146-I144)/(A146-A144)*(A145-A144)+I144 -> 910 | J145: =(K145-I145)/(K127-I127)*(J127-I127)+I145 -> 676.6666667 | K145: =(K146-K144)/(A146-A144)*(A145-A144)+K144 -> 1010 | L145: =(M145-K145)/(M127-K127)*(L127-K127)+K145 -> 360 | M145: =(M146-M144)/(A146-A144)*(A145-A144)+M144 -> 1335 | N145: =(O145-M145)/(O127-M127)*(N127-M127)+M145 -> -1983 | O145: =(O146-O144)/(A146-A144)*(A145-A144)+O144 -> 2441 | P145: =(Q145-O145)/(Q127-O127)*(P127-O127)+O145 -> 1915 | Q145: =(Q146-Q144)/(A146-A144)*(A145-A144)+Q144 -> 2704 | R145: =(S145-Q145)/(S127-Q127)*(R127-Q127)+Q145 -> 2895.99 | S145: =(S146-S144)/(A146-A144)*(A145-A144)+S144 -> 2967 | T145: =(U145-S145)/(U127-S127)*(T127-S127)+S145 -> 1915 | U145: =(U146-U144)/(A146-A144)*(A145-A144)+U144 -> 3230 | V145: =(W145-U145)/(W127-U127)*(V127-U127)+U145 -> 3230 | W145: =(W146-W144)/(A146-A144)*(A145-A144)+W144 -> 3230 | X145: =(Y145-W145)/(Y127-W127)*(X127-W127)+W145 -> 3230 | Y145: =(Y146-Y144)/(A146-A144)*(A145-A144)+Y144 -> 3230 | Z145: =(AA145-Y145)/(AA127-Y127)*(Z127-Y127)+Y145 -> 3310 | AA145: =(AA146-AA144)/(A146-A144)*(A145-A144)+AA144 -> 3210 | AB145: =(AC145-AA145)/(AC127-AA127)*(AB127-AA127)+AA145 -> 7710 | AC145: =(AC146-AC144)/(A146-A144)*(A145-A144)+AC144 -> 2310 | AD145: =(AE145-AC145)/(AE127-AC127)*(AD127-AC127)+AC145 -> 5550 | AE145: =(AE146-AE144)/(A146-A144)*(A145-A144)+AE144 -> 1770 | AF145: =(AG145-AE145)/(AG127-AE127)*(AF127-AE127)+AE145 -> 4710 | AG145: =(AG146-AG144)/(A146-A144)*(A145-A144)+AG144 -> 1350 | AH145: 19
A146: 70 | B146: =B144+1 -> 9 | C146: - | D146: =(E146-C146)/(E127-C127)*(D127-C127)+C146 ->  | E146: - | F146: =(G146-E146)/(G127-E127)*(F127-E127)+E146 ->  | G146: - | H146: =(I146-G146)/(I127-G127)*(H127-G127)+G146 ->  | I146: 0 | J146: =(K146-I146)/(K127-I127)*(J127-I127)+I146 -> -315 | K146: 135 | L146: =(M146-K146)/(M127-K127)*(L127-K127)+K146 -> -25 | M146: 215 | N146: =(O146-M146)/(O127-M127)*(N127-M127)+M146 -> 5 | O146: 285 | P146: =(Q146-O146)/(Q127-O127)*(P127-O127)+O146 -> 95 | Q146: =O146+((U146-O146)/((U127-O127)*10)) -> 380 | R146: =(S146-Q146)/(S127-Q127)*(R127-Q127)+Q146 -> 449.35 | S146: =Q146+((U146-O146)/((U127-O127)*10)) -> 475 | T146: =(U146-S146)/(U127-S127)*(T127-S127)+S146 -> 95 | U146: 570 | V146: =(W146-U146)/(W127-U127)*(V127-U127)+U146 -> 103.3333333 | W146: =(Y146-U146)/(Y127-U127)*(W127-U127)+U146 -> 663.3333333 | X146: =(Y146-W146)/(Y127-W127)*(X127-W127)+W146 -> 103.3333333 | Y146: 850 | Z146: =(AA146-Y146)/(AA127-Y127)*(Z127-Y127)+Y146 -> 90 | AA146: 1040 | AB146: =(AC146-AA146)/(AC127-AA127)*(AB127-AA127)+AA146 -> 290 | AC146: 1190 | AD146: =(AE146-AC146)/(AE127-AC127)*(AD127-AC127)+AC146 -> 650 | AE146: 1280 | AF146: =(AG146-AE146)/(AG127-AE127)*(AF127-AE127)+AE146 -> 790 | AG146: 1350 | AH146: 20
A147: =IF(AND(AL134>A146,AL134<A148)=TRUE,AL134,0) -> 0 | C147: =(C148-C146)/(A148-A146)*(A147-A146)+C146 ->  | D147: =(E147-C147)/(E127-C127)*(D127-C127)+C147 ->  | E147: =(E148-E146)/(A148-A146)*(A147-A146)+E146 ->  | F147: =(G147-E147)/(G127-E127)*(F127-E127)+E147 ->  | G147: =(G148-G146)/(A148-A146)*(A147-A146)+G146 ->  | H147: =(I147-G147)/(I127-G127)*(H127-G127)+G147 ->  | I147: =(I148-I146)/(A148-A146)*(A147-A146)+I146 ->  | J147: =(K147-I147)/(K127-I127)*(J127-I127)+I147 ->  | K147: =(K148-K146)/(A148-A146)*(A147-A146)+K146 -> 275 | L147: =(M147-K147)/(M127-K127)*(L127-K127)+K147 -> 325 | M147: =(M148-M146)/(A148-A146)*(A147-A146)+M146 -> 250 | N147: =(O147-M147)/(O127-M127)*(N127-M127)+M147 -> 40 | O147: =(O148-O146)/(A148-A146)*(A147-A146)+O146 -> 320 | P147: =(Q147-O147)/(Q127-O127)*(P127-O127)+O147 -> 153.3333333 | Q147: =(Q148-Q146)/(A148-A146)*(A147-A146)+Q146 -> 403.3333333 | R147: =(S147-Q147)/(S127-Q127)*(R127-Q127)+Q147 -> 464.1666667 | S147: =(S148-S146)/(A148-A146)*(A147-A146)+S146 -> 486.6666667 | T147: =(U147-S147)/(U127-S127)*(T127-S127)+S147 -> 153.3333333 | U147: =(U148-U146)/(A148-A146)*(A147-A146)+U146 -> 570 | V147: =(W147-U147)/(W127-U127)*(V127-U127)+U147 -> 103.3333333 | W147: =(W148-W146)/(A148-A146)*(A147-A146)+W146 -> 663.3333333 | X147: =(Y147-W147)/(Y127-W127)*(X127-W127)+W147 -> 103.3333333 | Y147: =(Y148-Y146)/(A148-A146)*(A147-A146)+Y146 -> 850 | Z147: =(AA147-Y147)/(AA127-Y127)*(Z127-Y127)+Y147 -> 90 | AA147: =(AA148-AA146)/(A148-A146)*(A147-A146)+AA146 -> 1040 | AB147: =(AC147-AA147)/(AC127-AA127)*(AB127-AA127)+AA147 -> 290 | AC147: =(AC148-AC146)/(A148-A146)*(A147-A146)+AC146 -> 1190 | AD147: =(AE147-AC147)/(AE127-AC127)*(AD127-AC127)+AC147 -> 650 | AE147: =(AE148-AE146)/(A148-A146)*(A147-A146)+AE146 -> 1280 | AF147: =(AG147-AE147)/(AG127-AE127)*(AF127-AE127)+AE147 -> 790 | AG147: =(AG148-AG146)/(A148-A146)*(A147-A146)+AG146 -> 1350 | AH147: 21
A148: 80 | B148: =B146+1 -> 10 | C148: - | D148: =(E148-C148)/(E127-C127)*(D127-C127)+C148 ->  | E148: - | F148: =(G148-E148)/(G127-E127)*(F127-E127)+E148 ->  | G148: - | H148: =(I148-G148)/(I127-G127)*(H127-G127)+G148 ->  | I148: - | J148: =(K148-I148)/(K127-I127)*(J127-I127)+I148 ->  | K148: 115 | L148: =(M148-K148)/(M127-K127)*(L127-K127)+K148 -> -75 | M148: 210 | N148: =(O148-M148)/(O127-M127)*(N127-M127)+M148 -> 0 | O148: 280 | P148: =(Q148-O148)/(Q127-O127)*(P127-O127)+O148 -> 86.66666667 | Q148: =O148+((U148-O148)/((U127-O127)*10)) -> 376.6666667 | R148: =(S148-Q148)/(S127-Q127)*(R127-Q127)+Q148 -> 447.2333333 | S148: =Q148+((U148-O148)/((U127-O127)*10)) -> 473.3333333 | T148: =(U148-S148)/(U127-S127)*(T127-S127)+S148 -> 86.66666667 | U148: 570 | V148: =(W148-U148)/(W127-U127)*(V127-U127)+U148 -> 103.3333333 | W148: =(Y148-U148)/(Y127-U127)*(W127-U127)+U148 -> 663.3333333 | X148: =(Y148-W148)/(Y127-W127)*(X127-W127)+W148 -> 103.3333333 | Y148: 850 | Z148: =(AA148-Y148)/(AA127-Y127)*(Z127-Y127)+Y148 -> 90 | AA148: 1040 | AB148: =(AC148-AA148)/(AC127-AA127)*(AB127-AA127)+AA148 -> 290 | AC148: 1190 | AD148: =(AE148-AC148)/(AE127-AC127)*(AD127-AC127)+AC148 -> 650 | AE148: 1280 | AF148: =(AG148-AE148)/(AG127-AE127)*(AF127-AE127)+AE148 -> 790 | AG148: 1350 | AH148: 22
A149: =IF(AND(AL134>A148,AL134<A150)=TRUE,AL134,0) -> 0 | C149: =(C150-C148)/(A150-A148)*(A149-A148)+C148 ->  | D149: =(E149-C149)/(E127-C127)*(D127-C127)+C149 ->  | E149: =(E150-E148)/(A150-A148)*(A149-A148)+E148 ->  | F149: =(G149-E149)/(G127-E127)*(F127-E127)+E149 ->  | G149: =(G150-G148)/(A150-A148)*(A149-A148)+G148 ->  | H149: =(I149-G149)/(I127-G127)*(H127-G127)+G149 ->  | I149: =(I150-I148)/(A150-A148)*(A149-A148)+I148 ->  | J149: =(K149-I149)/(K127-I127)*(J127-I127)+I149 ->  | K149: =(K150-K148)/(A150-A148)*(A149-A148)+K148 -> 575 | L149: =(M149-K149)/(M127-K127)*(L127-K127)+K149 -> 1145 | M149: =(M150-M148)/(A150-A148)*(A149-A148)+M148 -> 290 | N149: =(O149-M149)/(O127-M127)*(N127-M127)+M149 -> 80 | O149: =(O150-O148)/(A150-A148)*(A149-A148)+O148 -> 360 | P149: =(Q149-O149)/(Q127-O127)*(P127-O127)+O149 -> 220 | Q149: =(Q150-Q148)/(A150-A148)*(A149-A148)+Q148 -> 430 | R149: =(S149-Q149)/(S127-Q127)*(R127-Q127)+Q149 -> 481.1 | S149: =(S150-S148)/(A150-A148)*(A149-A148)+S148 -> 500 | T149: =(U149-S149)/(U127-S127)*(T127-S127)+S149 -> 220 | U149: =(U150-U148)/(A150-A148)*(A149-A148)+U148 -> 570 | V149: =(W149-U149)/(W127-U127)*(V127-U127)+U149 -> 103.3333333 | W149: =(W150-W148)/(A150-A148)*(A149-A148)+W148 -> 663.3333333 | X149: =(Y149-W149)/(Y127-W127)*(X127-W127)+W149 -> 103.3333333 | Y149: =(Y150-Y148)/(A150-A148)*(A149-A148)+Y148 -> 850 | Z149: =(AA149-Y149)/(AA127-Y127)*(Z127-Y127)+Y149 -> 90 | AA149: =(AA150-AA148)/(A150-A148)*(A149-A148)+AA148 -> 1040 | AB149: =(AC149-AA149)/(AC127-AA127)*(AB127-AA127)+AA149 -> 290 | AC149: =(AC150-AC148)/(A150-A148)*(A149-A148)+AC148 -> 1190 | AD149: =(AE149-AC149)/(AE127-AC127)*(AD127-AC127)+AC149 -> 650 | AE149: =(AE150-AE148)/(A150-A148)*(A149-A148)+AE148 -> 1280 | AF149: =(AG149-AE149)/(AG127-AE127)*(AF127-AE127)+AE149 -> 790 | AG149: =(AG150-AG148)/(A150-A148)*(A149-A148)+AG148 -> 1350 | AH149: 23
A150: 100 | B150: =B148+1 -> 11 | C150: - | D150: =(E150-C150)/(E127-C127)*(D127-C127)+C150 ->  | E150: - | F150: =(G150-E150)/(G127-E127)*(F127-E127)+E150 ->  | G150: - | H150: =(I150-G150)/(I127-G127)*(H127-G127)+G150 ->  | I150: - | J150: =(K150-I150)/(K127-I127)*(J127-I127)+I150 ->  | K150: 0 | L150: =(M150-K150)/(M127-K127)*(L127-K127)+K150 -> -380 | M150: 190 | N150: =(O150-M150)/(O127-M127)*(N127-M127)+M150 -> -20 | O150: 260 | P150: =(Q150-O150)/(Q127-O127)*(P127-O127)+O150 -> 53.33333333 | Q150: =O150+((U150-O150)/((U127-O127)*10)) -> 363.3333333 | R150: =(S150-Q150)/(S127-Q127)*(R127-Q127)+Q150 -> 438.7666667 | S150: =Q150+((U150-O150)/((U127-O127)*10)) -> 466.6666667 | T150: =(U150-S150)/(U127-S127)*(T127-S127)+S150 -> 53.33333333 | U150: 570 | V150: =(W150-U150)/(W127-U127)*(V127-U127)+U150 -> 103.3333333 | W150: =(Y150-U150)/(Y127-U127)*(W127-U127)+U150 -> 663.3333333 | X150: =(Y150-W150)/(Y127-W127)*(X127-W127)+W150 -> 103.3333333 | Y150: 850 | Z150: =(AA150-Y150)/(AA127-Y127)*(Z127-Y127)+Y150 -> 90 | AA150: 1040 | AB150: =(AC150-AA150)/(AC127-AA127)*(AB127-AA127)+AA150 -> 290 | AC150: 1190 | AD150: =(AE150-AC150)/(AE127-AC127)*(AD127-AC127)+AC150 -> 650 | AE150: 1280 | AF150: =(AG150-AE150)/(AG127-AE127)*(AF127-AE127)+AE150 -> 790 | AG150: 1350 | AH150: 24
A151: =IF(AND(AL134>A150,AL134<A152)=TRUE,AL134,0) -> 0 | C151: =(C152-C150)/(A152-A150)*(A151-A150)+C150 ->  | D151: =(E151-C151)/(E127-C127)*(D127-C127)+C151 ->  | E151: =(E152-E150)/(A152-A150)*(A151-A150)+E150 ->  | F151: =(G151-E151)/(G127-E127)*(F127-E127)+E151 ->  | G151: =(G152-G150)/(A152-A150)*(A151-A150)+G150 ->  | H151: =(I151-G151)/(I127-G127)*(H127-G127)+G151 ->  | I151: =(I152-I150)/(A152-A150)*(A151-A150)+I150 ->  | J151: =(K151-I151)/(K127-I127)*(J127-I127)+I151 ->  | K151: =(K152-K150)/(A152-A150)*(A151-A150)+K150 ->  | L151: =(M151-K151)/(M127-K127)*(L127-K127)+K151 ->  | M151: =(M152-M150)/(A152-A150)*(A151-A150)+M150 -> 570 | N151: =(O151-M151)/(O127-M127)*(N127-M127)+M151 -> 1200 | O151: =(O152-O150)/(A152-A150)*(A151-A150)+O150 -> 360 | P151: =(Q151-O151)/(Q127-O127)*(P127-O127)+O151 -> 220 | Q151: =(Q152-Q150)/(A152-A150)*(A151-A150)+Q150 -> 430 | R151: =(S151-Q151)/(S127-Q127)*(R127-Q127)+Q151 -> 481.1 | S151: =(S152-S150)/(A152-A150)*(A151-A150)+S150 -> 500 | T151: =(U151-S151)/(U127-S127)*(T127-S127)+S151 -> 220 | U151: =(U152-U150)/(A152-A150)*(A151-A150)+U150 -> 570 | V151: =(W151-U151)/(W127-U127)*(V127-U127)+U151 -> 103.3333333 | W151: =(W152-W150)/(A152-A150)*(A151-A150)+W150 -> 663.3333333 | X151: =(Y151-W151)/(Y127-W127)*(X127-W127)+W151 -> 103.3333333 | Y151: =(Y152-Y150)/(A152-A150)*(A151-A150)+Y150 -> 850 | Z151: =(AA151-Y151)/(AA127-Y127)*(Z127-Y127)+Y151 -> 90 | AA151: =(AA152-AA150)/(A152-A150)*(A151-A150)+AA150 -> 1040 | AB151: =(AC151-AA151)/(AC127-AA127)*(AB127-AA127)+AA151 -> 290 | AC151: =(AC152-AC150)/(A152-A150)*(A151-A150)+AC150 -> 1190 | AD151: =(AE151-AC151)/(AE127-AC127)*(AD127-AC127)+AC151 -> 650 | AE151: =(AE152-AE150)/(A152-A150)*(A151-A150)+AE150 -> 1280 | AF151: =(AG151-AE151)/(AG127-AE127)*(AF127-AE127)+AE151 -> 790 | AG151: =(AG152-AG150)/(A152-A150)*(A151-A150)+AG150 -> 1350 | AH151: 25
A152: 150 | B152: =B150+1 -> 12 | C152: - | D152: =(E152-C152)/(E127-C127)*(D127-C127)+C152 ->  | E152: - | F152: =(G152-E152)/(G127-E127)*(F127-E127)+E152 ->  | G152: - | H152: =(I152-G152)/(I127-G127)*(H127-G127)+G152 ->  | I152: - | J152: =(K152-I152)/(K127-I127)*(J127-I127)+I152 ->  | K152: - | L152: =(M152-K152)/(M127-K127)*(L127-K127)+K152 ->  | M152: 0 | N152: =(O152-M152)/(O127-M127)*(N127-M127)+M152 -> -630 | O152: 210 | P152: =(Q152-O152)/(Q127-O127)*(P127-O127)+O152 -> -30 | Q152: =O152+((U152-O152)/((U127-O127)*10)) -> 330 | R152: =(S152-Q152)/(S127-Q127)*(R127-Q127)+Q152 -> 417.6 | S152: =Q152+((U152-O152)/((U127-O127)*10)) -> 450 | T152: =(U152-S152)/(U127-S127)*(T127-S127)+S152 -> -30 | U152: 570 | V152: =(W152-U152)/(W127-U127)*(V127-U127)+U152 -> 103.3333333 | W152: =(Y152-U152)/(Y127-U127)*(W127-U127)+U152 -> 663.3333333 | X152: =(Y152-W152)/(Y127-W127)*(X127-W127)+W152 -> 103.3333333 | Y152: 850 | Z152: =(AA152-Y152)/(AA127-Y127)*(Z127-Y127)+Y152 -> 90 | AA152: 1040 | AB152: =(AC152-AA152)/(AC127-AA127)*(AB127-AA127)+AA152 -> 290 | AC152: 1190 | AD152: =(AE152-AC152)/(AE127-AC127)*(AD127-AC127)+AC152 -> 650 | AE152: 1280 | AF152: =(AG152-AE152)/(AG127-AE127)*(AF127-AE127)+AE152 -> 790 | AG152: 1350 | AH152: 26
A153: =IF(AND(AL134>A152,AL134<A154)=TRUE,AL134,0) -> 0 | C153: =(C154-C152)/(A154-A152)*(A153-A152)+C152 ->  | D153: =(E153-C153)/(E127-C127)*(D127-C127)+C153 ->  | E153: =(E154-E152)/(A154-A152)*(A153-A152)+E152 ->  | F153: =(G153-E153)/(G127-E127)*(F127-E127)+E153 ->  | G153: =(G154-G152)/(A154-A152)*(A153-A152)+G152 ->  | H153: =(I153-G153)/(I127-G127)*(H127-G127)+G153 ->  | I153: =(I154-I152)/(A154-A152)*(A153-A152)+I152 ->  | J153: =(K153-I153)/(K127-I127)*(J127-I127)+I153 ->  | K153: =(K154-K152)/(A154-A152)*(A153-A152)+K152 ->  | L153: =(M153-K153)/(M127-K127)*(L127-K127)+K153 ->  | M153: =(M154-M152)/(A154-A152)*(A153-A152)+M152 ->  | N153: =(O153-M153)/(O127-M127)*(N127-M127)+M153 ->  | O153: =(O154-O152)/(A154-A152)*(A153-A152)+O152 -> 840 | P153: =(Q153-O153)/(Q127-O127)*(P127-O127)+O153 -> 1000 | Q153: =(Q154-Q152)/(A154-A152)*(A153-A152)+Q152 -> 760 | R153: =(S153-Q153)/(S127-Q127)*(R127-Q127)+Q153 -> 701.6 | S153: =(S154-S152)/(A154-A152)*(A153-A152)+S152 -> 680 | T153: =(U153-S153)/(U127-S127)*(T127-S127)+S153 -> 1000 | U153: =(U154-U152)/(A154-A152)*(A153-A152)+U152 -> 600 | V153: =(W153-U153)/(W127-U127)*(V127-U127)+U153 -> 183.3333333 | W153: =(W154-W152)/(A154-A152)*(A153-A152)+W152 -> 683.3333333 | X153: =(Y153-W153)/(Y127-W127)*(X127-W127)+W153 -> 183.3333333 | Y153: =(Y154-Y152)/(A154-A152)*(A153-A152)+Y152 -> 850 | Z153: =(AA153-Y153)/(AA127-Y127)*(Z127-Y127)+Y153 -> 90 | AA153: =(AA154-AA152)/(A154-A152)*(A153-A152)+AA152 -> 1040 | AB153: =(AC153-AA153)/(AC127-AA127)*(AB127-AA127)+AA153 -> 290 | AC153: =(AC154-AC152)/(A154-A152)*(A153-A152)+AC152 -> 1190 | AD153: =(AE153-AC153)/(AE127-AC127)*(AD127-AC127)+AC153 -> 650 | AE153: =(AE154-AE152)/(A154-A152)*(A153-A152)+AE152 -> 1280 | AF153: =(AG153-AE153)/(AG127-AE127)*(AF127-AE127)+AE153 -> 790 | AG153: =(AG154-AG152)/(A154-A152)*(A153-A152)+AG152 -> 1350 | AH153: 27
A154: 200 | B154: =B152+1 -> 13 | C154: - | D154: =(E154-C154)/(E127-C127)*(D127-C127)+C154 ->  | E154: - | F154: =(G154-E154)/(G127-E127)*(F127-E127)+E154 ->  | G154: - | H154: =(I154-G154)/(I127-G127)*(H127-G127)+G154 ->  | I154: - | J154: =(K154-I154)/(K127-I127)*(J127-I127)+I154 ->  | K154: - | L154: =(M154-K154)/(M127-K127)*(L127-K127)+K154 ->  | M154: - | N154: =(O154-M154)/(O127-M127)*(N127-M127)+M154 ->  | O154: 0 | P154: =(Q154-O154)/(Q127-O127)*(P127-O127)+O154 -> -373.3333333 | Q154: =O154+((U154-O154)/((U127-O127)*10)) -> 186.6666667 | R154: =(S154-Q154)/(S127-Q127)*(R127-Q127)+Q154 -> 322.9333333 | S154: =Q154+((U154-O154)/((U127-O127)*10)) -> 373.3333333 | T154: =(U154-S154)/(U127-S127)*(T127-S127)+S154 -> -373.3333333 | U154: 560 | V154: =(W154-U154)/(W127-U127)*(V127-U127)+U154 -> 76.66666667 | W154: =(Y154-U154)/(Y127-U127)*(W127-U127)+U154 -> 656.6666667 | X154: =(Y154-W154)/(Y127-W127)*(X127-W127)+W154 -> 76.66666667 | Y154: 850 | Z154: =(AA154-Y154)/(AA127-Y127)*(Z127-Y127)+Y154 -> 90 | AA154: 1040 | AB154: =(AC154-AA154)/(AC127-AA127)*(AB127-AA127)+AA154 -> 290 | AC154: 1190 | AD154: =(AE154-AC154)/(AE127-AC127)*(AD127-AC127)+AC154 -> 650 | AE154: 1280 | AF154: =(AG154-AE154)/(AG127-AE127)*(AF127-AE127)+AE154 -> 790 | AG154: 1350 | AH154: 28
A155: =IF(AND(AL134>A154,AL134<A156)=TRUE,AL134,0) -> 0 | C155: =(C156-C154)/(A156-A154)*(A155-A154)+C154 ->  | D155: =(E155-C155)/(E127-C127)*(D127-C127)+C155 ->  | E155: =(E156-E154)/(A156-A154)*(A155-A154)+E154 ->  | F155: =(G155-E155)/(G127-E127)*(F127-E127)+E155 ->  | G155: =(G156-G154)/(A156-A154)*(A155-A154)+G154 ->  | H155: =(I155-G155)/(I127-G127)*(H127-G127)+G155 ->  | I155: =(I156-I154)/(A156-A154)*(A155-A154)+I154 ->  | J155: =(K155-I155)/(K127-I127)*(J127-I127)+I155 ->  | K155: =(K156-K154)/(A156-A154)*(A155-A154)+K154 ->  | L155: =(M155-K155)/(M127-K127)*(L127-K127)+K155 ->  | M155: =(M156-M154)/(A156-A154)*(A155-A154)+M154 ->  | N155: =(O155-M155)/(O127-M127)*(N127-M127)+M155 ->  | O155: =(O156-O154)/(A156-A154)*(A155-A154)+O154 ->  | P155: =(Q155-O155)/(Q127-O127)*(P127-O127)+O155 ->  | Q155: =(Q156-Q154)/(A156-A154)*(A155-A154)+Q154 -> 560 | R155: =(S155-Q155)/(S127-Q127)*(R127-Q127)+Q155 -> 585.55 | S155: =(S156-S154)/(A156-A154)*(A155-A154)+S154 -> 595 | T155: =(U155-S155)/(U127-S127)*(T127-S127)+S155 -> 455 | U155: =(U156-U154)/(A156-A154)*(A155-A154)+U154 -> 630 | V155: =(W155-U155)/(W127-U127)*(V127-U127)+U155 -> 263.3333333 | W155: =(W156-W154)/(A156-A154)*(A155-A154)+W154 -> 703.3333333 | X155: =(Y155-W155)/(Y127-W127)*(X127-W127)+W155 -> 263.3333333 | Y155: =(Y156-Y154)/(A156-A154)*(A155-A154)+Y154 -> 850 | Z155: =(AA155-Y155)/(AA127-Y127)*(Z127-Y127)+Y155 -> 90 | AA155: =(AA156-AA154)/(A156-A154)*(A155-A154)+AA154 -> 1040 | AB155: =(AC155-AA155)/(AC127-AA127)*(AB127-AA127)+AA155 -> 290 | AC155: =(AC156-AC154)/(A156-A154)*(A155-A154)+AC154 -> 1190 | AD155: =(AE155-AC155)/(AE127-AC127)*(AD127-AC127)+AC155 -> 650 | AE155: =(AE156-AE154)/(A156-A154)*(A155-A154)+AE154 -> 1280 | AF155: =(AG155-AE155)/(AG127-AE127)*(AF127-AE127)+AE155 -> 790 | AG155: =(AG156-AG154)/(A156-A154)*(A155-A154)+AG154 -> 1350 | AH155: 29
A156: 300 | B156: =B154+1 -> 14 | C156: - | D156: =(E156-C156)/(E127-C127)*(D127-C127)+C156 ->  | E156: - | F156: =(G156-E156)/(G127-E127)*(F127-E127)+E156 ->  | G156: - | H156: =(I156-G156)/(I127-G127)*(H127-G127)+G156 ->  | I156: - | J156: =(K156-I156)/(K127-I127)*(J127-I127)+I156 ->  | K156: - | L156: =(M156-K156)/(M127-K127)*(L127-K127)+K156 ->  | M156: - | N156: =(O156-M156)/(O127-M127)*(N127-M127)+M156 ->  | O156: - | P156: =(Q156-O156)/(Q127-O127)*(P127-O127)+O156 ->  | Q156: 0 | R156: =(S156-Q156)/(S127-Q127)*(R127-Q127)+Q156 -> 191.625 | S156: =Q156+((U156-Q156)/((U127-Q127)*10)) -> 262.5 | T156: =(U156-S156)/(U127-S127)*(T127-S127)+S156 -> -787.5 | U156: 525 | V156: =(W156-U156)/(W127-U127)*(V127-U127)+U156 -> -16.66666667 | W156: =(Y156-U156)/(Y127-U127)*(W127-U127)+U156 -> 633.3333333 | X156: =(Y156-W156)/(Y127-W127)*(X127-W127)+W156 -> -16.66666667 | Y156: 850 | Z156: =(AA156-Y156)/(AA127-Y127)*(Z127-Y127)+Y156 -> 90 | AA156: 1040 | AB156: =(AC156-AA156)/(AC127-AA127)*(AB127-AA127)+AA156 -> 290 | AC156: 1190 | AD156: =(AE156-AC156)/(AE127-AC127)*(AD127-AC127)+AC156 -> 650 | AE156: 1280 | AF156: =(AG156-AE156)/(AG127-AE127)*(AF127-AE127)+AE156 -> 790 | AG156: 1350 | AH156: 30
A157: =IF(AND(AL134>A156,AL134<A158)=TRUE,AL134,0) -> 0 | C157: =(C158-C154)/(A158-A154)*(A157-A154)+C154 ->  | D157: =(E157-C157)/(E127-C127)*(D127-C127)+C157 ->  | E157: =(E158-E154)/(A158-A154)*(A157-A154)+E154 ->  | F157: =(G157-E157)/(G127-E127)*(F127-E127)+E157 ->  | G157: =(G158-G154)/(A158-A154)*(A157-A154)+G154 ->  | H157: =(I157-G157)/(I127-G127)*(H127-G127)+G157 ->  | I157: =(I158-I154)/(A158-A154)*(A157-A154)+I154 ->  | J157: =(K157-I157)/(K127-I127)*(J127-I127)+I157 ->  | K157: =(K158-K154)/(A158-A154)*(A157-A154)+K154 ->  | L157: =(M157-K157)/(M127-K127)*(L127-K127)+K157 ->  | M157: =(M158-M154)/(A158-A154)*(A157-A154)+M154 ->  | N157: =(O157-M157)/(O127-M127)*(N127-M127)+M157 ->  | O157: =(O158-O154)/(A158-A154)*(A157-A154)+O154 ->  | P157: =(Q157-O157)/(Q127-O127)*(P127-O127)+O157 ->  | Q157: =(Q158-Q156)/(A158-A156)*(A157-A156)+Q156 ->  | R157: =(S157-Q157)/(S127-Q127)*(R127-Q127)+Q157 ->  | S157: =(S158-S156)/(A158-A156)*(A157-A156)+S156 -> 1050 | T157: =(U157-S157)/(U127-S127)*(T127-S127)+S157 -> 2830 | U157: =(U158-U154)/(A158-A154)*(A157-A154)+U154 -> 605 | V157: =(W157-U157)/(W127-U127)*(V127-U127)+U157 -> 196.6666667 | W157: =(W158-W154)/(A158-A154)*(A157-A154)+W154 -> 686.6666667 | X157: =(Y157-W157)/(Y127-W127)*(X127-W127)+W157 -> 196.6666667 | Y157: =(Y158-Y154)/(A158-A154)*(A157-A154)+Y154 -> 850 | Z157: =(AA157-Y157)/(AA127-Y127)*(Z127-Y127)+Y157 -> 90 | AA157: =(AA158-AA154)/(A158-A154)*(A157-A154)+AA154 -> 1040 | AB157: =(AC157-AA157)/(AC127-AA127)*(AB127-AA127)+AA157 -> 290 | AC157: =(AC158-AC154)/(A158-A154)*(A157-A154)+AC154 -> 1190 | AD157: =(AE157-AC157)/(AE127-AC127)*(AD127-AC127)+AC157 -> 650 | AE157: =(AE158-AE154)/(A158-A154)*(A157-A154)+AE154 -> 1280 | AF157: =(AG157-AE157)/(AG127-AE127)*(AF127-AE127)+AE157 -> 790 | AG157: =(AG158-AG154)/(A158-A154)*(A157-A154)+AG154 -> 1350 | AH157: 31
A158: 400 | B158: 15 | C158: - | D158: =(E158-C158)/(E127-C127)*(D127-C127)+C158 ->  | E158: - | F158: =(G158-E158)/(G127-E127)*(F127-E127)+E158 ->  | G158: - | H158: =(I158-G158)/(I127-G127)*(H127-G127)+G158 ->  | I158: - | J158: =(K158-I158)/(K127-I127)*(J127-I127)+I158 ->  | K158: - | L158: =(M158-K158)/(M127-K127)*(L127-K127)+K158 ->  | M158: - | N158: =(O158-M158)/(O127-M127)*(N127-M127)+M158 ->  | O158: - | P158: =(Q158-O158)/(Q127-O127)*(P127-O127)+O158 ->  | Q158: - | R158: =(S158-Q158)/(S127-Q127)*(R127-Q127)+Q158 ->  | S158: 0 | T158: =(U158-S158)/(U127-S127)*(T127-S127)+S158 -> -2060 | U158: 515 | V158: =(W158-U158)/(W127-U127)*(V127-U127)+U158 -> -43.33333333 | W158: =(Y158-U158)/(Y127-U127)*(W127-U127)+U158 -> 626.6666667 | X158: =(Y158-W158)/(Y127-W127)*(X127-W127)+W158 -> -43.33333333 | Y158: 850 | Z158: =(AA158-Y158)/(AA127-Y127)*(Z127-Y127)+Y158 -> 90 | AA158: 1040 | AB158: =(AC158-AA158)/(AC127-AA127)*(AB127-AA127)+AA158 -> 290 | AC158: 1190 | AD158: =(AE158-AC158)/(AE127-AC127)*(AD127-AC127)+AC158 -> 650 | AE158: 1280 | AF158: =(AG158-AE158)/(AG127-AE127)*(AF127-AE127)+AE158 -> 790 | AG158: 1350 | AH158: 32
AH159: 33
A160: COL | C160: 3 | D160: =C123+1 -> 4 | E160: =D123+1 -> 5 | F160: 6 | G160: 7 | H160: 8 | I160: 9 | J160: 10 | K160: 11 | L160: 12 | M160: 13 | N160: =M123+1 -> 14 | O160: =N123+1 -> 15 | P160: =O123+1 -> 16 | Q160: 17 | R160: 18 | S160: 19 | T160: 20 | U160: 21 | V160: 22 | W160: 23 | X160: 24 | Y160: 25 | Z160: 26 | AA160: 27 | AB160: 28 | AC160: =AB160+1 -> 29 | AD160: =AC160+1 -> 30 | AE160: 31 | AF160: 32 | AG160: 33 | AH160: 34
C161: 1 | D161: 2 | F161: 3 | H161: 4 | J161: 5 | L161: 6 | N161: 7 | P161: 8 | R161: 9 | T161: 10 | V161: 11 | X161: 12 | Z161: 13 | AB161: 14 | AD161: 15 | AF161: 16
B164: Рвх | C164: 0.005 | D164: =IF(AND(AS171>C164,AS171<E164)=TRUE,AS171,0) -> 0 | E164: 0.01 | F164: =IF(AND(AS171>E164,AS171<G164)=TRUE,AS171,0) -> 0 | G164: 0.015 | H164: =IF(AND(AS171>G164,AS171<I164)=TRUE,AS171,0) -> 0 | I164: 0.02 | J164: =IF(AND(AS171>I164,AS171<K164)=TRUE,AS171,0) -> 0 | K164: 0.03 | L164: =IF(AND(AS171>K164,AS171<M164)=TRUE,AS171,0) -> 0 | M164: 0.04 | N164: =IF(AND(AS171>M164,AS171<O164)=TRUE,AS171,0) -> 0 | O164: 0.05 | P164: =IF(AND(AS171>O164,AS171<Q164)=TRUE,AS171,0) -> 0 | Q164: 0.06 | R164: =IF(AND(AS171>Q164,AS171<S164)=TRUE,AS171,0) -> 0 | S164: 0.07 | T164: =IF(AND(AS171>S164,AS171<U164)=TRUE,AS171,0) -> 0 | U164: 0.08 | V164: =IF(AND(AS171>U164,AS171<W164)=TRUE,AS171,0) -> 0 | W164: 0.1 | X164: =IF(AND(AS171>W164,AS171<Y164)=TRUE,AS171,0) -> 0 | Y164: 0.125 | Z164: =IF(AND(AS171>Y164,AS171<AA164)=TRUE,AS171,0) -> 0 | AA164: 0.15 | AB164: =IF(AND(AS171>AA164,AS171<AC164)=TRUE,AS171,0) -> 0 | AC164: 0.2 | AD164: =IF(AND(AS171>AC164,AS171<AE164)=TRUE,AS171,0) -> 0 | AE164: 0.3 | AF164: =IF(AND(AS171>AE164,AS171<AG164)=TRUE,AS171,0) -> 0.373 | AG164: 0.4 | AH164: =IF(AND(AS171>AG164,AS171<AI164)=TRUE,AS171,0) -> 0 | AI164: 0.5 | AJ164: =IF(AND(AS171>AI164,AS171<AK164)=TRUE,AS171,0) -> 0 | AK164: 0.6 | AL164: =IF(AND(AS171>AK164,AS171<AM164)=TRUE,AS171,0) -> 0 | AM164: 0.8 | AN164: =IF(AND(AS171>AM164,AS171<AO164)=TRUE,AS171,0) -> 0 | AO164: 1.2 | AP164: =IF(AND(AS171>AO164,AS171<AQ164)=TRUE,AS171,0) -> 0 | AQ164: 1.6 | AR164: 1
A165: Рвых | B165: МПа | AR165: =AR164+1 -> 2
A166: кПа | AR166: =AR165+1 -> 3
A167: 2 | B167: 1 | C167: 60 | D167: =(E167-C167)/(E164-C164)*(D164-C164)+C167 -> 10 | E167: 110 | F167: =(G167-E167)/(G164-E164)*(F164-E164)+E167 -> 50 | G167: 140 | H167: =(I167-G167)/(I164-G164)*(H164-G164)+G167 -> -40 | I167: 200 | J167: =(K167-I167)/(K164-I164)*(J164-I164)+I167 -> 100 | K167: 250 | L167: =(M167-K167)/(M164-K164)*(L164-K164)+K167 -> 130 | M167: 290 | N167: =(O167-M167)/(O164-M164)*(N164-M164)+M167 -> 170 | O167: 320 | P167: =(Q167-O167)/(Q164-O164)*(P164-O164)+O167 -> 170 | Q167: 350 | R167: =(S167-Q167)/(S164-Q164)*(R164-Q164)+Q167 -> 170 | S167: 380 | T167: =(U167-S167)/(U164-S164)*(T164-S164)+S167 -> 170 | U167: 410 | V167: =(W167-U167)/(W164-U164)*(V164-U164)+U167 -> 250 | W167: 450 | X167: =(Y167-W167)/(Y164-W164)*(X164-W164)+W167 -> 170 | Y167: 520 | Z167: =(AA167-Y167)/(AA164-Y164)*(Z164-Y164)+Y167 -> 220 | AA167: 580 | AB167: =(AC167-AA167)/(AC164-AA164)*(AB164-AA164)+AA167 -> 220 | AC167: 700 | AD167: =(AE167-AC167)/(AE164-AC164)*(AD164-AC164)+AC167 -> 260 | AE167: 920 | AF167: =(AG167-AE167)/(AG164-AE164)*(AF164-AE164)+AE167 -> 978.4 | AG167: 1000 | AH167: =(AI167-AG167)/(AI164-AG164)*(AH164-AG164)+AG167 -> 1000 | AI167: 1000 | AJ167: =(AK167-AI167)/(AK164-AI164)*(AJ164-AI164)+AI167 -> 1000 | AK167: 1000 | AL167: =(AM167-AK167)/(AM164-AK164)*(AL164-AK164)+AK167 ->  | AM167: - | AN167: =(AO167-AM167)/(AO164-AM164)*(AN164-AM164)+AM167 ->  | AO167: - | AP167: =(AQ167-AO167)/(AQ164-AO164)*(AP164-AO164)+AO167 ->  | AQ167: - | AR167: 4 | AS167: Рвх | AT167: Q | AU167: Qcрасч | AV167: Рвых | AW167: Рвых
A168: =IF(AND(AV171>A167,AV171<A169)=TRUE,AV171,0) -> 0 | C168: =(C169-C167)/(A169-A167)*(A168-A167)+C167 -> 60 | D168: =(E168-C168)/(E164-C164)*(D164-C164)+C168 -> 10 | E168: =(E169-E167)/(A169-A167)*(A168-A167)+E167 -> 110 | F168: =(G168-E168)/(G164-E164)*(F164-E164)+E168 -> 50 | G168: =(G169-G167)/(A169-A167)*(A168-A167)+G167 -> 140 | H168: =(I168-G168)/(I164-G164)*(H164-G164)+G168 -> -40 | I168: =(I169-I167)/(A169-A167)*(A168-A167)+I167 -> 200 | J168: =(K168-I168)/(K164-I164)*(J164-I164)+I168 -> 100 | K168: =(K169-K167)/(A169-A167)*(A168-A167)+K167 -> 250 | L168: =(M168-K168)/(M164-K164)*(L164-K164)+K168 -> 130 | M168: =(M169-M167)/(A169-A167)*(A168-A167)+M167 -> 290 | N168: =(O168-M168)/(O164-M164)*(N164-M164)+M168 -> 170 | O168: =(O169-O167)/(A169-A167)*(A168-A167)+O167 -> 320 | P168: =(Q168-O168)/(Q164-O164)*(P164-O164)+O168 -> 170 | Q168: =(Q169-Q167)/(A169-A167)*(A168-A167)+Q167 -> 350 | R168: =(S168-Q168)/(S164-Q164)*(R164-Q164)+Q168 -> 170 | S168: =(S169-S167)/(A169-A167)*(A168-A167)+S167 -> 380 | T168: =(U168-S168)/(U164-S164)*(T164-S164)+S168 -> 170 | U168: =(U169-U167)/(A169-A167)*(A168-A167)+U167 -> 410 | V168: =(W168-U168)/(W164-U164)*(V164-U164)+U168 -> 250 | W168: =(W169-W167)/(A169-A167)*(A168-A167)+W167 -> 450 | X168: =(Y168-W168)/(Y164-W164)*(X164-W164)+W168 -> 170 | Y168: =(Y169-Y167)/(A169-A167)*(A168-A167)+Y167 -> 520 | Z168: =(AA168-Y168)/(AA164-Y164)*(Z164-Y164)+Y168 -> 220 | AA168: =(AA169-AA167)/(A169-A167)*(A168-A167)+AA167 -> 580 | AB168: =(AC168-AA168)/(AC164-AA164)*(AB164-AA164)+AA168 -> 220 | AC168: =(AC169-AC167)/(A169-A167)*(A168-A167)+AC167 -> 700 | AD168: =(AE168-AC168)/(AE164-AC164)*(AD164-AC164)+AC168 -> 260 | AE168: =(AE169-AE167)/(A169-A167)*(A168-A167)+AE167 -> 920 | AF168: =(AG168-AE168)/(AG164-AE164)*(AF164-AE164)+AE168 -> 978.4 | AG168: =(AG169-AG167)/(A169-A167)*(A168-A167)+AG167 -> 1000 | AH168: =(AI168-AG168)/(AI164-AG164)*(AH164-AG164)+AG168 -> 1000 | AI168: =(AI169-AI167)/(A169-A167)*(A168-A167)+AI167 -> 1000 | AJ168: =(AK168-AI168)/(AK164-AI164)*(AJ164-AI164)+AI168 -> 1000 | AK168: =(AK169-AK167)/(A169-A167)*(A168-A167)+AK167 -> 1000 | AL168: =(AM168-AK168)/(AM164-AK164)*(AL164-AK164)+AK168 ->  | AM168: =(AM169-AM167)/(A169-A167)*(A168-A167)+AM167 ->  | AN168: =(AO168-AM168)/(AO164-AM164)*(AN164-AM164)+AM168 ->  | AO168: =(AO169-AO167)/(A169-A167)*(A168-A167)+AO167 ->  | AP168: =(AQ168-AO168)/(AQ164-AO164)*(AP164-AO164)+AO168 ->  | AQ168: =(AQ169-AQ167)/(A169-A167)*(A168-A167)+AQ167 ->  | AR168: 5
A169: 3 | B169: =B167+1 -> 2 | C169: 60 | D169: =(E169-C169)/(E164-C164)*(D164-C164)+C169 -> 10 | E169: 110 | F169: =(G169-E169)/(G164-E164)*(F164-E164)+E169 -> 50 | G169: 140 | H169: =(I169-G169)/(I164-G164)*(H164-G164)+G169 -> -40 | I169: 200 | J169: =(K169-I169)/(K164-I164)*(J164-I164)+I169 -> 100 | K169: 250 | L169: =(M169-K169)/(M164-K164)*(L164-K164)+K169 -> 130 | M169: 290 | N169: =(O169-M169)/(O164-M164)*(N164-M164)+M169 -> 170 | O169: 320 | P169: =(Q169-O169)/(Q164-O164)*(P164-O164)+O169 -> 170 | Q169: 350 | R169: =(S169-Q169)/(S164-Q164)*(R164-Q164)+Q169 -> 170 | S169: 380 | T169: =(U169-S169)/(U164-S164)*(T164-S164)+S169 -> 170 | U169: 410 | V169: =(W169-U169)/(W164-U164)*(V164-U164)+U169 -> 250 | W169: 450 | X169: =(Y169-W169)/(Y164-W164)*(X164-W164)+W169 -> 170 | Y169: 520 | Z169: =(AA169-Y169)/(AA164-Y164)*(Z164-Y164)+Y169 -> 220 | AA169: 580 | AB169: =(AC169-AA169)/(AC164-AA164)*(AB164-AA164)+AA169 -> 220 | AC169: 700 | AD169: =(AE169-AC169)/(AE164-AC164)*(AD164-AC164)+AC169 -> 260 | AE169: 920 | AF169: =(AG169-AE169)/(AG164-AE164)*(AF164-AE164)+AE169 -> 978.4 | AG169: 1000 | AH169: =(AI169-AG169)/(AI164-AG164)*(AH164-AG164)+AG169 -> 1000 | AI169: 1000 | AJ169: =(AK169-AI169)/(AK164-AI164)*(AJ164-AI164)+AI169 -> 1000 | AK169: 1000 | AL169: =(AM169-AK169)/(AM164-AK164)*(AL164-AK164)+AK169 ->  | AM169: - | AN169: =(AO169-AM169)/(AO164-AM164)*(AN164-AM164)+AM169 ->  | AO169: - | AP169: =(AQ169-AO169)/(AQ164-AO164)*(AP164-AO164)+AO169 ->  | AQ169: - | AR169: 6 | AS169: МПа | AT169: нм3/час | AU169: нм3/час | AV169: кПа | AW169: кПа
A170: =IF(AND(AV171>A169,AV171<A171)=TRUE,AV171,0) -> 0 | C170: =(C171-C169)/(A171-A169)*(A170-A169)+C169 -> 150 | D170: =(E170-C170)/(E164-C164)*(D164-C164)+C170 -> 160 | E170: =(E171-E169)/(A171-A169)*(A170-A169)+E169 -> 140 | F170: =(G170-E170)/(G164-E164)*(F164-E164)+E170 -> 95 | G170: =(G171-G169)/(A171-A169)*(A170-A169)+G169 -> 162.5 | H170: =(I170-G170)/(I164-G164)*(H164-G164)+G170 -> 5 | I170: =(I171-I169)/(A171-A169)*(A170-A169)+I169 -> 215 | J170: =(K170-I170)/(K164-I164)*(J164-I164)+I170 -> 115 | K170: =(K171-K169)/(A171-A169)*(A170-A169)+K169 -> 265 | L170: =(M170-K170)/(M164-K164)*(L164-K164)+K170 -> 145 | M170: =(M171-M169)/(A171-A169)*(A170-A169)+M169 -> 305 | N170: =(O170-M170)/(O164-M164)*(N164-M164)+M170 -> 185 | O170: =(O171-O169)/(A171-A169)*(A170-A169)+O169 -> 335 | P170: =(Q170-O170)/(Q164-O164)*(P164-O164)+O170 -> 185 | Q170: =(Q171-Q169)/(A171-A169)*(A170-A169)+Q169 -> 365 | R170: =(S170-Q170)/(S164-Q164)*(R164-Q164)+Q170 -> 275 | S170: =(S171-S169)/(E171-E169)*(E170-E169)+S169 -> 380 | T170: =(U170-S170)/(U164-S164)*(T164-S164)+S170 -> 170 | U170: =(U171-U169)/(G171-G169)*(G170-G169)+U169 -> 410 | V170: =(W170-U170)/(W164-U164)*(V164-U164)+U170 -> 250 | W170: =(W171-W169)/(I171-I169)*(I170-I169)+W169 -> 450 | X170: =(Y170-W170)/(Y164-W164)*(X164-W164)+W170 -> 170 | Y170: =(Y171-Y169)/(A171-A169)*(A170-A169)+Y169 -> 520 | Z170: =(AA170-Y170)/(AA164-Y164)*(Z164-Y164)+Y170 -> 220 | AA170: =(AA171-AA169)/(E171-E169)*(E170-E169)+AA169 -> 580 | AB170: =(AC170-AA170)/(AC164-AA164)*(AB164-AA164)+AA170 -> 220 | AC170: =(AC171-AC169)/(A171-A169)*(A170-A169)+AC169 -> 700 | AD170: =(AE170-AC170)/(AE164-AC164)*(AD164-AC164)+AC170 -> 260 | AE170: =(AE171-AE169)/(A171-A169)*(A170-A169)+AE169 -> 920 | AF170: =(AG170-AE170)/(AG164-AE164)*(AF164-AE164)+AE170 -> 978.4 | AG170: =(AG171-AG169)/(A171-A169)*(A170-A169)+AG169 -> 1000 | AH170: =(AI170-AG170)/(AI164-AG164)*(AH164-AG164)+AG170 -> 1000 | AI170: =(AI171-AI169)/(A171-A169)*(A170-A169)+AI169 -> 1000 | AJ170: =(AK170-AI170)/(AK164-AI164)*(AJ164-AI164)+AI170 -> 1000 | AK170: =(AK171-AK169)/(A171-A169)*(A170-A169)+AK169 -> 1000 | AL170: =(AM170-AK170)/(AM164-AK164)*(AL164-AK164)+AK170 ->  | AM170: =(AM171-AM169)/(A171-A169)*(A170-A169)+AM169 ->  | AN170: =(AO170-AM170)/(AO164-AM164)*(AN164-AM164)+AM170 ->  | AO170: =(AO171-AO169)/(A171-A169)*(A170-A169)+AO169 ->  | AP170: =(AQ170-AO170)/(AQ164-AO164)*(AP164-AO164)+AO170 ->  | AQ170: =(AQ171-AQ169)/(A171-A169)*(A170-A169)+AQ169 ->  | AR170: 7
A171: 5 | B171: =B169+1 -> 3 | C171: 0 | D171: =(E171-C171)/(E164-C164)*(D164-C164)+C171 -> -90 | E171: 90 | F171: =(G171-E171)/(G164-E164)*(F164-E164)+E171 -> 20 | G171: 125 | H171: =(I171-G171)/(I164-G164)*(H164-G164)+G171 -> -70 | I171: 190 | J171: =(K171-I171)/(K164-I164)*(J164-I164)+I171 -> 90 | K171: 240 | L171: =(M171-K171)/(M164-K164)*(L164-K164)+K171 -> 120 | M171: 280 | N171: =(O171-M171)/(O164-M164)*(N164-M164)+M171 -> 160 | O171: 310 | P171: =(Q171-O171)/(Q164-O164)*(P164-O164)+O171 -> 160 | Q171: 340 | R171: =(S171-Q171)/(S164-Q164)*(R164-Q164)+Q171 -> 100 | S171: 380 | T171: =(U171-S171)/(U164-S164)*(T164-S164)+S171 -> 170 | U171: 410 | V171: =(W171-U171)/(W164-U164)*(V164-U164)+U171 -> 250 | W171: 450 | X171: =(Y171-W171)/(Y164-W164)*(X164-W164)+W171 -> 170 | Y171: 520 | Z171: =(AA171-Y171)/(AA164-Y164)*(Z164-Y164)+Y171 -> 220 | AA171: 580 | AB171: =(AC171-AA171)/(AC164-AA164)*(AB164-AA164)+AA171 -> 220 | AC171: 700 | AD171: =(AE171-AC171)/(AE164-AC164)*(AD164-AC164)+AC171 -> 260 | AE171: 920 | AF171: =(AG171-AE171)/(AG164-AE164)*(AF164-AE164)+AE171 -> 978.4 | AG171: 1000 | AH171: =(AI171-AG171)/(AI164-AG164)*(AH164-AG164)+AG171 -> 1000 | AI171: 1000 | AJ171: =(AK171-AI171)/(AK164-AI164)*(AJ164-AI164)+AI171 -> 1000 | AK171: 1000 | AL171: =(AM171-AK171)/(AM164-AK164)*(AL164-AK164)+AK171 ->  | AM171: - | AN171: =(AO171-AM171)/(AO164-AM164)*(AN164-AM164)+AM171 ->  | AO171: - | AP171: =(AQ171-AO171)/(AQ164-AO164)*(AP164-AO164)+AO171 ->  | AQ171: - | AR171: 8 | AS171: =AK21 -> 0.373 | AT171: =AL21 -> 229.2 | AU171: =VLOOKUP(AV171,A164:AQ201,HLOOKUP(AS171,A164:AQ201,38,0),0) -> 730 | AV171: =AN21 -> 300 | AW171: =IF(AS171<A167,"NO",IF(AS171>A199,"N0",IF(VLOOKUP(AS171,A167:AQ199,3,0)>AT171,"NO",IF(VLOOKUP(AS171,A167:AQ199,17,0)<AT171,"NO",IF(AND(AU171>=AT171-0.1,AU171<AT171+0.1)=TRUE,AV171,"NO"))))) -> NO
A172: =IF(AND(AV171>A171,AV171<A173)=TRUE,AV171,0) -> 0 | C172: =(C173-C171)/(A173-A171)*(A172-A171)+C171 ->  | D172: =(E172-C172)/(E164-C164)*(D164-C164)+C172 ->  | E172: =(E173-E171)/(A173-A171)*(A172-A171)+E171 -> 140 | F172: =(G172-E172)/(G164-E164)*(F164-E164)+E172 -> 120 | G172: =(G173-G171)/(A173-A171)*(A172-A171)+G171 -> 150 | H172: =(I172-G172)/(I164-G164)*(H164-G164)+G172 -> -70 | I172: =(I173-I171)/(A173-A171)*(A172-A171)+I171 -> 223.3333333 | J172: =(K172-I172)/(K164-I164)*(J164-I164)+I172 -> 156.6666667 | K172: =(K173-K171)/(A173-A171)*(A172-A171)+K171 -> 256.6666667 | L172: =(M172-K172)/(M164-K164)*(L164-K164)+K172 -> 136.6666667 | M172: =(M173-M171)/(A173-A171)*(A172-A171)+M171 -> 296.6666667 | N172: =(O172-M172)/(O164-M164)*(N164-M164)+M172 -> 243.3333333 | O172: =(O173-O171)/(A173-A171)*(A172-A171)+O171 -> 310 | P172: =(Q172-O172)/(Q164-O164)*(P164-O164)+O172 -> 160 | Q172: =(Q173-Q171)/(A173-A171)*(A172-A171)+Q171 -> 340 | R172: =(S172-Q172)/(S164-Q164)*(R164-Q164)+Q172 -> 100 | S172: =(S173-S171)/(A173-A171)*(A172-A171)+S171 -> 380 | T172: =(U172-S172)/(U164-S164)*(T164-S164)+S172 -> 53.33333333 | U172: =(U173-U171)/(G173-G171)*(G172-G171)+U171 -> 426.6666667 | V172: =(W172-U172)/(W164-U164)*(V164-U164)+U172 -> 333.3333333 | W172: =(W173-W171)/(I173-I171)*(I172-I171)+W171 -> 450 | X172: =(Y172-W172)/(Y164-W164)*(X164-W164)+W172 -> 170 | Y172: =(Y173-Y171)/(A173-A171)*(A172-A171)+Y171 -> 520 | Z172: =(AA172-Y172)/(AA164-Y164)*(Z164-Y164)+Y172 -> 220 | AA172: =(AA173-AA171)/(A173-A171)*(A172-A171)+AA171 -> 580 | AB172: =(AC172-AA172)/(AC164-AA164)*(AB164-AA164)+AA172 -> 220 | AC172: =(AC173-AC171)/(A173-A171)*(A172-A171)+AC171 -> 700 | AD172: =(AE172-AC172)/(AE164-AC164)*(AD164-AC164)+AC172 -> 260 | AE172: =(AE173-AE171)/(A173-A171)*(A172-A171)+AE171 -> 920 | AF172: =(AG172-AE172)/(AG164-AE164)*(AF164-AE164)+AE172 -> 978.4 | AG172: =(AG173-AG171)/(A173-A171)*(A172-A171)+AG171 -> 1000 | AH172: =(AI172-AG172)/(AI164-AG164)*(AH164-AG164)+AG172 -> 1000 | AI172: =(AI173-AI171)/(A173-A171)*(A172-A171)+AI171 -> 1000 | AJ172: =(AK172-AI172)/(AK164-AI164)*(AJ164-AI164)+AI172 -> 1000 | AK172: =(AK173-AK171)/(A173-A171)*(A172-A171)+AK171 -> 1000 | AL172: =(AM172-AK172)/(AM164-AK164)*(AL164-AK164)+AK172 ->  | AM172: =(AM173-AM171)/(A173-A171)*(A172-A171)+AM171 ->  | AN172: =(AO172-AM172)/(AO164-AM164)*(AN164-AM164)+AM172 ->  | AO172: =(AO173-AO171)/(A173-A171)*(A172-A171)+AO171 ->  | AP172: =(AQ172-AO172)/(AQ164-AO164)*(AP164-AO164)+AO172 ->  | AQ172: =(AQ173-AQ171)/(A173-A171)*(A172-A171)+AQ171 ->  | AR172: 9
A173: 8 | B173: =B171+1 -> 4 | C173: - | D173: =(E173-C173)/(E164-C164)*(D164-C164)+C173 ->  | E173: 60 | F173: =(G173-E173)/(G164-E164)*(F164-E164)+E173 -> -40 | G173: 110 | H173: =(I173-G173)/(I164-G164)*(H164-G164)+G173 -> -70 | I173: 170 | J173: =(K173-I173)/(K164-I164)*(J164-I164)+I173 -> 50 | K173: 230 | L173: =(M173-K173)/(M164-K164)*(L164-K164)+K173 -> 110 | M173: 270 | N173: =(O173-M173)/(O164-M164)*(N164-M164)+M173 -> 110 | O173: 310 | P173: =(Q173-O173)/(Q164-O164)*(P164-O164)+O173 -> 160 | Q173: 340 | R173: =(S173-Q173)/(S164-Q164)*(R164-Q164)+Q173 -> 100 | S173: 380 | T173: =(U173-S173)/(U164-S164)*(T164-S164)+S173 -> 240 | U173: 400 | V173: =(W173-U173)/(W164-U164)*(V164-U164)+U173 -> 200 | W173: 450 | X173: =(Y173-W173)/(Y164-W164)*(X164-W164)+W173 -> 170 | Y173: 520 | Z173: =(AA173-Y173)/(AA164-Y164)*(Z164-Y164)+Y173 -> 220 | AA173: 580 | AB173: =(AC173-AA173)/(AC164-AA164)*(AB164-AA164)+AA173 -> 220 | AC173: 700 | AD173: =(AE173-AC173)/(AE164-AC164)*(AD164-AC164)+AC173 -> 260 | AE173: 920 | AF173: =(AG173-AE173)/(AG164-AE164)*(AF164-AE164)+AE173 -> 978.4 | AG173: 1000 | AH173: =(AI173-AG173)/(AI164-AG164)*(AH164-AG164)+AG173 -> 1000 | AI173: 1000 | AJ173: =(AK173-AI173)/(AK164-AI164)*(AJ164-AI164)+AI173 -> 1000 | AK173: 1000 | AL173: =(AM173-AK173)/(AM164-AK164)*(AL164-AK164)+AK173 ->  | AM173: - | AN173: =(AO173-AM173)/(AO164-AM164)*(AN164-AM164)+AM173 ->  | AO173: - | AP173: =(AQ173-AO173)/(AQ164-AO164)*(AP164-AO164)+AO173 ->  | AQ173: - | AR173: 10 | AS173: 0.1 | AT173: =AL23 -> 263.58
A174: =IF(AND(AV171>A173,AV171<A175)=TRUE,AV171,0) -> 0 | C174: =(C175-C173)/(A175-A173)*(A174-A173)+C173 ->  | D174: =(E174-C174)/(E164-C164)*(D164-C164)+C174 ->  | E174: =(E175-E173)/(A175-A173)*(A174-A173)+E173 -> 300 | F174: =(G174-E174)/(G164-E164)*(F164-E164)+E174 -> 520 | G174: =(G175-G173)/(A175-A173)*(A174-A173)+G173 -> 190 | H174: =(I174-G174)/(I164-G164)*(H164-G164)+G174 -> 130 | I174: =(I175-I173)/(A175-A173)*(A174-A173)+I173 -> 210 | J174: =(K174-I174)/(K164-I164)*(J164-I164)+I174 -> 90 | K174: =(K175-K173)/(A175-A173)*(A174-A173)+K173 -> 270 | L174: =(M174-K174)/(M164-K164)*(L164-K164)+K174 -> 150 | M174: =(M175-M173)/(A175-A173)*(A174-A173)+M173 -> 310 | N174: =(O174-M174)/(O164-M164)*(N164-M164)+M174 -> 150 | O174: =(O175-O173)/(A175-A173)*(A174-A173)+O173 -> 350 | P174: =(Q174-O174)/(Q164-O164)*(P164-O164)+O174 -> 400 | Q174: =(Q175-Q173)/(A175-A173)*(A174-A173)+Q173 -> 340 | R174: =(S174-Q174)/(S164-Q164)*(R164-Q164)+Q174 -> -140 | S174: =(S175-S173)/(A175-A173)*(A174-A173)+S173 -> 420 | T174: =(U174-S174)/(U164-S164)*(T164-S164)+S174 -> 560 | U174: =(U175-U173)/(G175-G173)*(G174-G173)+U173 -> 400 | V174: =(W174-U174)/(W164-U164)*(V164-U164)+U174 -> 200 | W174: =(W175-W173)/(I175-I173)*(I174-I173)+W173 -> 450 | X174: =(Y174-W174)/(Y164-W164)*(X164-W164)+W174 -> 170 | Y174: =(Y175-Y173)/(A175-A173)*(A174-A173)+Y173 -> 520 | Z174: =(AA174-Y174)/(AA164-Y164)*(Z164-Y164)+Y174 -> 220 | AA174: =(AA175-AA173)/(A175-A173)*(A174-A173)+AA173 -> 580 | AB174: =(AC174-AA174)/(AC164-AA164)*(AB164-AA164)+AA174 -> 220 | AC174: =(AC175-AC173)/(A175-A173)*(A174-A173)+AC173 -> 700 | AD174: =(AE174-AC174)/(AE164-AC164)*(AD164-AC164)+AC174 -> 260 | AE174: =(AE175-AE173)/(A175-A173)*(A174-A173)+AE173 -> 920 | AF174: =(AG174-AE174)/(AG164-AE164)*(AF164-AE164)+AE174 -> 978.4 | AG174: =(AG175-AG173)/(A175-A173)*(A174-A173)+AG173 -> 1000 | AH174: =(AI174-AG174)/(AI164-AG164)*(AH164-AG164)+AG174 -> 1800 | AI174: =(AI175-AI173)/(A175-A173)*(A174-A173)+AI173 -> 800 | AJ174: =(AK174-AI174)/(AK164-AI164)*(AJ164-AI164)+AI174 -> 800 | AK174: =(AK175-AK173)/(A175-A173)*(A174-A173)+AK173 -> 800 | AL174: =(AM174-AK174)/(AM164-AK164)*(AL164-AK164)+AK174 ->  | AM174: =(AM175-AM173)/(A175-A173)*(A174-A173)+AM173 ->  | AN174: =(AO174-AM174)/(AO164-AM164)*(AN164-AM164)+AM174 ->  | AO174: =(AO175-AO173)/(A175-A173)*(A174-A173)+AO173 ->  | AP174: =(AQ174-AO174)/(AQ164-AO164)*(AP164-AO164)+AO174 ->  | AQ174: =(AQ175-AQ173)/(A175-A173)*(A174-A173)+AQ173 ->  | AR174: 11
A175: 10 | B175: =B173+1 -> 5 | C175: - | D175: =(E175-C175)/(E164-C164)*(D164-C164)+C175 ->  | E175: 0 | F175: =(G175-E175)/(G164-E164)*(F164-E164)+E175 -> -180 | G175: 90 | H175: =(I175-G175)/(I164-G164)*(H164-G164)+G175 -> -120 | I175: 160 | J175: =(K175-I175)/(K164-I164)*(J164-I164)+I175 -> 40 | K175: 220 | L175: =(M175-K175)/(M164-K164)*(L164-K164)+K175 -> 100 | M175: 260 | N175: =(O175-M175)/(O164-M164)*(N164-M164)+M175 -> 100 | O175: 300 | P175: =(Q175-O175)/(Q164-O164)*(P164-O164)+O175 -> 100 | Q175: 340 | R175: =(S175-Q175)/(S164-Q164)*(R164-Q164)+Q175 -> 160 | S175: 370 | T175: =(U175-S175)/(U164-S164)*(T164-S164)+S175 -> 160 | U175: 400 | V175: =(W175-U175)/(W164-U164)*(V164-U164)+U175 -> 200 | W175: 450 | X175: =(Y175-W175)/(Y164-W164)*(X164-W164)+W175 -> 170 | Y175: 520 | Z175: =(AA175-Y175)/(AA164-Y164)*(Z164-Y164)+Y175 -> 220 | AA175: 580 | AB175: =(AC175-AA175)/(AC164-AA164)*(AB164-AA164)+AA175 -> 220 | AC175: 700 | AD175: =(AE175-AC175)/(AE164-AC164)*(AD164-AC164)+AC175 -> 260 | AE175: 920 | AF175: =(AG175-AE175)/(AG164-AE164)*(AF164-AE164)+AE175 -> 978.4 | AG175: 1000 | AH175: =(AI175-AG175)/(AI164-AG164)*(AH164-AG164)+AG175 -> 800 | AI175: 1050 | AJ175: =(AK175-AI175)/(AK164-AI164)*(AJ164-AI164)+AI175 -> 1050 | AK175: 1050 | AL175: =(AM175-AK175)/(AM164-AK164)*(AL164-AK164)+AK175 ->  | AM175: - | AN175: =(AO175-AM175)/(AO164-AM164)*(AN164-AM164)+AM175 ->  | AO175: - | AP175: =(AQ175-AO175)/(AQ164-AO164)*(AP164-AO164)+AO175 ->  | AQ175: - | AR175: 12 | AS175: Регулятор давления | AV175: =Лист1!F71 -> РЕД-6-25х65-Н DN25x65 Qmax=1150 нм3/час
A176: =IF(AND(AV171>A175,AV171<A177)=TRUE,AV171,0) -> 0 | C176: =(C177-C175)/(A177-A175)*(A176-A175)+C175 ->  | D176: =(E176-C176)/(E164-C164)*(D164-C164)+C176 ->  | E176: =(E177-E175)/(A177-A175)*(A176-A175)+E175 ->  | F176: =(G176-E176)/(G164-E164)*(F164-E164)+E176 ->  | G176: =(G177-G175)/(A177-A175)*(A176-A175)+G175 -> 270 | H176: =(I176-G176)/(I164-G164)*(H164-G164)+G176 -> 240 | I176: =(I177-I175)/(A177-A175)*(A176-A175)+I175 -> 280 | J176: =(K176-I176)/(K164-I164)*(J164-I164)+I176 -> 320 | K176: =(K177-K175)/(A177-A175)*(A176-A175)+K175 -> 260 | L176: =(M176-K176)/(M164-K164)*(L164-K164)+K176 -> 200 | M176: =(M177-M175)/(A177-A175)*(A176-A175)+M175 -> 280 | N176: =(O176-M176)/(O164-M164)*(N164-M164)+M176 -> 200 | O176: =(O177-O175)/(A177-A175)*(A176-A175)+O175 -> 300 | P176: =(Q176-O176)/(Q164-O164)*(P164-O164)+O176 -> 0 | Q176: =(Q177-Q175)/(A177-A175)*(A176-A175)+Q175 -> 360 | R176: =(S176-Q176)/(S164-Q164)*(R164-Q164)+Q176 -> 180 | S176: =(S177-S175)/(A177-A175)*(A176-A175)+S175 -> 390 | T176: =(U176-S176)/(U164-S164)*(T164-S164)+S176 -> 180 | U176: =(U177-U175)/(A177-A175)*(A176-A175)+U175 -> 420 | V176: =(W176-U176)/(W164-U164)*(V164-U164)+U176 -> 300 | W176: =(W177-W175)/(A177-A175)*(A176-A175)+W175 -> 450 | X176: =(Y176-W176)/(Y164-W164)*(X164-W164)+W176 -> 170 | Y176: =(Y177-Y175)/(A177-A175)*(A176-A175)+Y175 -> 520 | Z176: =(AA176-Y176)/(AA164-Y164)*(Z164-Y164)+Y176 -> 220 | AA176: =(AA177-AA175)/(A177-A175)*(A176-A175)+AA175 -> 580 | AB176: =(AC176-AA176)/(AC164-AA164)*(AB164-AA164)+AA176 -> 220 | AC176: =(AC177-AC175)/(A177-A175)*(A176-A175)+AC175 -> 700 | AD176: =(AE176-AC176)/(AE164-AC164)*(AD164-AC164)+AC176 -> 260 | AE176: =(AE177-AE175)/(A177-A175)*(A176-A175)+AE175 -> 920 | AF176: =(AG176-AE176)/(AG164-AE164)*(AF164-AE164)+AE176 -> 978.4 | AG176: =(AG177-AG175)/(A177-A175)*(A176-A175)+AG175 -> 1000 | AH176: =(AI176-AG176)/(AI164-AG164)*(AH164-AG164)+AG176 -> 800 | AI176: =(AI177-AI175)/(A177-A175)*(A176-A175)+AI175 -> 1050 | AJ176: =(AK176-AI176)/(AK164-AI164)*(AJ164-AI164)+AI176 -> 1050 | AK176: =(AK177-AK175)/(A177-A175)*(A176-A175)+AK175 -> 1050 | AL176: =(AM176-AK176)/(AM164-AK164)*(AL164-AK164)+AK176 ->  | AM176: =(AM177-AM175)/(A177-A175)*(A176-A175)+AM175 ->  | AN176: =(AO176-AM176)/(AO164-AM164)*(AN164-AM164)+AM176 ->  | AO176: =(AO177-AO175)/(A177-A175)*(A176-A175)+AO175 ->  | AP176: =(AQ176-AO176)/(AQ164-AO164)*(AP164-AO164)+AO176 ->  | AQ176: =(AQ177-AQ175)/(A177-A175)*(A176-A175)+AQ175 ->  | AR176: 13
A177: 15 | B177: =B175+1 -> 6 | C177: - | D177: =(E177-C177)/(E164-C164)*(D164-C164)+C177 ->  | E177: - | F177: =(G177-E177)/(G164-E164)*(F164-E164)+E177 ->  | G177: 0 | H177: =(I177-G177)/(I164-G164)*(H164-G164)+G177 -> -300 | I177: 100 | J177: =(K177-I177)/(K164-I164)*(J164-I164)+I177 -> -100 | K177: 200 | L177: =(M177-K177)/(M164-K164)*(L164-K164)+K177 -> 50 | M177: 250 | N177: =(O177-M177)/(O164-M164)*(N164-M164)+M177 -> 50 | O177: 300 | P177: =(Q177-O177)/(Q164-O164)*(P164-O164)+O177 -> 150 | Q177: 330 | R177: =(S177-Q177)/(S164-Q164)*(R164-Q164)+Q177 -> 150 | S177: 360 | T177: =(U177-S177)/(U164-S164)*(T164-S164)+S177 -> 150 | U177: 390 | V177: =(W177-U177)/(W164-U164)*(V164-U164)+U177 -> 150 | W177: 450 | X177: =(Y177-W177)/(Y164-W164)*(X164-W164)+W177 -> 170 | Y177: 520 | Z177: =(AA177-Y177)/(AA164-Y164)*(Z164-Y164)+Y177 -> 220 | AA177: 580 | AB177: =(AC177-AA177)/(AC164-AA164)*(AB164-AA164)+AA177 -> 220 | AC177: 700 | AD177: =(AE177-AC177)/(AE164-AC164)*(AD164-AC164)+AC177 -> 260 | AE177: 920 | AF177: =(AG177-AE177)/(AG164-AE164)*(AF164-AE164)+AE177 -> 978.4 | AG177: 1000 | AH177: =(AI177-AG177)/(AI164-AG164)*(AH164-AG164)+AG177 -> 800 | AI177: 1050 | AJ177: =(AK177-AI177)/(AK164-AI164)*(AJ164-AI164)+AI177 -> 1050 | AK177: 1050 | AL177: =(AM177-AK177)/(AM164-AK164)*(AL164-AK164)+AK177 ->  | AM177: - | AN177: =(AO177-AM177)/(AO164-AM164)*(AN164-AM164)+AM177 ->  | AO177: - | AP177: =(AQ177-AO177)/(AQ164-AO164)*(AP164-AO164)+AO177 ->  | AQ177: - | AR177: 14
A178: =IF(AND(AV171>A177,AV171<A179)=TRUE,AV171,0) -> 0 | C178: =(C179-C177)/(A179-A177)*(A178-A177)+C177 ->  | D178: =(E178-C178)/(E164-C164)*(D164-C164)+C178 ->  | E178: =(E179-E177)/(A179-A177)*(A178-A177)+E177 ->  | F178: =(G178-E178)/(G164-E164)*(F164-E164)+E178 ->  | G178: =(G179-G177)/(A179-A177)*(A178-A177)+G177 ->  | H178: =(I178-G178)/(I164-G164)*(H164-G164)+G178 ->  | I178: =(I179-I177)/(A179-A177)*(A178-A177)+I177 -> 400 | J178: =(K178-I178)/(K164-I164)*(J164-I164)+I178 -> 560 | K178: =(K179-K177)/(A179-A177)*(A178-A177)+K177 -> 320 | L178: =(M178-K178)/(M164-K164)*(L164-K164)+K178 -> 350 | M178: =(M179-M177)/(A179-A177)*(A178-A177)+M177 -> 310 | N178: =(O178-M178)/(O164-M164)*(N164-M164)+M178 -> 110 | O178: =(O179-O177)/(A179-A177)*(A178-A177)+O177 -> 360 | P178: =(Q178-O178)/(Q164-O164)*(P164-O164)+O178 -> 360 | Q178: =(Q179-Q177)/(A179-A177)*(A178-A177)+Q177 -> 360 | R178: =(S178-Q178)/(S164-Q164)*(R164-Q164)+Q178 -> 360 | S178: =(S179-S177)/(A179-A177)*(A178-A177)+S177 -> 360 | T178: =(U178-S178)/(U164-S164)*(T164-S164)+S178 -> 150 | U178: =(U179-U177)/(A179-A177)*(A178-A177)+U177 -> 390 | V178: =(W178-U178)/(W164-U164)*(V164-U164)+U178 -> 150 | W178: =(W179-W177)/(A179-A177)*(A178-A177)+W177 -> 450 | X178: =(Y178-W178)/(Y164-W164)*(X164-W164)+W178 -> 170 | Y178: =(Y179-Y177)/(A179-A177)*(A178-A177)+Y177 -> 520 | Z178: =(AA178-Y178)/(AA164-Y164)*(Z164-Y164)+Y178 -> 220 | AA178: =(AA179-AA177)/(A179-A177)*(A178-A177)+AA177 -> 580 | AB178: =(AC178-AA178)/(AC164-AA164)*(AB164-AA164)+AA178 -> 220 | AC178: =(AC179-AC177)/(A179-A177)*(A178-A177)+AC177 -> 700 | AD178: =(AE178-AC178)/(AE164-AC164)*(AD164-AC164)+AC178 -> 260 | AE178: =(AE179-AE177)/(A179-A177)*(A178-A177)+AE177 -> 920 | AF178: =(AG178-AE178)/(AG164-AE164)*(AF164-AE164)+AE178 -> 978.4 | AG178: =(AG179-AG177)/(A179-A177)*(A178-A177)+AG177 -> 1000 | AH178: =(AI178-AG178)/(AI164-AG164)*(AH164-AG164)+AG178 -> 800 | AI178: =(AI179-AI177)/(A179-A177)*(A178-A177)+AI177 -> 1050 | AJ178: =(AK178-AI178)/(AK164-AI164)*(AJ164-AI164)+AI178 -> 1800 | AK178: =(AK179-AK177)/(A179-A177)*(A178-A177)+AK177 -> 900 | AL178: =(AM178-AK178)/(AM164-AK164)*(AL164-AK164)+AK178 ->  | AM178: =(AM179-AM177)/(A179-A177)*(A178-A177)+AM177 ->  | AN178: =(AO178-AM178)/(AO164-AM164)*(AN164-AM164)+AM178 ->  | AO178: =(AO179-AO177)/(A179-A177)*(A178-A177)+AO177 ->  | AP178: =(AQ178-AO178)/(AQ164-AO164)*(AP164-AO164)+AO178 ->  | AQ178: =(AQ179-AQ177)/(A179-A177)*(A178-A177)+AQ177 ->  | AR178: 15
A179: 20 | B179: =B177+1 -> 7 | C179: - | D179: =(E179-C179)/(E164-C164)*(D164-C164)+C179 ->  | E179: - | F179: =(G179-E179)/(G164-E164)*(F164-E164)+E179 ->  | G179: - | H179: =(I179-G179)/(I164-G164)*(H164-G164)+G179 ->  | I179: 0 | J179: =(K179-I179)/(K164-I164)*(J164-I164)+I179 -> -320 | K179: 160 | L179: =(M179-K179)/(M164-K164)*(L164-K164)+K179 -> -50 | M179: 230 | N179: =(O179-M179)/(O164-M164)*(N164-M164)+M179 -> 30 | O179: 280 | P179: =(Q179-O179)/(Q164-O164)*(P164-O164)+O179 -> 80 | Q179: 320 | R179: =(S179-Q179)/(S164-Q164)*(R164-Q164)+Q179 -> 80 | S179: 360 | T179: =(U179-S179)/(U164-S164)*(T164-S164)+S179 -> 150 | U179: 390 | V179: =(W179-U179)/(W164-U164)*(V164-U164)+U179 -> 150 | W179: 450 | X179: =(Y179-W179)/(Y164-W164)*(X164-W164)+W179 -> 170 | Y179: 520 | Z179: =(AA179-Y179)/(AA164-Y164)*(Z164-Y164)+Y179 -> 220 | AA179: 580 | AB179: =(AC179-AA179)/(AC164-AA164)*(AB164-AA164)+AA179 -> 220 | AC179: 700 | AD179: =(AE179-AC179)/(AE164-AC164)*(AD164-AC164)+AC179 -> 260 | AE179: 920 | AF179: =(AG179-AE179)/(AG164-AE164)*(AF164-AE164)+AE179 -> 978.4 | AG179: 1000 | AH179: =(AI179-AG179)/(AI164-AG164)*(AH164-AG164)+AG179 -> 800 | AI179: 1050 | AJ179: =(AK179-AI179)/(AK164-AI164)*(AJ164-AI164)+AI179 -> 800 | AK179: 1100 | AL179: =(AM179-AK179)/(AM164-AK164)*(AL164-AK164)+AK179 ->  | AM179: - | AN179: =(AO179-AM179)/(AO164-AM164)*(AN164-AM164)+AM179 ->  | AO179: - | AP179: =(AQ179-AO179)/(AQ164-AO164)*(AP164-AO164)+AO179 ->  | AQ179: - | AR179: 16
A180: =IF(AND(AV171>A179,AV171<A181)=TRUE,AV171,0) -> 0 | C180: =(C181-C179)/(A181-A179)*(A180-A179)+C179 ->  | D180: =(E180-C180)/(E164-C164)*(D164-C164)+C180 ->  | E180: =(E181-E179)/(A181-A179)*(A180-A179)+E179 ->  | F180: =(G180-E180)/(G164-E164)*(F164-E164)+E180 ->  | G180: =(G181-G179)/(A181-A179)*(A180-A179)+G179 ->  | H180: =(I180-G180)/(I164-G164)*(H164-G164)+G180 ->  | I180: =(I181-I179)/(A181-A179)*(A180-A179)+I179 ->  | J180: =(K180-I180)/(K164-I164)*(J164-I164)+I180 ->  | K180: =(K181-K179)/(A181-A179)*(A180-A179)+K179 -> 800 | L180: =(M180-K180)/(M164-K164)*(L164-K164)+K180 -> 2270 | M180: =(M181-M179)/(A181-A179)*(A180-A179)+M179 -> 310 | N180: =(O180-M180)/(O164-M164)*(N164-M164)+M180 -> 110 | O180: =(O181-O179)/(A181-A179)*(A180-A179)+O179 -> 360 | P180: =(Q180-O180)/(Q164-O164)*(P164-O164)+O180 -> 360 | Q180: =(Q181-Q179)/(A181-A179)*(A180-A179)+Q179 -> 360 | R180: =(S180-Q180)/(S164-Q164)*(R164-Q164)+Q180 -> 120 | S180: =(S181-S179)/(A181-A179)*(A180-A179)+S179 -> 400 | T180: =(U180-S180)/(U164-S164)*(T164-S164)+S180 -> 470 | U180: =(U181-U179)/(A181-A179)*(A180-A179)+U179 -> 390 | V180: =(W180-U180)/(W164-U164)*(V164-U164)+U180 -> 150 | W180: =(W181-W179)/(A181-A179)*(A180-A179)+W179 -> 450 | X180: =(Y180-W180)/(Y164-W164)*(X164-W164)+W180 -> 170 | Y180: =(Y181-Y179)/(A181-A179)*(A180-A179)+Y179 -> 520 | Z180: =(AA180-Y180)/(AA164-Y164)*(Z164-Y164)+Y180 -> 220 | AA180: =(AA181-AA179)/(A181-A179)*(A180-A179)+AA179 -> 580 | AB180: =(AC180-AA180)/(AC164-AA164)*(AB164-AA164)+AA180 -> 220 | AC180: =(AC181-AC179)/(A181-A179)*(A180-A179)+AC179 -> 700 | AD180: =(AE180-AC180)/(AE164-AC164)*(AD164-AC164)+AC180 -> 260 | AE180: =(AE181-AE179)/(A181-A179)*(A180-A179)+AE179 -> 920 | AF180: =(AG180-AE180)/(AG164-AE164)*(AF164-AE164)+AE180 -> 978.4 | AG180: =(AG181-AG179)/(A181-A179)*(A180-A179)+AG179 -> 1000 | AH180: =(AI180-AG180)/(AI164-AG164)*(AH164-AG164)+AG180 -> 800 | AI180: =(AI181-AI179)/(A181-A179)*(A180-A179)+AI179 -> 1050 | AJ180: =(AK180-AI180)/(AK164-AI164)*(AJ164-AI164)+AI180 -> 1800 | AK180: =(AK181-AK179)/(A181-A179)*(A180-A179)+AK179 -> 900 | AL180: =(AM180-AK180)/(AM164-AK164)*(AL164-AK164)+AK180 ->  | AM180: =(AM181-AM179)/(A181-A179)*(A180-A179)+AM179 ->  | AN180: =(AO180-AM180)/(AO164-AM164)*(AN164-AM164)+AM180 ->  | AO180: =(AO181-AO179)/(A181-A179)*(A180-A179)+AO179 ->  | AP180: =(AQ180-AO180)/(AQ164-AO164)*(AP164-AO164)+AO180 ->  | AQ180: =(AQ181-AQ179)/(A181-A179)*(A180-A179)+AQ179 ->  | AR180: 17
A181: 25 | B181: =B179+1 -> 8 | C181: - | D181: =(E181-C181)/(E164-C164)*(D164-C164)+C181 ->  | E181: - | F181: =(G181-E181)/(G164-E164)*(F164-E164)+E181 ->  | G181: - | H181: =(I181-G181)/(I164-G164)*(H164-G164)+G181 ->  | I181: - | J181: =(K181-I181)/(K164-I164)*(J164-I164)+I181 ->  | K181: 0 | L181: =(M181-K181)/(M164-K164)*(L164-K164)+K181 -> -630 | M181: 210 | N181: =(O181-M181)/(O164-M164)*(N164-M164)+M181 -> 10 | O181: 260 | P181: =(Q181-O181)/(Q164-O164)*(P164-O164)+O181 -> 10 | Q181: 310 | R181: =(S181-Q181)/(S164-Q164)*(R164-Q164)+Q181 -> 70 | S181: 350 | T181: =(U181-S181)/(U164-S164)*(T164-S164)+S181 -> 70 | U181: 390 | V181: =(W181-U181)/(W164-U164)*(V164-U164)+U181 -> 150 | W181: 450 | X181: =(Y181-W181)/(Y164-W164)*(X164-W164)+W181 -> 170 | Y181: 520 | Z181: =(AA181-Y181)/(AA164-Y164)*(Z164-Y164)+Y181 -> 220 | AA181: 580 | AB181: =(AC181-AA181)/(AC164-AA164)*(AB164-AA164)+AA181 -> 220 | AC181: 700 | AD181: =(AE181-AC181)/(AE164-AC164)*(AD164-AC164)+AC181 -> 260 | AE181: 920 | AF181: =(AG181-AE181)/(AG164-AE164)*(AF164-AE164)+AE181 -> 978.4 | AG181: 1000 | AH181: =(AI181-AG181)/(AI164-AG164)*(AH164-AG164)+AG181 -> 800 | AI181: 1050 | AJ181: =(AK181-AI181)/(AK164-AI164)*(AJ164-AI164)+AI181 -> 550 | AK181: 1150 | AL181: =(AM181-AK181)/(AM164-AK164)*(AL164-AK164)+AK181 ->  | AM181: - | AN181: =(AO181-AM181)/(AO164-AM164)*(AN164-AM164)+AM181 ->  | AO181: - | AP181: =(AQ181-AO181)/(AQ164-AO164)*(AP164-AO164)+AO181 ->  | AQ181: - | AR181: 18
A182: =IF(AND(AV171>A181,AV171<A183)=TRUE,AV171,0) -> 0 | C182: =(C183-C181)/(A183-A181)*(A182-A181)+C181 ->  | D182: =(E182-C182)/(E164-C164)*(D164-C164)+C182 ->  | E182: =(E183-E181)/(A183-A181)*(A182-A181)+E181 ->  | F182: =(G182-E182)/(G164-E164)*(F164-E164)+E182 ->  | G182: =(G183-G181)/(A183-A181)*(A182-A181)+G181 ->  | H182: =(I182-G182)/(I164-G164)*(H164-G164)+G182 ->  | I182: =(I183-I181)/(A183-A181)*(A182-A181)+I181 ->  | J182: =(K182-I182)/(K164-I164)*(J164-I164)+I182 ->  | K182: =(K183-K181)/(A183-A181)*(A182-A181)+K181 ->  | L182: =(M182-K182)/(M164-K164)*(L164-K164)+K182 ->  | M182: =(M183-M181)/(A183-A181)*(A182-A181)+M181 -> 410 | N182: =(O182-M182)/(O164-M164)*(N164-M164)+M182 -> 610 | O182: =(O183-O181)/(A183-A181)*(A182-A181)+O181 -> 360 | P182: =(Q182-O182)/(Q164-O164)*(P164-O164)+O182 -> 110 | Q182: =(Q183-Q181)/(A183-A181)*(A182-A181)+Q181 -> 410 | R182: =(S182-Q182)/(S164-Q164)*(R164-Q164)+Q182 -> 470 | S182: =(S183-S181)/(A183-A181)*(A182-A181)+S181 -> 400 | T182: =(U182-S182)/(U164-S164)*(T164-S164)+S182 -> 120 | U182: =(U183-U181)/(A183-A181)*(A182-A181)+U181 -> 440 | V182: =(W182-U182)/(W164-U164)*(V164-U164)+U182 -> 200 | W182: =(W183-W181)/(A183-A181)*(A182-A181)+W181 -> 500 | X182: =(Y182-W182)/(Y164-W164)*(X164-W164)+W182 -> 220 | Y182: =(Y183-Y181)/(A183-A181)*(A182-A181)+Y181 -> 570 | Z182: =(AA182-Y182)/(AA164-Y164)*(Z164-Y164)+Y182 -> 520 | AA182: =(AA183-AA181)/(A183-A181)*(A182-A181)+AA181 -> 580 | AB182: =(AC182-AA182)/(AC164-AA164)*(AB164-AA164)+AA182 -> 220 | AC182: =(AC183-AC181)/(A183-A181)*(A182-A181)+AC181 -> 700 | AD182: =(AE182-AC182)/(AE164-AC164)*(AD164-AC164)+AC182 -> 260 | AE182: =(AE183-AE181)/(A183-A181)*(A182-A181)+AE181 -> 920 | AF182: =(AG182-AE182)/(AG164-AE164)*(AF164-AE164)+AE182 -> 978.4 | AG182: =(AG183-AG181)/(A183-A181)*(A182-A181)+AG181 -> 1000 | AH182: =(AI182-AG182)/(AI164-AG164)*(AH164-AG164)+AG182 -> 800 | AI182: =(AI183-AI181)/(A183-A181)*(A182-A181)+AI181 -> 1050 | AJ182: =(AK182-AI182)/(AK164-AI164)*(AJ164-AI164)+AI182 -> 550 | AK182: =(AK183-AK181)/(A183-A181)*(A182-A181)+AK181 -> 1150 | AL182: =(AM182-AK182)/(AM164-AK164)*(AL164-AK164)+AK182 ->  | AM182: =(AM183-AM181)/(A183-A181)*(A182-A181)+AM181 ->  | AN182: =(AO182-AM182)/(AO164-AM164)*(AN164-AM164)+AM182 ->  | AO182: =(AO183-AO181)/(A183-A181)*(A182-A181)+AO181 ->  | AP182: =(AQ182-AO182)/(AQ164-AO164)*(AP164-AO164)+AO182 ->  | AQ182: =(AQ183-AQ181)/(A183-A181)*(A182-A181)+AQ181 ->  | AR182: 19
A183: 30 | B183: =B181+1 -> 9 | C183: - | D183: =(E183-C183)/(E164-C164)*(D164-C164)+C183 ->  | E183: - | F183: =(G183-E183)/(G164-E164)*(F164-E164)+E183 ->  | G183: - | H183: =(I183-G183)/(I164-G164)*(H164-G164)+G183 ->  | I183: - | J183: =(K183-I183)/(K164-I164)*(J164-I164)+I183 ->  | K183: - | L183: =(M183-K183)/(M164-K164)*(L164-K164)+K183 ->  | M183: 170 | N183: =(O183-M183)/(O164-M164)*(N164-M164)+M183 -> -110 | O183: 240 | P183: =(Q183-O183)/(Q164-O164)*(P164-O164)+O183 -> -10 | Q183: 290 | R183: =(S183-Q183)/(S164-Q164)*(R164-Q164)+Q183 -> -10 | S183: 340 | T183: =(U183-S183)/(U164-S164)*(T164-S164)+S183 -> 60 | U183: 380 | V183: =(W183-U183)/(W164-U164)*(V164-U164)+U183 -> 140 | W183: 440 | X183: =(Y183-W183)/(Y164-W164)*(X164-W164)+W183 -> 160 | Y183: 510 | Z183: =(AA183-Y183)/(AA164-Y164)*(Z164-Y164)+Y183 -> 160 | AA183: 580 | AB183: =(AC183-AA183)/(AC164-AA164)*(AB164-AA164)+AA183 -> 220 | AC183: 700 | AD183: =(AE183-AC183)/(AE164-AC164)*(AD164-AC164)+AC183 -> 260 | AE183: 920 | AF183: =(AG183-AE183)/(AG164-AE164)*(AF164-AE164)+AE183 -> 978.4 | AG183: 1000 | AH183: =(AI183-AG183)/(AI164-AG164)*(AH164-AG164)+AG183 -> 800 | AI183: 1050 | AJ183: =(AK183-AI183)/(AK164-AI164)*(AJ164-AI164)+AI183 -> 550 | AK183: 1150 | AL183: =(AM183-AK183)/(AM164-AK164)*(AL164-AK164)+AK183 ->  | AM183: - | AN183: =(AO183-AM183)/(AO164-AM164)*(AN164-AM164)+AM183 ->  | AO183: - | AP183: =(AQ183-AO183)/(AQ164-AO164)*(AP164-AO164)+AO183 ->  | AQ183: - | AR183: 20
A184: =IF(AND(AV171>A183,AV171<A185)=TRUE,AV171,0) -> 0 | C184: =(C185-C183)/(A185-A183)*(A184-A183)+C183 ->  | D184: =(E184-C184)/(E164-C164)*(D164-C164)+C184 ->  | E184: =(E185-E183)/(A185-A183)*(A184-A183)+E183 ->  | F184: =(G184-E184)/(G164-E164)*(F164-E164)+E184 ->  | G184: =(G185-G183)/(A185-A183)*(A184-A183)+G183 ->  | H184: =(I184-G184)/(I164-G164)*(H164-G164)+G184 ->  | I184: =(I185-I183)/(A185-A183)*(A184-A183)+I183 ->  | J184: =(K184-I184)/(K164-I164)*(J164-I164)+I184 ->  | K184: =(K185-K183)/(A185-A183)*(A184-A183)+K183 ->  | L184: =(M184-K184)/(M164-K164)*(L164-K164)+K184 ->  | M184: =(M185-M183)/(A185-A183)*(A184-A183)+M183 -> 680 | N184: =(O184-M184)/(O164-M164)*(N164-M164)+M184 -> 1720 | O184: =(O185-O183)/(A185-A183)*(A184-A183)+O183 -> 420 | P184: =(Q184-O184)/(Q164-O164)*(P164-O164)+O184 -> 470 | Q184: =(Q185-Q183)/(A185-A183)*(A184-A183)+Q183 -> 410 | R184: =(S184-Q184)/(S164-Q164)*(R164-Q164)+Q184 -> 290 | S184: =(S185-S183)/(A185-A183)*(A184-A183)+S183 -> 430 | T184: =(U184-S184)/(U164-S164)*(T164-S164)+S184 -> 150 | U184: =(U185-U183)/(A185-A183)*(A184-A183)+U183 -> 470 | V184: =(W184-U184)/(W164-U164)*(V164-U164)+U184 -> 470 | W184: =(W185-W183)/(A185-A183)*(A184-A183)+W183 -> 470 | X184: =(Y184-W184)/(Y164-W164)*(X164-W164)+W184 -> 310 | Y184: =(Y185-Y183)/(A185-A183)*(A184-A183)+Y183 -> 510 | Z184: =(AA184-Y184)/(AA164-Y164)*(Z164-Y164)+Y184 -> 160 | AA184: =(AA185-AA183)/(A185-A183)*(A184-A183)+AA183 -> 580 | AB184: =(AC184-AA184)/(AC164-AA164)*(AB164-AA164)+AA184 -> 220 | AC184: =(AC185-AC183)/(A185-A183)*(A184-A183)+AC183 -> 700 | AD184: =(AE184-AC184)/(AE164-AC164)*(AD164-AC164)+AC184 -> 260 | AE184: =(AE185-AE183)/(A185-A183)*(A184-A183)+AE183 -> 920 | AF184: =(AG184-AE184)/(AG164-AE164)*(AF164-AE164)+AE184 -> 978.4 | AG184: =(AG185-AG183)/(A185-A183)*(A184-A183)+AG183 -> 1000 | AH184: =(AI184-AG184)/(AI164-AG164)*(AH164-AG164)+AG184 -> 800 | AI184: =(AI185-AI183)/(A185-A183)*(A184-A183)+AI183 -> 1050 | AJ184: =(AK184-AI184)/(AK164-AI164)*(AJ164-AI164)+AI184 -> 550 | AK184: =(AK185-AK183)/(A185-A183)*(A184-A183)+AK183 -> 1150 | AL184: =(AM184-AK184)/(AM164-AK164)*(AL164-AK164)+AK184 ->  | AM184: =(AM185-AM183)/(A185-A183)*(A184-A183)+AM183 ->  | AN184: =(AO184-AM184)/(AO164-AM164)*(AN164-AM164)+AM184 ->  | AO184: =(AO185-AO183)/(A185-A183)*(A184-A183)+AO183 ->  | AP184: =(AQ184-AO184)/(AQ164-AO164)*(AP164-AO164)+AO184 ->  | AQ184: =(AQ185-AQ183)/(A185-A183)*(A184-A183)+AQ183 ->  | AR184: 21
A185: 40 | B185: =B183+1 -> 10 | C185: - | D185: =(E185-C185)/(E164-C164)*(D164-C164)+C185 ->  | E185: - | F185: =(G185-E185)/(G164-E164)*(F164-E164)+E185 ->  | G185: - | H185: =(I185-G185)/(I164-G164)*(H164-G164)+G185 ->  | I185: - | J185: =(K185-I185)/(K164-I164)*(J164-I164)+I185 ->  | K185: - | L185: =(M185-K185)/(M164-K164)*(L164-K164)+K185 ->  | M185: 0 | N185: =(O185-M185)/(O164-M164)*(N164-M164)+M185 -> -720 | O185: 180 | P185: =(Q185-O185)/(Q164-O164)*(P164-O164)+O185 -> -170 | Q185: 250 | R185: =(S185-Q185)/(S164-Q164)*(R164-Q164)+Q185 -> -110 | S185: 310 | T185: =(U185-S185)/(U164-S164)*(T164-S164)+S185 -> 30 | U185: 350 | V185: =(W185-U185)/(W164-U164)*(V164-U164)+U185 -> 30 | W185: 430 | X185: =(Y185-W185)/(Y164-W164)*(X164-W164)+W185 -> 110 | Y185: 510 | Z185: =(AA185-Y185)/(AA164-Y164)*(Z164-Y164)+Y185 -> 160 | AA185: 580 | AB185: =(AC185-AA185)/(AC164-AA164)*(AB164-AA164)+AA185 -> 220 | AC185: 700 | AD185: =(AE185-AC185)/(AE164-AC164)*(AD164-AC164)+AC185 -> 260 | AE185: 920 | AF185: =(AG185-AE185)/(AG164-AE164)*(AF164-AE164)+AE185 -> 978.4 | AG185: 1000 | AH185: =(AI185-AG185)/(AI164-AG164)*(AH164-AG164)+AG185 -> 800 | AI185: 1050 | AJ185: =(AK185-AI185)/(AK164-AI164)*(AJ164-AI164)+AI185 -> 550 | AK185: 1150 | AL185: =(AM185-AK185)/(AM164-AK164)*(AL164-AK164)+AK185 ->  | AM185: - | AN185: =(AO185-AM185)/(AO164-AM164)*(AN164-AM164)+AM185 ->  | AO185: - | AP185: =(AQ185-AO185)/(AQ164-AO164)*(AP164-AO164)+AO185 ->  | AQ185: - | AR185: 22
A186: =IF(AND(AV171>A185,AV171<A187)=TRUE,AV171,0) -> 0 | C186: =(C187-C185)/(A187-A185)*(A186-A185)+C185 ->  | D186: =(E186-C186)/(E164-C164)*(D164-C164)+C186 ->  | E186: =(E187-E185)/(A187-A185)*(A186-A185)+E185 ->  | F186: =(G186-E186)/(G164-E164)*(F164-E164)+E186 ->  | G186: =(G187-G185)/(A187-A185)*(A186-A185)+G185 ->  | H186: =(I186-G186)/(I164-G164)*(H164-G164)+G186 ->  | I186: =(I187-I185)/(A187-A185)*(A186-A185)+I185 ->  | J186: =(K186-I186)/(K164-I164)*(J164-I164)+I186 ->  | K186: =(K187-K185)/(A187-A185)*(A186-A185)+K185 ->  | L186: =(M186-K186)/(M164-K164)*(L164-K164)+K186 ->  | M186: =(M187-M185)/(A187-A185)*(A186-A185)+M185 ->  | N186: =(O186-M186)/(O164-M164)*(N164-M164)+M186 ->  | O186: =(O187-O185)/(A187-A185)*(A186-A185)+O185 -> 900 | P186: =(Q186-O186)/(Q164-O164)*(P164-O164)+O186 -> 2950 | Q186: =(Q187-Q185)/(A187-A185)*(A186-A185)+Q185 -> 490 | R186: =(S186-Q186)/(S164-Q164)*(R164-Q164)+Q186 -> 370 | S186: =(S187-S185)/(A187-A185)*(A186-A185)+S185 -> 510 | T186: =(U186-S186)/(U164-S164)*(T164-S164)+S186 -> 790 | U186: =(U187-U185)/(A187-A185)*(A186-A185)+U185 -> 470 | V186: =(W186-U186)/(W164-U164)*(V164-U164)+U186 -> 150 | W186: =(W187-W185)/(A187-A185)*(A186-A185)+W185 -> 550 | X186: =(Y186-W186)/(Y164-W164)*(X164-W164)+W186 -> 230 | Y186: =(Y187-Y185)/(A187-A185)*(A186-A185)+Y185 -> 630 | Z186: =(AA186-Y186)/(AA164-Y164)*(Z164-Y164)+Y186 -> 880 | AA186: =(AA187-AA185)/(A187-A185)*(A186-A185)+AA185 -> 580 | AB186: =(AC186-AA186)/(AC164-AA164)*(AB164-AA164)+AA186 -> 220 | AC186: =(AC187-AC185)/(A187-A185)*(A186-A185)+AC185 -> 700 | AD186: =(AE186-AC186)/(AE164-AC164)*(AD164-AC164)+AC186 -> 260 | AE186: =(AE187-AE185)/(A187-A185)*(A186-A185)+AE185 -> 920 | AF186: =(AG186-AE186)/(AG164-AE164)*(AF164-AE164)+AE186 -> 978.4 | AG186: =(AG187-AG185)/(A187-A185)*(A186-A185)+AG185 -> 1000 | AH186: =(AI186-AG186)/(AI164-AG164)*(AH164-AG164)+AG186 -> 800 | AI186: =(AI187-AI185)/(A187-A185)*(A186-A185)+AI185 -> 1050 | AJ186: =(AK186-AI186)/(AK164-AI164)*(AJ164-AI164)+AI186 -> 550 | AK186: =(AK187-AK185)/(A187-A185)*(A186-A185)+AK185 -> 1150 | AL186: =(AM186-AK186)/(AM164-AK164)*(AL164-AK164)+AK186 ->  | AM186: =(AM187-AM185)/(A187-A185)*(A186-A185)+AM185 ->  | AN186: =(AO186-AM186)/(AO164-AM164)*(AN164-AM164)+AM186 ->  | AO186: =(AO187-AO185)/(A187-A185)*(A186-A185)+AO185 ->  | AP186: =(AQ186-AO186)/(AQ164-AO164)*(AP164-AO164)+AO186 ->  | AQ186: =(AQ187-AQ185)/(A187-A185)*(A186-A185)+AQ185 ->  | AR186: 23
A187: 50 | B187: =B185+1 -> 11 | C187: - | D187: =(E187-C187)/(E164-C164)*(D164-C164)+C187 ->  | E187: - | F187: =(G187-E187)/(G164-E164)*(F164-E164)+E187 ->  | G187: - | H187: =(I187-G187)/(I164-G164)*(H164-G164)+G187 ->  | I187: - | J187: =(K187-I187)/(K164-I164)*(J164-I164)+I187 ->  | K187: - | L187: =(M187-K187)/(M164-K164)*(L164-K164)+K187 ->  | M187: - | N187: =(O187-M187)/(O164-M164)*(N164-M164)+M187 ->  | O187: 0 | P187: =(Q187-O187)/(Q164-O164)*(P164-O164)+O187 -> -950 | Q187: 190 | R187: =(S187-Q187)/(S164-Q164)*(R164-Q164)+Q187 -> -230 | S187: 260 | T187: =(U187-S187)/(U164-S164)*(T164-S164)+S187 -> -160 | U187: 320 | V187: =(W187-U187)/(W164-U164)*(V164-U164)+U187 -> 0 | W187: 400 | X187: =(Y187-W187)/(Y164-W164)*(X164-W164)+W187 -> 80 | Y187: 480 | Z187: =(AA187-Y187)/(AA164-Y164)*(Z164-Y164)+Y187 -> -20 | AA187: 580 | AB187: =(AC187-AA187)/(AC164-AA164)*(AB164-AA164)+AA187 -> 220 | AC187: 700 | AD187: =(AE187-AC187)/(AE164-AC164)*(AD164-AC164)+AC187 -> 260 | AE187: 920 | AF187: =(AG187-AE187)/(AG164-AE164)*(AF164-AE164)+AE187 -> 978.4 | AG187: 1000 | AH187: =(AI187-AG187)/(AI164-AG164)*(AH164-AG164)+AG187 -> 800 | AI187: 1050 | AJ187: =(AK187-AI187)/(AK164-AI164)*(AJ164-AI164)+AI187 -> 550 | AK187: 1150 | AL187: =(AM187-AK187)/(AM164-AK164)*(AL164-AK164)+AK187 ->  | AM187: - | AN187: =(AO187-AM187)/(AO164-AM164)*(AN164-AM164)+AM187 ->  | AO187: - | AP187: =(AQ187-AO187)/(AQ164-AO164)*(AP164-AO164)+AO187 ->  | AQ187: - | AR187: 24
A188: =IF(AND(AV171>A187,AV171<A189)=TRUE,AV171,0) -> 0 | C188: =(C189-C187)/(A189-A187)*(A188-A187)+C187 ->  | D188: =(E188-C188)/(E164-C164)*(D164-C164)+C188 ->  | E188: =(E189-E187)/(A189-A187)*(A188-A187)+E187 ->  | F188: =(G188-E188)/(G164-E164)*(F164-E164)+E188 ->  | G188: =(G189-G187)/(A189-A187)*(A188-A187)+G187 ->  | H188: =(I188-G188)/(I164-G164)*(H164-G164)+G188 ->  | I188: =(I189-I187)/(A189-A187)*(A188-A187)+I187 ->  | J188: =(K188-I188)/(K164-I164)*(J164-I164)+I188 ->  | K188: =(K189-K187)/(A189-A187)*(A188-A187)+K187 ->  | L188: =(M188-K188)/(M164-K164)*(L164-K164)+K188 ->  | M188: =(M189-M187)/(A189-A187)*(A188-A187)+M187 ->  | N188: =(O188-M188)/(O164-M164)*(N164-M164)+M188 ->  | O188: =(O189-O187)/(A189-A187)*(A188-A187)+O187 ->  | P188: =(Q188-O188)/(Q164-O164)*(P164-O164)+O188 ->  | Q188: =(Q189-Q187)/(A189-A187)*(A188-A187)+Q187 -> 1140 | R188: =(S188-Q188)/(S164-Q164)*(R164-Q164)+Q188 -> 3720 | S188: =(S189-S187)/(A189-A187)*(A188-A187)+S187 -> 710 | T188: =(U188-S188)/(U164-S164)*(T164-S164)+S188 -> 290 | U188: =(U189-U187)/(A189-A187)*(A188-A187)+U187 -> 770 | V188: =(W188-U188)/(W164-U164)*(V164-U164)+U188 -> 1850 | W188: =(W189-W187)/(A189-A187)*(A188-A187)+W187 -> 500 | X188: =(Y188-W188)/(Y164-W164)*(X164-W164)+W188 -> -820 | Y188: =(Y189-Y187)/(A189-A187)*(A188-A187)+Y187 -> 830 | Z188: =(AA188-Y188)/(AA164-Y164)*(Z164-Y164)+Y188 -> 1580 | AA188: =(AA189-AA187)/(A189-A187)*(A188-A187)+AA187 -> 680 | AB188: =(AC188-AA188)/(AC164-AA164)*(AB164-AA164)+AA188 -> 470 | AC188: =(AC189-AC187)/(A189-A187)*(A188-A187)+AC187 -> 750 | AD188: =(AE188-AC188)/(AE164-AC164)*(AD164-AC164)+AC188 -> 510 | AE188: =(AE189-AE187)/(A189-A187)*(A188-A187)+AE187 -> 870 | AF188: =(AG188-AE188)/(AG164-AE164)*(AF164-AE164)+AE188 -> 362.65 | AG188: =(AG189-AG187)/(A189-A187)*(A188-A187)+AG187 -> 175 | AH188: =(AI188-AG188)/(AI164-AG164)*(AH164-AG164)+AG188 -> 3675 | AI188: =(AI189-AI187)/(A189-A187)*(A188-A187)+AI187 -> -700 | AJ188: =(AK188-AI188)/(AK164-AI164)*(AJ164-AI164)+AI188 -> -3700 | AK188: =(AK189-AK187)/(A189-A187)*(A188-A187)+AK187 -> -100 | AL188: =(AM188-AK188)/(AM164-AK164)*(AL164-AK164)+AK188 ->  | AM188: =(AM189-AM187)/(A189-A187)*(A188-A187)+AM187 ->  | AN188: =(AO188-AM188)/(AO164-AM164)*(AN164-AM164)+AM188 ->  | AO188: =(AO189-AO187)/(A189-A187)*(A188-A187)+AO187 ->  | AP188: =(AQ188-AO188)/(AQ164-AO164)*(AP164-AO164)+AO188 ->  | AQ188: =(AQ189-AQ187)/(A189-A187)*(A188-A187)+AQ187 ->  | AR188: 25
A189: 60 | B189: =B187+1 -> 12 | C189: - | D189: =(E189-C189)/(E164-C164)*(D164-C164)+C189 ->  | E189: - | F189: =(G189-E189)/(G164-E164)*(F164-E164)+E189 ->  | G189: - | H189: =(I189-G189)/(I164-G164)*(H164-G164)+G189 ->  | I189: - | J189: =(K189-I189)/(K164-I164)*(J164-I164)+I189 ->  | K189: - | L189: =(M189-K189)/(M164-K164)*(L164-K164)+K189 ->  | M189: - | N189: =(O189-M189)/(O164-M164)*(N164-M164)+M189 ->  | O189: - | P189: =(Q189-O189)/(Q164-O164)*(P164-O164)+O189 ->  | Q189: 0 | R189: =(S189-Q189)/(S164-Q164)*(R164-Q164)+Q189 -> -1020 | S189: 170 | T189: =(U189-S189)/(U164-S164)*(T164-S164)+S189 -> -250 | U189: 230 | V189: =(W189-U189)/(W164-U164)*(V164-U164)+U189 -> -370 | W189: 380 | X189: =(Y189-W189)/(Y164-W164)*(X164-W164)+W189 -> 260 | Y189: 410 | Z189: =(AA189-Y189)/(AA164-Y164)*(Z164-Y164)+Y189 -> -340 | AA189: 560 | AB189: =(AC189-AA189)/(AC164-AA164)*(AB164-AA164)+AA189 -> 170 | AC189: 690 | AD189: =(AE189-AC189)/(AE164-AC164)*(AD164-AC164)+AC189 -> 210 | AE189: 930 | AF189: =(AG189-AE189)/(AG164-AE164)*(AF164-AE164)+AE189 -> 1101.55 | AG189: 1165 | AH189: =(AI189-AG189)/(AI164-AG164)*(AH164-AG164)+AG189 -> 225 | AI189: 1400 | AJ189: =(AK189-AI189)/(AK164-AI164)*(AJ164-AI164)+AI189 -> 1400 | AK189: 1400 | AL189: =(AM189-AK189)/(AM164-AK164)*(AL164-AK164)+AK189 -> 1100 | AM189: 1500 | AN189: =(AO189-AM189)/(AO164-AM164)*(AN164-AM164)+AM189 -> 1500 | AO189: 1500 | AP189: =(AQ189-AO189)/(AQ164-AO164)*(AP164-AO164)+AO189 -> 1500 | AQ189: 1500 | AR189: 26
A190: =IF(AND(AV171>A189,AV171<A191)=TRUE,AV171,0) -> 0 | C190: =(C191-C189)/(A191-A189)*(A190-A189)+C189 ->  | D190: =(E190-C190)/(E164-C164)*(D164-C164)+C190 ->  | E190: =(E191-E189)/(A191-A189)*(A190-A189)+E189 ->  | F190: =(G190-E190)/(G164-E164)*(F164-E164)+E190 ->  | G190: =(G191-G189)/(A191-A189)*(A190-A189)+G189 ->  | H190: =(I190-G190)/(I164-G164)*(H164-G164)+G190 ->  | I190: =(I191-I189)/(A191-A189)*(A190-A189)+I189 ->  | J190: =(K190-I190)/(K164-I164)*(J164-I164)+I190 ->  | K190: =(K191-K189)/(A191-A189)*(A190-A189)+K189 ->  | L190: =(M190-K190)/(M164-K164)*(L164-K164)+K190 ->  | M190: =(M191-M189)/(A191-A189)*(A190-A189)+M189 ->  | N190: =(O190-M190)/(O164-M164)*(N164-M164)+M190 ->  | O190: =(O191-O189)/(A191-A189)*(A190-A189)+O189 ->  | P190: =(Q190-O190)/(Q164-O164)*(P164-O164)+O190 ->  | Q190: =(Q191-Q189)/(A191-A189)*(A190-A189)+Q189 ->  | R190: =(S190-Q190)/(S164-Q164)*(R164-Q164)+Q190 ->  | S190: =(S191-S189)/(A191-A189)*(A190-A189)+S189 ->  | T190: =(U190-S190)/(U164-S164)*(T164-S164)+S190 ->  | U190: =(U191-U189)/(A191-A189)*(A190-A189)+U189 -> 920 | V190: =(W190-U190)/(W164-U164)*(V164-U164)+U190 -> 1520 | W190: =(W191-W189)/(A191-A189)*(A190-A189)+W189 -> 770 | X190: =(Y190-W190)/(Y164-W164)*(X164-W164)+W190 -> 1610 | Y190: =(Y191-Y189)/(A191-A189)*(A190-A189)+Y189 -> 560 | Z190: =(AA190-Y190)/(AA164-Y164)*(Z164-Y164)+Y190 -> -40 | AA190: =(AA191-AA189)/(A191-A189)*(A190-A189)+AA189 -> 680 | AB190: =(AC190-AA190)/(AC164-AA164)*(AB164-AA164)+AA190 -> 560 | AC190: =(AC191-AC189)/(A191-A189)*(A190-A189)+AC189 -> 720 | AD190: =(AE190-AC190)/(AE164-AC164)*(AD164-AC164)+AC190 -> 300 | AE190: =(AE191-AE189)/(A191-A189)*(A190-A189)+AE189 -> 930 | AF190: =(AG190-AE190)/(AG164-AE164)*(AF164-AE164)+AE190 -> 1101.55 | AG190: =(AG191-AG189)/(A191-A189)*(A190-A189)+AG189 -> 1165 | AH190: =(AI190-AG190)/(AI164-AG164)*(AH164-AG164)+AG190 -> 225 | AI190: =(AI191-AI189)/(A191-A189)*(A190-A189)+AI189 -> 1400 | AJ190: =(AK190-AI190)/(AK164-AI164)*(AJ164-AI164)+AI190 -> 1400 | AK190: =(AK191-AK189)/(A191-A189)*(A190-A189)+AK189 -> 1400 | AL190: =(AM190-AK190)/(AM164-AK164)*(AL164-AK164)+AK190 -> 2000 | AM190: =(AM191-AM189)/(A191-A189)*(A190-A189)+AM189 -> 1200 | AN190: =(AO190-AM190)/(AO164-AM164)*(AN164-AM164)+AM190 -> 1200 | AO190: =(AO191-AO189)/(A191-A189)*(A190-A189)+AO189 -> 1200 | AP190: =(AQ190-AO190)/(AQ164-AO164)*(AP164-AO164)+AO190 -> 1200 | AQ190: =(AQ191-AQ189)/(A191-A189)*(A190-A189)+AQ189 -> 1200 | AR190: 27
A191: 80 | B191: =B189+1 -> 13 | C191: - | D191: =(E191-C191)/(E164-C164)*(D164-C164)+C191 ->  | E191: - | F191: =(G191-E191)/(G164-E164)*(F164-E164)+E191 ->  | G191: - | H191: =(I191-G191)/(I164-G164)*(H164-G164)+G191 ->  | I191: - | J191: =(K191-I191)/(K164-I164)*(J164-I164)+I191 ->  | K191: - | L191: =(M191-K191)/(M164-K164)*(L164-K164)+K191 ->  | M191: - | N191: =(O191-M191)/(O164-M164)*(N164-M164)+M191 ->  | O191: - | P191: =(Q191-O191)/(Q164-O164)*(P164-O164)+O191 ->  | Q191: - | R191: =(S191-Q191)/(S164-Q164)*(R164-Q164)+Q191 ->  | S191: - | T191: =(U191-S191)/(U164-S164)*(T164-S164)+S191 ->  | U191: 0 | V191: =(W191-U191)/(W164-U164)*(V164-U164)+U191 -> -1000 | W191: 250 | X191: =(Y191-W191)/(Y164-W164)*(X164-W164)+W191 -> -190 | Y191: 360 | Z191: =(AA191-Y191)/(AA164-Y164)*(Z164-Y164)+Y191 -> -440 | AA191: 520 | AB191: =(AC191-AA191)/(AC164-AA164)*(AB164-AA164)+AA191 -> 40 | AC191: 680 | AD191: =(AE191-AC191)/(AE164-AC164)*(AD164-AC164)+AC191 -> 180 | AE191: 930 | AF191: =(AG191-AE191)/(AG164-AE164)*(AF164-AE164)+AE191 -> 1101.55 | AG191: 1165 | AH191: =(AI191-AG191)/(AI164-AG164)*(AH164-AG164)+AG191 -> 225 | AI191: 1400 | AJ191: =(AK191-AI191)/(AK164-AI164)*(AJ164-AI164)+AI191 -> 1400 | AK191: 1400 | AL191: =(AM191-AK191)/(AM164-AK164)*(AL164-AK164)+AK191 -> 800 | AM191: 1600 | AN191: =(AO191-AM191)/(AO164-AM164)*(AN164-AM164)+AM191 -> 1600 | AO191: 1600 | AP191: =(AQ191-AO191)/(AQ164-AO164)*(AP164-AO164)+AO191 -> 1600 | AQ191: 1600 | AR191: 28
A192: =IF(AND(AV171>A191,AV171<A193)=TRUE,AV171,0) -> 0 | C192: =(C193-C191)/(A193-A191)*(A192-A191)+C191 ->  | D192: =(E192-C192)/(E164-C164)*(D164-C164)+C192 ->  | E192: =(E193-E191)/(A193-A191)*(A192-A191)+E191 ->  | F192: =(G192-E192)/(G164-E164)*(F164-E164)+E192 ->  | G192: =(G193-G191)/(A193-A191)*(A192-A191)+G191 ->  | H192: =(I192-G192)/(I164-G164)*(H164-G164)+G192 ->  | I192: =(I193-I191)/(A193-A191)*(A192-A191)+I191 ->  | J192: =(K192-I192)/(K164-I164)*(J164-I164)+I192 ->  | K192: =(K193-K191)/(A193-A191)*(A192-A191)+K191 ->  | L192: =(M192-K192)/(M164-K164)*(L164-K164)+K192 ->  | M192: =(M193-M191)/(A193-A191)*(A192-A191)+M191 ->  | N192: =(O192-M192)/(O164-M164)*(N164-M164)+M192 ->  | O192: =(O193-O191)/(A193-A191)*(A192-A191)+O191 ->  | P192: =(Q192-O192)/(Q164-O164)*(P164-O164)+O192 ->  | Q192: =(Q193-Q191)/(A193-A191)*(A192-A191)+Q191 ->  | R192: =(S192-Q192)/(S164-Q164)*(R164-Q164)+Q192 ->  | S192: =(S193-S191)/(A193-A191)*(A192-A191)+S191 ->  | T192: =(U192-S192)/(U164-S164)*(T164-S164)+S192 ->  | U192: =(U193-U191)/(A193-A191)*(A192-A191)+U191 ->  | V192: =(W192-U192)/(W164-U164)*(V164-U164)+U192 ->  | W192: =(W193-W191)/(A193-A191)*(A192-A191)+W191 -> 1250 | X192: =(Y192-W192)/(Y164-W164)*(X164-W164)+W192 -> 3690 | Y192: =(Y193-Y191)/(A193-A191)*(A192-A191)+Y191 -> 640 | Z192: =(AA192-Y192)/(AA164-Y164)*(Z164-Y164)+Y192 -> 240 | AA192: =(AA193-AA191)/(A193-A191)*(A192-A191)+AA191 -> 720 | AB192: =(AC192-AA192)/(AC164-AA164)*(AB164-AA164)+AA192 -> 480 | AC192: =(AC193-AC191)/(A193-A191)*(A192-A191)+AC191 -> 800 | AD192: =(AE192-AC192)/(AE164-AC164)*(AD164-AC164)+AC192 -> 300 | AE192: =(AE193-AE191)/(A193-A191)*(A192-A191)+AE191 -> 1050 | AF192: =(AG192-AE192)/(AG164-AE164)*(AF164-AE164)+AE192 -> 1177.75 | AG192: =(AG193-AG191)/(A193-A191)*(A192-A191)+AG191 -> 1225 | AH192: =(AI192-AG192)/(AI164-AG164)*(AH164-AG164)+AG192 -> 525 | AI192: =(AI193-AI191)/(A193-A191)*(A192-A191)+AI191 -> 1400 | AJ192: =(AK192-AI192)/(AK164-AI164)*(AJ164-AI164)+AI192 -> 1400 | AK192: =(AK193-AK191)/(A193-A191)*(A192-A191)+AK191 -> 1400 | AL192: =(AM192-AK192)/(AM164-AK164)*(AL164-AK164)+AK192 -> 800 | AM192: =(AM193-AM191)/(A193-A191)*(A192-A191)+AM191 -> 1600 | AN192: =(AO192-AM192)/(AO164-AM164)*(AN164-AM164)+AM192 -> 4800 | AO192: =(AO193-AO191)/(A193-A191)*(A192-A191)+AO191 -> 0 | AP192: =(AQ192-AO192)/(AQ164-AO164)*(AP164-AO164)+AO192 -> 0 | AQ192: =(AQ193-AQ191)/(A193-A191)*(A192-A191)+AQ191 -> 0 | AR192: 29
A193: 100 | B193: =B191+1 -> 14 | C193: - | D193: =(E193-C193)/(E164-C164)*(D164-C164)+C193 ->  | E193: - | F193: =(G193-E193)/(G164-E164)*(F164-E164)+E193 ->  | G193: - | H193: =(I193-G193)/(I164-G164)*(H164-G164)+G193 ->  | I193: - | J193: =(K193-I193)/(K164-I164)*(J164-I164)+I193 ->  | K193: - | L193: =(M193-K193)/(M164-K164)*(L164-K164)+K193 ->  | M193: - | N193: =(O193-M193)/(O164-M164)*(N164-M164)+M193 ->  | O193: - | P193: =(Q193-O193)/(Q164-O164)*(P164-O164)+O193 ->  | Q193: - | R193: =(S193-Q193)/(S164-Q164)*(R164-Q164)+Q193 ->  | S193: - | T193: =(U193-S193)/(U164-S164)*(T164-S164)+S193 ->  | U193: - | V193: =(W193-U193)/(W164-U164)*(V164-U164)+U193 ->  | W193: 0 | X193: =(Y193-W193)/(Y164-W164)*(X164-W164)+W193 -> -1160 | Y193: 290 | Z193: =(AA193-Y193)/(AA164-Y164)*(Z164-Y164)+Y193 -> -610 | AA193: 470 | AB193: =(AC193-AA193)/(AC164-AA164)*(AB164-AA164)+AA193 -> -70 | AC193: 650 | AD193: =(AE193-AC193)/(AE164-AC164)*(AD164-AC164)+AC193 -> 150 | AE193: 900 | AF193: =(AG193-AE193)/(AG164-AE164)*(AF164-AE164)+AE193 -> 1082.5 | AG193: 1150 | AH193: =(AI193-AG193)/(AI164-AG164)*(AH164-AG164)+AG193 -> 150 | AI193: 1400 | AJ193: =(AK193-AI193)/(AK164-AI164)*(AJ164-AI164)+AI193 -> 1400 | AK193: 1400 | AL193: =(AM193-AK193)/(AM164-AK164)*(AL164-AK164)+AK193 -> 800 | AM193: 1600 | AN193: =(AO193-AM193)/(AO164-AM164)*(AN164-AM164)+AM193 -> 800 | AO193: 2000 | AP193: =(AQ193-AO193)/(AQ164-AO164)*(AP164-AO164)+AO193 -> 2000 | AQ193: 2000 | AR193: 30
A194: =IF(AND(AV171>A193,AV171<A195)=TRUE,AV171,0) -> 0 | C194: =(C195-C191)/(A195-A191)*(A194-A191)+C191 ->  | D194: =(E194-C194)/(E164-C164)*(D164-C164)+C194 ->  | E194: =(E195-E191)/(A195-A191)*(A194-A191)+E191 ->  | F194: =(G194-E194)/(G164-E164)*(F164-E164)+E194 ->  | G194: =(G195-G191)/(A195-A191)*(A194-A191)+G191 ->  | H194: =(I194-G194)/(I164-G164)*(H164-G164)+G194 ->  | I194: =(I195-I191)/(A195-A191)*(A194-A191)+I191 ->  | J194: =(K194-I194)/(K164-I164)*(J164-I164)+I194 ->  | K194: =(K195-K191)/(A195-A191)*(A194-A191)+K191 ->  | L194: =(M194-K194)/(M164-K164)*(L164-K164)+K194 ->  | M194: =(M195-M191)/(A195-A191)*(A194-A191)+M191 ->  | N194: =(O194-M194)/(O164-M164)*(N164-M164)+M194 ->  | O194: =(O195-O191)/(A195-A191)*(A194-A191)+O191 ->  | P194: =(Q194-O194)/(Q164-O164)*(P164-O164)+O194 ->  | Q194: =(Q195-Q191)/(A195-A191)*(A194-A191)+Q191 ->  | R194: =(S194-Q194)/(S164-Q164)*(R164-Q164)+Q194 ->  | S194: =(S195-S191)/(A195-A191)*(A194-A191)+S191 ->  | T194: =(U194-S194)/(U164-S164)*(T164-S164)+S194 ->  | U194: =(U195-U191)/(A195-A191)*(A194-A191)+U191 ->  | V194: =(W194-U194)/(W164-U164)*(V164-U164)+U194 ->  | W194: =(W195-W191)/(A195-A191)*(A194-A191)+W191 ->  | X194: =(Y194-W194)/(Y164-W164)*(X164-W164)+W194 ->  | Y194: =(Y195-Y191)/(A195-A191)*(A194-A191)+Y191 -> 771.4285714 | Z194: =(AA194-Y194)/(AA164-Y164)*(Z164-Y164)+Y194 -> -942.8571429 | AA194: =(AA195-AA191)/(A195-A191)*(A194-A191)+AA191 -> 1114.285714 | AB194: =(AC194-AA194)/(AC164-AA164)*(AB164-AA164)+AA194 -> 1902.857143 | AC194: =(AC195-AC191)/(A195-A191)*(A194-A191)+AC191 -> 851.4285714 | AD194: =(AE194-AC194)/(AE164-AC164)*(AD164-AC164)+AC194 -> 754.2857143 | AE194: =(AE195-AE193)/(A195-A193)*(A194-A193)+AE193 -> 900 | AF194: =(AG194-AE194)/(AG164-AE164)*(AF164-AE164)+AE194 -> 1082.5 | AG194: =(AG195-AG193)/(A195-A193)*(A194-A193)+AG193 -> 1150 | AH194: =(AI194-AG194)/(AI164-AG164)*(AH164-AG164)+AG194 -> 150 | AI194: =(AI195-AI193)/(A195-A193)*(A194-A193)+AI193 -> 1400 | AJ194: =(AK194-AI194)/(AK164-AI164)*(AJ164-AI164)+AI194 -> 1400 | AK194: =(AK195-AK193)/(A195-A193)*(A194-A193)+AK193 -> 1400 | AL194: =(AM194-AK194)/(AM164-AK164)*(AL164-AK164)+AK194 -> 800 | AM194: =(AM195-AM193)/(A195-A193)*(A194-A193)+AM193 -> 1600 | AN194: =(AO194-AM194)/(AO164-AM164)*(AN164-AM164)+AM194 -> 1600 | AO194: =(AO195-AO193)/(A195-A193)*(A194-A193)+AO193 -> 1600 | AP194: =(AQ194-AO194)/(AQ164-AO164)*(AP164-AO164)+AO194 -> 1600 | AQ194: =(AQ195-AQ193)/(A195-A193)*(A194-A193)+AQ193 -> 1600 | AR194: 31
A195: 150 | B195: =B193+1 -> 15 | C195: - | D195: =(E195-C195)/(E164-C164)*(D164-C164)+C195 ->  | E195: - | F195: =(G195-E195)/(G164-E164)*(F164-E164)+E195 ->  | G195: - | H195: =(I195-G195)/(I164-G164)*(H164-G164)+G195 ->  | I195: - | J195: =(K195-I195)/(K164-I164)*(J164-I164)+I195 ->  | K195: - | L195: =(M195-K195)/(M164-K164)*(L164-K164)+K195 ->  | M195: - | N195: =(O195-M195)/(O164-M164)*(N164-M164)+M195 ->  | O195: - | P195: =(Q195-O195)/(Q164-O164)*(P164-O164)+O195 ->  | Q195: - | R195: =(S195-Q195)/(S164-Q164)*(R164-Q164)+Q195 ->  | S195: - | T195: =(U195-S195)/(U164-S164)*(T164-S164)+S195 ->  | U195: - | V195: =(W195-U195)/(W164-U164)*(V164-U164)+U195 ->  | W195: - | X195: =(Y195-W195)/(Y164-W164)*(X164-W164)+W195 ->  | Y195: 0 | Z195: =(AA195-Y195)/(AA164-Y164)*(Z164-Y164)+Y195 -> 0 | AA195: 0 | AB195: =(AC195-AA195)/(AC164-AA164)*(AB164-AA164)+AA195 -> -1590 | AC195: 530 | AD195: =(AE195-AC195)/(AE164-AC164)*(AD164-AC164)+AC195 -> -210 | AE195: 900 | AF195: =(AG195-AE195)/(AG164-AE164)*(AF164-AE164)+AE195 -> 1082.5 | AG195: 1150 | AH195: =(AI195-AG195)/(AI164-AG164)*(AH164-AG164)+AG195 -> 150 | AI195: 1400 | AJ195: =(AK195-AI195)/(AK164-AI164)*(AJ164-AI164)+AI195 -> 1400 | AK195: 1400 | AL195: =(AM195-AK195)/(AM164-AK164)*(AL164-AK164)+AK195 -> 800 | AM195: 1600 | AN195: =(AO195-AM195)/(AO164-AM164)*(AN164-AM164)+AM195 -> 400 | AO195: 2200 | AP195: =(AQ195-AO195)/(AQ164-AO164)*(AP164-AO164)+AO195 -> 2200 | AQ195: 2200 | AR195: 32
A196: =IF(AND(AV171>A195,AV171<A197)=TRUE,AV171,0) -> 0 | C196: =(C197-C195)/(A197-A195)*(A196-A195)+C195 ->  | D196: =(E196-C196)/(E164-C164)*(D164-C164)+C196 ->  | E196: =(E197-E195)/(A197-A195)*(A196-A195)+E195 ->  | F196: =(G196-E196)/(G164-E164)*(F164-E164)+E196 ->  | G196: =(G197-G195)/(A197-A195)*(A196-A195)+G195 ->  | H196: =(I196-G196)/(I164-G164)*(H164-G164)+G196 ->  | I196: =(I197-I195)/(A197-A195)*(A196-A195)+I195 ->  | J196: =(K196-I196)/(K164-I164)*(J164-I164)+I196 ->  | K196: =(K197-K195)/(A197-A195)*(A196-A195)+K195 ->  | L196: =(M196-K196)/(M164-K164)*(L164-K164)+K196 ->  | M196: =(M197-M195)/(A197-A195)*(A196-A195)+M195 ->  | N196: =(O196-M196)/(O164-M164)*(N164-M164)+M196 ->  | O196: =(O197-O195)/(A197-A195)*(A196-A195)+O195 ->  | P196: =(Q196-O196)/(Q164-O164)*(P164-O164)+O196 ->  | Q196: =(Q197-Q195)/(A197-A195)*(A196-A195)+Q195 ->  | R196: =(S196-Q196)/(S164-Q164)*(R164-Q164)+Q196 ->  | S196: =(S197-S195)/(A197-A195)*(A196-A195)+S195 ->  | T196: =(U196-S196)/(U164-S164)*(T164-S164)+S196 ->  | U196: =(U197-U195)/(A197-A195)*(A196-A195)+U195 ->  | V196: =(W196-U196)/(W164-U164)*(V164-U164)+U196 ->  | W196: =(W197-W195)/(A197-A195)*(A196-A195)+W195 ->  | X196: =(Y196-W196)/(Y164-W164)*(X164-W164)+W196 ->  | Y196: =(Y197-Y195)/(A197-A195)*(A196-A195)+Y195 ->  | Z196: =(AA196-Y196)/(AA164-Y164)*(Z164-Y164)+Y196 ->  | AA196: =(AA197-AA195)/(A197-A195)*(A196-A195)+AA195 ->  | AB196: =(AC196-AA196)/(AC164-AA164)*(AB164-AA164)+AA196 ->  | AC196: =(AC197-AC195)/(A197-A195)*(A196-A195)+AC195 -> 2120 | AD196: =(AE196-AC196)/(AE164-AC164)*(AD164-AC164)+AC196 -> 3960 | AE196: =(AE197-AE195)/(A197-A195)*(A196-A195)+AE195 -> 1200 | AF196: =(AG196-AE196)/(AG164-AE164)*(AF164-AE164)+AE196 -> 1273 | AG196: =(AG197-AG195)/(A197-A195)*(A196-A195)+AG195 -> 1300 | AH196: =(AI196-AG196)/(AI164-AG164)*(AH164-AG164)+AG196 -> 900 | AI196: =(AI197-AI195)/(A197-A195)*(A196-A195)+AI195 -> 1400 | AJ196: =(AK196-AI196)/(AK164-AI164)*(AJ164-AI164)+AI196 -> 1400 | AK196: =(AK197-AK195)/(A197-A195)*(A196-A195)+AK195 -> 1400 | AL196: =(AM196-AK196)/(AM164-AK164)*(AL164-AK164)+AK196 -> 800 | AM196: =(AM197-AM195)/(A197-A195)*(A196-A195)+AM195 -> 1600 | AN196: =(AO196-AM196)/(AO164-AM164)*(AN164-AM164)+AM196 -> 400 | AO196: =(AO197-AO195)/(A197-A195)*(A196-A195)+AO195 -> 2200 | AP196: =(AQ196-AO196)/(AQ164-AO164)*(AP164-AO164)+AO196 -> 2200 | AQ196: =(AQ197-AQ195)/(A197-A195)*(A196-A195)+AQ195 -> 2200 | AR196: 33
A197: 200 | B197: =B195+1 -> 16 | C197: - | D197: =(E197-C197)/(E164-C164)*(D164-C164)+C197 ->  | E197: - | F197: =(G197-E197)/(G164-E164)*(F164-E164)+E197 ->  | G197: - | H197: =(I197-G197)/(I164-G164)*(H164-G164)+G197 ->  | I197: - | J197: =(K197-I197)/(K164-I164)*(J164-I164)+I197 ->  | K197: - | L197: =(M197-K197)/(M164-K164)*(L164-K164)+K197 ->  | M197: - | N197: =(O197-M197)/(O164-M164)*(N164-M164)+M197 ->  | O197: - | P197: =(Q197-O197)/(Q164-O164)*(P164-O164)+O197 ->  | Q197: - | R197: =(S197-Q197)/(S164-Q164)*(R164-Q164)+Q197 ->  | S197: - | T197: =(U197-S197)/(U164-S164)*(T164-S164)+S197 ->  | U197: - | V197: =(W197-U197)/(W164-U164)*(V164-U164)+U197 ->  | W197: - | X197: =(Y197-W197)/(Y164-W164)*(X164-W164)+W197 ->  | Y197: - | Z197: =(AA197-Y197)/(AA164-Y164)*(Z164-Y164)+Y197 ->  | AA197: - | AB197: =(AC197-AA197)/(AC164-AA164)*(AB164-AA164)+AA197 ->  | AC197: 0 | AD197: =(AE197-AC197)/(AE164-AC164)*(AD164-AC164)+AC197 -> -1600 | AE197: 800 | AF197: =(AG197-AE197)/(AG164-AE164)*(AF164-AE164)+AE197 -> 1019 | AG197: 1100 | AH197: =(AI197-AG197)/(AI164-AG164)*(AH164-AG164)+AG197 -> -100 | AI197: 1400 | AJ197: =(AK197-AI197)/(AK164-AI164)*(AJ164-AI164)+AI197 -> 1400 | AK197: 1400 | AL197: =(AM197-AK197)/(AM164-AK164)*(AL164-AK164)+AK197 -> 800 | AM197: 1600 | AN197: =(AO197-AM197)/(AO164-AM164)*(AN164-AM164)+AM197 -> 400 | AO197: 2200 | AP197: =(AQ197-AO197)/(AQ164-AO164)*(AP164-AO164)+AO197 -> 2200 | AQ197: 2200 | AR197: 34
A198: =IF(AND(AV171>A197,AV171<A199)=TRUE,AV171,0) -> 0 | C198: =(C199-C197)/(A199-A197)*(A198-A197)+C197 ->  | D198: =(E198-C198)/(E164-C164)*(D164-C164)+C198 ->  | E198: =(E199-E197)/(A199-A197)*(A198-A197)+E197 ->  | F198: =(G198-E198)/(G164-E164)*(F164-E164)+E198 ->  | G198: =(G199-G197)/(A199-A197)*(A198-A197)+G197 ->  | H198: =(I198-G198)/(I164-G164)*(H164-G164)+G198 ->  | I198: =(I199-I197)/(A199-A197)*(A198-A197)+I197 ->  | J198: =(K198-I198)/(K164-I164)*(J164-I164)+I198 ->  | K198: =(K199-K197)/(A199-A197)*(A198-A197)+K197 ->  | L198: =(M198-K198)/(M164-K164)*(L164-K164)+K198 ->  | M198: =(M199-M197)/(A199-A197)*(A198-A197)+M197 ->  | N198: =(O198-M198)/(O164-M164)*(N164-M164)+M198 ->  | O198: =(O199-O197)/(A199-A197)*(A198-A197)+O197 ->  | P198: =(Q198-O198)/(Q164-O164)*(P164-O164)+O198 ->  | Q198: =(Q199-Q197)/(A199-A197)*(A198-A197)+Q197 ->  | R198: =(S198-Q198)/(S164-Q164)*(R164-Q164)+Q198 ->  | S198: =(S199-S197)/(A199-A197)*(A198-A197)+S197 ->  | T198: =(U198-S198)/(U164-S164)*(T164-S164)+S198 ->  | U198: =(U199-U197)/(A199-A197)*(A198-A197)+U197 ->  | V198: =(W198-U198)/(W164-U164)*(V164-U164)+U198 ->  | W198: =(W199-W197)/(A199-A197)*(A198-A197)+W197 ->  | X198: =(Y198-W198)/(Y164-W164)*(X164-W164)+W198 ->  | Y198: =(Y199-Y197)/(A199-A197)*(A198-A197)+Y197 ->  | Z198: =(AA198-Y198)/(AA164-Y164)*(Z164-Y164)+Y198 ->  | AA198: =(AA199-AA197)/(A199-A197)*(A198-A197)+AA197 ->  | AB198: =(AC198-AA198)/(AC164-AA164)*(AB164-AA164)+AA198 ->  | AC198: =(AC199-AC197)/(A199-A197)*(A198-A197)+AC197 ->  | AD198: =(AE198-AC198)/(AE164-AC164)*(AD164-AC164)+AC198 ->  | AE198: =(AE199-AE197)/(A199-A197)*(A198-A197)+AE197 -> 2400 | AF198: =(AG198-AE198)/(AG164-AE164)*(AF164-AE164)+AE198 -> 1597 | AG198: =(AG199-AG197)/(A199-A197)*(A198-A197)+AG197 -> 1300 | AH198: =(AI198-AG198)/(AI164-AG164)*(AH164-AG164)+AG198 -> 100 | AI198: =(AI199-AI197)/(A199-A197)*(A198-A197)+AI197 -> 1600 | AJ198: =(AK198-AI198)/(AK164-AI164)*(AJ164-AI164)+AI198 -> 2600 | AK198: =(AK199-AK197)/(A199-A197)*(A198-A197)+AK197 -> 1400 | AL198: =(AM198-AK198)/(AM164-AK164)*(AL164-AK164)+AK198 -> 800 | AM198: =(AM199-AM197)/(A199-A197)*(A198-A197)+AM197 -> 1600 | AN198: =(AO198-AM198)/(AO164-AM164)*(AN164-AM164)+AM198 -> 400 | AO198: =(AO199-AO197)/(A199-A197)*(A198-A197)+AO197 -> 2200 | AP198: =(AQ198-AO198)/(AQ164-AO164)*(AP164-AO164)+AO198 -> 2200 | AQ198: =(AQ199-AQ197)/(A199-A197)*(A198-A197)+AQ197 -> 2200 | AR198: 35
A199: 300 | B199: =B197+1 -> 17 | C199: - | D199: =(E199-C199)/(E164-C164)*(D164-C164)+C199 ->  | E199: - | F199: =(G199-E199)/(G164-E164)*(F164-E164)+E199 ->  | G199: - | H199: =(I199-G199)/(I164-G164)*(H164-G164)+G199 ->  | I199: - | J199: =(K199-I199)/(K164-I164)*(J164-I164)+I199 ->  | K199: - | L199: =(M199-K199)/(M164-K164)*(L164-K164)+K199 ->  | M199: - | N199: =(O199-M199)/(O164-M164)*(N164-M164)+M199 ->  | O199: - | P199: =(Q199-O199)/(Q164-O164)*(P164-O164)+O199 ->  | Q199: - | R199: =(S199-Q199)/(S164-Q164)*(R164-Q164)+Q199 ->  | S199: - | T199: =(U199-S199)/(U164-S164)*(T164-S164)+S199 ->  | U199: - | V199: =(W199-U199)/(W164-U164)*(V164-U164)+U199 ->  | W199: - | X199: =(Y199-W199)/(Y164-W164)*(X164-W164)+W199 ->  | Y199: - | Z199: =(AA199-Y199)/(AA164-Y164)*(Z164-Y164)+Y199 ->  | AA199: - | AB199: =(AC199-AA199)/(AC164-AA164)*(AB164-AA164)+AA199 ->  | AC199: - | AD199: =(AE199-AC199)/(AE164-AC164)*(AD164-AC164)+AC199 ->  | AE199: 0 | AF199: =(AG199-AE199)/(AG164-AE164)*(AF164-AE164)+AE199 -> 730 | AG199: 1000 | AH199: =(AI199-AG199)/(AI164-AG164)*(AH164-AG164)+AG199 -> -200 | AI199: 1300 | AJ199: =(AK199-AI199)/(AK164-AI164)*(AJ164-AI164)+AI199 -> 800 | AK199: 1400 | AL199: =(AM199-AK199)/(AM164-AK164)*(AL164-AK164)+AK199 -> 800 | AM199: 1600 | AN199: =(AO199-AM199)/(AO164-AM164)*(AN164-AM164)+AM199 -> 400 | AO199: 2200 | AP199: =(AQ199-AO199)/(AQ164-AO164)*(AP164-AO164)+AO199 -> 2200 | AQ199: 2200 | AR199: 36
AR200: 37
A201: COL | C201: 3 | D201: =C201+1 -> 4 | E201: =D201+1 -> 5 | F201: 6 | G201: 7 | H201: 8 | I201: 9 | J201: 10 | K201: 11 | L201: 12 | M201: 13 | N201: 14 | O201: 15 | P201: 16 | Q201: 17 | R201: 18 | S201: =R201+1 -> 19 | T201: 20 | U201: 21 | V201: 22 | W201: 23 | X201: 24 | Y201: 25 | Z201: 26 | AA201: 27 | AB201: 28 | AC201: 29 | AD201: 30 | AE201: 31 | AF201: 32 | AG201: 33 | AH201: 34 | AI201: 35 | AJ201: 36 | AK201: 37 | AL201: 38 | AM201: 39 | AN201: 40 | AO201: 41 | AP201: 42 | AQ201: 43 | AR201: 38
C202: 1 | D202: 2 | F202: 3 | H202: 4 | J202: 5 | L202: 6 | N202: 7 | P202: 8 | R202: 9 | T202: 10 | V202: 11 | X202: 12 | Z202: 13 | AB202: 14 | AD202: 15 | AF202: 16 | AH202: 17 | AJ202: 18 | AL202: 19 | AN202: 20 | AP202: 21
B205: Рвх | C205: 0.005 | D205: =IF(AND(AS212>C205,AS212<E205)=TRUE,AS212,0) -> 0 | E205: 0.01 | F205: =IF(AND(AS212>E205,AS212<G205)=TRUE,AS212,0) -> 0 | G205: 0.015 | H205: =IF(AND(AS212>G205,AS212<I205)=TRUE,AS212,0) -> 0 | I205: 0.02 | J205: =IF(AND(AS212>I205,AS212<K205)=TRUE,AS212,0) -> 0 | K205: 0.03 | L205: =IF(AND(AS212>K205,AS212<M205)=TRUE,AS212,0) -> 0 | M205: 0.04 | N205: =IF(AND(AS212>M205,AS212<O205)=TRUE,AS212,0) -> 0 | O205: 0.05 | P205: =IF(AND(AS212>O205,AS212<Q205)=TRUE,AS212,0) -> 0 | Q205: 0.06 | R205: =IF(AND(AS212>Q205,AS212<S205)=TRUE,AS212,0) -> 0 | S205: 0.07 | T205: =IF(AND(AS212>S205,AS212<U205)=TRUE,AS212,0) -> 0 | U205: 0.08 | V205: =IF(AND(AS212>U205,AS212<W205)=TRUE,AS212,0) -> 0 | W205: 0.1 | X205: =IF(AND(AS212>W205,AS212<Y205)=TRUE,AS212,0) -> 0 | Y205: 0.125 | Z205: =IF(AND(AS212>Y205,AS212<AA205)=TRUE,AS212,0) -> 0 | AA205: 0.15 | AB205: =IF(AND(AS212>AA205,AS212<AC205)=TRUE,AS212,0) -> 0 | AC205: 0.2 | AD205: =IF(AND(AS212>AC205,AS212<AE205)=TRUE,AS212,0) -> 0 | AE205: 0.3 | AF205: =IF(AND(AS212>AE205,AS212<AG205)=TRUE,AS212,0) -> 0.373 | AG205: 0.4 | AH205: =IF(AND(AS212>AG205,AS212<AI205)=TRUE,AS212,0) -> 0 | AI205: 0.5 | AJ205: =IF(AND(AS212>AI205,AS212<AK205)=TRUE,AS212,0) -> 0 | AK205: 0.6 | AL205: =IF(AND(AS212>AK205,AS212<AM205)=TRUE,AS212,0) -> 0 | AM205: 0.8 | AN205: =IF(AND(AS212>AM205,AS212<AO205)=TRUE,AS212,0) -> 0 | AO205: 1.2 | AP205: =IF(AND(AS212>AO205,AS212<AQ205)=TRUE,AS212,0) -> 0 | AQ205: 1.6 | AR205: 1
A206: Рвых | B206: МПа | AR206: =AR205+1 -> 2
A207: кПа | AR207: =AR206+1 -> 3
A208: 2 | B208: 1 | C208: 200 | D208: =(E208-C208)/(E205-C205)*(D205-C205)+C208 -> 70 | E208: 330 | F208: =(G208-E208)/(G205-E205)*(F205-E205)+E208 -> 210 | G208: 390 | H208: =(I208-G208)/(I205-G205)*(H205-G205)+G208 -> -90 | I208: 550 | J208: =(K208-I208)/(K205-I205)*(J205-I205)+I208 -> 330 | K208: 660 | L208: =(M208-K208)/(M205-K205)*(L205-K205)+K208 -> 375 | M208: 755 | N208: =(O208-M208)/(O205-M205)*(N205-M205)+M208 -> 415 | O208: 840 | P208: =(Q208-O208)/(Q205-O205)*(P205-O205)+O208 -> 540 | Q208: 900 | R208: =(S208-Q208)/(S205-Q205)*(R205-Q205)+Q208 -> 450 | S208: 975 | T208: =(U208-S208)/(U205-S205)*(T205-S205)+S208 -> 590 | U208: 1030 | V208: =(W208-U208)/(W205-U205)*(V205-U205)+U208 -> 470 | W208: 1170 | X208: =(Y208-W208)/(Y205-W205)*(X205-W205)+W208 -> 690 | Y208: 1290 | Z208: =(AA208-Y208)/(AA205-Y205)*(Z205-Y205)+Y208 -> 590 | AA208: 1430 | AB208: =(AC208-AA208)/(AC205-AA205)*(AB205-AA205)+AA208 -> 620 | AC208: 1700 | AD208: =(AE208-AC208)/(AE205-AC205)*(AD205-AC205)+AC208 -> 520 | AE208: 2290 | AF208: =(AG208-AE208)/(AG205-AE205)*(AF205-AE205)+AE208 -> 2698.8 | AG208: 2850 | AH208: =(AI208-AG208)/(AI205-AG205)*(AH205-AG205)+AG208 -> 530 | AI208: 3430 | AJ208: =(AK208-AI208)/(AK205-AI205)*(AJ205-AI205)+AI208 -> 3430 | AK208: 3430 | AL208: =(AM208-AK208)/(AM205-AK205)*(AL205-AK205)+AK208 ->  | AM208: - | AN208: =(AO208-AM208)/(AO205-AM205)*(AN205-AM205)+AM208 ->  | AO208: - | AP208: =(AQ208-AO208)/(AQ205-AO205)*(AP205-AO205)+AO208 ->  | AQ208: - | AR208: 4 | AS208: Рвх | AT208: Q | AU208: Qcрасч | AV208: Рвых | AW208: Рвых
A209: =IF(AND(AV212>A208,AV212<A210)=TRUE,AV212,0) -> 0 | C209: =(C210-C208)/(A210-A208)*(A209-A208)+C208 -> 280 | D209: =(E209-C209)/(E205-C205)*(D205-C205)+C209 -> 210 | E209: =(E210-E208)/(A210-A208)*(A209-A208)+E208 -> 350 | F209: =(G209-E209)/(G205-E205)*(F205-E205)+E209 -> 230 | G209: =(G210-G208)/(A210-A208)*(A209-A208)+G208 -> 410 | H209: =(I209-G209)/(I205-G205)*(H205-G205)+G209 -> -100 | I209: =(I210-I208)/(A210-A208)*(A209-A208)+I208 -> 580 | J209: =(K209-I209)/(K205-I205)*(J205-I205)+I209 -> 420 | K209: =(K210-K208)/(A210-A208)*(A209-A208)+K208 -> 660 | L209: =(M209-K209)/(M205-K205)*(L205-K205)+K209 -> 375 | M209: =(M210-M208)/(A210-A208)*(A209-A208)+M208 -> 755 | N209: =(O209-M209)/(O205-M205)*(N205-M205)+M209 -> 415 | O209: =(O210-O208)/(A210-A208)*(A209-A208)+O208 -> 840 | P209: =(Q209-O209)/(Q205-O205)*(P205-O205)+O209 -> 540 | Q209: =(Q210-Q208)/(A210-A208)*(A209-A208)+Q208 -> 900 | R209: =(S209-Q209)/(S205-Q205)*(R205-Q205)+Q209 -> 450 | S209: =(S210-S208)/(A210-A208)*(A209-A208)+S208 -> 975 | T209: =(U209-S209)/(U205-S205)*(T205-S205)+S209 -> 590 | U209: =(U210-U208)/(A210-A208)*(A209-A208)+U208 -> 1030 | V209: =(W209-U209)/(W205-U205)*(V205-U205)+U209 -> 470 | W209: =(W210-W208)/(A210-A208)*(A209-A208)+W208 -> 1170 | X209: =(Y209-W209)/(Y205-W205)*(X205-W205)+W209 -> 690 | Y209: =(Y210-Y208)/(A210-A208)*(A209-A208)+Y208 -> 1290 | Z209: =(AA209-Y209)/(AA205-Y205)*(Z205-Y205)+Y209 -> 590 | AA209: =(AA210-AA208)/(A210-A208)*(A209-A208)+AA208 -> 1430 | AB209: =(AC209-AA209)/(AC205-AA205)*(AB205-AA205)+AA209 -> 620 | AC209: =(AC210-AC208)/(A210-A208)*(A209-A208)+AC208 -> 1700 | AD209: =(AE209-AC209)/(AE205-AC205)*(AD205-AC205)+AC209 -> 520 | AE209: =(AE210-AE208)/(A210-A208)*(A209-A208)+AE208 -> 2290 | AF209: =(AG209-AE209)/(AG205-AE205)*(AF205-AE205)+AE209 -> 2698.8 | AG209: =(AG210-AG208)/(A210-A208)*(A209-A208)+AG208 -> 2850 | AH209: =(AI209-AG209)/(AI205-AG205)*(AH205-AG205)+AG209 -> 530 | AI209: =(AI210-AI208)/(A210-A208)*(A209-A208)+AI208 -> 3430 | AJ209: =(AK209-AI209)/(AK205-AI205)*(AJ205-AI205)+AI209 -> 3430 | AK209: =(AK210-AK208)/(A210-A208)*(A209-A208)+AK208 -> 3430 | AL209: =(AM209-AK209)/(AM205-AK205)*(AL205-AK205)+AK209 ->  | AM209: =(AM210-AM208)/(A210-A208)*(A209-A208)+AM208 ->  | AN209: =(AO209-AM209)/(AO205-AM205)*(AN205-AM205)+AM209 ->  | AO209: =(AO210-AO208)/(A210-A208)*(A209-A208)+AO208 ->  | AP209: =(AQ209-AO209)/(AQ205-AO205)*(AP205-AO205)+AO209 ->  | AQ209: =(AQ210-AQ208)/(A210-A208)*(A209-A208)+AQ208 ->  | AR209: 5
A210: 3 | B210: =B208+1 -> 2 | C210: 160 | D210: =(E210-C210)/(E205-C205)*(D205-C205)+C210 -> 0 | E210: 320 | F210: =(G210-E210)/(G205-E205)*(F205-E205)+E210 -> 200 | G210: 380 | H210: =(I210-G210)/(I205-G205)*(H205-G205)+G210 -> -85 | I210: 535 | J210: =(K210-I210)/(K205-I205)*(J205-I205)+I210 -> 285 | K210: 660 | L210: =(M210-K210)/(M205-K205)*(L205-K205)+K210 -> 375 | M210: 755 | N210: =(O210-M210)/(O205-M205)*(N205-M205)+M210 -> 415 | O210: 840 | P210: =(Q210-O210)/(Q205-O205)*(P205-O205)+O210 -> 540 | Q210: 900 | R210: =(S210-Q210)/(S205-Q205)*(R205-Q205)+Q210 -> 450 | S210: 975 | T210: =(U210-S210)/(U205-S205)*(T205-S205)+S210 -> 590 | U210: 1030 | V210: =(W210-U210)/(W205-U205)*(V205-U205)+U210 -> 470 | W210: 1170 | X210: =(Y210-W210)/(Y205-W205)*(X205-W205)+W210 -> 690 | Y210: 1290 | Z210: =(AA210-Y210)/(AA205-Y205)*(Z205-Y205)+Y210 -> 590 | AA210: 1430 | AB210: =(AC210-AA210)/(AC205-AA205)*(AB205-AA205)+AA210 -> 620 | AC210: 1700 | AD210: =(AE210-AC210)/(AE205-AC205)*(AD205-AC205)+AC210 -> 520 | AE210: 2290 | AF210: =(AG210-AE210)/(AG205-AE205)*(AF205-AE205)+AE210 -> 2698.8 | AG210: 2850 | AH210: =(AI210-AG210)/(AI205-AG205)*(AH205-AG205)+AG210 -> 530 | AI210: 3430 | AJ210: =(AK210-AI210)/(AK205-AI205)*(AJ205-AI205)+AI210 -> 3430 | AK210: 3430 | AL210: =(AM210-AK210)/(AM205-AK205)*(AL205-AK205)+AK210 ->  | AM210: - | AN210: =(AO210-AM210)/(AO205-AM205)*(AN205-AM205)+AM210 ->  | AO210: - | AP210: =(AQ210-AO210)/(AQ205-AO205)*(AP205-AO205)+AO210 ->  | AQ210: - | AR210: 6 | AS210: МПа | AT210: нм3/час | AU210: нм3/час | AV210: кПа | AW210: кПа
A211: =IF(AND(AV212>A210,AV212<A212)=TRUE,AV212,0) -> 0 | C211: =(C212-C210)/(A212-A210)*(A211-A210)+C210 -> 400 | D211: =(E211-C211)/(E205-C205)*(D205-C205)+C211 -> 405 | E211: =(E212-E210)/(A212-A210)*(A211-A210)+E210 -> 395 | F211: =(G211-E211)/(G205-E205)*(F205-E205)+E211 -> 335 | G211: =(G212-G210)/(A212-A210)*(A211-A210)+G210 -> 425 | H211: =(I211-G211)/(I205-G205)*(H205-G205)+G211 -> 72.5 | I211: =(I212-I210)/(A212-A210)*(A211-A210)+I210 -> 542.5 | J211: =(K211-I211)/(K205-I205)*(J205-I205)+I211 -> 277.5 | K211: =(K212-K210)/(A212-A210)*(A211-A210)+K210 -> 675 | L211: =(M211-K211)/(M205-K205)*(L205-K205)+K211 -> 435 | M211: =(M212-M210)/(A212-A210)*(A211-A210)+M210 -> 755 | N211: =(O211-M211)/(O205-M205)*(N205-M205)+M211 -> 415 | O211: =(O212-O210)/(A212-A210)*(A211-A210)+O210 -> 840 | P211: =(Q211-O211)/(Q205-O205)*(P205-O205)+O211 -> 540 | Q211: =(Q212-Q210)/(A212-A210)*(A211-A210)+Q210 -> 900 | R211: =(S211-Q211)/(S205-Q205)*(R205-Q205)+Q211 -> 450 | S211: =(S212-S210)/(E212-E210)*(E211-E210)+S210 -> 975 | T211: =(U211-S211)/(U205-S205)*(T205-S205)+S211 -> 590 | U211: =(U212-U210)/(G212-G210)*(G211-G210)+U210 -> 1030 | V211: =(W211-U211)/(W205-U205)*(V205-U205)+U211 -> 470 | W211: =(W212-W210)/(I212-I210)*(I211-I210)+W210 -> 1170 | X211: =(Y211-W211)/(Y205-W205)*(X205-W205)+W211 -> 690 | Y211: =(Y212-Y210)/(A212-A210)*(A211-A210)+Y210 -> 1290 | Z211: =(AA211-Y211)/(AA205-Y205)*(Z205-Y205)+Y211 -> 590 | AA211: =(AA212-AA210)/(E212-E210)*(E211-E210)+AA210 -> 1430 | AB211: =(AC211-AA211)/(AC205-AA205)*(AB205-AA205)+AA211 -> 620 | AC211: =(AC212-AC210)/(A212-A210)*(A211-A210)+AC210 -> 1700 | AD211: =(AE211-AC211)/(AE205-AC205)*(AD205-AC205)+AC211 -> 520 | AE211: =(AE212-AE210)/(A212-A210)*(A211-A210)+AE210 -> 2290 | AF211: =(AG211-AE211)/(AG205-AE205)*(AF205-AE205)+AE211 -> 2698.8 | AG211: =(AG212-AG210)/(A212-A210)*(A211-A210)+AG210 -> 2850 | AH211: =(AI211-AG211)/(AI205-AG205)*(AH205-AG205)+AG211 -> 530 | AI211: =(AI212-AI210)/(A212-A210)*(A211-A210)+AI210 -> 3430 | AJ211: =(AK211-AI211)/(AK205-AI205)*(AJ205-AI205)+AI211 -> 3430 | AK211: =(AK212-AK210)/(A212-A210)*(A211-A210)+AK210 -> 3430 | AL211: =(AM211-AK211)/(AM205-AK205)*(AL205-AK205)+AK211 ->  | AM211: =(AM212-AM210)/(A212-A210)*(A211-A210)+AM210 ->  | AN211: =(AO211-AM211)/(AO205-AM205)*(AN205-AM205)+AM211 ->  | AO211: =(AO212-AO210)/(A212-A210)*(A211-A210)+AO210 ->  | AP211: =(AQ211-AO211)/(AQ205-AO205)*(AP205-AO205)+AO211 ->  | AQ211: =(AQ212-AQ210)/(A212-A210)*(A211-A210)+AQ210 ->  | AR211: 7
A212: 5 | B212: =B210+1 -> 3 | C212: 0 | D212: =(E212-C212)/(E205-C205)*(D205-C205)+C212 -> -270 | E212: 270 | F212: =(G212-E212)/(G205-E205)*(F205-E205)+E212 -> 110 | G212: 350 | H212: =(I212-G212)/(I205-G205)*(H205-G205)+G212 -> -190 | I212: 530 | J212: =(K212-I212)/(K205-I205)*(J205-I205)+I212 -> 290 | K212: 650 | L212: =(M212-K212)/(M205-K205)*(L205-K205)+K212 -> 335 | M212: 755 | N212: =(O212-M212)/(O205-M205)*(N205-M205)+M212 -> 415 | O212: 840 | P212: =(Q212-O212)/(Q205-O205)*(P205-O205)+O212 -> 540 | Q212: 900 | R212: =(S212-Q212)/(S205-Q205)*(R205-Q205)+Q212 -> 450 | S212: 975 | T212: =(U212-S212)/(U205-S205)*(T205-S205)+S212 -> 590 | U212: 1030 | V212: =(W212-U212)/(W205-U205)*(V205-U205)+U212 -> 470 | W212: 1170 | X212: =(Y212-W212)/(Y205-W205)*(X205-W205)+W212 -> 690 | Y212: 1290 | Z212: =(AA212-Y212)/(AA205-Y205)*(Z205-Y205)+Y212 -> 590 | AA212: 1430 | AB212: =(AC212-AA212)/(AC205-AA205)*(AB205-AA205)+AA212 -> 620 | AC212: 1700 | AD212: =(AE212-AC212)/(AE205-AC205)*(AD205-AC205)+AC212 -> 520 | AE212: 2290 | AF212: =(AG212-AE212)/(AG205-AE205)*(AF205-AE205)+AE212 -> 2698.8 | AG212: 2850 | AH212: =(AI212-AG212)/(AI205-AG205)*(AH205-AG205)+AG212 -> 530 | AI212: 3430 | AJ212: =(AK212-AI212)/(AK205-AI205)*(AJ205-AI205)+AI212 -> 3430 | AK212: 3430 | AL212: =(AM212-AK212)/(AM205-AK205)*(AL205-AK205)+AK212 ->  | AM212: - | AN212: =(AO212-AM212)/(AO205-AM205)*(AN205-AM205)+AM212 ->  | AO212: - | AP212: =(AQ212-AO212)/(AQ205-AO205)*(AP205-AO205)+AO212 ->  | AQ212: - | AR212: 8 | AS212: =AK21 -> 0.373 | AT212: =AL21 -> 229.2 | AU212: =VLOOKUP(AV212,A205:AQ242,HLOOKUP(AS212,A205:AQ242,38,0),0) -> 1825 | AV212: =AN21 -> 300 | AW212: =IF(AS212<A208,"NO",IF(AS212>A240,"N0",IF(VLOOKUP(AS212,A208:AQ240,3,0)>AT212,"NO",IF(VLOOKUP(AS212,A208:AQ240,17,0)<AT212,"NO",IF(AND(AU212>=AT212-0.1,AU212<AT212+0.1)=TRUE,AV212,"NO"))))) -> NO
A213: =IF(AND(AV212>A212,AV212<A214)=TRUE,AV212,0) -> 0 | C213: =(C214-C212)/(A214-A212)*(A213-A212)+C212 ->  | D213: =(E213-C213)/(E205-C205)*(D205-C205)+C213 ->  | E213: =(E214-E212)/(A214-A212)*(A213-A212)+E212 -> 453.3333333 | F213: =(G213-E213)/(G205-E205)*(F205-E205)+E213 -> 493.3333333 | G213: =(G214-G212)/(A214-A212)*(A213-A212)+G212 -> 433.3333333 | H213: =(I213-G213)/(I205-G205)*(H205-G205)+G213 -> -106.6666667 | I213: =(I214-I212)/(A214-A212)*(A213-A212)+I212 -> 613.3333333 | J213: =(K213-I213)/(K205-I205)*(J205-I205)+I213 -> 440 | K213: =(K214-K212)/(A214-A212)*(A213-A212)+K212 -> 700 | L213: =(M213-K213)/(M205-K205)*(L205-K205)+K213 -> 410 | M213: =(M214-M212)/(A214-A212)*(A213-A212)+M212 -> 796.6666667 | N213: =(O213-M213)/(O205-M205)*(N205-M205)+M213 -> 623.3333333 | O213: =(O214-O212)/(A214-A212)*(A213-A212)+O212 -> 840 | P213: =(Q213-O213)/(Q205-O205)*(P205-O205)+O213 -> 540 | Q213: =(Q214-Q212)/(A214-A212)*(A213-A212)+Q212 -> 900 | R213: =(S213-Q213)/(S205-Q205)*(R205-Q205)+Q213 -> 450 | S213: =(S214-S212)/(A214-A212)*(A213-A212)+S212 -> 975 | T213: =(U213-S213)/(U205-S205)*(T205-S205)+S213 -> 590 | U213: =(U214-U212)/(G214-G212)*(G213-G212)+U212 -> 1030 | V213: =(W213-U213)/(W205-U205)*(V205-U205)+U213 -> 470 | W213: =(W214-W212)/(I214-I212)*(I213-I212)+W212 -> 1170 | X213: =(Y213-W213)/(Y205-W205)*(X205-W205)+W213 -> 690 | Y213: =(Y214-Y212)/(A214-A212)*(A213-A212)+Y212 -> 1290 | Z213: =(AA213-Y213)/(AA205-Y205)*(Z205-Y205)+Y213 -> 590 | AA213: =(AA214-AA212)/(A214-A212)*(A213-A212)+AA212 -> 1430 | AB213: =(AC213-AA213)/(AC205-AA205)*(AB205-AA205)+AA213 -> 620 | AC213: =(AC214-AC212)/(A214-A212)*(A213-A212)+AC212 -> 1700 | AD213: =(AE213-AC213)/(AE205-AC205)*(AD205-AC205)+AC213 -> 520 | AE213: =(AE214-AE212)/(A214-A212)*(A213-A212)+AE212 -> 2290 | AF213: =(AG213-AE213)/(AG205-AE205)*(AF205-AE205)+AE213 -> 2698.8 | AG213: =(AG214-AG212)/(A214-A212)*(A213-A212)+AG212 -> 2850 | AH213: =(AI213-AG213)/(AI205-AG205)*(AH205-AG205)+AG213 -> 530 | AI213: =(AI214-AI212)/(A214-A212)*(A213-A212)+AI212 -> 3430 | AJ213: =(AK213-AI213)/(AK205-AI205)*(AJ205-AI205)+AI213 -> 3430 | AK213: =(AK214-AK212)/(A214-A212)*(A213-A212)+AK212 -> 3430 | AL213: =(AM213-AK213)/(AM205-AK205)*(AL205-AK205)+AK213 ->  | AM213: =(AM214-AM212)/(A214-A212)*(A213-A212)+AM212 ->  | AN213: =(AO213-AM213)/(AO205-AM205)*(AN205-AM205)+AM213 ->  | AO213: =(AO214-AO212)/(A214-A212)*(A213-A212)+AO212 ->  | AP213: =(AQ213-AO213)/(AQ205-AO205)*(AP205-AO205)+AO213 ->  | AQ213: =(AQ214-AQ212)/(A214-A212)*(A213-A212)+AQ212 ->  | AR213: 9
... 135 more rows

Sheet MODULO1 (hidden)

Sheet Modulo5 (hidden)

Sheet Modulo4 (hidden)

Sheet Modulo6 (hidden)

Sheet Modulo2 (hidden)

Sheet Modulo3 (hidden)
